Workbook

Sheet Cover
A2: RIIO-3 Business Plan Financial Model (BPFM) | I2: Legal Notice
B3: Gas Distribution | I3: This model forms part of Wales & West Utilities Limited Regulatory Business Plan. Your attention is specifically drawn to the legal notice relating to the whole of the Business Plan, set out on page 3 of Document 1 of WWU Business Plan Submission. This is applicable in full to this model, as though set out in full here.
C4: Model Version | G4: =MID(CELL("filename"),SEARCH("[",CELL("filename"))+1,SEARCH("]",CELL("filename"))-SEARCH("[",CELL("filename"))-1) -> WWU GD3 BPFM - Base Model (redacted).xlsm
B7: Model key
E9: Sample | G9: Calculated value | I9: Sample | K9: Information and interface
E10: Sample | G10: Import | I10: Sample | K10: Fixed input value
E11: Sample | G11: Export | I11: Sample | K11: Ofgem annual update input (outturn value)
E12: Sample | G12: Named range | I12: Sample | K12: Ofgem annual update input (forecasted value)
E13: Sample | G13: Formula change in cells to the right | I13: Sample | K13: Other annual update input (outturn value)
I14: Sample | K14: Other annual update input (forecasted value)
I15: Sample | K15: Input linked from annual update
I16: Sample | K16: Notes and instructions
I17: Sample | K17: Check
B19: Contents
E21: INTERFACE > | I21: GENERAL INPUT SHEETS >
E22: Cover | G22: Model key and content directory | I22: Annual Inflation | K22: Derivation of annual inflation rates and price indices
E23: UserInterface | G23: Model operation | I23: Monthly Inflation | K23: Dataset and derivation of monthly inflation rates and price indices
E25: INPUT SELECTION > | I25: COMPANY SPECIFIC INPUT SHEETS >
E26: Extension | G26: Controls for timeline extension macro | I26: Cadent | K26: Inputs for Cadent
E27: Scenarios | G27: Inputs for selected licensee | I27: East | K27: Inputs for East
E28: InputSummary | G28: Mirroring company specific input sheet for selected company | I28: London | K28: Inputs for London
E29: MainInputs | G29: Arranging inputs for use in model | I29: North West | K29: Inputs for North West
I30: West Midlands | K30: Inputs for West Midlands
E31: CALCULATION > | I31: Northern | K31: Inputs for Northern
E32: Totex | G32: Totex allowance and actuals | I32: Scotland | K32: Inputs for Scotland
E33: TIM | G33: Totex Incentive Mechanism and capitalisation | I33: Southern | K33: Inputs for Southern
E34: Depn | G34: Gas distribution regulatory depreciation | I34: Wales & West | K34: Inputs for Wales & West
E35: FuelPoor | G35: Fuel poor RAV calculations
E36: Return&RAV | G36: RAV and return calculations | I36: DEBT SHEETS >
E37: TaxPools | G37: Tax pools and capital allowances | I37: F1 - Debt for BPFM | K37: Outputs for actual debt data, mirrored from BPDT
E38: Finance&Tax | G38: Net debt, equity issuance, financing costs and tax | I38: F2a - Financial Summary (TWA) | K38: Summary of information on actual debt and equity, mirrored from BPDT
E39: Revenue | G39: Summary of calculated revenue | I39: F2b - Financial Summary (YE) | K39: Derives embedded and new debt volumes at the atart and end of each year, mirrored from BPDT
I40: F3 - Fixed Rate Debt | K40: Aggregates fixed rate debt instruments from F6, mirrored from BPDT
E41: FINANCIAL & OUTPUT ANALYSIS SHEETS > | I41: F4 - Floating Rate Debt | K41: Aggregates floating rate debt instruments from F6, mirrored from BPDT
E42: FinInput | G42: Arranging inputs for use in financeability tabs | I42: F5 - Inflation Linked Debt | K42: Aggregates inflation linked debt instruments from F6, mirrored from BPDT
E43: RevenueSummary | G43: Revenue buildup for notional and actual companies | I43: F6 - Debt Dataset | K43: Inputs for actual debt data, mirrored from BPDT
E44: Finance&Tax(actual) | G44: Net debt, equity issuance, financing costs and tax for actual company | I44: F7 - Data Validation | K44: Stores definitions of drop-down validation lists in F6, mirrored from BPDT
E45: FinancialStatements | G45: Financial statements for selected company
E46: FinancialRatios | G46: Financial ratios for selected company | I46: SHEETS NOT USED IN BPFM >
E47: FinRatios RoRE decomposition | G47: Decomposition of RoRE, as derived in the FinancialRatios tab | I47: TaxTrigger Deadbands | K47: Used to calculate the Tax Trigger Deadbands - unused in BPFM
E48: RatingSimulator | G48: Credit rating estimation tool | I48: ReturnAdj | K48: Calculations for the Return Adjustment - unused in BPFM
E49: PowerQuery | G49: Tabulating data for OutputSummary's use | I49: AR | K49: Derivation of allowed revenue - unused in BPFM
E50: OutputSummary | G50: For use in exporting dashboard data | I50: LiveResults | K50: Results for selected company - unused in BPFM
E51: ScenarioRun_AllOutputData | G51: For use in exporting scenario modelling outputs | I51: SavedResults | K51: Saved results for all companies - unused in BPFM
E52: FBP Outputs | G52: Outputs for use in FBPs | I52: RIIO-1 | K52: RIIO-1 revenue & domestic charges input data - unused in BPFM
E53: Bills | G53: Calculations of approximated bills
B56: End of sheet

Sheet UserInterface
A1: User Interface
B3: Model operation
C5: PCFM year t
C6: Instruction: Use the following drop-down list to identify year t in the model. Year t is identified here by its end date.
E8: Year t selection:
E10: Year t selected: | G10: =INDEX(NumberofYear,m_PCFM_year_t) -> 2026-03-31
C12: Active company
C13: Instruction: Use the following drop-down list to select the active company in the model.
E15: Company selection:
E17: Selected company: | G17: =INDEX(E51:E59, E60) -> Wales & West
C19: RIIO extension
C20: Instruction: Use the following drop-down list to select the RIIO period to extend the model.
E22: RIIO period selection
E24: Selected RIIO period: | G24: =INDEX(RIIO, E75) -> RIIO8
C26: Run scenario output
C27: Instruction: Run an export to a new sheet for all licensees and scenarios selected on ScenarioRun_AllOutpuData tab
C32: Align model calculation debt with actual debt for selected licensee
C33: Instruction: Align actual debt data for the selected licensee based on BPDT values, for output on Finance&Tax(actual) tab
C38: Run scenario output
C39: Instruction: Extend the timeline of the model based on parameters set on Extension tab
B44: User selection lists
B45: Note: The lists below drive the drop-down lists above.
B46: Using the drop-down lists above returns an integer in the "cell link" positioned below their "source list."
B47: The number returned in the cell link corresponds to the position of the selected item in the source list.
B48: The company selection output is set as a "named range." This gives a stable anchor point for the "RunForAll" macro to change the company.
E50: ="Source for ''"&C12&"'' drop-down list" -> Source for ''Active company'' drop-down list | G50: ="Source for ''"&C5&"'' drop-down list" -> Source for ''PCFM year t'' drop-down list
E51: Cadent | G51: 2022-03-31
E52: East | G52: 2023-03-31
E53: London | G53: 2024-03-31
E54: North West | G54: 2025-03-31
E55: West Midlands | G55: 2026-03-31
E56: Northern | G56: 2027-03-31
E57: Scotland | G57: 2028-03-31
E58: Southern | G58: 5
E59: Wales & West | G59: Adjacent named range: m_PCFM_year_t
E60: 9
E61: Adjacent named range: m_identity
E62: =INDEX(NumberofOperators,m_identity) -> Wales & West
E63: Adjacent named range: n_identity
E64: ="Source for ''"&C19&"'' drop-down list" -> Source for ''RIIO extension'' drop-down list
E65: =RIIO -> RIIO4
E66: RIIO5
E67: RIIO6
E68: RIIO7
E69: RIIO8
E70: RIIO9
E71: RIIO10
E72: RIIO11
E73: RIIO12
E74: RIIO13
E75: 5
B77: End of sheet

Sheet Changelog
B2: Date | C2: Task | D2: Subtask | E2: Modeller | F2: Description of job | G2: Detailed steps taken | H2: GitLab Issue | I2: Version
B3: 2024-06-03 | C3: Pass through costs fix | E3: Catriona Bogle | F3: Less actual pass through' on Finance&Tax(actual) should have a negative sign before formula | G3: Finance&Tax(actual) line 42 amended to =-RevenueSummary!AR48 | H3: 21
B4: 2024-06-03 | C4: Tax pool categorisation | D4: Input definition | E4: Catriona Bogle | F4: General pool additions and special rate pool additions should be indicated as variable inputs | G4: Licensee Input tabs AU706:AY707 amended to blue cell colour | H4: 26
B5: 2024-06-03 | C5: Tax pool categorisation | D5: Rates correction | E5: Catriona Bogle | F5: General pool super-deduction/first year rate should be 100% in all years | G5: Licensee Input tabs AU905:AV905 amended to 100% | H5: 26
B6: 2024-06-03 | C6: Tax pool categorisation | D6: Tax Pool summarisation | E6: Catriona Bogle | F6: Correcting summarisation of TaxPool subtotals to include all required values | G6: TaxPools AP57:AY57 amended to =SUM(AP52:AP56) AP79:AY79 amended to =SUM(AP74:AP78) AP122:AY122 amended to =SUM(AP118:AP121) | H6: 26
B7: 2024-06-03 | C7: Revenue summarisation | E7: Catriona Bogle | F7: Total recalculated revenue omits less cross-subsidy adjustment | G7: RevenueSummary AP65:AY65 amended to =SUM(AP62:AP64) | H7: 27
B8: 2024-06-03 | C8: Inflation data ommission | E8: Catriona Bogle | F8: Full inflation table not pulled through to Inflation Linked Debt accretion | G8: F5 - Inflation Linked Debt Formula amended in below cell ranges to look up to Monthly Inflation ranges H5:I385 and B5:B385 BT:CJ KB:KQ KT:LI MD:MS IR Q12:Q411 formula amended to =IFERROR(IF(P12=0, INDEX('Monthly Inflation'!$H$5:$I$385, MATCH(EOMONTH(EDATE(F12,-O12),0), 'Monthly Inflation'!$B$5:$B$385, 0), 1 + (N12 = "RPI")), P12), 0) | H8: 41
B9: 2024-06-03 | C9: Debt data fixes | D9: Identifier formula fix | E9: Catriona Bogle | F9: Identifier by type column missing formula | G9: F6 - Debt Dataset Column CX: formula dragged down to cover all cells | H9: 47
B10: 2024-06-03 | C10: Debt data fixes | D10: Extend dataset availability | E10: Catriona Bogle | F10: Increase number of rows available for debt data | G10: F3 – Fixed Rate Debt & F4 – Floating Rate Date & F5 – Inflation Linked Debt Dataset extended down to row 411 to allow for 400 debt instruments N7 formula amended to =SUM(K12:K411) F2a - Financial Summary (TWA) Formula amended in following rows to obtain data down to row 411 in preceeding tabs 40, 41, 42, 43, 44, 56, 57, 58, 59, 60, 61, 62, 63, 72, 73, 74, 75, 76, 88, 89, 90, 91, 92, 93, 94, 95, 132, 133 F2b - Financial Summary (YE) Formula amended in following rows to obtain data down to row 411 in preceeding tabs 14, 15, 16, 17, 18, 21, 22, 23, 24, 25, 30, 31, 32, 35, 36, 37, 38, 39, 50, 55, 56, 57, 58, 59, 62, 63, 64, 65, 66, 76, 77, 78, 79, 80, 131 | H10: 52
B11: 2024-06-04 | C11: Yearly dividend profile | E11: Catriona Bogle | F11: Implement ability for user defined 'dividends as % of equity' for actual company parameters with different values in each year | G11: Scenarios Added additional options in cells E241:E243 Entered hard coded values in AP241:AY243 H240 added formula =MATCH(F89,E241:E243,0) AP240:AY240 amended to =INDEX(AP241:AP243,$H240) AP89:BE89 added data validation looking up to E241:E243 | H11: 43
B12: 2024-06-04 | C12: Debt 'check' errors | D12: Debt corkscrew | E12: Catriona Bogle | F12: Update formula in debt corkscrew so prevent check errors | G12: F1 - Debt for BPFM K90 formula amended to =K15+K30+K45+K60+K75 | H12: 45
B13: 2024-06-04 | C13: Debt 'check' errors | D13: Error check rounding | E13: Catriona Bogle | F13: Implement rounding in error checks on debt tabs | G13: F2a - Financial Summary (TWA) Formula amended to use ROUND function to 3bps in following rows 53, 117, 132, 133 F2b - Financial Summary (YE) Formula amended to use ROUND function to 3bps in following rows 49, 50, 90, 130, 131, 146, 147, 148, 189, 190 | H13: 69
B14: 2024-06-06 | C14: Monthly Inflation fixes | E14: Catriona Bogle | F14: Fixing error in splice on Monthly Inflation | G14: Monthly Inflation J2:J385 amended to =IF($A2 < DATE(2021, 4, 1), I2, IF($A2 = DATE(2021, 4, 30), J1 * ((0.5*H2/H1) + (0.5*I2/I1)),J1*(H2/H1)))
B15: 2024-06-06 | C15: Inflation Update | E15: Catriona Bogle | F15: Updating latest OBR inflation figures | G15: Annual Inflation AQ56, AQ59 updated to latest OBR outturn Scenarios E140 amended to 'Jun'24 BPDT' AR140:AY140 updated to OBR forecast AP40, AQ40, AR40, AU40, AV40, AY40, AZ40, BA40, BB40, BC40, BD40, BE40 amended to Jun’24 BPDT E147 amended to 'Jun'24 BPDT' AR147:AY147 updated to OBR forecast AP41, AQ41, AR41, AW41, AX41, AY41, AZ41, BA41, BB41, BC41, BD41, BE41 amended to Jun’24 BPDT
B16: 2024-06-06 | C16: Disposals from BPDTs | E16: Catriona Bogle | F16: Updating input tabs to account for disposals net proceeds to be updated through BPDTs | G16: Licensee tabs and InputSummary 240:242 Added disposals section and 'disposals net proceeds' line Cadent AU242:AY242 added formula =SUM(East!AU242,London!AU242,'North West'!AU242,'West Midlands'!AU242) MainInputs AU1458:AY1458 formula amended to =InputSummary!AU1431*$I$12*AU$9 + InputSummary!AU242*$I$12*AU$10 Licensee tabs and InputSummary Removed duplicated line (950) of 'disposals net sales proceeds'
B17: 2024-06-06 | C17: Reduce New Debt timeline | E17: Catriona Bogle | F17: Reducing new debt composition sections to no longer include historic debt | G17: F2a – Financial Summary (TWA) K138:L196 deleted data F2b – Financial Summary (YE) J154:L187 deleted data
B18: 2024-06-06 | C18: Variant checks | E18: Catriona Bogle | F18: Addition of checks on variant attributes | G18: Licensee tabs Variant check total: BB6 =COUNTIF(BB22:BB695,FALSE)&" input errors" BB21:114 =IF(COUNTA(AU21:AY21)=0,"",1) BB119:BB208 =IF(BB61=1,COUNTA(AP158:AS158)=4,"") BB246:BB695 =IF(INDEX($BB$21:$BB$110,MATCH(E246,$E$21:$E$110,0),)=1,COUNTA(AU246:AY246)>0,"")
B19: 2024-06-06 | C19: BPDT alignment | E19: Catriona Bogle | F19: Adjusting structure of the input tabs to match the BPFM Input tab in the BPDT | G19: Licensee tabs and InputSummary Deleted blank line 232 Tax pool allocation section moved to 696:707
B20: 2024-06-17 | C20: Formula fix on F2a | E20: Catriona Bogle | F20: Fixing formula look up for additional borrowing cost assumption to correct year | G20: F2a - Financial Summary (TWA) P29 formula amended to =MainInputs!AU1482 and dragged across
B21: 2024-06-18 | C21: Interest rate update | E21: Catriona Bogle | F21: Updating 'annual interest rates assumptions' | G21: Annual Inflation AJ64:AY73 updated
B22: 2024-06-18 | C22: Dividends as % of equity notional profile | E22: Catriona Bogle | F22: Implemented ability to enter differing annual profiles for dividends as % of equity for the notional company | G22: Scenarios Added section for 'assumed dividends as % of equity' (153:156) | H22: 43
B23: 2024-06-19 | C23: Formula missing | E23: Catriona Bogle | F23: Formula missing from variant allowances on MainInputs | G23: MainInputs AP1424, copied formula across from AQ1424 AP1429, copied formula across from AQ1429 | H23: 70;73
B24: 2024-06-19 | C24: Inflation splice | E24: Catriona Bogle | F24: Monthly Inflation splice error | G24: Monthly Inflation J2 formula changed “=IF($A2 < DATE(2021, 4, 1), I2, IF($A2 = DATE(2021, 4, 30), J1 * ((0.5*H2/H1) + (0.5*I2/I1)),J1*(H2/H1)))” to “=IF($A2 < DATE(2021, 4, 1), I2, IF($A2 = DATE(2021, 4, 1), J1 * ((0.5*H2/H1) + (0.5*I2/I1)),J1*(H2/H1)))” Dragged down to J385 | H24: 74;76
B25: 2024-06-19 | C25: F6 data validation | E25: Catriona Bogle | F25: Implementing data validation on F6 tab against F7 | G25: F6 - Debt Dataset Added data validation (list) against the equivalent column in F7 - Data Validation tab A3, B3, C3, D3, E3, F3, G3, H3,O3, Y3, Z3, AA3, AI3, AJ3 Copied down to row 1202 | H25: 79
B26: 2024-06-25 | C26: Tax clawback | E26: Tomo Sandeman | F26: Reactivating tax clawback in RIIO3 years | G26: LicenseeInputs • Row 881 & 882 (“Adjusted net debt” and “Tax deductivle net interest cost”) made yellow inputs. • Row 889 (“Notional gearing for tax clawback gearing level test”) made blue inputs with 60% gearing InputSummary • Matching rows added in formulas to bring these through Finance&Tax • Row 308 (“Gearing level test (actual gearing > notional gearing”) switched on in RIIO3 years by changing from =(AP306 > AP307) * AP9” to “=AP306 > AP307” | H26: 18,84
B27: 2024-06-25 | C27: Depreciation | D27: Main depreciation | E27: Tomo Sandeman | F27: Fixing depreciation | G27: Scenarios • Add new rows into Depreciation section for additional options: o RIIO-3 additions: base case or terminate?  If base case, asset life  If terminate, input year of final depreciation o Post-vesting additions: status quo, accelerate or terminate?  If accelerate, asset life  If terminate, input year of final depreciation o Pre-vesting additions: status quo or terminate?  If terminate, input year of final depreciation Depn Pre-vesting: • Add new rows in Scenario Operators section to accommodate new Scenarios structure • I48 Changed “Asset remaining at end of RIIO-2” from ““=(AT53*(1+AT53)/2)/I47” to “=((AT53-1)*(1+AT53-1)/2)/I47”. Changed label from “Asset remaining at end of RIIO-2” to “Asset remaining at start of RIIO-3” • I50 “Scenario-driven asset life at start of RIIO-3” change from “=IF(I18=”Base case”,I49-1,IF(I18=”Accelerate”,MAX(1,I19-(I46-I49)-1),MIN(MAX(1,I19-(I46-I49)-1),I20-YEAR(AT4))))” to “=IF(I21=”Status quo”,I49-1,I22-YEAR(AT4))” Post vesting: • I63 change from “=I19” to “=IF(I18="Status quo",I64,I19)” RIIO-3: • H105 change from “=MAX((1-H73)*MIN(($I$63-(YEAR($E$104)-YEAR(E73))+1),$I$20-2027+1) + H73*MIN($I$62,$I$20-YEAR(E73)),1)” to “=MAX((1-H73)*MIN(($I$63-(YEAR($E$104)-YEAR(E73))+1),$I$20-2027+1) + H73*MIN($I$62,$I$17-YEAR(E73)),1)” and paste down to H133 | H27: 30,42,77
B28: 2024-06-25 | C28: Depreciation | D28: Fuel poor | E28: Tomo Sandeman | F28: Fixing depreciation | G28: FuelPoor • Added in timeline and scenario operators at top of tab • In each year’s Schemes section, added three extra rows in depreciation block to calculate RIIO3+ periods separate to RIIO2 periods. Remaining depreciation based on selected scenario options (treated as post-vesting pre-RIIO3 additions). • Rows 30-32 total depreciation figures amended to add in new RIIO3 treatment rows.
B29: 2024-06-26 | C29: Bugfixing inputs | D29: Git 14 | E29: Tomo Sandeman | F29: Label errors | G29: Cadent G1044:G1054 price labels corrected to align with other input tabs. | H29: 14
B30: 2024-06-26 | C30: Bugfixing inputs | D30: Git 22 | E30: Tomo Sandeman | F30: Pass through input updating | G30: LincenseeInputs AP1044:AT1054 Pass-through costs re-pasted into RIIO-2 PCFM section from Jan’24 published PCFMs. | H30: 67,70
B31: 2024-06-26 | C31: Bugfixing inputs | D31: Git 34 | E31: Tomo Sandeman | F31: Input label error | G31: LicenseeInputs E936 and InputSummary E936. Label change from “RAV adjustments from previous price controls (not modelled in PCFM)” to “Years of pre-vesting depreciation remaining”. Year inputs added. | H31: 34
B32: 2024-06-26 | C32: Bugfixing inputs | D32: Git 35 | E32: Tomo Sandeman | F32: Inputs added | G32: LicenseeInputs AU942:AY942 “GD smoothing profile for recovery of backlog depreciation” filled with zeroes. | H32: 35
B33: 2024-06-26 | C33: Bugfixing inputs | D33: Git 67,70 | E33: Tomo Sandeman | F33: Resetting RPE index to 1 | G33: LicenseeInputs AU879:AY879. RPEs index needs to be set to zero for RIIO3 for the interim. Goal seek used to set a yr 1 growth rate for RIIO3 that sets RPE index back to 1. 0% is then used for remaining RIIO3 years. | H33: 67,70
B34: 2024-06-26 | C34: Bugfixing inputs | D34: Git 88 | E34: Tomo Sandeman | F34: Minimum equity issuance threshold scenario input | G34: Scenarios row 46 “Minimum equity issuance threshold” replacing the single free figure input with a set of profile options, in order to allow RIIO-2’s figures to be used (which differ per licensee). • Five new rows added in the “Scenario options selection (notional model)” section, rows 157-161. The “RIIO-2 thresholds” option is linked to LicenseeInputs rows 1178 (RIIO-2 equity issuance threshold) • Original minimum equity issuance threshold export line (row 167) moved up to the new profile selection line in row 157. Row 167 then deleted. | H34: 88
B35: 2024-06-26 | C35: Bugfixing inputs | D35: Misc other fixes | E35: Tomo Sandeman | F35: Small other fixes | G35: • LicenseeInputs and SelectedInputs row 875 (“iBoxx trailing average”) moved up to above “Uplift on iBoxx trailing average”. • LicenseeInputs and SelectedInputs row 876 (“Risk-free rate”) moved up to above “Equity Beta”. • iBoxx figures from extened RIIO2 CoD model inserted into row 855. • Risk-free rate 1% working assumption fig inserted LicenseeInputs row 858 • SONIA inputs inserted from WACC allowance mode partial update for BPDTs 20240531 (Output Tables O122:O126) into LicenseeInputs row 877 • Updated interest rate inputs in Scenarios rows 179:211. • These scenario outputs were not previously linked to AnnualInflation. Amending AnnualInflation AP64:AY73 to pull the live scenario rates. • Scenarios added 10 extra scenario slots in BJ:BS. Amended Indexing functions in F13:F93 to include the new scenarios. • Scenarios aligned financeability scenarios with guidance; added in example financeability scenarios in slots 16-19 • Scenarios “Incentive RoRE % performance: total incentive revenue” row 221 has formula inconsistency. Copied AU221 and pasted into AV221:AY221 • Scenarios drop-downs in row 37 and 39 (“Allowed cost of Debt input: scenario input or Licensee tabs?” and “Allowed cost of Equity input: scenario input or Licensee tabs?”) changed from “DNO inputs” to “Licensee inputs”. CoD and CoE single input figures updated (rows 129 & 136) • Scenarios drop-downs in ro 20 (“RIIO-3 cap rates from Scenarios or Licensee inputs?”) changed from “GDNs” to “Licensee inputs” • Scenarios free-input cells (ones without dropdown options) coloured yellow • Aligning input tabs to match BPDT mirror table. LicenseeInputs & SelectedInputs delete row 232, add in a row in 697 (between tax pool allocation header and subsequent rows).
B36: 2024-06-26 | C36: Bugfixing financeability and tax | D36: Git 12 | E36: Tomo Sandeman | F36: Rating simulator de-weighting factor | G36: RatingSimulator linking in the de-weighting factor. • F19 amended from “=AVERAGE(AU22:AY22)” to “=SUMPRODUCT(AU22:AY22,AU23:AY23)”. • F281 amended from “=AVERAGE(AU285:AY285)” to “=SUMPRODUCT(AU285:AY285,AU286:AY286)” | H36: 12 | I36: v4
B37: 2024-06-26 | C37: Bugfixing financeability and tax | D37: Git 83 | E37: Tomo Sandeman | F37: Dividends as % of equity in FinInput | G37: • FinInput Dividends calculation row 121– “Actual dividends as % of equity (from BPDT mirror table”, the denominator is linked to Finance&Tax(actual) net debt instead of “actual closing equity RAV + dividends”. Correcting from “=IF(AP21=1,AP120 / ('Finance&Tax(actual)'!AP209 - AP120),0)” to “=IF(AP21=1,AP120 / ('Finance&Tax(actual)'!AP210 - AP120),0)” | H37: 83 | I37: v4
B38: 2024-06-26 | C38: Bugfixing financeability and tax | D38: Git 89 | E38: Tomo Sandeman | F38: Inflation options new inflation index error | G38: • Return&RAV the Inflation Option 1& 2 both create a custom real-to-nominal price conversion index with 2024 as the base year. Their custom annual inflation drivers are currently applied from 2024 onwards, whereas they should only be applied from the start of RIIO3 onwards. In RIIO2 years they should just be tied to CPIH inflation. • Row 211 (Option 1’s “Inflaion applied to the indexed portion of capital structure”) changed from “=AP179*(AP187+AP188)” to “=AP179*AP167 + AP179*(AP187+AP188)*AP168” • Row 216 (Option 2’s “Return via RAV”) changed from “=(1+AP206)/(1+AP197)-1” to “=AP179*AP167 + ((1+AP206)/(1+AP197)-1)*AP168”. This was mistakenly not implemented on 26/06. Correction done on 23/07 | H38: 89 | I38: v4
B39: 2024-06-26 | C39: Bugfixing financeability and tax | D39: FinInput check | E39: Tomo Sandeman | F39: Check added for base case BPDT-derived gearing target | G39: • Check added in new row in FinInput row 97. Under Base Case scenario, the values for "BPDT derived closing gearing target" (row 94) and "Actual closing gearing target (from BPDT mirror table)" (row 96) should match: “=IF(m_scenario=1,AP94-AP96,0)”. • New check incorporated into Checks rows 26:28 | I39: v4
B40: 2024-07-09 | C40: SSMD alignment | E40: Catriona Bogle | F40: Updated model inputs to align with the SSMD | G40: LicenseeInput tabs • iBoxx trailing average (855) • Uplift on iBoxx trailing average (856) • Risk-free rate (858) • Equity Beta (859) • Total Market Return (860) • Sterling Overnight Index Average (SONIA) (877) Scenarios tab • CoD single input figures to use (129:131) • CoE single input figures to use (136:138) • Annual interest rate inputs for actual debt (AP184:AY191) • SSMD cost of debt inflation approach set to Option 1 (AP52:BD52) | H40: 92 | I40: v4b
B41: 2024-07-10 | C41: Ongoing v4 fixes (1) | D41: Pass-through costs | E41: Tomo Sandeman | F41: Amending RIIO3 treatment of P-Ts to be all real, instead of a mix of real and nominal | G41: • LicenseeInputs and InputSummary change unit labels of RIIO3 P-T costs to all real. Replace G214:G224 with “£m 23/24 prices” • MainInputs rows 260 (Shrinkage), 261 (License Activity), 262 (Prescribed Rates), 264 (Distribution Network Pension Deficit Charge), 266 (Gas Illegally Taken), 267 (NTS Exit Flat Capacity Costs and NTS Exit Flex Capacity Costs), 268 (CDSP costs), 269 (Miscellaneous pass-through) and 270 (Stranraer LDZ [SGN Scotland only]). These rows are all currently treated as nominal. Replace the RIIO3 element of the formula so that is in real. • Row 260 changed from “=(AP$9*InputSummary!AP1044 + AP$10*InputSummary!AP214)/@GDNpf” to “=(AP$9*InputSummary!AP1044)/@GDNpf + AP$10*$I$13*InputSummary!AP214”. Copy/paste this across the row and down to all other affected rows. | H41: 95 | I41: v4b
B42: 2024-07-11 | C42: Depreciation factors | E42: Tomo Sandeman | F42: Adding in depreciation factors functionality for sum of digits post-vesting depreciation | G42: • Scenarios – added in acceleration factors in row 33. These will affect post-vesting asset depreciation (pre-RIIO3 and post RIIO3 alike). These are linked to a set of profile inputs in row 220:223. • Depn – depreciation-related rows extended to column CW, 2081. A RIIO counter is added in row 5. The depreciation factors are imported into row 21 and linked to the RIIO counter. • Post-vesting depreciation profiles (Depn AU157:CW235) changed to incorporate the new factors. This involves re-arranging the sum of digits calculation to factor in previous periods’ accumulated depreciation, and linking it to the depreciation factors. Note that in the final 5 years of an assets remaining life the depreciation factor is ignored. If this was not done then a factor of less than 1 would mean the asset didn’t reach zero by the end of its life, causing a DIV/0 error. • Checks amended in the Post-RIIO3 depreciation block to switch off if the asset depreciation would extend beyond the 2081 timeline.
B43: 2024-07-23 | C43: Bugfixing financeability and tax | D43: Git 89 | E43: Tomo Sandeman | F43: Inflation options new inflation index error | G43: Implementation of the fix that was not applied on 26/06 • Return&RAV the Inflation Option 1& 2 both create a custom real-to-nominal price conversion index with 2024 as the base year. Their custom annual inflation drivers are currently applied from 2024 onwards, whereas they should only be applied from the start of RIIO3 onwards. In RIIO2 years they should just be tied to CPIH inflation. • Row 173 (Option 1's "Inflation applied to indexed portion of capital structure"): change from "=AP141*(AP149+AP150)" to "=AP141*AP129 + AP141*(AP149+AP150)*AP130". Copy and paste formula across to AQ173:AY173. • Row 178 (Option 2's "Return via RAV"): change from "=(1+AP168)/(1+AP159)-1" to "=AP141*AP129 + ((1+AP168)/(1+AP159)-1)*AP130". Copy and paste formula across to AQ178:AY178. This was mistakenly not implemented on 26/06. Correction done on 23/07 | H43: 89 | I43: v5
B44: 2024-08-06 | C44: RIIO Price Control Label | E44: Gughan Narasimhan Muthukrishnan | F44: Labelled Row 5 and 8 of worksheets that the Macro extends with the RIIO price control | G44: Checks, Scenarios, InputSummary, MainInputs, Totex, TIM, FuelPoor, Return&RAV, TaxPools, Finance&Tax, Revenue,Bills, FinInput, RevenueSummary, FinancialStatements, FinancialRatios, FinRatios RoRE decomposition, FBPOutput, Annual Inflation, Cadent, East, London, North West, West Midlands, Northern, Scotland, Southern, Wales & West • AP5:AY5 - Adding RIIO price control number 2 and 3 as RIIO2 and RIIO3 from the year 2022 till 2031 OutputSummary, ScenarioRun_AllOutputData • AP8: AY8 - Adding RIIO price control number 2 and 3 as RIIO2 and RIIO3 from the year 2022 till 2031 | I44: v5
B45: 2024-08-06 | C45: Extension | E45: Gughan Narasimhan Muthukrishnan | F45: Created a new worksheet to control the macro extension and the totex multiplier | G45: • E51:E60 - Named as RIIO which has the RIIO Price Control • D51:D60 - Names as RIIO_End_Period having the End of the Price control year. • D5 – shows the selected RIIO extension period referring “UserInterface!$E$65:$E$74” • D6 – “INDEX(RIIO_End_Period,MATCH(UserInterface!$G$24,RIIO,0))” - Shows the Year End of the selected RIIO Price Control period • E11 – Contains the dropdown option with RIIO3 and RIIO4 which is called as Scenario Model option. • J52:J53 - Names as ModelRIIO helps in Defining the Scenario Model • J51 - Index Match from the Dropdown for Scenario Model • E13 - Totex Profile Dropdown which are Base, Increase/Decrease and Steady Decrease. • I62:I64 - Options for the totex profile for E13 Dropdown • K61 - Index Match from the Dropdown for Totex Profile • E15 - Increase/Decrease value for the totex multiplier • E16 - End year value for the steady decline option in the totex profile • Run RIIO Extension to New Workbook Button - Assigned to the macro module subroutine called Extend_Columns which will extend the model to the Price control set in cell UserInterface!$G$24. • Closing RAV (£m Real price ) over Time - Line chart referring the value from the Return&RAV sheet row 4 and row 45. • F64 - Cell returns the Number of years that the macro will extend the model and this cell is internally referred in the macro code. • E11 – Data Validation rule – “=IF(ISBLANK(Scenarios!$AZ$4),$I$52,ModelRIIO)” • E13 – Data validation rule – “=IF(ISBLANK(Scenarios!$AZ$4),$I$62,$I$62:$I$64)” • E16 – Data Validation rule – “=OR(AND(J51=3, E16>=2028),AND(J51=4, E16>=2032))” | I45: v5
B46: 2024-08-06 | C46: Monthly Inflation Sheet changes | E46: Gughan Narasimhan Muthukrishnan | F46: Created named range for CPI% and RPI% from annual inflation worksheet to work seemless with the extension task | G46: • “'Annual Inflation'!$AM$59:$CW$59” - Named Range called CPI_inflation_forecast refers till Column CW for the extension purpose. • “'Annual Inflation'!$AM$56:$CW$56”. - Named Range called RPI_inflation_forecast refers till Column CW for the extension purpose. • “'Annual Inflation'!$AM$13:$CW$13” - Named Range called Calendar_year refers till Column CW for the extension purpose • F2:F385 - CPI% forecast formulas are modified to use the Named Range. • G2:G385 RPI % forecast formulas are modified to use the Named Range. | I46: v5
B47: 2024-08-06 | C47: MainInputs Sheet changes | E47: Gughan Narasimhan Muthukrishnan | F47: Adjusted the extending named range to cover till Column CW | G47: • GDNpf - Name range is extended to refer column CW. | I47: v5
B48: 2024-08-06 | C48: Scenario Sheet Changes | E48: Gughan Narasimhan Muthukrishnan | F48: Created new formula for totex multiplier to interact with the Extension settings as well as the scenario sheet without loosing scenario sheet functionality | G48: • F295 - RIIO Option referred from the Extension • F296 - Totex Option referred from the Extension F297 - Increment/Decrement Option referred from the Extension • F298 - Steady Decline Option referred from the Extension • F299 - Pre-Live value fixed at 100% • AU112 Formula changed from “=$F122” to “=IF($F$296=1,IF(AU5>=$F$295,$F$122,1)) + IF($F$296=2,IFS(AU5<$F$295,1,AU5>=$F$295,MAX(F$122+$F$297,0),YEAR(AU4)-2031 = 1,$F$122)) + IF($F$296=3,IF(AU$5>=$F$295,MAX($F$299-($F$299/($F$298-IF($F$295=4,2032,2027)))*(YEAR(AU$4)-IF($F$295=4,2032,2027)),0),1))” • AU113 Formula is changed from “=$F122” to “=IF($F$296=1,IF(AV5>=$F$295,$F$122,1)) + IF($F$296=2,IFS(AV5<$F$295,1,AV5>=$F$295,MAX(AU$122+$F$297,0),YEAR(AV4)-2031 = 1,$F$122)) + IF($F$296=3,IF(AV5>=$F$295,MAX($F$299-($F$299/($F$298-IF($F$295=4,2032,2027)))*(YEAR(AV$4)-IF($F$295=4,2032,2027)),0),1)). Copy paste formula across AW122:AY122” • AY113 - Changing the RIIO-3 year flag from “=IF(AND(AY$4>=$I$108,AY$4<=$I$109),1,0)” to “=IF(AND(AY$4>=$I$108),1,0)” • Depreciation factors from AU219:AY223 is moved to AT219:AX223. • Row 122 and 123 cell color is removed | I48: v5
B49: 2024-08-06 | C49: Return&RAV sheet | E49: Gughan Narasimhan Muthukrishnan | F49: Adjusted the depreciation formula reference in the Return&RAV sheet | G49: • Row 201- Depreciation from RIIO-3 additions (real), formula changed from “=-SUMIFS(Depn!AP507:AP585,Depn!$E$507:$E$535,">="&$I$201)” to “=-SUMIFS(Depn!AP507:AP585,Depn!$E$507:$E$585,">="&$I$201)” • Row 204- Depreciation from RIIO-3 additions (real),Formula changed from “=-(AP64+AP113+SUMIFS(Depn!AP507:AP585,Depn!$E$507:$E$535,"<"&$I$201))” to “=-(AP64+AP113+SUMIFS(Depn!AP507:AP585,Depn!$E$507:$E$535,"<"&$I$201))” | I49: v5
B50: 2024-08-06 | C50: Macro Implementation | E50: Gughan Narasimhan Muthukrishnan | F50: Created the Macro functionality to extend the model from RIIO4 till RIIO13 | G50: • Implemented Macro Code for the above sheets to extend till 2081 where the last column (31 Mar 2031) extends till the RIIO period we select in the Extension. Note: Actual financiability sheets are not extended • Implementation of macro extension is done for the below worksheets Scenarios, InputSummary, MainInputs, Totex, TIM, FuelPoor, Return&RAV, TaxPools, Finance&Tax, Revenue, FinInput, RevenueSummary, FinancialStatements, FinancialRatios, FinRatios ToTE decomposition, OutputSummary, ScenarioRun_AllOutputData Monthly Inflation,Annual Inflation, Bills, Cadent, East, London, North West, West Midlands, Northern, Scotland, Southern, Wales & West | I50: v5
B51: 2024-08-06 | C51: Bills tab | E51: Catriona Bogle | F51: Created a 'Bills' tab which will provide estimates of the bill impact based on revenue | G51: LicenseeInputs - Added lines for licensee input: - ‘Domestic customers’ (RIIO-3) – 967 - ‘Domestic customers’ (RIIO-2) – 1450 - ‘Historic domestic bills (RIIO-2) – 1451 - Cadent: SUM of East, London, North West, West Midlands InputSummary - Added lines for the new inputs with CHOOSE functionality - ‘Domestic customers’ (RIIO-3) – 967 - ‘Domestic customers’ (RIIO-2) – 1450 - ‘Historic domestic bills (RIIO-2) – 1451 MainInputs: created ‘Domestic charges’ section: - Domestic customers – 1478: =AP9*InputSummary!AP1450+AP10*InputSummary!AP967 - Historic domestic bills – 1479: =InputSummary!AP1934/@GDNpf New ‘Bills’ tab (deleted RIIO-1 tab) Created ‘Calculated Revenue’ section - ‘Calculated Revenue’ (8) =Revenue!AP28 Created ‘Domestic charges’ section - Domestic customers (12) =MainInputs!AP1478 - Historic domestic bills (13) =MainInputs!AP1479 Created ‘Bills’ section - % revenue domestic (17) =IF(AP15="","",((AP14*AP15)/1000000)/AP10) - Average % revenue domestic (last 3 years) (18) =AVERAGE(AP19:AR19) - Bills Method 1 (20) =IF(AP15="",(AP10*$I$20)/(AP14/1000000),(AP10*AP19)/(AP14/1000000)) - Bills Method 2 (21) =IF(AP15="",AO23*(AP8/AO10),AP15) - Revenue to bill ratio (23) =AP22/(AP10*1000000) Updated Bills section(s) in OutputSummary - Domestic customers (322) =Bills!AP12 - % revenue domestic (323) =Bills!AP17 - Bills Method 1 (324) =Bills!AP20 - Bills Method 2 (325) =Bills!AP21 | I51: v5
B52: 2024-08-06 | C52: FBPOutputs | E52: Catriona Bogle | F52: Adding in tab to provide financial outputs based on the current model parameters | G52: Created FBPOutput tab. BP Working Assumptions section (8:20) and Credit Ratio Summary (24:34) include live outputs in columns AU:AY with space to paste as values to the subsequent columns. Summary of financial information sections (36:163) pull through relevant data from the financeability tabs | I52: v5
B53: 2024-08-06 | C53: ScenarioRun_AllOutputData, OutputSummary Sheet | E53: Gughan Narasimhan Muthukrishnan | F53: Adjusted few rows and columns to enable the macro to run smoothly | G53: ScenarioRun_AllOutputData Sheet • Moved the columns From BA7:BK7 to BN7:BX7 • Moved the rows and columns from BA40:BK391 to BN40:BX391 OutputSummary Sheet • Moved the rows and columns from BA7:BK470 to BB7:BL470 | I53: v5
B54: 2024-08-07 | C54: UserInterface Sheet | E54: Gughan Narasimhan Muthukrishnan | F54: Created drop down and macro buttons to control the extension. | G54: • G22 – Dropdown to choose the RIIO price control • G24 – Index match to show the selected RIIO price control • E41:E42 – “Run RIIO Extension to New Workbook” Button assigned with the macro subroutine “Extend_Columns” • E65:E74 – RIIO price control list for dropdown in G22
B55: 2024-08-13 | C55: Output/VBA fixes | E55: Catriona Bogle | G55: Deleted columsn BA:BC to fix exporting/data flow error Tidied up macros
B56: 2024-08-14 | C56: Gearing correction for timeline extension | E56: Gughan Narasimhan Muthukrishnan | F56: Changed formula in a cell and corrected the VBA | G56: Finance&Tax: • AY13- Changed formula from “=MAX( (AY10 - AY9) * (AX9 - AX10), 0)” to “=AY5-AX5” for macro extension purpose adding note “Formula discontinuity for the purpose of timeline extension macro.” • Row 75 and Row 77 – Added macro code to AutoFill the values from column AX to fix the formula reference issue Return&RAV: • Separated Return&RAV macro from Totex and TIM to new module namedReturnRAV • Row 198 and 245 – Added macro code to AutoFill the values from column AX to fix the formula reference issue
B57: 2024-08-16 | C57: Bug fixes | E57: Catriona Bogle | G57: GitLab Issue #55 – fixing incorrect capex reference FinancialStatements Amended formula in row 285 (Capex as per PCFM) from =-SUM('Finance&Tax(actual)'!AR41:AR42) to =(Totex!AR79+Totex!AR80+Totex!AR83)*@GDNpf*AR11 GitLab Issue #95 – fixing price base of p-t LicenseeInput and InputSummary tabs, change labels in cells G214-G216, G218, G220-G224 from "£m 23/24 prices" to "£m nominal" MainInputs change formula in cell AP260 from "=(AP$9*InputSummary!AP1044)/@GDNpf + AP10*I$13InputSummary!AP214" to "=(AP$9*InputSummary!AP1044 + AP$10*InputSummary!AP214)/@GDNpf". Copy/paste this formula into the following cells: AP260:AY262, AP264:AY264, AP266:AY270. GitLab Issue #102 – incorrect CoD figures on Scenarios Scenarios Copied the below figures to AU130:AY132 2.74% 2.93% 3.02% 3.13% 3.30% 2.81% 2.95% 3.03% 3.13% 3.31% 2.66% 2.91% 3.00% 3.12% 3.30% GitLab Issue #105 – tax change as per stat con and GD2 PCFM Finance&Tax Row 257 (Adjustment to losses from tax trigger) formula amended from =AP214 to =(AP272 *@ GDNpf) * ((1 - AP222) / AP222) GitLab Issue #117 – incorrect scalar applied MainInputs Row 1443 (Pre-vesting RAV disposals) formula amended from =InputSummary!AP1417*$I$12*AP$9 + InputSummary!AP935*$I$12*AP$10 to =InputSummary!AP1417*$I$12*AP$9 + InputSummary!AP935*$I$13*AP$10 Row 1455 (RIIO post-vesting RAV additions_ formula amended from =InputSummary!AP1428*$I$12*AP$9 + InputSummary!AP946*$I$12*AP$10 to =InputSummary!AP1428*$I$12*AP$9 + InputSummary!AP946*$I$13*AP$10 Row 1458 (disposals net sales proceeds (for totex deduction)) formula amended from =InputSummary!AP1432*$I$12*AP$9 + InputSummary!AP241*$I$12*AP$10 to =InputSummary!AP1432*$I$12*AP$9 + InputSummary!AP241*$I$13*AP$10 Row 1466 (NPV of future transportation revenue) formula amended from =InputSummary!AP1439*$I$12*AP$8 + InputSummary!AP956*$I$12*AP$10 to =InputSummary!AP1439*$I$12*AP$8 + InputSummary!AP956*$I$13*AP$10 Row 1467 (Community based schemes actual capex spend) formula amended from =InputSummary!AP1440*$I$12*AP$8 + InputSummary!AP957*$I$12*AP$10 to =InputSummary!AP1440*$I$12*AP$8 + InputSummary!AP957*$I$13*AP$10 Row 1469 (One off schemes actual capex spend) formula amended from =InputSummary!AP1442*$I$12*AP$8 + InputSummary!AP959*$I$12*AP$10 to =InputSummary!AP1442*$I$12*AP$8 + InputSummary!AP959*$I$13*AP$10 | H57: 55, 95, 102, 105, 117 | I57: v5
B58: 2024-08-16 | C58: Bug fixes | E58: Gughan Narasimhan Muthukrishnan | G58: MainInputs AP260:AY260 • Changed the formula reference from "InputSummary!AP1044" to "InputSummary!AP1046" and copu pasted till AY260 • Similarly row 261,262,264,266,267,268,269,270 formulas referrenced from InputSummary is changed to refer the correct cells Licensee Input Sheet, InputSummary • E814 - changef from "RIIO-2 network innovation allowance " to "RIIO-3 network innovation allowance " | I58: v5
B59: 2024-08-19 | C59: GitLab issues | E59: Catriona Bogle | G59: GitLab Issue #52 – insufficient debt lines F3 – Fixed Rate Debt, F4 – Floating Rate Debt and F5 – Inflation Linked Debt. 50 additional rows added within dataset from row 12, and formulas dragged down GitLab Issue #127 – check formula discrepancy LicenseeInputs (London, North West, West Midlands, Northern Scotland, Southern, Wales & West) BB21 formula amended from =IF(COUNTA(AU22:AY22)=0,"",1) to =IF(COUNTA(AU21:AY21)=0,"",1) and dragged down to BB110 GitLab Issue #93 – label changes LicenseeInputs and InputSummary E824 label amended from ‘RIIO-2 network innovation allowance’ to ‘RIIO-3 network innovation allowance’ MainInputs E288 amended label from ‘RIIO-2 network innovation allowance’ to ‘RIIO-3 network innovation allowance’ GitLab Issue #84 – switching on tax clawback Scenarios Row 57 – ‘Include tax clawback revenue impact?’ – amended AP57:BD57 to ‘Include’ | H59: 52, 127, 93 | I59: v5
B60: 2024-08-23 | C60: FBP2 - adding straight line depreciation and custom profile | D60: Straight line depreciation | E60: Tomo Sandeman | F60: Adding in straight line depreciation functionality into RIIO3+, to align with options described in SSMD | G60: 1. AnnualInflation row 22 changed from “Start of RIIO-2” to “Start of RIIO-3”, and value in I22 changed from 31 Mar 2022 to 31 Mar 2027. Also changed in MainInputs row 375 2. “RIIO3”, “RIIO4”, etc headers amended to use numbers, with the “RIIO-“ added via formatting. Depn row 5, Scenarios cells AT219:AX219 3. Added new row in Scenarios row 27 for S-o-D or SL selection, updated in Depn new row 16 as well 4. Depn C60 relabelled from “Sum-of-digit post-vesting depreciation” to “Post-vesting depreciation 5. Depn row 71 added 83 new rows for “Asset life calculation” 6. Cells H155:H236 modified RIIO3 flag to use the block in cells H75:H153. 7. Cells J158:AT158 changed from “=IF(K$4<=$E158,0,(K$9+K$10)*($I$67-COUNTIF(J158:$K158,">"&0))/$I$68)” to “=IF(K$4<=$E158,0,(K$9+K$10)*K75/$I$68)”. No change in function just simplified. Deleted formulas in K158:W236 as these years are not relevant to this section. 8. E239 changed from “Post-RIIO3 depreciation” to “Post-RIIO3 depreciation Sum of Digits approach” 9. Deleted cells H240:I319 10. Cells AU241:CW319 changed from “=IF(AU$4<=$E241,0,MAX(2/($H241-COUNTIF($AT241:AT241,">"&0)+1) * ($I158-SUM($AT241:AT241)),0)) * IF($H241-COUNTIF($AT241:AT241,">"&0)>5,AU$23,1)” to “=IF(AU75=0,0,2/(AU75+1) * ($I158-SUM($AT241:AT241)) * IF(AU75>5,AU$23,1))” 11. Added new rows 321:401 for “Post-RIIO3 depreciation Straight Line approach”. In AU323:CW401 inserted “=IF(AU75=0,0,IF(AU$4>$E323,1,0) * IF(OR(AU$5-AT$5>0,AU75=$J75),1,0) * ($I158-SUM($AT323:AT323))/AU75*AU$23 + IF(AU$5-AT$5=0,AT323,0))” 12. E403 changed from “Sum-of-digit depreciation of additions from year ending” to “Post-vesting depreciation applied (post 2004). X404:CW482 changed from “=$I404*(X158+X241)” to “=$I404*(X158+IF($I$16="Sum of Digits",X241,X323))”. | I60: v5
B61: 2024-08-23 | C61: FBP2 - adding straight line depreciation and custom profile | D61: Depreciation custom input profile | E61: Tomo Sandeman | F61: Adding in custom depreciation profile | G61: 1. LicenseeInputs added in “Override depreciation input profile” added into row 951. This only contains input cells in RIIO-3 years, but the extension macro would extend the input range. Commensurate row added in InputSummary. And in MainInputs row 1461 2. Depn New subheader added rows 46:48 3. Row 48 “Total calculated depreciation” taken from row 758 4. Row 49 “Override depreciation input profile” added in 5. Row 50 “Selected depreciation for Return & RAV tab”, tied to Scenario options of Asset life input vs custom profile input. 6. Return&RAV row 90 (Post-vesting depreciation balance) changed from “=Depn!AH760 + AH113” to “=Depn!AH50 + AH113” | I61: v5
B62: 2024-08-27 | C62: GitLab Issues | E62: Gughan Narasimhan Muthukrishnan | G62: GitLab Issue #129 – RAV additions Depn Added New Module “Depn” extending row 27 and rows 34:39 and linked with the module “Extension_Generate” Cadent Added New Module “Cadent_extension” which extends the column AY till the selected RIIO period with formulas unlike other licensees sheet. Edited VBA code for the progress bar | H62: 129 | I62: v5
B63: 2024-08-30 | C63: FBP4 inflation re-arrangement | E63: Tomo Sandeman | F63: Re-arranging inflation Option 1 implementation: remove option 2 | G63: Remove Option 2 Return&RAV tab 1. Delete rows 177-180 (RAV indexation options – Option 2) 2. Rename C170 from “RAV indexation options” to “RAV indexation”. Delete row 172 (“Option 1” header) 3. Delete rows 184-186 (Re-basing RIIO3 additions for depreciation’s Option 2 rows). Delete row 181 (“Option 1” header) 4. Row 190 “Applicable RAV inflation in RIIO-3” change from “=IF($I190="Status quo",AP141,IF($I190="Option 1",AP172,#REF!))*AP130” to “=IF($I190="Status quo",AP141,AP172)*AP130” 5. Row 192 “Applicable RIIO-3 depreciation real to nominal conversion factor” changed from =IF($I190="Status quo",AP142,IF($I190="Option 1",AP173,#REF!))*AP130” to “=IF($I190="Status quo",AP142,AP173)*AP130” 6. Row 210 “Real WACC for RAV Return calculation” from “=IF($I190="Status quo",AP159,IF($I190="Option 1",AP174,AP159))*AP130” to “=IF($I190="Status quo",AP159,AP174)*AP130” Scenarios tab 7. AP54 change validation drop-downs to remove the Option 2 option. Depn tab 8. AP27 change from “=IF($J27=0,TIM!AP108,IF($J27=1,'Return&RAV'!AP181,'Return&RAV'!#REF!))*AP11” to “=IF($I27="Status quo",TIM!AP108,'Return&RAV'!AP181)*AP11” 9. Delete J27 | I63: v5
B64: 2024-08-30 | C64: FBP4 inflation re-arrangement | E64: Tomo Sandeman | F64: Re-arranging inflation Option 1 implementation: Move the cost of capital and semi-nominal inflation calculations to top of page | G64: Return&RAV tab 7. Cut “Price control timeline” and “New proposed cost of capital arrangements” blocks from bottom of page and insert at top of page 8. Row 47 “Fixed rate debt” in Nominal WACC calculation – change from “=(1+AP26)*(1+MainInputs!AP366)-1” to “=(1+AP26)*(1+AP37)-1” 9. Add new rows 57&58. 57 is “RAV inflation (splice pre-RIIO-3, splice or semi-nominal in RIIO-3)”. I57 add Option 1 flag (=Scenarios!F52). 10. Cut rows 190 to 200 (“Real to nominal conversion factors to be applied to nominal RAV”) and paste into row 66. Extend formulas to cover AH:AO 11. Amend AH75 (“Applicable real to nominal conversion factor” for pre-RIIO3 additions) from “=@GDNpf*AP10 + AP72*AP11” to “=@GDNpf*(AP9+AP10) + AP72*AP11” to allow RIIO1 values to be populated as well. 12. Add in two new rows 77&78 for depreciation from Fuel Poor. Row 77 “=-AH190” and row 78 “=AH75” 13. Amend row 74 to remove the reference to fuel poor. 14. Add in “Total depreciation” rows for real and nominal prices in rows 80-81. Total nominal = “=AH71*AH72+AH74*AH75+AH77*AH78”, total real = “=AH80/@GDNpf”. | I64: v5
B65: 2024-08-30 | C65: FBP4 inflation re-arrangement | E65: Tomo Sandeman | F65: Re-arranging inflation Option 1 implementation: Add in a new nominal “running total RAV” and move Return calculation to bottom of tab, differentiate between status quo and option 1 approach | G65: Add in a new nominal “running total RAV” Return&RAV tab 5. Copy/paste real Running total RAV rows 114-123 into row 114. 6. AH116 Opening RAV (before transfers) equal to real opening RAV * previous year’s real to nominal conversion factor “=AH126*AG23”. 7. Row 117 relabel “Adjustment for Option 1 and 2’s nominal basis for RAV” “Inflation” “=AH116*AH57” – this is opening RAV * inflation specific for RAV. This is splice if Status quo, and semi-nominal inflation if Option 1. Transfers and net additions are equal to the real RAV * @GDNpf. Depreciation is taken from row 80, which is semi-nominal or fully inflated depending on the option selected. 8. Row 127 real RAV’s “Adjustment for Option 1’s nominal basis for RAV” “=((AH116+AH117)/@TOpf-AH126)*AH11” 9. Correct the error in real RAV net additions in RIIO-3 (row 130). Right now it’s “=(AP142 + AP168)*AP10 + AP253*AP11” which uses RIIO3 nominal slow money inflated by @TOpf. However it should also be taking into account non-standard additions as well. Changed to “=AH142+AH168”. 10. Change real RAV depreciation calc from “=-(AH123 + AH149)” to “=AH81” Move Return calculation to bottom of tab, differentiate between status quo and option 1 approach 4. Cut and paste return calculations to bottom of sheet 5. Re-link calculations for Option 1 to the new nominal RAV corkscrew at the top of the tab 6. Add a new section “Total return and other key figures” in rows 239-244 to compile RAV return (nominal and real) and NPV neutral RAV return base 7. Delete the old nominal and real RAV corkscrews at the bottom of the tab Revenue tab 2. Update row 13 “Return” from “='Return&RAV'!AP210” to ““='Return&RAV'!242”. | I65: v5
B66: 2024-08-30 | C66: FBP4 inflation re-arrangement | E66: Tomo Sandeman | F66: Re-arranging inflation Option 1 implementation: tidy-up and fixing subsequent links in the model | G66: Tidy-up 7. Delete row 13 (“Start of RIIO-2” flag) 8. I70 starting date of RIIO3 change from “=AU13*AU4” to “=Scenarios!I107” 9. Delete row 14 (“Start of RIIO-3” flag) 10. Delete row 66 “Closing RAV at end of RIIO-2, in nominal prices (splice index)” Fixing subsequent links in the model Finance&Tax 11. Row 64 “Opening core RAV (after transfers)” changed from “=('Return&RAV'!AP98) * MainInputs!AO$392” to ='Return&RAV'!AP88-'Return&RAV'!AP86”. Before making this change, in year 1 the effect of inflation was taken into account in the calculation of RIIO-2 closing gearing. This has now been fixed so that inflation is not considered. 12. Row 187 “Closing core RAV” modified from ='Return&RAV'!AP101 *@ GDNpf” to “='Return&RAV'!AP91” 13. Row 185 (empty blue row) deleted. Finance&Tax (actual) 5. Row 61 “Total opening regulatory assets (after transfers, before inflation)”, change from “='Return&RAV'!AP95 * AO$25” to “='Finance&Tax'!AP64” 6. Row 183 “Closing core RAV” changed from ='Return&RAV'!AR101 * AR$25” to “='Return&RAV'!AR91” 7. FinancialRatios row 87 (Regulated equity (notional, NPV neutral) changed from “='Return&RAV'!AP$200 * (1 - MainInputs!AP$368) *@ GDNpf” to “='Return&RAV'!AP$241 * (1 - MainInputs!AP$368) *@ GDNpf”. 8. FinancialRatios row 88 changed from ='Return&RAV'!AP$200 * (MainInputs!AP$368) *@ GDNpf” to “='Return&RAV'!AP$241 * (MainInputs!AP$368) *@ GDNpf”. 9. Financial ratios row 54 “Closing RAV” changed from “='Return&RAV'!AP101 *@ GDNpf” to “='Return&RAV'!AP91” 10. Financial ratios row 157 “Closing RAV” changed from “='Return&RAV'!AP101 *@ GDNpf” to “='Return&RAV'!AP91” | I66: v5
B67: 2024-08-30 | C67: Finance&Tax(actual) DRS adjustment | E67: Tomo Sandeman | F67: Minor re-arrangement to Directly Remunerated Services Adjustment implemenatation in Finance&Tax(actual) | G67: • RevenueSummary row 32 "Directly remunerated services adjustment" should be negative, change from =Revenue!AP26 * AP$21*FinInput!$I$40" to "=Revenue!AP17 * AP$21*FinInput!$I$40" • Finance&Tax(actual) - less directly remunerated services adjustment (row 39) should be linked to RevenueSummary 63. Change from "=-RevenueSummary!AR32" to "=RevenueSummary!AR63". • Finance&Tax(actual) "add calculated revenue (except tax allowance)" should be linked to RevenueSummary 59, ie before DRS adjustment. Change from " =RevenueSummary!AR65-RevenueSummary!AR60-RevenueSummary!AR61" to "=RevenueSummary!AR59" | I67: v6
B68: 2024-09-04 | C68: GitLab issues | E68: Gughan Narasimhan Muthukrishnan | F68: Changing VBA code for Annual Inflation to autofill RPI and CPI inflation forecast | G68: •Edited the VBA code to handle row 21 separate while the rest of the rows use autofill method | H68: 137 | I68: v6
B69: 2024-09-05 | C69: Debt timelines | E69: Catriona Bogle | F69: Amending the years for which debt data is pulling through on F tabs and amending the debt forecast year to 24/25 | G69: MainInputs Actual opening net debt (1492): copied formula from AJ1492 to AP1492:AY1492 F2b - Financial Summary Deleted data from E14:J128 Copied formula from E134 to K134 Deleted data from E134:J138 Copied formula from E140 to K140 Deleted data from E140:J148 Deleted data from M154:M190 Deleted data from E189:J190 Deleted data from E193:J204 Copied formula from E207 to K207 Deleted data from E207:J209 F2a Deleted data from E40:J133 Deleted data from M138:M163 N142 amended formula from =IF(N141=0,0,IF(N$5=2022,(N138*N139*N$30)/N141,(SUMPRODUCT($J138:M138,$J30:M30)+(N138*N139*N$30))/N141)) to =IF(N141=0,0,IF(N$5=2025,(N138*N139*N$30)/N141,(SUMPRODUCT($J138:M138,$J30:M30)+(N138*N139*N$30))/N141)) and copied across to O142:T142 N158 amended formula from =IF(N157=0,0,IF(N$5=2022,N$31,(SUMPRODUCT($J153:M153,$J31:M31)+(N153*N154*N$31))/N157)) to =IF(N157=0,0,IF(N$5=2025,N$31,(SUMPRODUCT($J153:M153,$J31:M31)+(N153*N154*N$31))/N157)) and copied across to O158:T158 N164 amended formula from =IF(N163=0,0,IF(N$5=2022,(N159*N160*N$32)/N163,(SUMPRODUCT($J159:M159,$J32:M32)+(N159*N160*N$32))/N163)) to =IF(N163=0,0,IF(N$5=2025,(N159*N160*N$32)/N163,(SUMPRODUCT($J159:M159,$J32:M32)+(N159*N160*N$32))/N163)) Deleted data from E198:J278 Copied M167 to N167 Deleted data from M167:196 F1 Copied formula from K15 to N15 Deleted data in K15:M27 Copied formula from K30 to N30 Deleted data in K30:M42 Copied formula from K45 to N45 Deleted data in K45:M57 Copied formula from K60 to N60 Deleted data in K60:M72 Copied formula from K75 to N75 Deleted data in K75:M87 Copied formula from K90 to N90 Deleted data in K90:M103 Deleted data in K109:M184 Deleted data in J185:L185 Deleted data in K186:M187 Copied formula from J190 to M190 Deleted data from J190:L190 Deleted data from K191:M274 FinInput Deleted data in AP65:AQ126 I16 amended from 31/03/2024 to 31/03/2025 Finance&Tax(actual) Deleted data in AP43:AQ43 and AP45:AQ45 Deleted data in AP60:AQ76 Deleted data in AR60:AR61 and AR64:AR76 Deleted data in AR80:283 FinancialStatements Deleted data in AR162:278 FinancialRatios Deleted data in AR113:AR166 RatingSimulator Deleted data in AP300:AR329 Fixed formatting on F1, F2a and F2b tabs | I69: v6
B70: 2024-09-06 | C70: Corporation Tax | E70: Catriona Bogle | F70: Aligning with SSMD/restriction on relief for carried-forward losses | G70: LicenseeInputs Added row 908: Deductions allowance- I908 = 5 Cadent I908 = East!I908 InputSummary Added row 908: Deductions allowance: I908 =CHOOSE(m_identity, Cadent!I908, East!I908, London!I908, 'North West'!I908, 'West Midlands'!I908, Northern!I908, Scotland!I908, Southern!I908, 'Wales & West'!I908) MainInputs Added row 441: Deductions allowance =InputSummary!I908 Finance&Tax Amended ‘Profits used to offset outstanding allowances to be capped at 50% of profits attributable to corporation tax with deductions allowance. Time flags used to only switch this on for RIIO-3 AP214 formula amended from =IF(AP204 >= 0, MIN(AP204, -AP210-AP212-AP213), 0) to =(IF(AP204 >= 0, MIN(AP204, -AP210-AP212-AP213), 0) * AP9) + (IF(AP204 >= 0, MIN(IF(AP204>MainInputs!$I$441,(5+(AP204-MainInputs!$I$441)*50%),AP204), -AP210-AP212-AP213), 0) * AP10) Formula in AP214 copied across to AY214 Equivalent change made to row 257: Profits reduced by tax losses AP257 formula amended from =IF(AP249 >= 0, MIN(AP249, -AP253-AP255-AP256), 0) to =(IF(AP249 >= 0, MIN(AP249, -AP253-AP255-AP256), 0) * AP9) + (IF(AP249 >= 0, MIN(IF(AP249>MainInputs!$I$441,(5+(AP249-MainInputs!$I$441)*50%),AP249), -AP253-AP255-AP256), 0) * AP10) Formula in AP257 copied across to AY257 | H70: 111 | I70: v6
B71: 2024-09-11 | C71: Bills tab update | E71: Catriona Bogle | F71: Updating Bills tab and input to allow for more flexibility in calculations- historic bills for all of RIIO-2 and adjustments to bills and revenue to prevent non-enduring costs to be used in the calculation | G71: Moved RIIO-2 input lines for bills: LicenseeInputs AP971:AT971 – set as input cells Cut and pasted row 1455 to 972 Deleted rows 1453:1456 InputSummary AP971:AT971 – set as input cells Cut and pasted row 1455 to 972 Deleted rows 1453:1456 MainInputs AP1482 formula amended from =AP9*InputSummary!AP1455+AP10*InputSummary!AP971 to =InputSummary!AP971 Allow for bill input submissions for the whole of RIIO-2, and adapt bill functionality to pick up the latest three years submitted LicenseeInput and InputSummary Copied AR972 to AS972 and AT972 MainInputs Copied AR1483 to AS1483 and AT1483 Bills Copied AR13 to AS13 and AT13 Added line for bill input flag- AP14 =IF(AP17>0,COUNTIF(AP17:$AT$17,">0"),"") I19 formula amended from =AVERAGE(AP18:AR18) to =AVERAGEIFS(AP18:AT18,AP14:AT14,"<=3") AP18 formula amended from =IF(AP13="","",((AP12*AP13)/1000000)/AP8) to =IF(AP13=0,"",((AP12*AP13)/1000000)/AP8) AP21 formula amended from =IF(AP13="",(AP8*$I$19)/(AP12/1000000),(AP8*AP18)/(AP12/1000000)) to =IF(AP13=0,(AP8*$I$19)/(AP12/1000000),(AP8*AP18)/(AP12/1000000)) AP22 formula amended from =IF(AP13="",AO22*(AP8/AO8),AP13) to =IF(AP13=0,AO22*(AP8/AO8),AP13) Adding adjustments to account for the bill impact of costs that may not persist in RIIO-3 LicenseeInput Added rows 973 and 974- ‘Non-enduring bill impact (SoLR, other)’ and ‘Non-enduring revenue impact (SoLR, other)’ Cadent AP973 =AVERAGE(East!AP973,London!AP973,'North West'!AP973,'West Midlands'!AP973) and copied across to AT973 AP974 =SUM(East!AP974,London!AP974,'North West'!AP974,'West Midlands'!AP974) and copied across to AT974 InputSummary Added rows 973 and 974- ‘Non-enduring bill impact (SoLR, other)’ and ‘Non-enduring revenue impact (SoLR, other)’ Copied formula from AP972 to AP973:AT974 MainInputs Added rows 1484 and 1485- ‘Non-enduring bill impact (SoLR, other)’ and ‘Non-enduring revenue impact (SoLR, other)’ AP1484 =InputSummary!AP973/@GDNpf and copied across to AT1484 AP1485 =InputSummary!AP974/@GDNpf and copied across to AT1485 Bills Added row 9: Revenue adjustment (SoLR, other) AP9 =MainInputs!AP1485 and copied across to AY9 Added row 10: Adjusted Revenue AP10 =AP8-AP9 and copied across to AY10 Added row 18: Bill adjustment AP18 =MainInputs!AP1484 and copied across to AY18 Added row 19: Adjusted domestic bills AP19 =AP17-AP18 and copied across to AY19 AP23 formula amended from =IF(AP17=0,"",((AP16*AP17)/1000000)/AP8) to =IF(AP19=0,"",((AP16*AP19)/1000000)/AP10) and copied across to AY23 AP26 formula amended from =IF(AP17=0,(AP8*$I$24)/(AP16/1000000),(AP8*AP23)/(AP16/1000000)) to =IF(AP19=0,(AP10*$I$24)/(AP16/1000000),(AP10*AP23)/(AP16/1000000)) and copied across to AY26 AP27 formula amended from =IF(AP17=0,AO27*(AP8/AO8),AP17) to =IF(AP19=0,AO27*(AP10/AO10),AP19) and copied across to AY27 Added non-adjusted bills section Rows 31:39- same calculations as Bills Adjusted section, but referencing the non-adjusted calculated revenue (AP8:AY8) and non-adjusted bills (AP17:AY17) | I71: v6
B72: 2024-09-11 | C72: Bug fixes | E72: Catriona Bogle | F72: Bug fixes and small changes | G72: Labels amended to reflect the word 'Inflation' rather than RPI on: FInancialStatements: E53, E64, E65, E66, E174, E185, E186, E187 FBBOutputs: E82 F7 – Data Validation Updated list of Derivative Instrument Description options in column H F6 – Debt Dataset Set data validation on the following columns, with reference to the equivalent columns on F7 – Data Validation: A, B, C, D, E, F, G, H, O, Y, Z, AA, AI, AJ Debt Dataset check columns haven’t been extended out to 2031 DC3 formula amended from =COUNTIF(A3:CR3, "<>"&"") > 0 to =COUNTIF(A3:CV3, "<>"&"") > 0 and copied down to DC1563 HL3 formula amended from =IF($DC3 = FALSE, "-", AND(COUNTA(AK3:AW3) = COUNTA(BA3:BM3), COUNTA(BQ3:CC3) = COUNTA(CG3:CR3), OR(AND(COUNTA(AK3:CR3) > 0, AI3 = "Y"), AND(COUNTA(AK3:CR3) = 0, OR(AI3 = "N", AI3 = "N/A", AND("Inflation Linked", AJ3<>"N/A")))))) To =IF($DC3 = FALSE, "-", AND(COUNTA(AK3:AZ3) = COUNTA(BA3:BP3), COUNTA(BQ3:CF3) = COUNTA(CG3:CV3), OR(AND(COUNTA(AK3:CV3) > 0, AI3 = "Y"), AND(COUNTA(AK3:CV3) = 0, OR(AI3 = "N", AI3 = "N/A", AND("Inflation Linked", AJ3<>"N/A")))))) And copied down HL1563 ET issue but amending in GD as well for consistency D7 – Data Validation B8 value amended from SPT to SPTL | I72: v6
B73: 2024-09-12 | C73: FBP4: Correcting and completing inflation Option 1 implementation | E73: Tomo Sandeman | F73: Correcting and further re-arranging notional elements | G73: Return&RAV 1. Adding in a row to import pre-RIIO-3 additions in row 59, “=MainInputs!AH1456+MainInputs!AH1461+TIM!AH108*AH10” 2. Original “Post-vesting balance” section’s “Net additions (after disposals)” links to Depn to source the additions. But this means it’s taking semi-nominal additions when in fact it should take splice nominal additions. Change from “=Depn!AH39 + SUM(FuelPoor!AH24:AH26)” to “=AH59+AH60 + SUM(FuelPoor!AH24:AH26)”. 3. Modifying flow of additions into Depn tab. Adding into row 63 “Applicable RIIO-3 additions nominal to real conversion factor for depreciation” “=IF($I$55="Status quo", AP21,AP52)”. Row 64 “Additions deflated using inflation applied to indexed portion of capital structure” changed from “=IF(AP52=0,0,AP$61/AP52)” to “=IF(AP63=0,0,AP$61/AP63)”. Depn 4. Row 27 “SSMC cost of debt inflation approach: additions” changed from “=IF($I27="Status quo",TIM!AP108,'Return&RAV'!AP64)*AP11” to “='Return&RAV'!AP64*AP11”. | I73: v6
B74: 2024-09-12 | C74: FBP4: Correcting and completing inflation Option 1 implementation | E74: Tomo Sandeman | F74: Fixing links in financeability tabs | G74: FinancialStatements - Notional 5. Row 41 “RAV” in Regulatory financial position changed from “='Return&RAV'!AP103 *@ GDNpf” to “='Return&RAV'!AP93” 6. Row 54 “Opening RAV (before transfers)” in Supporting analysis for Financial Position changed from “='Return&RAV'!AP97 *@ GDNpf” to “='Return&RAV'!AP90-'Return&RAV'!AP89” 7. Row 57 “Net additions (after disposals)” changed from “='Return&RAV'!AP101 *@ GDNpf” to “='Return&RAV'!AP91”. Row 58 “Depreciation” changed from “='Return&RAV'!AP102 *@ GDNpf” to “='Return&RAV'!AP92”. FinancialStatements – Actual 8. Row 162 “RAV” in Regulatory financial position changed from “='Return&RAV'!AS103 *@ GDNpf” to “='Return&RAV'!AS93” 9. Row 175 “Opening RAV (before transfers)” in Supporting analysis for Financial Position changed from “='Return&RAV'!AS97 *@ GDNpf” to “='Return&RAV'!AS90-'Return&RAV'!AS89” 10. Row 178 “Net additions (after disposals)” changed from “='Return&RAV'!AS101 *@ GDNpf” to “='Return&RAV'!AS91”. Row 179 “Depreciation” changed from “='Return&RAV'!AS102 *@ GDNpf” to “='Return&RAV'!AS92”. FinancialRatios – Notional 11. Row 11 “RAV depreciation” in Interest Cover Ratios section, from “='Return&RAV'!AP102 *@ GDNpf” to “='Return&RAV'!AP92”. 12. Row 30 (“RAV (closing)”) deleted and replaced with “Inflation on RAV” “='Return&RAV'!AP88” 13. Row 32 “Nominal PMICR, adjusted” changed from =(AP28 + AP29 + AP11 + (AP30 *@ GDNpf) - (AP30 * MainInputs!AO$392)) /-(AP12 + AP13)” to “=(AP28 + AP29 + AP11 + AP30) /-(AP12 + AP13)”. Note that this is a slight change from the original method. The original method calculated indexation on the RAV as closing RAV * this year’s inflation minus closing RAV*last year’s inflation. The new nominal RAV approach calculates indexation on the RAV as opening RAV * this year’s inflation. 14. Row 36 “Nominal PMICR, adjusted” changed from “=(AP28 + AP29 + AP11 + (AP30 *@ GDNpf) - (AP30 * MainInputs!AO$392)) /-(AP12 + AP13 + AP16 + AP17)” to =(AP28 + AP29 + AP11 + AP30) /-(AP12 + AP13 + AP16 + AP17)”. 15. RoRE section, row 84 “Regulated equity (notional, NPV neutral)” changed from “='Return&RAV'!AP$243 * (1 - MainInputs!AP$368) *@ GDNpf” to “='Return&RAV'!AP$243 * (1 - MainInputs!AP$368)”. Row 85 “Net debt (notional, NPV neutral)” changed from “='Return&RAV'!AP$243 * (MainInputs!AP$368) *@ GDNpf” to “='Return&RAV'!AP$243 * MainInputs!AP$368”. FinancialRatios – Actual 16. Row 114 “RAV depreciation” in Interest Cover Ratios section, from “='Return&RAV'!AS102 *@ GDNpf” to “='Return&RAV'!AP92”. 17. Row 133 (“RAV (closing)”) deleted and replaced with “Inflation on RAV” “='Return&RAV'!AS88” 18. Row 135 “Nominal PMICR, adjusted” changed from “=(AS131 + AS132 + AS114 + (AS133 *@ GDNpf) - (AS133 * MainInputs!AR$392)) /-(AS115 + AS116)” to “=(AS131 + AS132 + AS114 + AS133) /-(AS115 + AS116)”. Note that this is a slight change from the original method. The original method calculated indexation on the RAV as closing RAV * this year’s inflation minus closing RAV*last year’s inflation. The new nominal RAV approach calculates indexation on the RAV as opening RAV * this year’s inflation. | I74: v6
B75: 2024-09-12 | C75: GIT138 - live calculation of incentives from Scenarios | E75: Tomo Sandeman | F75: The “Live calculation of incentive figures for inserting into Input” in Scenarios row 230-233 refers to just status quo NPV neutral RAV. Needs to be updated. | G75: Row 231 “Incentive RoRE % performance: NPV netural RAV return base” changed to final nominal NPV neutral RAV line – from “='Return&RAV'!AU202” to “='Return&RAV'!AU243”. Row 233 “Incentive RoRE % performance: total incentive revenue (£ real)” changed from “=AU232*$F$228” to “=(AU232*$F$228) /@GDNpf”. | H75: GIT138 | I75: v6
B76: 2024-09-12 | C76: GIT141 - updating General Pool FYA | E76: Tomo Sandeman | F76: Updating TaxPools’ general pool FYA sub-pool to align with BPDTs, correcting functionality in the event that rates drop below 100%. | G76: 1. Add in two new rows below row 63 (FYA sub-pool’s “Opening balance brought forward”): “Transfer” and “Revisions”. Rename row 66 “Capex additions” 2. Delete row 69 “Transfers out to General pool” 3. Amend row 67 “Tax book value pre-depreciation” from “=SUM(AP66)” to “=SUM(AP63:AP66)” 4. Amend row 69 “Closing balance carried forward (limited to 0)” from “=SUM(AP67:AP68)” to “=MAX(SUM(AP67:AP68),0)” 5. Row 63 “Opening balance brought forward” is currently greyed out. Change to “=AO69” 6. Row 64 “Transfer” add in “=-AP63” 7. Row 56, main pool’s “Transfers in from Super deduction” amend from “=-#REF!” to “=-AP64”. | H76: GIT141 | I76: v6
B77: 2024-09-20 | C77: GIT149 - re-linking depreciation override profile | D77: Fix profile | E77: Tomo Sandeman | F77: Fixing depreciation override profile, which was removed from the model flow when inflation Option 1 was restructured | G77: 1. MainInputs the “Override depreciation profile input” in row 1464 links to a blank row in InputSummary. Change from “=InputSummary!AU1462*$I$14” to “=InputSummary!AU954*$I$14”. 2. Return&RAV add 4 new rows below row 15. Insert “Scenario Operators” header, and in row 17 a flag for switching on the override. 3. Return&RAV modify “Deprecation from RIIO-3 additions (real)” (row 74) and “Depreciation from pre-RIIO-3 additions (real)” (row 77) to work if the new flag is off. Change from row 74 from “=-SUMIFS(Depn!AP681:AP759,Depn!$E$681:$E$759,">="&$I$74)” to “”. Change row 77 from “=-(AP129+SUMIFS(Depn!AP681:AP759,Depn!$E$681:$E$759,"<"&$I$74))” to “=-(AP129+SUMIFS(Depn!AP681:AP759,Depn!$E$681:$E$759,"<"&$I$74))*(1-AP$17)”. 4. Return&RAV add 3 new rows below row 79 for “Depreciation from Override Profile (real)” and applicable real to nominal conversion factor. Row 80 (Depreciation from Override Profile (real)) is “=-Depn!AP50*AP$17”, row 81 (Applicable real to nominal conversion factor) is “=AP75” 5. Return&RAV total depreciation nominal (row 86) modified to include the new row: “=AP74*AP75+AP77*AP78+AP80*AP81+AP83*AP84” | H77: GIT149 | I77: v6
B78: 2024-09-20 | C78: GIT149 - re-linking depreciation override profile | D78: Apply variation factors to pre-vesting balances | E78: Tomo Sandeman | F78: It was originally decided to not apply variation factors to pre-vesting balances. After feedback we recognise it should be applied. | G78: 1. This was excluded originally from variation factors, but should be included. 2. Depn I59. “Asset remaining at start of RIIO-3” replaced with “Asset remaining at start of RIIO-1”, changed from “=((I60-1)*(1+I60-1)/2)/I58” to “=1-((I57-AH64)*(I57+AH64+1)/2)/I58”. 3. Depn row 66 replace current ‘static’ SoD profile. Change from “=(AH64 / $I58)*(AH9+AH10) + (AH64/$I62)*AH11*$I59” to “=2/(AH64+1) * ($I$59-SUM($AG66:AG66)) * IF(AH11=1, IF(AH64>5,AH$23,1),1)”. 4. Scenarios move row 35 “RIIO-3 & post-vesting acceleration factor option” up to below row 26, and re-label “Pre- and post-vesting acceleration factor option”. Similarly in Depn move row 23 (profile of depreciation factors) up to below row 14 | I78: v6
B79: 2024-09-22 | C79: Adding CPI index | E79: Catriona Bogle | F79: CPI index has been added to Monthly Inflation and subsequent formulae on F5 tab have been updated | G79: Monthly Inflation 1. Add in new column after column C for CPI outturn. Paste in data from ONS. 2. Add in new column after column H, for CPI forecast index. It should use the CPIH % rate forecast column F. I2 =IF(ISBLANK(D2),I1*((1+G2)^(1/12)),D2) F5 Inflation Linked Debt 1. Changing column Q (base_index to use) from “” to “” (CB addition: from “=IFERROR(IF(P11=0, INDEX('I2 - Monthly Inflation'!$H$6:$J$413, MATCH(EOMONTH(EDATE(F11,-O11),0), 'I2 - Monthly Inflation'!$A$6:$A$389, 0), 1 + (N11 = "RPI")), P11), 0)” to “=IFERROR(IF(P11=0, INDEX('I2 - Monthly Inflation'!$H$6:$J$413, MATCH(EOMONTH(EDATE(F11,-O11),0), 'I2 - Monthly Inflation'!$A$6:$A$389, 0), 1 + (N11 = "CPIH")*1 + (N11 = "RPI")*2), P11), 0)” Changing columns BT:CJ (price index) from “=IF($K12 = 0, 0, ($I12 >= BT$9) * ($F12 <= BT$10) * INDEX('Monthly Inflation'!$J$5:$K$385, MATCH(EDATE(MIN(BT$10,$I12)+1,-$O12+1), 'Monthly Inflation'!$B$5:$B$385, 1), 1 + ($N12 = "RPI")*1))” to “ 2. Column IR changed from “=IF($K12= 0, 0, $K12 * ($F12 < IR$9) * ($I12 >= IR$9) * INDEX('Monthly Inflation'!$J$5:$K$385, MATCH(EDATE(MAX(IR$9, $F12),-$O12 + 1), 'Monthly Inflation'!$B$5:$B$385, 1), 1 + ($N12 = "RPI")*1) / $Q12)” to “=IF($K12= 0, 0, $K12 * ($F12 < IR$9) * ($I12 >= IR$9) * INDEX('Monthly Inflation'!$I$5:$K$385, MATCH(EDATE(MAX(IR$9, $F12),-$O12 + 1), 'Monthly Inflation'!$B$5:$B$385, 1), 1 + ($N12 = "CPIH")*1 + ($N12 = "RPI")*2) / $Q12)”. 3. Column KB:KQ (principal accretion in year) changed from “=IF($K12 = 0, 0, $K12 * ($I12 >= KB$9) * ($F12 <= KB$10) * (INDEX('Monthly Inflation'!$J$5:$K$385, MATCH(EDATE(MIN(KB$10, $I12),-$O12 + 1), 'Monthly Inflation'!$B$5:$B$385, 1), 1 + ($N12 = "RPI")*1) - ((JJ12 <> 0) * $Q12 + (JJ12 = 0) * INDEX('Monthly Inflation'!$J$5:$K$385, MATCH(EDATE(KB$9,-$O12 + 1), 'Monthly Inflation'!$B$5:$B$385, 1), 1 + ($N12 = "RPI")*1)))/ $Q12)” to “=IF($K16 = 0, 0, $K16 * ($I16 >= KH$9) * ($F16 <= KH$10) * (INDEX('Monthly Inflation'!$I$5:$K$385, MATCH(EDATE(MIN(KH$10, $I16),-$O16 + 1), 'Monthly Inflation'!$B$5:$B$385, 1), 1 + ($N16 = "CPIH")*1 + ($N16 = "RPI")*2) - ((JP16 <> 0) * $Q16 + (JP16 = 0) * INDEX('Monthly Inflation'!$I$5:$K$385, MATCH(EDATE(KH$9,-$O16 + 1), 'Monthly Inflation'!$B$5:$B$385, 1), 1 + ($N16 = "CPIH")*1 + ($N16 = "RPI")*2)))/ $Q16)” 4. Column KT:LI (Debt repayment in year including accretion) changed from “=IF($K12= 0, 0, - $K12 * ($I12 >= KT$9) * ($I12 <= KT$10) * INDEX('Monthly Inflation'!$J$5:$K$385, MATCH(EDATE($I12,-$O12 + 1), 'Monthly Inflation'!$B$5:$B$385, 1), 1 + ($N12 = "RPI")*1) / $Q12)” to “=IF($K12= 0, 0, - $K12 * ($I12 >= KT$9) * ($I12 <= KT$10) * INDEX('Monthly Inflation'!$I$5:$K$385, MATCH(EDATE($I12,-$O12 + 1), 'Monthly Inflation'!$B$5:$B$385, 1), 1 + ($N12 = "CPIH")*1 + ($N12 = "RPI")*2) / $Q12) 5. Column MD:MS (CHECK on closing balance) changed from “=LL12 - IF($K12 = 0, 0, $K12 * ($F12 <= MD$10) * ($I12 > MD$10) * INDEX('Monthly Inflation'!$J$5:$K$385, MATCH(EDATE(MD$10,-$O12 + 1), 'Monthly Inflation'!$B$5:$B$385, 1), 1 + ($N12 = "RPI")*1) / $Q12)” to “=LL12 - IF($K12 = 0, 0, $K12 * ($F12 <= MD$10) * ($I12 > MD$10) * INDEX('Monthly Inflation'!$I$5:$K$385, MATCH(EDATE(MD$10,-$O12 + 1), 'Monthly Inflation'!$B$5:$B$385, 1), 1 + ($N12 = "CPIH")*1 + ($N12 = "RPI")*2) / $Q12)” | I79: v7
B80: 2024-09-22 | C80: RPE index | E80: Catriona Bogle | F80: Setting RPE index to a static 1 for all of RIIO-3 | G80: MainInputs AO399 formula amended from =PRODUCT(1 + $AO400:AO400) to =(AO9+AO10) * PRODUCT(1 + $AO400:AO400) + AO11 and copied across to AY399 InputSummary AU880:AY880 – removed formula and greyed out cells LicenseeInputs AU880:AY880 – removed formula and greyed out cells | H80: 70 | I80: v7
B81: 2024-09-23 | C81: Rates update | E81: Catriona Bogle | F81: Updating interest and inflation rates | G81: Monthly Inflation E302:F304 updated outturn inflation to 30 June 24 Scenarios Updated interest rates to 1-Jul-24 rates for base case (AP187:AY194), High case (AP198:AY205), Low case (AP209:AY216) | H81: 118 | I81: v7
B82: 2024-09-23 | C82: RIIO-2 financeability actuals | E82: Catriona Bogle | F82: Deleted RIIO-2 data from actual financeability (FinancialStatements, FinancialRatios, RatingSimulator) | G82: FinancialStatements AU180 formula amended from “=(1-AU18) * (AU181-AU179)” to “=(1-AU15) * (AU181-AU179)” and copied across to AY180 AU193 formula amended from “=AU18 * (AU181+AU212) + (1-AU18) * (AU191 + AU192)” to “=AU15 * (AU181+AU212) + (1-AU15) * (AU191 + AU192)” and copied across to AY193 Deleted data in AS179:AT285 FinancialRatios Deleted data in AS117:AT170 RatingSimulator Deleted data in AS300:AT329 | I82: v7
B83: 2024-09-23 | C83: Adding return of capital | E83: Catriona Bogle | F83: Adding ability to include a specific % on 'return of capital' in scenarios, to feed in to F&T through dividends | G83: Scenarios Added new row below 51 for ‘Assumed return of capital as % of equity’ Added new section for ‘Assumed return of capital as % of equity’ in rows 171:173 with options for User defined #1 and for ‘User defined #2’ MainInputs Added new row below 24 for ‘Assumed return of capital as % of equity’ and added formula to look up to row 171 (AU25 = Scenarios!AU171) Added new row below 465 for ‘Assumed return of capital as % of equity’ added formula to return the scenario operator in row 25 for RIIO-3 (AP466 =AP$11*AP25) Finance&Tax Added new row below 189 for ‘Assumed return of capital as percentage of equity’ and copied formula from row 189 Added two new lines above row 194- one for dividends with existing formula and one for return of capital AP192 =AP187 * AP188 * AP189 AP193 =AP187 * AP188 * AP190 Amended original dividend line to ‘Dividends and return of capital’ and amended formula to =SUM(AP192:AP193) | H83: 140 | I83: v7
B84: 2024-09-23 | C84: Adding natural capitalisation | E84: Tomo Sandeman | F84: Adding in a scenario option to use natural cap rates, meaning zero fast/slow money adjustments | G84: Scenarios 1. Added a new “Natural” option into row 21 “RIIO-3 cap rates from Scenarios, Licensee inputs or Natural?” TIM 2. Row 143 “Natural capitalisation rate 1 (pre-TIM)” modified to exclude repex – from “=(Totex!AP61+Totex!AP62+Totex!AP65)/SUM(Totex!AP61:AP65)” to “=(Totex!AP61+Totex!AP62)/SUM(Totex!AP61:AP64)”. 3. Row 144 “Natural capitalisation rate 2 (pre-TIM)” modified to exclude repex – from “=(Totex!AP69+Totex!AP70+Totex!AP73)/SUM(Totex!AP69:AP73)” to “=IF(SUM(Totex!AP69:AP72)=0,0,Totex!AP69+Totex!AP70)/SUM(Totex!AP69:AP72))”. 4. New row added below row 144 “Natural capitalisation rate repex (pre-TIM)”: “=(Totex!AP65+Totex!AP73)/(Totex!AP65+Totex!AP73)”. 5. Row 17 Scenario operators’ “Capitalisation rate 1” changed from “=IF($I$16="Scenarios",Scenarios!$F22, MainInputs!AP472)*AP$11” to “=IF($I$16="Scenarios",Scenarios!$F22,IF($I$16="Licensee inputs",MainInputs!AP472,AP143))*AP$11”. Copied down to AY19. | I84: v7
B85: 2024-09-24 | C85: Updating CoD and CoE | E85: Catriona Bogle | F85: CoD and CoE figures have been updated based on updated rate environment | G85: Scenarios: Updated AU133:AY135 for base, high (+2% rates), low (-2%) rates cases for cost of debt Updated AU140:AY142 for base, high (+2% RFR), low (-2% RFR) rates cases for cost of equity LicenseeInputs iBoxx trailing average (AU856:AY856) updated with latest rates update Risk-free rate (AU859:AY859) updates with latest rates update | I85: v7
B86: 2024-09-24 | C86: Scenario user input additions | E86: Catriona Bogle | F86: Adding in user input functionality for inflation and interest rates | G86: Scenarios Added additional row for ‘Forecast near-term RPI debt inflation’ with blank values for user input option- row 153 Added additional row for ‘Forecast near-term RPI debt inflation’ with blank values for user input option- row 161 Inserted new block for ‘Annual interest rate inputs for actual debt’ with blank values for user input option- 226:236 Added in list of lookup names in F186 and updated data validation in row 55 G182 updated formula to =MATCH(F182,F183:F186,0) AP183 amended formula from =CHOOSE($G$182,AP194,AP205,AP216) to =CHOOSE($G$182,AP194,AP205,AP216,AP227) | I86: v7
B87: 2024-09-25 | C87: Bills tab | E87: Catriona Bogle | F87: Changing categorisation of tab | G87: Amended Bills tab colour to pink and moved to after FBPOutputs Cover: moved E40:G40 (Bills reference) to E58:G58 | I87: v7
B88: 2024-09-25 | C88: Misc tidy-up | E88: Tomo Sandeman | F88: Misc tidy-up | G88: Checks I28 - reduced sensitivity of "BPDT gearing target import in base case" to 5%: "=ABS(SUM(AP28:AY28) - 0) < 0.05" | I88: v7
B89: 2024-09-25 | C89: GIT 152 Bills formula error | E89: Tomo Sandeman | F89: Bills formula error | G89: AP19 ("Bill adjustment") copied across to cells AQ14:AY14 | H89: GIT152 | I89: v7
B90: 2024-09-25 | C90: GIT 153 Finance&Tax (Actual) formula error | E90: Tomo Sandeman | F90: Finance&Tax (Actual) formula error | G90: Row 132 "Forecast debt inflation (CPIH)" within CPIH index-linked debt, refers to wrong year. Changed AS132 from "" to "", and copied across row. | H90: GIT153 | I90: v7
B91: 2024-09-25 | C91: Fuel poor overridden by custom depreciation profile | E91: Tomo Sandeman | F91: Modifying Return&RAV to remove fuel poor depreciation when custom depreciation scenario is selected. | G91: Return&RAV cell AP83 ("Depreciation from fuel poor (real)" within Real to nominal conversion factors to be applied to nominal RAV and depreciation) changed from "=-AP178" to "=-AP178*(1-AP$17)", copied across row. Return&RAV Scenario operators' "Override depreciation profile flag" cell I17 changed from "=Scenarios!AP28" to "=Scenarios!F28". | H91: GIT149 | I91: v7
B92: 2024-10-01 | C92: Finance inputs correction | E92: Catriona Bogle | G92: LicenseeInputs Updated values in Finance inputs section: AU856:AY888 to correct for errors Scenarios Updated values for CoD single input figures to use (AU133:AY135) and CoE single input figures to use (AU140:142)
B93: 2024-10-01 | C93: Directly renumerated services adjustment | E93: Catriona Bogle | F93: Fixing calculation of DRS costs | G93: MainInputs ‘Identifie+G100d directly renumerated services costs (as used in revenue calculation)’ amended to look up to ‘Identified directly renumerated services costs’ AP335 formula amended from = - SUM(AP332:AP334) to =AP329 and copied across to AY335 | H93: GIT156
B94: 2024-11-13 | C94: Totex Out and Underperformance stress tests | E94: Rebecca Band | F94: Fixing Totex Out and Underperformance stress tests | G94: GD 1. Row 102 “Less difference in fast pot expenditure pre-TIM and post-TIM” within Regulatory earning statement block – add in the inverse cap rates. Change from “=IF($I$24,"", -((TIM!AP30)*(1-TIM!AP32) + (TIM!AP40)*(1-TIM!AP42) + (TIM!AP50)*(1-TIM!AP52)) *@ GDNpf)” to “=IF($I$24,0,-((TIM!AP30)*(1-TIM!AP32)*(1-TIM!AP87) + (TIM!AP40)*(1-TIM!AP42)*(1-TIM!AP94) + (TIM!AP50)*(1-TIM!AP52)*(1-TIM!AP101)) *@ GDNpf)”. Copy across row. 2. Row 82 “add back:retained outperformance” within PAT (using regulatory depreciation); supporting analysis block. Switch from being active under capex/opex to being active under fast/slow. Change from “=-((TIM!AP30)*(1-TIM!AP32)*(TIM!AP87) + (TIM!AP40)*(1-TIM!AP42)*(TIM!AP94) + (TIM!AP50)*(1-TIM!AP52)*(TIM!AP101))*@GDNpf *$I$24” to “=-((TIM!AP30)*(1-TIM!AP32)*(TIM!AP87) + (TIM!AP40)*(1-TIM!AP42)*(TIM!AP94) + (TIM!AP50)*(1-TIM!AP52)*(TIM!AP101))*@GDNpf *$I$23”. Copy across row. 3. Add new row below row 148 (Net slow pot expenditure within Net cash flow before financing block of the regulatory cash flow statement). This new row is “add back: retained outperformance”. Formula: “=AP82”. Copy across row. | H94: GIT157
B95: 2024-11-13 | C95: Inflation sensitivities | E95: Rebecca Band | F95: Fixing Inflation sensitivities | G95: GD Scenarios Amend labels in Forecast near-term RPI debt inflation and Forecast near-term CPIH debt inflation E147 label amend to ‘Forecast near-term RPI debt inflation (calendar year)’ E155 label amend to ‘Forecast near-term CPIH debt inflation (calendar year)’ E148 label amend to ‘Jun'24 BPDT (calendar year)’ E149 label amend to ‘High additional increment (FY)’ E150 label amend to ‘Low additional increment (FY)’ E151 label amend to ‘High diverg -0.5% additional increment (FY)’ E152 label amend to ‘Low diverg +0.5% additional increment (FY)’ E153 label amend to ‘User defined #1 (closed) additional increment (FY)’ Copy E148:E153 and paste to E156:E161 AR149:AY152 delete formula AU149:AY149 replace formula with value ‘2’ AU150:AY150 replace formula with value ‘-2’ AU151:AY151 replace formula with value ‘-0.5’ AU152:AY152 replace formula with value ‘0.5’ Copy AR149:AY152 and paste to AR157:AY160 Amend the scenario selections due to name changed: AP47 select ‘Jun'24 BPDT (calendar year)’ and copy to AQ47, AR47, AU47, AV47, AY47, AZ47, BA47, BB47, BC47, BD47 AS47 select ‘High additional increment (FY)’ AT47 select ‘Low additional increment (FY)’ AW47 select ‘High diverg -0.5% additional increment (FY)’ AX47 select ‘Low diverg +0.5% additional increment (FY)’ AP48 select ‘Jun'24 BPDT (calendar year)’ and copy to AQ48, AR48, AW48, AX48, AY48, AZ48, BA48, BB48, BC48, BD48 AS48 select ‘High additional increment (FY)’ AT48 select ‘Low additional increment (FY)’ AU48 select ‘High diverg -0.5% additional increment (FY)’ AV48 select ‘Low diverg +0.5% additional increment (FY)’ Amend formula to add on proportion of financial year increments to the calendar year total AR147 amend formula from =INDEX(AR148:AR153,$G147) to =IF($G147=1,AR148,AR148+(INDEX(AR148:AR153,$G147)*0.25)+(INDEX(AS148:AS153,$G147)*0.75))and copy across to AY147 AR155 amend formula from =INDEX(AR156:AR161,$G155) to =IF($G155=1,AR156,AR156+(INDEX(AR156:AR161,$G155)*0.25)+(INDEX(AS156:AS161,$G155)*0.75)) and copy across to AY155 Annual Inflation E9 label amend to ‘Forecast near-term RPI debt inflation (calendar year)’ E10 label amend to ‘Forecast near-term CPIH debt inflation (calendar year)’ | H95: GIT165
B96: 2024-11-13 | C96: Bills input price base | E96: Rebecca Band | F96: Fixing Bills input price base | G96: GD: InputSummary and LicenseeInput G973 amend label from "£m nominal" to "£/year (nominal)" G974 amend label from "£m nominal" to "£/year (nominal)" | H96: GIT169
B97: 2024-11-13 | C97: Tax allowance - RevenueSummary | E97: Rebecca Band | F97: Fixing Tax allowance - RevenueSummary | G97: GD: RevenueSummary Copy AP39 and paste across to AY39 | H97: GIT171
B98: 2024-11-13 | C98: RPI divergence stress tests | E98: Rebecca Band | F98: Fixing RPI divergence stress tests | G98: GD Scenarios row 151 ("High diverg -0.5% additional increment (FY)"). Change values in cells AU151:AY151 from -0.5 to 0.5. Row 152 ("Low diverg 0.5% additional increment (FY)"). Change values in cells AU152:AY152 from 0.5 to -0.5. Labels E151 change from "High diverg -0.5% additional increment (FY)" to "High diverg +0.5% additional increment (FY)". E152 change from "Low diverg +0.5% additional increment (FY)" to "Low diverg -0.5% additional increment (FY)". In the dropdown boxes in cells AW47 and AX47 the correct profile must be re-selected since the name of the label has been changed. Copy/paste cells AY148:AY153 into cells AZ148:AZ153. Also copy/paste cells AY156:AY161 into cells AZ156:AZ161 | H98: GIT177
B99: 2024-11-13 | C99: Financeability & risk assessment modelling issues | E99: Rebecca Band | F99: Fixing Financeability & risk assessment modelling issues | G99: Change instructions for GD RatingSimulator row 52 (“FFO/Net Det, adjusted (Moody’s)”). Change from “=-AP41/AP51” to “=-(AP38+AP47)/AP51”. Row 314 (“FFO / Net Debt, adjusted (Moody's)”) change from “=-AU303/AU313” to “=-AU300/AU313” FinancialRatios row 46 (“FFO/Net Debt” [notional]). Change from “=(AP41 + AP43) / -AP44” to “=AP41 / -AP44”. Row 47 (“RCF/Net Debt” [notional]) change from “=(AP42 + AP43) / -AP44” to “=AP42 / -AP44. Row 150 (“FFO/Net Debt” [actual]) change from “=(AU145 + AU147) / -AU148” to “=AU145 / -AU148”. Row 151 (“RCF/Net Debt” [actual]) change from “=(AU146 + AU147) / -AU148” to “=AU146 / -AU148”. FinancialRatios row 50 (“FFO/Net Debt, adjusted” [notional]). Change from “=(AP41 + AP43+AP19) / -AP44” to “=(AP41 + AP18) / -AP44”. Row 51 (“RCF/Net Debt, adjusted” [notional]) change from “=(AP42 + AP43+AP19) / -AP44” to “=(AP42 + AP18) / -AP44”. | H99: GIT170
B100: 2024-11-13 | C100: Actual Company Nominal PMICR – Inflation on RAV | E100: Rebecca Band | F100: Fixing Actual Company Nominal PMICR – Inflation on RAV | G100: Change instructions (GD only) FinancialRatios row 138 ("Nominal PMICR") change AU138 from "=(AU134 + AU135 + AU117 + (AU136 *@ GDNpf) - (AU136 * MainInputs!AT$394)) /-(AU118 + AU119)" to "=(AU134 + AU135 + AU117 + AU136) /-(AU118 + AU119)". Copy across AV138:AY138. | H100: GIT178
B101: 2024-11-13 | C101: Directly remunerated services adjustment | E101: Rebecca Band | F101: Reverse Directly remunerated services adjustment above | G101: MainInputs ‘Identified directly renumerated services costs (as used in revenue calculation)’ reverted back to: AP335 = - SUM(AP332:AP334) and copied across to AY335 | H101: GIT156 reversed per Ofgem email 30 October 2024
B102: 2024-11-13 | C102: BPFM and BPDT accretion calculation formula | E102: Rebecca Band | F102: Fix BPFM and BPDT accretion calculation formula | G102: F5 - Inflation Linked Debt Change formula from : "=IF($K12 = 0, 0, $K12 * ($I12 >= KB$9) * ($F12 <= KB$10) * (INDEX('Monthly Inflation'!$I$5:$K$385, MATCH(EDATE(MIN(KB$10, $I12),-$O12 + 1), 'Monthly Inflation'!$B$5:$B$385, 1), 1 + ($N12 = "CPIH")*1 + ($N12 = "RPI")*2) - ((JJ12 <> 0) * $Q12 + (JJ12 = 0) * INDEX('Monthly Inflation'!$I$5:$K$385, MATCH(EDATE(KB$9,-$O12 + 1), 'Monthly Inflation'!$B$5:$B$385, 1), 1 + ($N12 = "CPIH")*1 + ($N12 = "RPI")*2)))/ $Q12)" To: "=IF($K12 = 0, 0, $K12 * ($I12 >= KB$9) * ($F12 <= KB$10) * (INDEX('Monthly Inflation'!$I$5:$K$385, MATCH(EDATE(MIN(KB$10, $I12),-$O12 + 1), 'Monthly Inflation'!$B$5:$B$385, 1), 1 + ($N12 = "CPIH")*1 + ($N12 = "RPI")*2) - ((JJ12 <> 0) * INDEX('Monthly Inflation'!$I$5:$K$385, MATCH(EDATE($F12,-$O12 + 1), 'Monthly Inflation'!$B$5:$B$385, 1), 1 + ($N12 = "CPIH")*1 + ($N12 = "RPI")*2) + (JJ12 = 0) * INDEX('Monthly Inflation'!$I$5:$K$385, MATCH(EDATE(KB$9,-$O12 + 1), 'Monthly Inflation'!$B$5:$B$385, 1), 1 + ($N12 = "CPIH")*1 + ($N12 = "RPI")*2)))/ $Q12)" And copy this to cover section KB12:KQ461 | H102: Email from Ofgem 26 September 2024
B103: 2024-11-13 | C103: Capitalisation Rates selection | E103: Rebecca Band | F103: Capitalisation Rates selection | G103: Scenarios tab – row 21 'RIIO-3 cap rates: Scenarios or Licensee inputs, or Natural?' Change AP21 from “Natural” to “Licensee inputs” in the drop down. Copy across to AQ:BD21 | H103: GIT162
B104: 2024-11-13 | C104: Include tax clawback revenue impact? | E104: Rebecca Band | F104: Include tax clawback revenue impact? | G104: Scenarios tab – row 60 ‘Include tax clawback revenue impact?' Change AP60 from “Include” to “Exclude” in the drop down. Copy across to AQ:BD60 | H104: Email from Ofgem 30 October 2024 - for Notional Company

Sheet Checks
A1: Model checks | I1: Checks not met:
B2: =UserInterface!G17 -> Wales & West | I2: =SUMPRODUCT(($I$8:$I$89 <> TRUE) * 1) - SUMPRODUCT(($I$8:$I$89 = "") * 1) -> 
E3: Parameter | G3: Units | I3: Constant | AP3: Annual values
E4: PCFM year ending | I4: =UserInterface!$G$10 -> 2026-03-31 | K4: 1991-03-31 | L4: 1992-03-31 | M4: 1993-03-31 | N4: 1994-03-31 | O4: 1995-03-31 | P4: 1996-03-31 | Q4: 1997-03-31 | R4: 1998-03-31 | S4: 1999-03-31 | T4: 2000-03-31 | U4: 2001-03-31 | V4: 2002-03-31 | W4: 2003-03-31 | X4: 2004-03-31 | Y4: 2005-03-31 | Z4: 2006-03-31 | AA4: 2007-03-31 | AB4: 2008-03-31 | AC4: 2009-03-31 | AD4: 2010-03-31 | AE4: 2011-03-31 | AF4: 2012-03-31 | AG4: 2013-03-31 | AH4: 2014-03-31 | AI4: 2015-03-31 | AJ4: 2016-03-31 | AK4: 2017-03-31 | AL4: 2018-03-31 | AM4: 2019-03-31 | AN4: 2020-03-31 | AO4: 2021-03-31 | AP4: 2022-03-31 | AQ4: 2023-03-31 | AR4: 2024-03-31 | AS4: 2025-03-31 | AT4: 2026-03-31 | AU4: 2027-03-31 | AV4: 2028-03-31 | AW4: 2029-03-31 | AX4: 2030-03-31 | AY4: =EOMONTH(AX4,12) -> 2031-03-31
AP5: 2 | AQ5: 2 | AR5: 2 | AS5: 2 | AT5: 2 | AU5: 3 | AV5: 3 | AW5: 3 | AX5: 3 | AY5: 3
B6: Financial statements
E8: Equity | I8: =ABS(SUM(AP8:AY8) - 0) < 0.00000001 -> TRUE | AP8: =FinancialStatements!AP49 -> 0 | AQ8: =FinancialStatements!AQ49 -> 0 | AR8: =FinancialStatements!AR49 -> 0 | AS8: =FinancialStatements!AS49 -> 0 | AT8: =FinancialStatements!AT49 -> 0 | AU8: =FinancialStatements!AU49 -> 0 | AV8: =FinancialStatements!AV49 -> 0 | AW8: =FinancialStatements!AW49 -> 0 | AX8: =FinancialStatements!AX49 -> 0 | AY8: =FinancialStatements!AY49 -> 0
E9: Closing RAV | I9: TRUE | AP9: =FinancialStatements!AP63 -> 0 | AQ9: =FinancialStatements!AQ63 -> 0 | AR9: =FinancialStatements!AR63 -> 0 | AS9: =FinancialStatements!AS63 -> 0 | AT9: =FinancialStatements!AT63 -> 0 | AU9: =FinancialStatements!AU63 -> 0 | AV9: =FinancialStatements!AV63 -> 0 | AW9: =FinancialStatements!AW63 -> 0 | AX9: =FinancialStatements!AX63 -> 0 | AY9: =FinancialStatements!AY63 -> 0
E10: Net cash flow | I10: TRUE | AP10: =FinancialStatements!AP93 -> 4.245492846e-13 | AQ10: =FinancialStatements!AQ93 -> -6.394884622e-14 | AR10: =FinancialStatements!AR93 -> 5.684341886e-14 | AS10: =FinancialStatements!AS93 -> -1.278976924e-13 | AT10: =FinancialStatements!AT93 -> -1.421085472e-13 | AU10: =FinancialStatements!AU93 -> -4.97379915e-14 | AV10: =FinancialStatements!AV93 -> -4.902744877e-13 | AW10: =FinancialStatements!AW93 -> -7.815970093e-14 | AX10: =FinancialStatements!AX93 -> -1.065814104e-13 | AY10: =FinancialStatements!AY93 -> 9.414691249e-14
E11: Change in net debt | I11: TRUE | AP11: =FinancialStatements!AP159 -> 0 | AQ11: =FinancialStatements!AQ159 -> 0 | AR11: =FinancialStatements!AR159 -> 0 | AS11: =FinancialStatements!AS159 -> 0 | AT11: =FinancialStatements!AT159 -> 0 | AU11: =FinancialStatements!AU159 -> 0 | AV11: =FinancialStatements!AV159 -> 0 | AW11: =FinancialStatements!AW159 -> 0 | AX11: =FinancialStatements!AX159 -> 0 | AY11: =FinancialStatements!AY159 -> 0
B13: FinRatios RoRE decomposition
E15: Total revenue | I15: =ABS(SUM(AP15:AY15) - 0) < 0.00000001 -> TRUE | AP15: ='FinRatios RoRE decomposition'!AP56 -> 0 | AQ15: ='FinRatios RoRE decomposition'!AQ56 -> 0 | AR15: ='FinRatios RoRE decomposition'!AR56 -> 0 | AS15: ='FinRatios RoRE decomposition'!AS56 -> 0 | AT15: ='FinRatios RoRE decomposition'!AT56 -> 0 | AU15: ='FinRatios RoRE decomposition'!AU56 -> 0 | AV15: ='FinRatios RoRE decomposition'!AV56 -> 0 | AW15: ='FinRatios RoRE decomposition'!AW56 -> 0 | AX15: ='FinRatios RoRE decomposition'!AX56 -> 0 | AY15: ='FinRatios RoRE decomposition'!AY56 -> 0
E16: Retained earnings | I16: TRUE | AP16: ='FinRatios RoRE decomposition'!AP57 -> 7.815970093e-14 | AQ16: ='FinRatios RoRE decomposition'!AQ57 -> 0 | AR16: ='FinRatios RoRE decomposition'!AR57 -> 0 | AS16: ='FinRatios RoRE decomposition'!AS57 -> -1.225686219e-13 | AT16: ='FinRatios RoRE decomposition'!AT57 -> -1.953992523e-14 | AU16: ='FinRatios RoRE decomposition'!AU57 -> 4.085620731e-14 | AV16: ='FinRatios RoRE decomposition'!AV57 -> 2.415845302e-13 | AW16: ='FinRatios RoRE decomposition'!AW57 -> 1.136868377e-13 | AX16: ='FinRatios RoRE decomposition'!AX57 -> 0 | AY16: ='FinRatios RoRE decomposition'!AY57 -> 3.907985047e-14
E17: EBITDA | I17: TRUE | AP17: ='FinRatios RoRE decomposition'!AP58 -> 0 | AQ17: ='FinRatios RoRE decomposition'!AQ58 -> 0 | AR17: ='FinRatios RoRE decomposition'!AR58 -> 0 | AS17: ='FinRatios RoRE decomposition'!AS58 -> 0 | AT17: ='FinRatios RoRE decomposition'!AT58 -> 0 | AU17: ='FinRatios RoRE decomposition'!AU58 -> 0 | AV17: ='FinRatios RoRE decomposition'!AV58 -> 0 | AW17: ='FinRatios RoRE decomposition'!AW58 -> 0 | AX17: ='FinRatios RoRE decomposition'!AX58 -> 0 | AY17: ='FinRatios RoRE decomposition'!AY58 -> 0
E18: PAT | I18: TRUE | AP18: ='FinRatios RoRE decomposition'!AP59 -> 0 | AQ18: ='FinRatios RoRE decomposition'!AQ59 -> -8.459899448e-14 | AR18: ='FinRatios RoRE decomposition'!AR59 -> 0 | AS18: ='FinRatios RoRE decomposition'!AS59 -> 0 | AT18: ='FinRatios RoRE decomposition'!AT59 -> -6.039613254e-14 | AU18: ='FinRatios RoRE decomposition'!AU59 -> -1.492139745e-13 | AV18: ='FinRatios RoRE decomposition'!AV59 -> 9.237055565e-14 | AW18: ='FinRatios RoRE decomposition'!AW59 -> 1.492139745e-13 | AX18: ='FinRatios RoRE decomposition'!AX59 -> 0 | AY18: ='FinRatios RoRE decomposition'!AY59 -> 0
E19: FFO | I19: TRUE | AP19: ='FinRatios RoRE decomposition'!AP60 -> 0 | AQ19: ='FinRatios RoRE decomposition'!AQ60 -> 0 | AR19: ='FinRatios RoRE decomposition'!AR60 -> 0 | AS19: ='FinRatios RoRE decomposition'!AS60 -> 0 | AT19: ='FinRatios RoRE decomposition'!AT60 -> 0 | AU19: ='FinRatios RoRE decomposition'!AU60 -> 0 | AV19: ='FinRatios RoRE decomposition'!AV60 -> 0 | AW19: ='FinRatios RoRE decomposition'!AW60 -> 0 | AX19: ='FinRatios RoRE decomposition'!AX60 -> 0 | AY19: ='FinRatios RoRE decomposition'!AY60 -> 0
E20: RCF | I20: TRUE | AP20: ='FinRatios RoRE decomposition'!AP61 -> 0 | AQ20: ='FinRatios RoRE decomposition'!AQ61 -> 0 | AR20: ='FinRatios RoRE decomposition'!AR61 -> 0 | AS20: ='FinRatios RoRE decomposition'!AS61 -> 0 | AT20: ='FinRatios RoRE decomposition'!AT61 -> 0 | AU20: ='FinRatios RoRE decomposition'!AU61 -> 0 | AV20: ='FinRatios RoRE decomposition'!AV61 -> 0 | AW20: ='FinRatios RoRE decomposition'!AW61 -> 0 | AX20: ='FinRatios RoRE decomposition'!AX61 -> 0 | AY20: ='FinRatios RoRE decomposition'!AY61 -> 0
E21: RoRE (NPV-neutral equity) | I21: TRUE | AP21: ='FinRatios RoRE decomposition'!AP125 -> -6.245004514e-17 | AQ21: ='FinRatios RoRE decomposition'!AQ125 -> 0 | AR21: ='FinRatios RoRE decomposition'!AR125 -> 0 | AS21: ='FinRatios RoRE decomposition'!AS125 -> 0 | AT21: ='FinRatios RoRE decomposition'!AT125 -> 8.326672685e-17 | AU21: ='FinRatios RoRE decomposition'!AU125 -> -1.387778781e-16 | AV21: ='FinRatios RoRE decomposition'!AV125 -> 0 | AW21: ='FinRatios RoRE decomposition'!AW125 -> 0 | AX21: ='FinRatios RoRE decomposition'!AX125 -> 0 | AY21: ='FinRatios RoRE decomposition'!AY125 -> 0
E22: RoRE (closing equity) | I22: TRUE | AP22: ='FinRatios RoRE decomposition'!AP144 -> 0 | AQ22: ='FinRatios RoRE decomposition'!AQ144 -> 0 | AR22: ='FinRatios RoRE decomposition'!AR144 -> 0 | AS22: ='FinRatios RoRE decomposition'!AS144 -> 0 | AT22: ='FinRatios RoRE decomposition'!AT144 -> 6.245004514e-17 | AU22: ='FinRatios RoRE decomposition'!AU144 -> -1.526556659e-16 | AV22: ='FinRatios RoRE decomposition'!AV144 -> 0 | AW22: ='FinRatios RoRE decomposition'!AW144 -> 0 | AX22: ='FinRatios RoRE decomposition'!AX144 -> 0 | AY22: ='FinRatios RoRE decomposition'!AY144 -> 0
E23: PAT | I23: TRUE | AP23: ='FinRatios RoRE decomposition'!AP149 -> -4.97379915e-14 | AQ23: ='FinRatios RoRE decomposition'!AQ149 -> 4.263256415e-14 | AR23: ='FinRatios RoRE decomposition'!AR149 -> 5.151434834e-14 | AS23: ='FinRatios RoRE decomposition'!AS149 -> 0 | AT23: ='FinRatios RoRE decomposition'!AT149 -> 1.421085472e-13 | AU23: ='FinRatios RoRE decomposition'!AU149 -> 0 | AV23: ='FinRatios RoRE decomposition'!AV149 -> -7.815970093e-14 | AW23: ='FinRatios RoRE decomposition'!AW149 -> -8.526512829e-14 | AX23: ='FinRatios RoRE decomposition'!AX149 -> 0 | AY23: ='FinRatios RoRE decomposition'!AY149 -> -7.815970093e-14
E24: PAT / Regulated equity | I24: TRUE | AP24: ='FinRatios RoRE decomposition'!AP166 -> 0 | AQ24: ='FinRatios RoRE decomposition'!AQ166 -> 0 | AR24: ='FinRatios RoRE decomposition'!AR166 -> 0 | AS24: ='FinRatios RoRE decomposition'!AS166 -> 0 | AT24: ='FinRatios RoRE decomposition'!AT166 -> 0 | AU24: ='FinRatios RoRE decomposition'!AU166 -> 0 | AV24: ='FinRatios RoRE decomposition'!AV166 -> 0 | AW24: ='FinRatios RoRE decomposition'!AW166 -> 0 | AX24: ='FinRatios RoRE decomposition'!AX166 -> 0 | AY24: ='FinRatios RoRE decomposition'!AY166 -> 0
B26: FinInput
E28: BPDT gearing target import in base case | I28: =ABS(SUM(AP28:AY28) - 0) < 0.05 ->  | AP28: =FinInput!AP98 -> 0 | AQ28: =FinInput!AQ98 -> 0 | AR28: =FinInput!AR98 ->  | AS28: =FinInput!AS98 ->  | AT28: =FinInput!AT98 ->  | AU28: =FinInput!AU98 ->  | AV28: =FinInput!AV98 ->  | AW28: =FinInput!AW98 ->  | AX28: =FinInput!AX98 ->  | AY28: =FinInput!AY98 -> 
B30: Totex and TIM
E32: Actual totex | I32: =ABS(SUM(AP32:AY32) - 0) < 0.00000001 -> TRUE | AP32: =(Totex!AP82 - SUM(MainInputs!AP250,MainInputs!AP258))*Totex!AP53 -> 0 | AQ32: =(Totex!AQ82 - SUM(MainInputs!AQ250,MainInputs!AQ258))*Totex!AQ53 -> 0 | AR32: =(Totex!AR82 - SUM(MainInputs!AR250,MainInputs!AR258))*Totex!AR53 -> -5.684341886e-14 | AS32: =(Totex!AS82 - SUM(MainInputs!AS250,MainInputs!AS258))*Totex!AS53 -> 0 | AT32: =(Totex!AT82 - SUM(MainInputs!AT250,MainInputs!AT258))*Totex!AT53 -> 0 | AU32: =(Totex!AU82 - SUM(MainInputs!AU250,MainInputs!AU258))*Totex!AU53 -> 0 | AV32: =(Totex!AV82 - SUM(MainInputs!AV250,MainInputs!AV258))*Totex!AV53 -> 0 | AW32: =(Totex!AW82 - SUM(MainInputs!AW250,MainInputs!AW258))*Totex!AW53 -> 0 | AX32: =(Totex!AX82 - SUM(MainInputs!AX250,MainInputs!AX258))*Totex!AX53 -> 0 | AY32: =(Totex!AY82 - SUM(MainInputs!AY250,MainInputs!AY258))*Totex!AY53 -> 0
E33: Actual totex (from totex summary) | I33: TRUE | AP33: =TIM!AP135 -> 0 | AQ33: =TIM!AQ135 -> 0 | AR33: =TIM!AR135 -> 0 | AS33: =TIM!AS135 -> 0 | AT33: =TIM!AT135 -> 0 | AU33: =TIM!AU135 -> 0 | AV33: =TIM!AV135 -> 0 | AW33: =TIM!AW135 -> 0 | AX33: =TIM!AX135 -> 0 | AY33: =TIM!AY135 -> 0
E34: Allowed totex | I34: TRUE | AP34: =Totex!AP46 - SUM(MainInputs!AP45, MainInputs!AP496) -> 0 | AQ34: =Totex!AQ46 - SUM(MainInputs!AQ45, MainInputs!AQ496) -> 0 | AR34: =Totex!AR46 - SUM(MainInputs!AR45, MainInputs!AR496) -> 0 | AS34: =Totex!AS46 - SUM(MainInputs!AS45, MainInputs!AS496) -> 0 | AT34: =Totex!AT46 - SUM(MainInputs!AT45, MainInputs!AT496) -> 0 | AU34: =Totex!AU46 - SUM(MainInputs!AU45, MainInputs!AU496) -> 0 | AV34: =Totex!AV46 - SUM(MainInputs!AV45, MainInputs!AV496) -> 0 | AW34: =Totex!AW46 - SUM(MainInputs!AW45, MainInputs!AW496) -> 0 | AX34: =Totex!AX46 - SUM(MainInputs!AX45, MainInputs!AX496) -> 0 | AY34: =Totex!AY46 - SUM(MainInputs!AY45, MainInputs!AY496) -> 0
E35: Actual totex (from capitalisation buckets) | I35: TRUE | AP35: =SUM(TIM!AP28, TIM!AP38, TIM!AP48) - Totex!AP82 -> 0 | AQ35: =SUM(TIM!AQ28, TIM!AQ38, TIM!AQ48) - Totex!AQ82 -> 0 | AR35: =SUM(TIM!AR28, TIM!AR38, TIM!AR48) - Totex!AR82 -> 0 | AS35: =SUM(TIM!AS28, TIM!AS38, TIM!AS48) - Totex!AS82 -> 0 | AT35: =SUM(TIM!AT28, TIM!AT38, TIM!AT48) - Totex!AT82 -> 0 | AU35: =SUM(TIM!AU28, TIM!AU38, TIM!AU48) - Totex!AU82 -> 0 | AV35: =SUM(TIM!AV28, TIM!AV38, TIM!AV48) - Totex!AV82 -> 0 | AW35: =SUM(TIM!AW28, TIM!AW38, TIM!AW48) - Totex!AW82 -> 0 | AX35: =SUM(TIM!AX28, TIM!AX38, TIM!AX48) - Totex!AX82 -> 0 | AY35: =SUM(TIM!AY28, TIM!AY38, TIM!AY48) - Totex!AY82 -> 0
E36: Allowed totex (from capitalisation buckets) | I36: TRUE | AP36: =SUM(TIM!AP29, TIM!AP39, TIM!AP49) + SUM(MainInputs!AP45, MainInputs!AP496) -> 0 | AQ36: =SUM(TIM!AQ29, TIM!AQ39, TIM!AQ49) + SUM(MainInputs!AQ45, MainInputs!AQ496) -> 0 | AR36: =SUM(TIM!AR29, TIM!AR39, TIM!AR49) + SUM(MainInputs!AR45, MainInputs!AR496) -> 0 | AS36: =SUM(TIM!AS29, TIM!AS39, TIM!AS49) + SUM(MainInputs!AS45, MainInputs!AS496) -> 0 | AT36: =SUM(TIM!AT29, TIM!AT39, TIM!AT49) + SUM(MainInputs!AT45, MainInputs!AT496) -> 0 | AU36: =SUM(TIM!AU29, TIM!AU39, TIM!AU49) + SUM(MainInputs!AU45, MainInputs!AU496) -> 0 | AV36: =SUM(TIM!AV29, TIM!AV39, TIM!AV49) + SUM(MainInputs!AV45, MainInputs!AV496) -> 0 | AW36: =SUM(TIM!AW29, TIM!AW39, TIM!AW49) + SUM(MainInputs!AW45, MainInputs!AW496) -> 0 | AX36: =SUM(TIM!AX29, TIM!AX39, TIM!AX49) + SUM(MainInputs!AX45, MainInputs!AX496) -> 0 | AY36: =SUM(TIM!AY29, TIM!AY39, TIM!AY49) + SUM(MainInputs!AY45, MainInputs!AY496) -> 0
B38: Return & RAV
E40: Inflation options' calculation of real WACC equal to MainInputs | I40: =ABS(SUM(AP40:AY40) - 0) < 0.00000001 -> TRUE | AP40: ='Return&RAV'!AP43 -> 0 | AQ40: ='Return&RAV'!AQ43 -> 0 | AR40: ='Return&RAV'!AR43 -> 0 | AS40: ='Return&RAV'!AS43 -> 0 | AT40: ='Return&RAV'!AT43 -> 0 | AU40: ='Return&RAV'!AU43 -> 0 | AV40: ='Return&RAV'!AV43 -> 0 | AW40: ='Return&RAV'!AW43 -> 0 | AX40: ='Return&RAV'!AX43 -> 0 | AY40: ='Return&RAV'!AY43 -> 0
B42: Depreciation
E44: Post-vesting assets fully depreciated | I44: =Depn!J492 -> TRUE
B46: Input
E48: Variant allowed totex | I48: =ABS(SUM(AP48:AY48) - 0) < 0.00000001 -> TRUE | AP48: =MainInputs!AP497 -> 0 | AQ48: =MainInputs!AQ497 -> 0 | AR48: =MainInputs!AR497 -> 0 | AS48: =MainInputs!AS497 -> 0 | AT48: =MainInputs!AT497 -> 0 | AU48: =MainInputs!AU497 -> 0 | AV48: =MainInputs!AV497 -> 0 | AW48: =MainInputs!AW497 -> 0 | AX48: =MainInputs!AX497 -> 0 | AY48: =MainInputs!AY497 -> 0
E49: Variant allowed totex subcategory allocations | I49: =ABS(SUM(AP49:AY49) - 0) < 0.00000001 -> TRUE | AP49: =MainInputs!AP498 -> 0 | AQ49: =MainInputs!AQ498 -> 0 | AR49: =MainInputs!AR498 -> 0 | AS49: =MainInputs!AS498 -> 0 | AT49: =MainInputs!AT498 -> 0 | AU49: =MainInputs!AU498 -> 0 | AV49: =MainInputs!AV498 -> 0 | AW49: =MainInputs!AW498 -> 0 | AX49: =MainInputs!AX498 -> 0 | AY49: =MainInputs!AY498 -> 0
E50: RPE non-variant allowances
E51: RPE PCDs
E52: RPE UMs
B54: Company tabs
E56: Totex allocations to tax pools | G56: East | I56: =IFERROR(SUMPRODUCT((AP56:AY56 = 1) * 1) = 10,FALSE) -> FALSE | AP56: =ROUND(INDIRECT("'"&$G56&"'!"&ADDRESS($BA56, $BC56 + YEAR(AP$4) - YEAR($AP$4))) + INDIRECT("'"&$G56&"'!"&ADDRESS($BB56, $BC56 + YEAR(AP$4) - YEAR($AP$4))),5) -> 1 | AQ56: =ROUND(INDIRECT("'"&$G56&"'!"&ADDRESS($BA56, $BC56 + YEAR(AQ$4) - YEAR($AP$4))) + INDIRECT("'"&$G56&"'!"&ADDRESS($BB56, $BC56 + YEAR(AQ$4) - YEAR($AP$4))),5) -> 1 | AR56: =ROUND(INDIRECT("'"&$G56&"'!"&ADDRESS($BA56, $BC56 + YEAR(AR$4) - YEAR($AP$4))) + INDIRECT("'"&$G56&"'!"&ADDRESS($BB56, $BC56 + YEAR(AR$4) - YEAR($AP$4))),5) -> 1 | AS56: =ROUND(INDIRECT("'"&$G56&"'!"&ADDRESS($BA56, $BC56 + YEAR(AS$4) - YEAR($AP$4))) + INDIRECT("'"&$G56&"'!"&ADDRESS($BB56, $BC56 + YEAR(AS$4) - YEAR($AP$4))),5) -> 1 | AT56: =ROUND(INDIRECT("'"&$G56&"'!"&ADDRESS($BA56, $BC56 + YEAR(AT$4) - YEAR($AP$4))) + INDIRECT("'"&$G56&"'!"&ADDRESS($BB56, $BC56 + YEAR(AT$4) - YEAR($AP$4))),5) -> 1 | AU56: =ROUND(INDIRECT("'"&$G56&"'!"&ADDRESS($BA56, $BC56 + YEAR(AU$4) - YEAR($AP$4))) + INDIRECT("'"&$G56&"'!"&ADDRESS($BB56, $BC56 + YEAR(AU$4) - YEAR($AP$4))),5) -> 0 | AV56: =ROUND(INDIRECT("'"&$G56&"'!"&ADDRESS($BA56, $BC56 + YEAR(AV$4) - YEAR($AP$4))) + INDIRECT("'"&$G56&"'!"&ADDRESS($BB56, $BC56 + YEAR(AV$4) - YEAR($AP$4))),5) -> 0 | AW56: =ROUND(INDIRECT("'"&$G56&"'!"&ADDRESS($BA56, $BC56 + YEAR(AW$4) - YEAR($AP$4))) + INDIRECT("'"&$G56&"'!"&ADDRESS($BB56, $BC56 + YEAR(AW$4) - YEAR($AP$4))),5) -> 0 | AX56: =ROUND(INDIRECT("'"&$G56&"'!"&ADDRESS($BA56, $BC56 + YEAR(AX$4) - YEAR($AP$4))) + INDIRECT("'"&$G56&"'!"&ADDRESS($BB56, $BC56 + YEAR(AX$4) - YEAR($AP$4))),5) -> 0 | AY56: =ROUND(INDIRECT("'"&$G56&"'!"&ADDRESS($BA56, $BC56 + YEAR(AY$4) - YEAR($AP$4))) + INDIRECT("'"&$G56&"'!"&ADDRESS($BB56, $BC56 + YEAR(AY$4) - YEAR($AP$4))),5) -> 0 | BA56: =ROW(East!$AP$1145) -> 1145 | BB56: =ROW(East!$AP$705) -> 705 | BC56: =COLUMN(East!$AP$1145) -> 42
E57: Totex allocations to tax pools | G57: London | I57: =IFERROR(SUMPRODUCT((AP57:AY57 = 1) * 1) = 10,FALSE) -> FALSE | AP57: =ROUND(INDIRECT("'"&$G57&"'!"&ADDRESS($BA57, $BC57 + YEAR(AP$4) - YEAR($AP$4))) + INDIRECT("'"&$G57&"'!"&ADDRESS($BB57, $BC57 + YEAR(AP$4) - YEAR($AP$4))),5) -> 1 | AQ57: =ROUND(INDIRECT("'"&$G57&"'!"&ADDRESS($BA57, $BC57 + YEAR(AQ$4) - YEAR($AP$4))) + INDIRECT("'"&$G57&"'!"&ADDRESS($BB57, $BC57 + YEAR(AQ$4) - YEAR($AP$4))),5) -> 1 | AR57: =ROUND(INDIRECT("'"&$G57&"'!"&ADDRESS($BA57, $BC57 + YEAR(AR$4) - YEAR($AP$4))) + INDIRECT("'"&$G57&"'!"&ADDRESS($BB57, $BC57 + YEAR(AR$4) - YEAR($AP$4))),5) -> 1 | AS57: =ROUND(INDIRECT("'"&$G57&"'!"&ADDRESS($BA57, $BC57 + YEAR(AS$4) - YEAR($AP$4))) + INDIRECT("'"&$G57&"'!"&ADDRESS($BB57, $BC57 + YEAR(AS$4) - YEAR($AP$4))),5) -> 1 | AT57: =ROUND(INDIRECT("'"&$G57&"'!"&ADDRESS($BA57, $BC57 + YEAR(AT$4) - YEAR($AP$4))) + INDIRECT("'"&$G57&"'!"&ADDRESS($BB57, $BC57 + YEAR(AT$4) - YEAR($AP$4))),5) -> 1 | AU57: =ROUND(INDIRECT("'"&$G57&"'!"&ADDRESS($BA57, $BC57 + YEAR(AU$4) - YEAR($AP$4))) + INDIRECT("'"&$G57&"'!"&ADDRESS($BB57, $BC57 + YEAR(AU$4) - YEAR($AP$4))),5) -> 0 | AV57: =ROUND(INDIRECT("'"&$G57&"'!"&ADDRESS($BA57, $BC57 + YEAR(AV$4) - YEAR($AP$4))) + INDIRECT("'"&$G57&"'!"&ADDRESS($BB57, $BC57 + YEAR(AV$4) - YEAR($AP$4))),5) -> 0 | AW57: =ROUND(INDIRECT("'"&$G57&"'!"&ADDRESS($BA57, $BC57 + YEAR(AW$4) - YEAR($AP$4))) + INDIRECT("'"&$G57&"'!"&ADDRESS($BB57, $BC57 + YEAR(AW$4) - YEAR($AP$4))),5) -> 0 | AX57: =ROUND(INDIRECT("'"&$G57&"'!"&ADDRESS($BA57, $BC57 + YEAR(AX$4) - YEAR($AP$4))) + INDIRECT("'"&$G57&"'!"&ADDRESS($BB57, $BC57 + YEAR(AX$4) - YEAR($AP$4))),5) -> 0 | AY57: =ROUND(INDIRECT("'"&$G57&"'!"&ADDRESS($BA57, $BC57 + YEAR(AY$4) - YEAR($AP$4))) + INDIRECT("'"&$G57&"'!"&ADDRESS($BB57, $BC57 + YEAR(AY$4) - YEAR($AP$4))),5) -> 0 | BA57: =ROW(East!$AP$1145) -> 1145 | BB57: =ROW(East!$AP$705) -> 705 | BC57: =COLUMN(East!$AP$1145) -> 42
E58: Totex allocations to tax pools | G58: North West | I58: =IFERROR(SUMPRODUCT((AP58:AY58 = 1) * 1) = 10,FALSE) -> FALSE | AP58: =ROUND(INDIRECT("'"&$G58&"'!"&ADDRESS($BA58, $BC58 + YEAR(AP$4) - YEAR($AP$4))) + INDIRECT("'"&$G58&"'!"&ADDRESS($BB58, $BC58 + YEAR(AP$4) - YEAR($AP$4))),5) -> 1 | AQ58: =ROUND(INDIRECT("'"&$G58&"'!"&ADDRESS($BA58, $BC58 + YEAR(AQ$4) - YEAR($AP$4))) + INDIRECT("'"&$G58&"'!"&ADDRESS($BB58, $BC58 + YEAR(AQ$4) - YEAR($AP$4))),5) -> 1 | AR58: =ROUND(INDIRECT("'"&$G58&"'!"&ADDRESS($BA58, $BC58 + YEAR(AR$4) - YEAR($AP$4))) + INDIRECT("'"&$G58&"'!"&ADDRESS($BB58, $BC58 + YEAR(AR$4) - YEAR($AP$4))),5) -> 1 | AS58: =ROUND(INDIRECT("'"&$G58&"'!"&ADDRESS($BA58, $BC58 + YEAR(AS$4) - YEAR($AP$4))) + INDIRECT("'"&$G58&"'!"&ADDRESS($BB58, $BC58 + YEAR(AS$4) - YEAR($AP$4))),5) -> 1 | AT58: =ROUND(INDIRECT("'"&$G58&"'!"&ADDRESS($BA58, $BC58 + YEAR(AT$4) - YEAR($AP$4))) + INDIRECT("'"&$G58&"'!"&ADDRESS($BB58, $BC58 + YEAR(AT$4) - YEAR($AP$4))),5) -> 1 | AU58: =ROUND(INDIRECT("'"&$G58&"'!"&ADDRESS($BA58, $BC58 + YEAR(AU$4) - YEAR($AP$4))) + INDIRECT("'"&$G58&"'!"&ADDRESS($BB58, $BC58 + YEAR(AU$4) - YEAR($AP$4))),5) -> 0 | AV58: =ROUND(INDIRECT("'"&$G58&"'!"&ADDRESS($BA58, $BC58 + YEAR(AV$4) - YEAR($AP$4))) + INDIRECT("'"&$G58&"'!"&ADDRESS($BB58, $BC58 + YEAR(AV$4) - YEAR($AP$4))),5) -> 0 | AW58: =ROUND(INDIRECT("'"&$G58&"'!"&ADDRESS($BA58, $BC58 + YEAR(AW$4) - YEAR($AP$4))) + INDIRECT("'"&$G58&"'!"&ADDRESS($BB58, $BC58 + YEAR(AW$4) - YEAR($AP$4))),5) -> 0 | AX58: =ROUND(INDIRECT("'"&$G58&"'!"&ADDRESS($BA58, $BC58 + YEAR(AX$4) - YEAR($AP$4))) + INDIRECT("'"&$G58&"'!"&ADDRESS($BB58, $BC58 + YEAR(AX$4) - YEAR($AP$4))),5) -> 0 | AY58: =ROUND(INDIRECT("'"&$G58&"'!"&ADDRESS($BA58, $BC58 + YEAR(AY$4) - YEAR($AP$4))) + INDIRECT("'"&$G58&"'!"&ADDRESS($BB58, $BC58 + YEAR(AY$4) - YEAR($AP$4))),5) -> 0 | BA58: =ROW(East!$AP$1145) -> 1145 | BB58: =ROW(East!$AP$705) -> 705 | BC58: =COLUMN(East!$AP$1145) -> 42
E59: Totex allocations to tax pools | G59: West Midlands | I59: =IFERROR(SUMPRODUCT((AP59:AY59 = 1) * 1) = 10,FALSE) -> FALSE | AP59: =ROUND(INDIRECT("'"&$G59&"'!"&ADDRESS($BA59, $BC59 + YEAR(AP$4) - YEAR($AP$4))) + INDIRECT("'"&$G59&"'!"&ADDRESS($BB59, $BC59 + YEAR(AP$4) - YEAR($AP$4))),5) -> 1 | AQ59: =ROUND(INDIRECT("'"&$G59&"'!"&ADDRESS($BA59, $BC59 + YEAR(AQ$4) - YEAR($AP$4))) + INDIRECT("'"&$G59&"'!"&ADDRESS($BB59, $BC59 + YEAR(AQ$4) - YEAR($AP$4))),5) -> 1 | AR59: =ROUND(INDIRECT("'"&$G59&"'!"&ADDRESS($BA59, $BC59 + YEAR(AR$4) - YEAR($AP$4))) + INDIRECT("'"&$G59&"'!"&ADDRESS($BB59, $BC59 + YEAR(AR$4) - YEAR($AP$4))),5) -> 1 | AS59: =ROUND(INDIRECT("'"&$G59&"'!"&ADDRESS($BA59, $BC59 + YEAR(AS$4) - YEAR($AP$4))) + INDIRECT("'"&$G59&"'!"&ADDRESS($BB59, $BC59 + YEAR(AS$4) - YEAR($AP$4))),5) -> 1 | AT59: =ROUND(INDIRECT("'"&$G59&"'!"&ADDRESS($BA59, $BC59 + YEAR(AT$4) - YEAR($AP$4))) + INDIRECT("'"&$G59&"'!"&ADDRESS($BB59, $BC59 + YEAR(AT$4) - YEAR($AP$4))),5) -> 1 | AU59: =ROUND(INDIRECT("'"&$G59&"'!"&ADDRESS($BA59, $BC59 + YEAR(AU$4) - YEAR($AP$4))) + INDIRECT("'"&$G59&"'!"&ADDRESS($BB59, $BC59 + YEAR(AU$4) - YEAR($AP$4))),5) -> 0 | AV59: =ROUND(INDIRECT("'"&$G59&"'!"&ADDRESS($BA59, $BC59 + YEAR(AV$4) - YEAR($AP$4))) + INDIRECT("'"&$G59&"'!"&ADDRESS($BB59, $BC59 + YEAR(AV$4) - YEAR($AP$4))),5) -> 0 | AW59: =ROUND(INDIRECT("'"&$G59&"'!"&ADDRESS($BA59, $BC59 + YEAR(AW$4) - YEAR($AP$4))) + INDIRECT("'"&$G59&"'!"&ADDRESS($BB59, $BC59 + YEAR(AW$4) - YEAR($AP$4))),5) -> 0 | AX59: =ROUND(INDIRECT("'"&$G59&"'!"&ADDRESS($BA59, $BC59 + YEAR(AX$4) - YEAR($AP$4))) + INDIRECT("'"&$G59&"'!"&ADDRESS($BB59, $BC59 + YEAR(AX$4) - YEAR($AP$4))),5) -> 0 | AY59: =ROUND(INDIRECT("'"&$G59&"'!"&ADDRESS($BA59, $BC59 + YEAR(AY$4) - YEAR($AP$4))) + INDIRECT("'"&$G59&"'!"&ADDRESS($BB59, $BC59 + YEAR(AY$4) - YEAR($AP$4))),5) -> 0 | BA59: =ROW(East!$AP$1145) -> 1145 | BB59: =ROW(East!$AP$705) -> 705 | BC59: =COLUMN(East!$AP$1145) -> 42
E60: Totex allocations to tax pools | G60: Northern | I60: =IFERROR(SUMPRODUCT((AP60:AY60 = 1) * 1) = 10,FALSE) -> FALSE | AP60: =ROUND(INDIRECT("'"&$G60&"'!"&ADDRESS($BA60, $BC60 + YEAR(AP$4) - YEAR($AP$4))) + INDIRECT("'"&$G60&"'!"&ADDRESS($BB60, $BC60 + YEAR(AP$4) - YEAR($AP$4))),5) -> 1 | AQ60: =ROUND(INDIRECT("'"&$G60&"'!"&ADDRESS($BA60, $BC60 + YEAR(AQ$4) - YEAR($AP$4))) + INDIRECT("'"&$G60&"'!"&ADDRESS($BB60, $BC60 + YEAR(AQ$4) - YEAR($AP$4))),5) -> 1.00001 | AR60: =ROUND(INDIRECT("'"&$G60&"'!"&ADDRESS($BA60, $BC60 + YEAR(AR$4) - YEAR($AP$4))) + INDIRECT("'"&$G60&"'!"&ADDRESS($BB60, $BC60 + YEAR(AR$4) - YEAR($AP$4))),5) -> 1 | AS60: =ROUND(INDIRECT("'"&$G60&"'!"&ADDRESS($BA60, $BC60 + YEAR(AS$4) - YEAR($AP$4))) + INDIRECT("'"&$G60&"'!"&ADDRESS($BB60, $BC60 + YEAR(AS$4) - YEAR($AP$4))),5) -> 0.99998 | AT60: =ROUND(INDIRECT("'"&$G60&"'!"&ADDRESS($BA60, $BC60 + YEAR(AT$4) - YEAR($AP$4))) + INDIRECT("'"&$G60&"'!"&ADDRESS($BB60, $BC60 + YEAR(AT$4) - YEAR($AP$4))),5) -> 0.99998 | AU60: =ROUND(INDIRECT("'"&$G60&"'!"&ADDRESS($BA60, $BC60 + YEAR(AU$4) - YEAR($AP$4))) + INDIRECT("'"&$G60&"'!"&ADDRESS($BB60, $BC60 + YEAR(AU$4) - YEAR($AP$4))),5) ->  | AV60: =ROUND(INDIRECT("'"&$G60&"'!"&ADDRESS($BA60, $BC60 + YEAR(AV$4) - YEAR($AP$4))) + INDIRECT("'"&$G60&"'!"&ADDRESS($BB60, $BC60 + YEAR(AV$4) - YEAR($AP$4))),5) -> 0 | AW60: =ROUND(INDIRECT("'"&$G60&"'!"&ADDRESS($BA60, $BC60 + YEAR(AW$4) - YEAR($AP$4))) + INDIRECT("'"&$G60&"'!"&ADDRESS($BB60, $BC60 + YEAR(AW$4) - YEAR($AP$4))),5) -> 0 | AX60: =ROUND(INDIRECT("'"&$G60&"'!"&ADDRESS($BA60, $BC60 + YEAR(AX$4) - YEAR($AP$4))) + INDIRECT("'"&$G60&"'!"&ADDRESS($BB60, $BC60 + YEAR(AX$4) - YEAR($AP$4))),5) -> 0 | AY60: =ROUND(INDIRECT("'"&$G60&"'!"&ADDRESS($BA60, $BC60 + YEAR(AY$4) - YEAR($AP$4))) + INDIRECT("'"&$G60&"'!"&ADDRESS($BB60, $BC60 + YEAR(AY$4) - YEAR($AP$4))),5) -> 0 | BA60: =ROW(East!$AP$1145) -> 1145 | BB60: =ROW(East!$AP$705) -> 705 | BC60: =COLUMN(East!$AP$1145) -> 42
E61: Totex allocations to tax pools | G61: Scotland | I61: =IFERROR(SUMPRODUCT((AP61:AY61 = 1) * 1) = 10,FALSE) -> FALSE | AP61: =ROUND(INDIRECT("'"&$G61&"'!"&ADDRESS($BA61, $BC61 + YEAR(AP$4) - YEAR($AP$4))) + INDIRECT("'"&$G61&"'!"&ADDRESS($BB61, $BC61 + YEAR(AP$4) - YEAR($AP$4))),5) -> 1 | AQ61: =ROUND(INDIRECT("'"&$G61&"'!"&ADDRESS($BA61, $BC61 + YEAR(AQ$4) - YEAR($AP$4))) + INDIRECT("'"&$G61&"'!"&ADDRESS($BB61, $BC61 + YEAR(AQ$4) - YEAR($AP$4))),5) -> 1 | AR61: =ROUND(INDIRECT("'"&$G61&"'!"&ADDRESS($BA61, $BC61 + YEAR(AR$4) - YEAR($AP$4))) + INDIRECT("'"&$G61&"'!"&ADDRESS($BB61, $BC61 + YEAR(AR$4) - YEAR($AP$4))),5) -> 1 | AS61: =ROUND(INDIRECT("'"&$G61&"'!"&ADDRESS($BA61, $BC61 + YEAR(AS$4) - YEAR($AP$4))) + INDIRECT("'"&$G61&"'!"&ADDRESS($BB61, $BC61 + YEAR(AS$4) - YEAR($AP$4))),5) -> 1 | AT61: =ROUND(INDIRECT("'"&$G61&"'!"&ADDRESS($BA61, $BC61 + YEAR(AT$4) - YEAR($AP$4))) + INDIRECT("'"&$G61&"'!"&ADDRESS($BB61, $BC61 + YEAR(AT$4) - YEAR($AP$4))),5) -> 1 | AU61: =ROUND(INDIRECT("'"&$G61&"'!"&ADDRESS($BA61, $BC61 + YEAR(AU$4) - YEAR($AP$4))) + INDIRECT("'"&$G61&"'!"&ADDRESS($BB61, $BC61 + YEAR(AU$4) - YEAR($AP$4))),5) -> 0 | AV61: =ROUND(INDIRECT("'"&$G61&"'!"&ADDRESS($BA61, $BC61 + YEAR(AV$4) - YEAR($AP$4))) + INDIRECT("'"&$G61&"'!"&ADDRESS($BB61, $BC61 + YEAR(AV$4) - YEAR($AP$4))),5) -> 0 | AW61: =ROUND(INDIRECT("'"&$G61&"'!"&ADDRESS($BA61, $BC61 + YEAR(AW$4) - YEAR($AP$4))) + INDIRECT("'"&$G61&"'!"&ADDRESS($BB61, $BC61 + YEAR(AW$4) - YEAR($AP$4))),5) -> 0 | AX61: =ROUND(INDIRECT("'"&$G61&"'!"&ADDRESS($BA61, $BC61 + YEAR(AX$4) - YEAR($AP$4))) + INDIRECT("'"&$G61&"'!"&ADDRESS($BB61, $BC61 + YEAR(AX$4) - YEAR($AP$4))),5) -> 0 | AY61: =ROUND(INDIRECT("'"&$G61&"'!"&ADDRESS($BA61, $BC61 + YEAR(AY$4) - YEAR($AP$4))) + INDIRECT("'"&$G61&"'!"&ADDRESS($BB61, $BC61 + YEAR(AY$4) - YEAR($AP$4))),5) -> 0 | BA61: =ROW(East!$AP$1145) -> 1145 | BB61: =ROW(East!$AP$705) -> 705 | BC61: =COLUMN(East!$AP$1145) -> 42
E62: Totex allocations to tax pools | G62: Southern | I62: =IFERROR(SUMPRODUCT((AP62:AY62 = 1) * 1) = 10,FALSE) -> FALSE | AP62: =ROUND(INDIRECT("'"&$G62&"'!"&ADDRESS($BA62, $BC62 + YEAR(AP$4) - YEAR($AP$4))) + INDIRECT("'"&$G62&"'!"&ADDRESS($BB62, $BC62 + YEAR(AP$4) - YEAR($AP$4))),5) -> 1 | AQ62: =ROUND(INDIRECT("'"&$G62&"'!"&ADDRESS($BA62, $BC62 + YEAR(AQ$4) - YEAR($AP$4))) + INDIRECT("'"&$G62&"'!"&ADDRESS($BB62, $BC62 + YEAR(AQ$4) - YEAR($AP$4))),5) -> 1 | AR62: =ROUND(INDIRECT("'"&$G62&"'!"&ADDRESS($BA62, $BC62 + YEAR(AR$4) - YEAR($AP$4))) + INDIRECT("'"&$G62&"'!"&ADDRESS($BB62, $BC62 + YEAR(AR$4) - YEAR($AP$4))),5) -> 1 | AS62: =ROUND(INDIRECT("'"&$G62&"'!"&ADDRESS($BA62, $BC62 + YEAR(AS$4) - YEAR($AP$4))) + INDIRECT("'"&$G62&"'!"&ADDRESS($BB62, $BC62 + YEAR(AS$4) - YEAR($AP$4))),5) -> 1 | AT62: =ROUND(INDIRECT("'"&$G62&"'!"&ADDRESS($BA62, $BC62 + YEAR(AT$4) - YEAR($AP$4))) + INDIRECT("'"&$G62&"'!"&ADDRESS($BB62, $BC62 + YEAR(AT$4) - YEAR($AP$4))),5) -> 1 | AU62: =ROUND(INDIRECT("'"&$G62&"'!"&ADDRESS($BA62, $BC62 + YEAR(AU$4) - YEAR($AP$4))) + INDIRECT("'"&$G62&"'!"&ADDRESS($BB62, $BC62 + YEAR(AU$4) - YEAR($AP$4))),5) -> 0 | AV62: =ROUND(INDIRECT("'"&$G62&"'!"&ADDRESS($BA62, $BC62 + YEAR(AV$4) - YEAR($AP$4))) + INDIRECT("'"&$G62&"'!"&ADDRESS($BB62, $BC62 + YEAR(AV$4) - YEAR($AP$4))),5) -> 0 | AW62: =ROUND(INDIRECT("'"&$G62&"'!"&ADDRESS($BA62, $BC62 + YEAR(AW$4) - YEAR($AP$4))) + INDIRECT("'"&$G62&"'!"&ADDRESS($BB62, $BC62 + YEAR(AW$4) - YEAR($AP$4))),5) -> 0 | AX62: =ROUND(INDIRECT("'"&$G62&"'!"&ADDRESS($BA62, $BC62 + YEAR(AX$4) - YEAR($AP$4))) + INDIRECT("'"&$G62&"'!"&ADDRESS($BB62, $BC62 + YEAR(AX$4) - YEAR($AP$4))),5) -> 0 | AY62: =ROUND(INDIRECT("'"&$G62&"'!"&ADDRESS($BA62, $BC62 + YEAR(AY$4) - YEAR($AP$4))) + INDIRECT("'"&$G62&"'!"&ADDRESS($BB62, $BC62 + YEAR(AY$4) - YEAR($AP$4))),5) -> 0 | BA62: =ROW(East!$AP$1145) -> 1145 | BB62: =ROW(East!$AP$705) -> 705 | BC62: =COLUMN(East!$AP$1145) -> 42
E63: Totex allocations to tax pools | G63: Wales & West | I63: =IFERROR(SUMPRODUCT((AP63:AY63 = 1) * 1) = 10,FALSE) -> TRUE | AP63: =ROUND(INDIRECT("'"&$G63&"'!"&ADDRESS($BA63, $BC63 + YEAR(AP$4) - YEAR($AP$4))) + INDIRECT("'"&$G63&"'!"&ADDRESS($BB63, $BC63 + YEAR(AP$4) - YEAR($AP$4))),5) -> 1 | AQ63: =ROUND(INDIRECT("'"&$G63&"'!"&ADDRESS($BA63, $BC63 + YEAR(AQ$4) - YEAR($AP$4))) + INDIRECT("'"&$G63&"'!"&ADDRESS($BB63, $BC63 + YEAR(AQ$4) - YEAR($AP$4))),5) -> 1 | AR63: =ROUND(INDIRECT("'"&$G63&"'!"&ADDRESS($BA63, $BC63 + YEAR(AR$4) - YEAR($AP$4))) + INDIRECT("'"&$G63&"'!"&ADDRESS($BB63, $BC63 + YEAR(AR$4) - YEAR($AP$4))),5) -> 1 | AS63: =ROUND(INDIRECT("'"&$G63&"'!"&ADDRESS($BA63, $BC63 + YEAR(AS$4) - YEAR($AP$4))) + INDIRECT("'"&$G63&"'!"&ADDRESS($BB63, $BC63 + YEAR(AS$4) - YEAR($AP$4))),5) -> 1 | AT63: =ROUND(INDIRECT("'"&$G63&"'!"&ADDRESS($BA63, $BC63 + YEAR(AT$4) - YEAR($AP$4))) + INDIRECT("'"&$G63&"'!"&ADDRESS($BB63, $BC63 + YEAR(AT$4) - YEAR($AP$4))),5) -> 1 | AU63: =ROUND(INDIRECT("'"&$G63&"'!"&ADDRESS($BA63, $BC63 + YEAR(AU$4) - YEAR($AP$4))) + INDIRECT("'"&$G63&"'!"&ADDRESS($BB63, $BC63 + YEAR(AU$4) - YEAR($AP$4))),5) -> 1 | AV63: =ROUND(INDIRECT("'"&$G63&"'!"&ADDRESS($BA63, $BC63 + YEAR(AV$4) - YEAR($AP$4))) + INDIRECT("'"&$G63&"'!"&ADDRESS($BB63, $BC63 + YEAR(AV$4) - YEAR($AP$4))),5) -> 1 | AW63: =ROUND(INDIRECT("'"&$G63&"'!"&ADDRESS($BA63, $BC63 + YEAR(AW$4) - YEAR($AP$4))) + INDIRECT("'"&$G63&"'!"&ADDRESS($BB63, $BC63 + YEAR(AW$4) - YEAR($AP$4))),5) -> 1 | AX63: =ROUND(INDIRECT("'"&$G63&"'!"&ADDRESS($BA63, $BC63 + YEAR(AX$4) - YEAR($AP$4))) + INDIRECT("'"&$G63&"'!"&ADDRESS($BB63, $BC63 + YEAR(AX$4) - YEAR($AP$4))),5) -> 1 | AY63: =ROUND(INDIRECT("'"&$G63&"'!"&ADDRESS($BA63, $BC63 + YEAR(AY$4) - YEAR($AP$4))) + INDIRECT("'"&$G63&"'!"&ADDRESS($BB63, $BC63 + YEAR(AY$4) - YEAR($AP$4))),5) -> 1 | BA63: =ROW(East!$AP$1145) -> 1145 | BB63: =ROW(East!$AP$705) -> 705 | BC63: =COLUMN(East!$AP$1145) -> 42
E64: Total non-baseline totex (in "Cost Assessment interface") | G64: East
E65: Total non-baseline totex (in "Cost Assessment interface") | G65: London
E66: Total non-baseline totex (in "Cost Assessment interface") | G66: North West
E67: Total non-baseline totex (in "Cost Assessment interface") | G67: West Midlands
E68: Total non-baseline totex (in "Cost Assessment interface") | G68: Northern
E69: Total non-baseline totex (in "Cost Assessment interface") | G69: Scotland
E70: Total non-baseline totex (in "Cost Assessment interface") | G70: Southern
E71: Total non-baseline totex (in "Cost Assessment interface") | G71: Wales & West
B73: Tax trigger deadbands
E75: Final proposals base revenue - live operator
E76: Impact of corporation tax rate change - live operator
E77: Tax trigger deadbands in operator tabs | G77: East | I77: =ABS(SUM(AP77:AT77) - 0) < 0.00000001 ->  | AP77: ='TaxTrigger Deadbands'!AP68 ->  | AQ77: ='TaxTrigger Deadbands'!AQ68 ->  | AR77: ='TaxTrigger Deadbands'!AR68 ->  | AS77: ='TaxTrigger Deadbands'!AS68 ->  | AT77: ='TaxTrigger Deadbands'!AT68 -> 
E78: Tax trigger deadbands in operator tabs | G78: London | AP78: ='TaxTrigger Deadbands'!AP69 ->  | AQ78: ='TaxTrigger Deadbands'!AQ69 ->  | AR78: ='TaxTrigger Deadbands'!AR69 ->  | AS78: ='TaxTrigger Deadbands'!AS69 ->  | AT78: ='TaxTrigger Deadbands'!AT69 -> 
E79: Tax trigger deadbands in operator tabs | G79: North West | AP79: ='TaxTrigger Deadbands'!AP70 ->  | AQ79: ='TaxTrigger Deadbands'!AQ70 ->  | AR79: ='TaxTrigger Deadbands'!AR70 ->  | AS79: ='TaxTrigger Deadbands'!AS70 ->  | AT79: ='TaxTrigger Deadbands'!AT70 -> 
E80: Tax trigger deadbands in operator tabs | G80: West Midlands | AP80: ='TaxTrigger Deadbands'!AP71 ->  | AQ80: ='TaxTrigger Deadbands'!AQ71 ->  | AR80: ='TaxTrigger Deadbands'!AR71 ->  | AS80: ='TaxTrigger Deadbands'!AS71 ->  | AT80: ='TaxTrigger Deadbands'!AT71 -> 
E81: Tax trigger deadbands in operator tabs | G81: Northern | AP81: ='TaxTrigger Deadbands'!AP72 ->  | AQ81: ='TaxTrigger Deadbands'!AQ72 ->  | AR81: ='TaxTrigger Deadbands'!AR72 ->  | AS81: ='TaxTrigger Deadbands'!AS72 ->  | AT81: ='TaxTrigger Deadbands'!AT72 -> 
E82: Tax trigger deadbands in operator tabs | G82: Scotland | AP82: ='TaxTrigger Deadbands'!AP73 ->  | AQ82: ='TaxTrigger Deadbands'!AQ73 ->  | AR82: ='TaxTrigger Deadbands'!AR73 ->  | AS82: ='TaxTrigger Deadbands'!AS73 ->  | AT82: ='TaxTrigger Deadbands'!AT73 -> 
E83: Tax trigger deadbands in operator tabs | G83: Southern | AP83: ='TaxTrigger Deadbands'!AP74 ->  | AQ83: ='TaxTrigger Deadbands'!AQ74 ->  | AR83: ='TaxTrigger Deadbands'!AR74 ->  | AS83: ='TaxTrigger Deadbands'!AS74 ->  | AT83: ='TaxTrigger Deadbands'!AT74 -> 
E84: Tax trigger deadbands in operator tabs | G84: Wales & West | AP84: ='TaxTrigger Deadbands'!AP75 ->  | AQ84: ='TaxTrigger Deadbands'!AQ75 ->  | AR84: ='TaxTrigger Deadbands'!AR75 ->  | AS84: ='TaxTrigger Deadbands'!AS75 ->  | AT84: ='TaxTrigger Deadbands'!AT75 -> 
B86: RIIO-1 revenue and charges
E88: Consumers by network | I88: ='RIIO-1'!$H$453 -> TRUE
E89: Consumers by company | I89: ='RIIO-1'!$H$459 -> TRUE
B91: End of sheet

Sheet Extension
A1: Extension Dashboard
B2: Disclaimer: The calculations for RIIO4 and beyond are intended solely for analytical purposes. Ofgem provides no assurance of the extended model outputs.
B3: Extension
C5: End Period
C6: End Year | D6: =INDEX(RIIO_End_Period,MATCH(UserInterface!$G$24,RIIO,0)) -> 2056-03-31
B9: Totex Declining Factor
C11: Scenario Model | E11: RIIO3
C13: Totex Profile | E13: Base
C15: Increase/Decrease value | E15: -0.05
C16: End Year for steady decline | E16: 2028
B22: RAV Chart
B47: Source for drop-down lists
C49: Source for "Extension Year" drop-down list | H49: Source for "Scenario RIIO Selection" drop-down list
D51: 2036-03-31 | E51: RIIO4 | I51: ScenarioModel | J51: =INDEX(J52:J53,MATCH(E11,ModelRIIO,0)) -> 3
D52: 2041-03-31 | E52: RIIO5 | I52: RIIO3 | J52: 3
D53: 2046-03-31 | E53: RIIO6 | I53: RIIO4 | J53: 4
D54: 2051-03-31 | E54: RIIO7
D55: 2056-03-31 | E55: RIIO8
D56: 2061-03-31 | E56: RIIO9
D57: 2066-03-31 | E57: RIIO10
D58: 2071-03-31 | E58: RIIO11
D59: 2076-03-31 | E59: RIIO12
D60: 2081-03-31 | E60: RIIO13 | H60: Source for "Totex Profile" drop-down list
I61: Totex Profile | K61: =INDEX(K62:K64,MATCH(E13,I62:I64,0)) -> 1
I62: Base | K62: 1
C63: Year Calculation | I63: Increase/Decrease | K63: 2
D64: No. of Years | F64: =YEAR(D6)-2031 -> 25 | I64: Steady Decline | K64: 3

Sheet Scenarios
A1: Scenarios
B2: =UserInterface!G17 -> Wales & West | AP2: =AP10 -> Base case | AQ2: =AQ10 -> High interest rate | AR2: Low interest rate | AS2: High inflation | AT2: Low inflation | AU2: High CPIH inflation divergence | AV2: Low CPIH inflation divergence | AW2: High RPI inflation divergence | AX2: Low RPI inflation divergence | AY2: Totex outperformance | AZ2: Totex underperformance | BA2: High RoRE | BB2: Low RoRE | BC2: High index-linked debt | BD2: Low index-linked debt | BE2: Financeability example: BPDT | BF2: Financeability example: % dividend | BG2: Financeability example: cash flow dividend | BH2: Financeability example: User defined | BI2: Scenario 20 | BJ2: =BJ10 -> Scenario 21 | BK2: Scenario 22 | BL2: Scenario 23 | BM2: Scenario 24 | BN2: Scenario 25 | BO2: Scenario 26 | BP2: Scenario 27 | BQ2: Scenario 28 | BR2: Scenario 29 | BS2: Scenario 30
E3: Parameter | F3: Licence condition | G3: Units | H3: Term | I3: Constant | AP3: Annual values
E4: PCFM year ending | F4: =Cover!C4 -> Model Version | I4: =UserInterface!$G$10 -> 2026-03-31 | K4: 1991-03-31 | L4: 1992-03-31 | M4: 1993-03-31 | N4: 1994-03-31 | O4: 1995-03-31 | P4: 1996-03-31 | Q4: 1997-03-31 | R4: 1998-03-31 | S4: 1999-03-31 | T4: 2000-03-31 | U4: 2001-03-31 | V4: 2002-03-31 | W4: 2003-03-31 | X4: 2004-03-31 | Y4: 2005-03-31 | Z4: 2006-03-31 | AA4: 2007-03-31 | AB4: 2008-03-31 | AC4: 2009-03-31 | AD4: 2010-03-31 | AE4: 2011-03-31 | AF4: 2012-03-31 | AG4: 2013-03-31 | AH4: 2014-03-31 | AI4: 2015-03-31 | AJ4: 2016-03-31 | AK4: 2017-03-31 | AL4: 2018-03-31 | AM4: 2019-03-31 | AN4: 2020-03-31 | AO4: 2021-03-31 | AP4: 2022-03-31 | AQ4: 2023-03-31 | AR4: 2024-03-31 | AS4: 2025-03-31 | AT4: 2026-03-31 | AU4: 2027-03-31 | AV4: 2028-03-31 | AW4: 2029-03-31 | AX4: 2030-03-31 | AY4: =EOMONTH(AX4,12) -> 2031-03-31
AP5: 2 | AQ5: 2 | AR5: 2 | AS5: 2 | AT5: 2 | AU5: 3 | AV5: 3 | AW5: 3 | AX5: 3 | AY5: 3
B7: Scenario definition
E9: Scenario number | AP9: 1 | AQ9: =AP9+1 -> 2 | AR9: =AQ9+1 -> 3 | AS9: 4 | AT9: 5 | AU9: 6 | AV9: 7 | AW9: 8 | AX9: 9 | AY9: 10 | AZ9: =AY9+1 -> 11 | BA9: 12 | BB9: 13 | BC9: 14 | BD9: 15 | BE9: 16 | BF9: =BE9+1 -> 17 | BG9: 18 | BH9: 19 | BI9: =BH9+1 -> 20 | BJ9: =BI9+1 -> 21 | BK9: =BJ9+1 -> 22 | BL9: =BK9+1 -> 23 | BM9: =BL9+1 -> 24 | BN9: =BM9+1 -> 25 | BO9: =BN9+1 -> 26 | BP9: =BO9+1 -> 27 | BQ9: =BP9+1 -> 28 | BR9: =BQ9+1 -> 29 | BS9: =BR9+1 -> 30
E10: Scenario name | AP10: Base case | AQ10: High interest rate | AR10: Low interest rate | AS10: High inflation | AT10: Low inflation | AU10: High CPIH inflation divergence | AV10: Low CPIH inflation divergence | AW10: High RPI inflation divergence | AX10: Low RPI inflation divergence | AY10: Totex outperformance | AZ10: Totex underperformance | BA10: High RoRE | BB10: Low RoRE | BC10: High index-linked debt | BD10: Low index-linked debt | BE10: Financeability example: BPDT | BF10: Financeability example: % dividend | BG10: Financeability example: cash flow dividend | BH10: Financeability example: User defined | BI10: Scenario 20 | BJ10: Scenario 21 | BK10: Scenario 22 | BL10: Scenario 23 | BM10: Scenario 24 | BN10: Scenario 25 | BO10: Scenario 26 | BP10: Scenario 27 | BQ10: Scenario 28 | BR10: Scenario 29 | BS10: Scenario 30
C12: Notional modelling
D13: Input data selection
E14: RIIO-3 inputs | F14: =INDEX(AP14:BS14,,m_scenario) -> Inputs 1 | AP14: Inputs 1 | AQ14: Inputs 1 | AR14: Inputs 1 | AS14: Inputs 1 | AT14: Inputs 1 | AU14: Inputs 1 | AV14: Inputs 1 | AW14: Inputs 1 | AX14: Inputs 1 | AY14: Inputs 1 | AZ14: Inputs 1 | BA14: Inputs 1 | BB14: Inputs 1 | BC14: Inputs 1 | BD14: Inputs 1
E15: Price base year (2024 for RIIO3, 2019 for RIIO2) | F15: =INDEX(AP15:BS15,,m_scenario) -> 2024 | G15: ="£m "&F15-2001&"/"&F15-2000&" prices" -> £m 23/24 prices | AP15: 2024 | AQ15: 2024 | AR15: 2024 | AS15: 2024 | AT15: 2024 | AU15: 2024 | AV15: 2024 | AW15: 2024 | AX15: 2024 | AY15: 2024 | AZ15: 2024 | BA15: 2024 | BB15: 2024 | BC15: 2024 | BD15: 2024
D17: Totex, TIM and capitalisation
E18: User multiplier for allowed totex | F18: =INDEX(AP18:BS18,,m_scenario) -> 1 | AP18: 1 | AQ18: 1 | AR18: 1 | AS18: 1 | AT18: 1 | AU18: 1 | AV18: 1 | AW18: 1 | AX18: 1 | AY18: 1 | AZ18: 1 | BA18: 1 | BB18: 1 | BC18: 1 | BD18: 1
E19: User multiplier for actual totex (applied on top of allowed totex) | F19: =INDEX(AP19:BS19,,m_scenario) -> 1 | AP19: 1 | AQ19: 1 | AR19: 1 | AS19: 1 | AT19: 1 | AU19: 1 | AV19: 1 | AW19: 1 | AX19: 1 | AY19: 0.9 | AZ19: 1.1 | BA19: 1 | BB19: 1 | BC19: 1 | BD19: 1
E20: TIM incentive rate | F20: =INDEX(AP20:BS20,,m_scenario) -> 0.5 | AP20: 0.5 | AQ20: 0.5 | AR20: 0.5 | AS20: 0.5 | AT20: 0.5 | AU20: 0.5 | AV20: 0.5 | AW20: 0.5 | AX20: 0.5 | AY20: 0.5 | AZ20: 0.5 | BA20: 0.5 | BB20: 0.5 | BC20: 0.5 | BD20: 0.5
E21: RIIO-3 cap rates: Scenarios or Licensee inputs, or Natural? | F21: =INDEX(AP21:BS21,,m_scenario) -> Licensee inputs | AP21: Licensee inputs | AQ21: Licensee inputs | AR21: Licensee inputs | AS21: Licensee inputs | AT21: Licensee inputs | AU21: Licensee inputs | AV21: Licensee inputs | AW21: Licensee inputs | AX21: Licensee inputs | AY21: Licensee inputs | AZ21: Licensee inputs | BA21: Licensee inputs | BB21: Licensee inputs | BC21: Licensee inputs | BD21: Licensee inputs
E22: If Scenarios, Bucket 1 cap rate | F22: =INDEX(AP22:BS22,,m_scenario) -> 0.5 | AP22: 0.5 | AQ22: 0.5 | AR22: 0.5 | AS22: 0.5 | AT22: 0.5 | AU22: 0.5 | AV22: 0.5 | AW22: 0.5 | AX22: 0.5 | AY22: 0.5 | AZ22: 0.5 | BA22: 0.5 | BB22: 0.5 | BC22: 0.5 | BD22: 0.5
E23: If Scenarios, Bucket 2 cap rate | F23: =INDEX(AP23:BS23,,m_scenario) -> 0.7 | AP23: 0.7 | AQ23: 0.7 | AR23: 0.7 | AS23: 0.7 | AT23: 0.7 | AU23: 0.7 | AV23: 0.7 | AW23: 0.7 | AX23: 0.7 | AY23: 0.7 | AZ23: 0.7 | BA23: 0.7 | BB23: 0.7 | BC23: 0.7 | BD23: 0.7
E24: If Scenarios, Repex cap rate | F24: =INDEX(AP24:BS24,,m_scenario) -> 1 | AP24: 1 | AQ24: 1 | AR24: 1 | AS24: 1 | AT24: 1 | AU24: 1 | AV24: 1 | AW24: 1 | AX24: 1 | AY24: 1 | AZ24: 1 | BA24: 1 | BB24: 1 | BC24: 1 | BD24: 1
D26: Depreciation
E27: Pre- and post-vesting acceleration factor option | F27: =INDEX(AP27:BS27,,m_scenario) -> Base case | AP27: Base case | AQ27: Base case | AR27: Base case | AS27: Base case | AT27: Base case | AU27: Base case | AV27: Base case | AW27: Base case | AX27: Base case | AY27: Base case | AZ27: Base case | BA27: Base case | BB27: Base case | BC27: Base case | BD27: Base case
E28: RIIO-3 treatment: asset life input or custom profile? | F28: =INDEX(AP28:BS28,,m_scenario) -> Asset life input | AP28: Asset life input | AQ28: Asset life input | AR28: Asset life input | AS28: Asset life input | AT28: Asset life input | AU28: Asset life input | AV28: Asset life input | AW28: Asset life input | AX28: Asset life input | AY28: Asset life input | AZ28: Asset life input | BA28: Asset life input | BB28: Asset life input | BC28: Asset life input | BD28: Asset life input
E29: If asset life input: Sum of Digits or Straight Line? | F29: =INDEX(AP29:BS29,,m_scenario) -> Sum of Digits | AP29: Sum of Digits | AQ29: Sum of Digits | AR29: Sum of Digits | AS29: Sum of Digits | AT29: Sum of Digits | AU29: Sum of Digits | AV29: Sum of Digits | AW29: Sum of Digits | AX29: Sum of Digits | AY29: Sum of Digits | AZ29: Sum of Digits | BA29: Sum of Digits | BB29: Sum of Digits | BC29: Sum of Digits | BD29: Sum of Digits
E30: If asset life input: base case or terminate? | F30: =INDEX(AP30:BS30,,m_scenario) -> Terminate | AP30: Terminate | AQ30: Terminate | AR30: Terminate | AS30: Terminate | AT30: Terminate | AU30: Terminate | AV30: Terminate | AW30: Terminate | AX30: Terminate | AY30: Terminate | AZ30: Terminate | BA30: Terminate | BB30: Terminate | BC30: Terminate | BD30: Terminate
E31: If base case, RIIO-3 additions asset life | F31: =INDEX(AP31:BS31,,m_scenario) -> 45 | AP31: 45 | AQ31: 45 | AR31: 45 | AS31: 45 | AT31: 45 | AU31: 45 | AV31: 45 | AW31: 45 | AX31: 45 | AY31: 45 | AZ31: 45 | BA31: 45 | BB31: 45 | BC31: 45 | BD31: 45
E32: If terminate, input year of final depreciation | F32: =INDEX(AP32:BS32,,m_scenario) -> 2050 | G32: =IF(F30="Terminate", "Active", "Inactive") -> Active | AP32: 2050 | AQ32: 2050 | AR32: 2050 | AS32: 2050 | AT32: 2050 | AU32: 2050 | AV32: 2050 | AW32: 2050 | AX32: 2050 | AY32: 2050 | AZ32: 2050 | BA32: 2050 | BB32: 2050 | BC32: 2050 | BD32: 2050
E33: Post-vesting treatment: status quo, accelerate or terminate? | F33: =INDEX(AP33:BS33,,m_scenario) -> Terminate | AP33: Terminate | AQ33: Terminate | AR33: Terminate | AS33: Terminate | AT33: Terminate | AU33: Terminate | AV33: Terminate | AW33: Terminate | AX33: Terminate | AY33: Terminate | AZ33: Terminate | BA33: Terminate | BB33: Terminate | BC33: Terminate | BD33: Terminate
E34: If accelerate, pre-RIIO-3 additions accelerated asset life | F34: =INDEX(AP34:BS34,,m_scenario) -> 45 | G34: =IF(F33="Status quo", "Inactive", "Active") -> Active | AP34: 45 | AQ34: 45 | AR34: 45 | AS34: 45 | AT34: 45 | AU34: 45 | AV34: 45 | AW34: 45 | AX34: 45 | AY34: 45 | AZ34: 45 | BA34: 45 | BB34: 45 | BC34: 45 | BD34: 45
E35: If terminate, input year of final depreciation | F35: =INDEX(AP35:BS35,,m_scenario) -> 2050 | G35: =IF(F33="Terminate", "Active", "Inactive") -> Active | AP35: 2050 | AQ35: 2050 | AR35: 2050 | AS35: 2050 | AT35: 2050 | AU35: 2050 | AV35: 2050 | AW35: 2050 | AX35: 2050 | AY35: 2050 | AZ35: 2050 | BA35: 2050 | BB35: 2050 | BC35: 2050 | BD35: 2050
E36: Pre-vesting treatment: status quo or terminate? | F36: =INDEX(AP36:BS36,,m_scenario) -> Terminate | AP36: Terminate | AQ36: Terminate | AR36: Terminate | AS36: Terminate | AT36: Terminate | AU36: Terminate | AV36: Terminate | AW36: Terminate | AX36: Terminate | AY36: Terminate | AZ36: Terminate | BA36: Terminate | BB36: Terminate | BC36: Terminate | BD36: Terminate
E37: If terminate, input year of final depreciation | F37: =INDEX(AP37:BS37,,m_scenario) -> 2050 | G37: =IF(F36="Status quo", "Inactive", "Active") -> Active | AP37: 2050 | AQ37: 2050 | AR37: 2050 | AS37: 2050 | AT37: 2050 | AU37: 2050 | AV37: 2050 | AW37: 2050 | AX37: 2050 | AY37: 2050 | AZ37: 2050 | BA37: 2050 | BB37: 2050 | BC37: 2050 | BD37: 2050
D39: Allowed Cost of capital
E40: Allowed cost of Debt input: scenario input or Licensee inputs? | F40: =INDEX(AP40:BS40,,m_scenario) -> Scenario input | AP40: Scenario input | AQ40: Scenario input | AR40: Scenario input | AS40: Scenario input | AT40: Scenario input | AU40: Scenario input | AV40: Scenario input | AW40: Scenario input | AX40: Scenario input | AY40: Scenario input | AZ40: Scenario input | BA40: Scenario input | BB40: Scenario input | BC40: Scenario input | BD40: Scenario input
E41: If scenario input, CoD figures to use | F41: =INDEX(AP41:BS41,,m_scenario) -> Base | AP41: Base | AQ41: High | AR41: Low | AS41: Base | AT41: Base | AU41: Base | AV41: Base | AW41: Base | AX41: Base | AY41: Base | AZ41: Base | BA41: Base | BB41: Base | BC41: Base | BD41: Base
E42: Allowed cost of Equity input: scenario input or Licensee inputs? | F42: =INDEX(AP42:BS42,,m_scenario) -> Scenario input | AP42: Scenario input | AQ42: Scenario input | AR42: Scenario input | AS42: Scenario input | AT42: Scenario input | AU42: Scenario input | AV42: Scenario input | AW42: Scenario input | AX42: Scenario input | AY42: Scenario input | AZ42: Scenario input | BA42: Scenario input | BB42: Scenario input | BC42: Scenario input | BD42: Scenario input
E43: If scenario input, CoE figures to use | F43: =INDEX(AP43:BS43,,m_scenario) -> Base | AP43: Base | AQ43: High | AR43: Low | AS43: Base | AT43: Base | AU43: Base | AV43: Base | AW43: Base | AX43: Base | AY43: Base | AZ43: Base | BA43: Base | BB43: Base | BC43: Base | BD43: Base
E44: Notional gearing | F44: =INDEX(AP44:BS44,,m_scenario) -> 0.6 | AP44: 0.6 | AQ44: 0.6 | AR44: 0.6 | AS44: 0.6 | AT44: 0.6 | AU44: 0.6 | AV44: 0.6 | AW44: 0.6 | AX44: 0.6 | AY44: 0.6 | AZ44: 0.6 | BA44: 0.6 | BB44: 0.6 | BC44: 0.6 | BD44: 0.6
D46: Finance
E47: Forecast near-term RPI debt inflation | F47: =INDEX(AP47:BS47,,m_scenario) -> Jun'24 BPDT (calendar year) | AP47: Jun'24 BPDT (calendar year) | AQ47: Jun'24 BPDT (calendar year) | AR47: Jun'24 BPDT (calendar year) | AS47: High additional increment (FY) | AT47: Low additional increment (FY) | AU47: Jun'24 BPDT (calendar year) | AV47: Jun'24 BPDT (calendar year) | AW47: High diverg +0.5% additional increment (FY) | AX47: Low diverg -0.5% additional increment (FY) | AY47: Jun'24 BPDT (calendar year) | AZ47: Jun'24 BPDT (calendar year) | BA47: Jun'24 BPDT (calendar year) | BB47: Jun'24 BPDT (calendar year) | BC47: Jun'24 BPDT (calendar year) | BD47: Jun'24 BPDT (calendar year)
E48: Forecast near-term CPIH debt inflation | F48: =INDEX(AP48:BS48,,m_scenario) -> Jun'24 BPDT (calendar year) | AP48: Jun'24 BPDT (calendar year) | AQ48: Jun'24 BPDT (calendar year) | AR48: Jun'24 BPDT (calendar year) | AS48: High additional increment (FY) | AT48: Low additional increment (FY) | AU48: High diverg -0.5% additional increment (FY) | AV48: Low diverg +0.5% additional increment (FY) | AW48: Jun'24 BPDT (calendar year) | AX48: Jun'24 BPDT (calendar year) | AY48: Jun'24 BPDT (calendar year) | AZ48: Jun'24 BPDT (calendar year) | BA48: Jun'24 BPDT (calendar year) | BB48: Jun'24 BPDT (calendar year) | BC48: Jun'24 BPDT (calendar year) | BD48: Jun'24 BPDT (calendar year)
E49: Minimum equity issuance threshold | F49: =INDEX(AP49:BS49,,m_scenario) -> RIIO-2 thresholds | AP49: RIIO-2 thresholds | AQ49: RIIO-2 thresholds | AR49: RIIO-2 thresholds | AS49: RIIO-2 thresholds | AT49: RIIO-2 thresholds | AU49: RIIO-2 thresholds | AV49: RIIO-2 thresholds | AW49: RIIO-2 thresholds | AX49: RIIO-2 thresholds | AY49: RIIO-2 thresholds | AZ49: RIIO-2 thresholds | BA49: RIIO-2 thresholds | BB49: RIIO-2 thresholds | BC49: RIIO-2 thresholds | BD49: RIIO-2 thresholds
E50: Equity issuance costs | F50: =INDEX(AP50:BS50,,m_scenario) -> 0.05 | AP50: 0.05 | AQ50: 0.05 | AR50: 0.05 | AS50: 0.05 | AT50: 0.05 | AU50: 0.05 | AV50: 0.05 | AW50: 0.05 | AX50: 0.05 | AY50: 0.05 | AZ50: 0.05 | BA50: 0.05 | BB50: 0.05 | BC50: 0.05 | BD50: 0.05
E51: Assumed dividends as % of equity | F51: =INDEX(AP51:BS51,,m_scenario) -> 0.03 | AP51: 0.03 | AQ51: 0.03 | AR51: 0.03 | AS51: 0.03 | AT51: 0.03 | AU51: 0.03 | AV51: 0.03 | AW51: 0.03 | AX51: 0.03 | AY51: 0.03 | AZ51: 0.03 | BA51: 0.03 | BB51: 0.03 | BC51: 0.03 | BD51: 0.03
E52: Assumed return of capital as % of equity | F52: =INDEX(AP52:BS52,,m_scenario) -> User defined #1 | AP52: User defined #1 | AQ52: User defined #1 | AR52: User defined #1 | AS52: User defined #1 | AT52: User defined #1 | AU52: User defined #1 | AV52: User defined #1 | AW52: User defined #1 | AX52: User defined #1 | AY52: User defined #1 | AZ52: User defined #1 | BA52: User defined #1 | BB52: User defined #1 | BC52: User defined #1 | BD52: User defined #1
E53: Equity issuance gearing target | F53: =INDEX(AP53:BS53,,m_scenario) -> 0.6 | AP53: 0.6 | AQ53: 0.6 | AR53: 0.6 | AS53: 0.6 | AT53: 0.6 | AU53: 0.6 | AV53: 0.6 | AW53: 0.6 | AX53: 0.6 | AY53: 0.6 | AZ53: 0.6 | BA53: 0.6 | BB53: 0.6 | BC53: 0.6 | BD53: 0.6
E54: CPIH index-linked debt as a percentage of net debt | F54: =INDEX(AP54:BS54,,m_scenario) -> 0.3 | AP54: 0.3 | AQ54: 0.3 | AR54: 0.3 | AS54: 0.3 | AT54: 0.3 | AU54: 0.3 | AV54: 0.3 | AW54: 0.3 | AX54: 0.3 | AY54: 0.3 | AZ54: 0.3 | BA54: 0.3 | BB54: 0.3 | BC54: 0.4 | BD54: 0.2
E55: Annual interest rate inputs for actual debt | F55: =INDEX(AP55:BS55,,m_scenario) -> Base case | AP55: Base case | AQ55: High case (+2%) | AR55: Low case (-2%) | AS55: Base case | AT55: Base case | AU55: Base case | AV55: Base case | AW55: Base case | AX55: Base case | AY55: Base case | AZ55: Base case | BA55: Base case | BB55: Base case | BC55: Base case | BD55: Base case
E56: SSMD cost of debt inflation approach | F56: =INDEX(AP56:BS56,,m_scenario) -> Option 1 | AP56: Option 1 | AQ56: Option 1 | AR56: Option 1 | AS56: Option 1 | AT56: Option 1 | AU56: Option 1 | AV56: Option 1 | AW56: Option 1 | AX56: Option 1 | AY56: Option 1 | AZ56: Option 1 | BA56: Option 1 | BB56: Option 1 | BC56: Option 1 | BD56: Option 1
D58: Tax
E59: Corporation tax rate | F59: =INDEX(AP59:BS59,,m_scenario) -> 0.25 | AP59: 0.25 | AQ59: 0.25 | AR59: 0.25 | AS59: 0.25 | AT59: 0.25 | AU59: 0.25 | AV59: 0.25 | AW59: 0.25 | AX59: 0.25 | AY59: 0.25 | AZ59: 0.25 | BA59: 0.25 | BB59: 0.25 | BC59: 0.25 | BD59: 0.25
E60: Include tax clawback revenue impact? | F60: =INDEX(AP60:BS60,,m_scenario) -> Exclude | AP60: Exclude | AQ60: Exclude | AR60: Exclude | AS60: Exclude | AT60: Exclude | AU60: Exclude | AV60: Exclude | AW60: Exclude | AX60: Exclude | AY60: Exclude | AZ60: Exclude | BA60: Exclude | BB60: Exclude | BC60: Exclude | BD60: Exclude
D62: ODIs and incentives
E63: Incentive reward/penalty as a % of RoRE | F63: =INDEX(AP63:BS63,,m_scenario) -> 0 | AP63: 0 | AQ63: 0 | AR63: 0 | AS63: 0 | AT63: 0 | AU63: 0 | AV63: 0 | AW63: 0 | AX63: 0 | AY63: 0 | AZ63: 0 | BA63: 0.02 | BB63: -0.02 | BC63: 0 | BD63: 0
C66: Financeability modelling
D68: Notional company parameters
E69: Totex option | F69: =INDEX(AP69:BS69,,m_scenario) -> Fast/Slow | AP69: Fast/Slow | AQ69: Fast/Slow | AR69: Fast/Slow | AS69: Fast/Slow | AT69: Fast/Slow | AU69: Fast/Slow | AV69: Fast/Slow | AW69: Fast/Slow | AX69: Fast/Slow | AY69: Fast/Slow | AZ69: Fast/Slow | BA69: Fast/Slow | BB69: Fast/Slow | BC69: Fast/Slow | BD69: Fast/Slow | BE69: Fast/Slow | BF69: Fast/Slow | BG69: Fast/Slow | BH69: Fast/Slow
E71: Apply lagged revenue adjustment? (incentives & other revenues, RoRE outperformance) | F71: =INDEX(AP71:BS71,,m_scenario) -> FALSE | AP71: FALSE | AQ71: FALSE | AR71: FALSE | AS71: FALSE | AT71: FALSE | AU71: FALSE | AV71: FALSE | AW71: FALSE | AX71: FALSE | AY71: FALSE | AZ71: FALSE | BA71: FALSE | BB71: FALSE | BC71: FALSE | BD71: FALSE | BE71: FALSE | BF71: FALSE | BG71: FALSE | BH71: FALSE
E72: Include RIIO-2 AIP revenue adjustments? | F72: =INDEX(AP72:BS72,,m_scenario) -> 0 | G72: [Not modelled for FBPs]
E73: Include DRS net revenue? | F73: =INDEX(AP73:BS73,,m_scenario) -> TRUE | AP73: TRUE | AQ73: TRUE | AR73: TRUE | AS73: TRUE | AT73: TRUE | AU73: TRUE | AV73: TRUE | AW73: TRUE | AX73: TRUE | AY73: TRUE | AZ73: TRUE | BA73: TRUE | BB73: TRUE | BC73: TRUE | BD73: TRUE | BE73: TRUE | BF73: TRUE | BG73: TRUE | BH73: TRUE
E74: Use regulatory or statutory depreciation in financial statements? | F74: =INDEX(AP74:BS74,,m_scenario) -> Regulatory | AP74: Regulatory | AQ74: Regulatory | AR74: Regulatory | AS74: Regulatory | AT74: Regulatory | AU74: Regulatory | AV74: Regulatory | AW74: Regulatory | AX74: Regulatory | AY74: Regulatory | AZ74: Regulatory | BA74: Regulatory | BB74: Regulatory | BC74: Regulatory | BD74: Regulatory | BE74: Regulatory | BF74: Regulatory | BG74: Regulatory | BH74: Regulatory
D76: Actual company parameters
E77: Totex option | F77: =INDEX(AP77:BS77,,m_scenario) -> Capex/Opex | AP77: Capex/Opex | AQ77: Capex/Opex | AR77: Capex/Opex | AS77: Capex/Opex | AT77: Capex/Opex | AU77: Capex/Opex | AV77: Capex/Opex | AW77: Capex/Opex | AX77: Capex/Opex | AY77: Capex/Opex | AZ77: Capex/Opex | BA77: Capex/Opex | BB77: Capex/Opex | BC77: Capex/Opex | BD77: Capex/Opex | BE77: Capex/Opex | BF77: Capex/Opex | BG77: Capex/Opex | BH77: Capex/Opex
E78: Rating simulator apply excess fast money adjustment | F78: =INDEX(AP78:BS78,,m_scenario) -> TRUE | AP78: TRUE | AQ78: TRUE | AR78: TRUE | AS78: TRUE | AT78: TRUE | AU78: TRUE | AV78: TRUE | AW78: TRUE | AX78: TRUE | AY78: TRUE | AZ78: TRUE | BA78: TRUE | BB78: TRUE | BC78: TRUE | BD78: TRUE | BE78: TRUE | BF78: TRUE | BG78: TRUE | BH78: TRUE
E80: Apply lagged revenue adjustment? (incentives & other revenues, RoRE outperformance) | F80: =INDEX(AP80:BS80,,m_scenario) -> FALSE | AP80: FALSE | AQ80: FALSE | AR80: FALSE | AS80: FALSE | AT80: FALSE | AU80: FALSE | AV80: FALSE | AW80: FALSE | AX80: FALSE | AY80: FALSE | AZ80: FALSE | BA80: FALSE | BB80: FALSE | BC80: FALSE | BD80: FALSE | BE80: FALSE | BF80: FALSE | BG80: FALSE | BH80: FALSE
E81: Include RIIO-2 AIP revenue adjustments? | F81: =INDEX(AP81:BS81,,m_scenario) -> 0 | G81: [Not modelled for FBPs]
E82: Include DRS net revenue? (Uses same setting as Notional) | F82: =F73 -> TRUE
E84: Use regulatory or statutory depreciation in financial statements? | F84: =INDEX(AP84:BS84,,m_scenario) -> Statutory | AP84: Statutory | AQ84: Statutory | AR84: Statutory | AS84: Statutory | AT84: Statutory | AU84: Statutory | AV84: Statutory | AW84: Statutory | AX84: Statutory | AY84: Statutory | AZ84: Statutory | BA84: Statutory | BB84: Statutory | BC84: Statutory | BD84: Statutory | BE84: Statutory | BF84: Statutory | BG84: Statutory | BH84: Statutory
E86: RIIO-2 closing gearing target: BPDT or user defined? | F86: =INDEX(AP86:BS86,,m_scenario) -> User defined | AP86: User defined | AQ86: BPDT | AR86: BPDT | AS86: BPDT | AT86: BPDT | AU86: BPDT | AV86: BPDT | AW86: BPDT | AX86: BPDT | AY86: BPDT | AZ86: BPDT | BA86: BPDT | BB86: BPDT | BC86: BPDT | BD86: BPDT | BE86: BPDT | BF86: BPDT | BG86: BPDT | BH86: User defined
E87: If BPDT, calculated from debt sheets or fixed from mirror table? | F87: =INDEX(AP87:BS87,,m_scenario) -> Debt sheets | AP87: Debt sheets | AQ87: Mirror table | AR87: Mirror table | AS87: Mirror table | AT87: Mirror table | AU87: Mirror table | AV87: Mirror table | AW87: Mirror table | AX87: Mirror table | AY87: Mirror table | AZ87: Mirror table | BA87: Mirror table | BB87: Mirror table | BC87: Mirror table | BD87: Mirror table | BE87: Debt sheets | BF87: Mirror table | BG87: Mirror table
E88: If user defined, select closing gearing target | F88: =INDEX(AP88:BS88,,m_scenario) -> User defined #1 | AP88: User defined #1 | AQ88: User defined #1 | AR88: User defined #1 | AS88: User defined #1 | AT88: User defined #1 | AU88: User defined #1 | AV88: User defined #1 | AW88: User defined #1 | AX88: User defined #1 | AY88: User defined #1 | AZ88: User defined #1 | BA88: User defined #1 | BB88: User defined #1 | BC88: User defined #1 | BD88: User defined #1 | BH88: User defined #1
E89: Equity issuance: BPDT actual or model calculation? | F89: =INDEX(AP89:BS89,,m_scenario) -> BPDT actual | AP89: BPDT actual | AQ89: BPDT actual | AR89: BPDT actual | AS89: BPDT actual | AT89: BPDT actual | AU89: BPDT actual | AV89: BPDT actual | AW89: BPDT actual | AX89: BPDT actual | AY89: BPDT actual | AZ89: BPDT actual | BA89: BPDT actual | BB89: BPDT actual | BC89: BPDT actual | BD89: BPDT actual | BE89: BPDT actual | BF89: BPDT actual | BG89: BPDT actual | BH89: BPDT actual
E90: If modelled, based on previous year closing gearing or user defined equity issuance target? | F90: =INDEX(AP90:BS90,,m_scenario) -> Closing gearing | AP90: Closing gearing | AQ90: Closing gearing | AR90: Closing gearing | AS90: Closing gearing | AT90: Closing gearing | AU90: Closing gearing | AV90: Closing gearing | AW90: Closing gearing | AX90: Closing gearing | AY90: Closing gearing | AZ90: Closing gearing | BA90: Closing gearing | BB90: Closing gearing | BC90: Closing gearing | BD90: Closing gearing | BF90: Closing gearing | BG90: Closing gearing | BH90: User defined
E91: If user defined, select equity issuance % target | F91: =INDEX(AP91:BS91,,m_scenario) -> Equal to notional gearing | AP91: Equal to notional gearing | AQ91: Equal to notional gearing | AR91: Equal to notional gearing | AS91: Equal to notional gearing | AT91: Equal to notional gearing | AU91: Equal to notional gearing | AV91: Equal to notional gearing | AW91: Equal to notional gearing | AX91: Equal to notional gearing | AY91: Equal to notional gearing | AZ91: Equal to notional gearing | BA91: Equal to notional gearing | BB91: Equal to notional gearing | BC91: Equal to notional gearing | BD91: Equal to notional gearing | BH91: User defined #1
E92: If user defined, select equity issuance cost | F92: =INDEX(AP92:BS92,,m_scenario) -> 0.03 | AP92: 0.03 | AQ92: 0.03 | AR92: 0.03 | AS92: 0.03 | AT92: 0.03 | AU92: 0.03 | AV92: 0.03 | AW92: 0.03 | AX92: 0.03 | AY92: 0.03 | AZ92: 0.03 | BA92: 0.03 | BB92: 0.03 | BC92: 0.03 | BD92: 0.03 | BH92: 0.03
E93: If modelled, select min. issuance threshold | F93: =INDEX(AP93:BS93,,m_scenario) -> Equity issuance base: 5% | AP93: Equity issuance base: 5% | AQ93: Equity issuance base: 5% | AR93: Equity issuance base: 5% | AS93: Equity issuance base: 5% | AT93: Equity issuance base: 5% | AU93: Equity issuance base: 5% | AV93: Equity issuance base: 5% | AW93: Equity issuance base: 5% | AX93: Equity issuance base: 5% | AY93: Equity issuance base: 5% | AZ93: Equity issuance base: 5% | BA93: Equity issuance base: 5% | BB93: Equity issuance base: 5% | BC93: Equity issuance base: 5% | BD93: Equity issuance base: 5% | BF93: Equity issuance base: 5% | BG93: Equity issuance base: 5% | BH93: Equity issuance base: 5%
E94: Dividends: BPDT actual or model calculation? | F94: =INDEX(AP94:BS94,,m_scenario) -> Model calculation | AP94: Model calculation | AQ94: BPDT actual | AR94: BPDT actual | AS94: BPDT actual | AT94: BPDT actual | AU94: BPDT actual | AV94: BPDT actual | AW94: BPDT actual | AX94: BPDT actual | AY94: BPDT actual | AZ94: BPDT actual | BA94: BPDT actual | BB94: BPDT actual | BC94: BPDT actual | BD94: BPDT actual | BE94: BPDT actual | BF94: Model calculation | BG94: Model calculation | BH94: Model calculation
E95: If modelled, based on cash flow or user defined %? | F95: =INDEX(AP95:BS95,,m_scenario) -> User defined | AP95: User defined | AQ95: Cash flow | AR95: Cash flow | AS95: Cash flow | AT95: Cash flow | AU95: Cash flow | AV95: Cash flow | AW95: Cash flow | AX95: Cash flow | AY95: Cash flow | AZ95: Cash flow | BA95: Cash flow | BB95: Cash flow | BC95: Cash flow | BD95: Cash flow | BF95: User defined | BG95: Cash flow | BH95: User defined
E96: If based on cash flow, select dividend cap % | F96: =INDEX(AP96:BS96,,m_scenario) -> 0.05 | AP96: 0.05 | AQ96: 0.05 | AR96: 0.05 | AS96: 0.05 | AT96: 0.05 | AU96: 0.05 | AV96: 0.05 | AW96: 0.05 | AX96: 0.05 | AY96: 0.05 | AZ96: 0.05 | BA96: 0.05 | BB96: 0.05 | BC96: 0.05 | BD96: 0.05 | BG96: 0.05
E97: If user defined, select dividends as % of equity | F97: =INDEX(AP97:BS97,,m_scenario) -> User defined #1 | AP97: User defined #1 | AQ97: 0.03 | AR97: 0.03 | AS97: 0.03 | AT97: 0.03 | AU97: 0.03 | AV97: 0.03 | AW97: 0.03 | AX97: 0.03 | AY97: 0.03 | AZ97: 0.03 | BA97: 0.03 | BB97: 0.03 | BC97: 0.03 | BD97: 0.03 | BF97: 0.03 | BH97: 0.03
B104: Scenario options section (notional model)
C106: Price control timeline and key dates
E108: Start of RIIO-2 | I108: 2022-03-31
E109: End of RIIO-2 | I109: 2026-03-31
E111: Start of RIIO-3 | I111: 2027-03-31
E112: End of RIIO-3 | I112: 2031-03-31
E114: Pre-RIIO-2 year | K114: =IF(K$4<$I$108,1,0) -> 1 | L114: 1 | M114: 1 | N114: 1 | O114: 1 | P114: 1 | Q114: 1 | R114: 1 | S114: 1 | T114: 1 | U114: 1 | V114: 1 | W114: 1 | X114: 1 | Y114: 1 | Z114: 1 | AA114: 1 | AB114: 1 | AC114: 1 | AD114: 1 | AE114: 1 | AF114: 1 | AG114: 1 | AH114: 1 | AI114: 1 | AJ114: 1 | AK114: 1 | AL114: 1 | AM114: 1 | AN114: 1 | AO114: 1 | AP114: 0 | AQ114: 0 | AR114: 0 | AS114: 0 | AT114: 0 | AU114: 0 | AV114: 0 | AW114: 0 | AX114: 0 | AY114: 0
E115: RIIO-2 year | K115: =IF(AND(K$4>=$I$108,K$4<=$I$109),1,0) -> 0 | L115: 0 | M115: 0 | N115: 0 | O115: 0 | P115: 0 | Q115: 0 | R115: 0 | S115: 0 | T115: 0 | U115: 0 | V115: 0 | W115: 0 | X115: 0 | Y115: 0 | Z115: 0 | AA115: 0 | AB115: 0 | AC115: 0 | AD115: 0 | AE115: 0 | AF115: 0 | AG115: 0 | AH115: 0 | AI115: 0 | AJ115: 0 | AK115: 0 | AL115: 0 | AM115: 0 | AN115: 0 | AO115: 0 | AP115: 1 | AQ115: 1 | AR115: 1 | AS115: 1 | AT115: 1 | AU115: 0 | AV115: 0 | AW115: 0 | AX115: 0 | AY115: 0
E116: RIIO-3 year | K116: =IF(AND(K$4>=$I$111,K$4<=$I$112),1,0) -> 0 | L116: 0 | M116: 0 | N116: 0 | O116: 0 | P116: 0 | Q116: 0 | R116: 0 | S116: 0 | T116: 0 | U116: 0 | V116: 0 | W116: 0 | X116: 0 | Y116: 0 | Z116: 0 | AA116: 0 | AB116: 0 | AC116: 0 | AD116: 0 | AE116: 0 | AF116: 0 | AG116: 0 | AH116: 0 | AI116: 0 | AJ116: 0 | AK116: 0 | AL116: 0 | AM116: 0 | AN116: 0 | AO116: 0 | AP116: 0 | AQ116: 0 | AR116: 0 | AS116: 0 | AT116: 0 | AU116: 1 | AV116: 1 | AW116: 1 | AX116: 1 | AY116: =IF(AND(AY$4>=$I$111),1,0) -> 1
E118: Price base year | F118: =F15 -> 2024 | I118: =DATE(F118,3,31) -> 2024-03-31
C120: Notional modelling
D121: Input data selection
E122: RIIO-3 inputs
D124: Totex, TIM and capitalisation
E125: User multiplier for allowed totex | F125: =F18 -> 1 | AU125: =IF($F$316=1,IF(AU5>=$F$315,$F$125,1)) + IF($F$316=2,_xlfn.IFS(AU5<$F$315,1,AU5>=$F$315,MAX(F$125+$F$317,0),YEAR(AU4)-2031 = 1,$F$125)) + IF($F$316=3,IF(AU$5>=$F$315,MAX($F$319-($F$319/($F$318-IF($F$315=4,2032,2027)))*(YEAR(AU$4)-IF($F$315=4,2032,2027)),0),1)) -> 1 | AV125: =IF($F$316=1,IF(AV5>=$F$315,$F$125,1)) + IF($F$316=2,_xlfn.IFS(AV5<$F$315,1,AV5>=$F$315,MAX(AU$125+$F$317,0),YEAR(AV4)-2031 = 1,$F$125)) + IF($F$316=3,IF(AV5>=$F$315,MAX($F$319-($F$319/($F$318-IF($F$315=4,2032,2027)))*(YEAR(AV$4)-IF($F$315=4,2032,2027)),0),1)) -> 1 | AW125: =IF($F$316=1,IF(AW5>=$F$315,$F$125,1)) + IF($F$316=2,_xlfn.IFS(AW5<$F$315,1,AW5>=$F$315,MAX(AV$125+$F$317,0),YEAR(AW4)-2031 = 1,$F$125)) + IF($F$316=3,IF(AW5>=$F$315,MAX($F$319-($F$319/($F$318-IF($F$315=4,2032,2027)))*(YEAR(AW$4)-IF($F$315=4,2032,2027)),0),1)) -> 1 | AX125: =IF($F$316=1,IF(AX5>=$F$315,$F$125,1)) + IF($F$316=2,_xlfn.IFS(AX5<$F$315,1,AX5>=$F$315,MAX(AW$125+$F$317,0),YEAR(AX4)-2031 = 1,$F$125)) + IF($F$316=3,IF(AX5>=$F$315,MAX($F$319-($F$319/($F$318-IF($F$315=4,2032,2027)))*(YEAR(AX$4)-IF($F$315=4,2032,2027)),0),1)) -> 1 | AY125: =IF($F$316=1,IF(AY5>=$F$315,$F$125,1)) + IF($F$316=2,_xlfn.IFS(AY5<$F$315,1,AY5>=$F$315,MAX(AX$125+$F$317,0),YEAR(AY4)-2031 = 1,$F$125)) + IF($F$316=3,IF(AY5>=$F$315,MAX($F$319-($F$319/($F$318-IF($F$315=4,2032,2027)))*(YEAR(AY$4)-IF($F$315=4,2032,2027)),0),1)) -> 1
E126: User multiplier for actual totex | F126: =F19 -> 1 | AU126: =$F126 -> 1 | AV126: =$F126 -> 1 | AW126: 1 | AX126: 1 | AY126: 1
D128: Depreciation
E129: [Empty]
D131: Cost of capital
E132: CoD single input figures to use | F132: =F41 -> Base | G132: =MATCH(F132,E133:E137,0) -> 1 | AU132: =INDEX(AU133:AU137,$G132) -> 0.02686924506 | AV132: =INDEX(AV133:AV137,$G132) -> 0.02850622526 | AW132: =INDEX(AW133:AW137,$G132) -> 0.02909779127 | AX132: =INDEX(AX133:AX137,$G132) -> 0.02976576414 | AY132: =INDEX(AY133:AY137,$G132) -> 0.03099172954
E133: Base | AU133: 0.02686924506 | AV133: 0.02850622526 | AW133: 0.02909779127 | AX133: 0.02976576414 | AY133: 0.03099172954
E134: High | AU134: 0.0304352721 | AV134: 0.03288666494 | AW134: 0.03446589557 | AX134: 0.03672677494 | AY134: 0.03994153636
E135: Low | AU135: 0.02330932426 | AV135: 0.02413226748 | AW135: 0.0237324795 | AX135: 0.02280795437 | AY135: 0.02204671803
E136: Slot 4
E137: Slot 5
E139: CoE single input figures to use | F139: =F43 -> Base | G139: =MATCH(F139,E140:E144,0) -> 1 | AU139: =INDEX(AU140:AU144,$G139) -> 0.05434987279 | AV139: =INDEX(AV140:AV144,$G139) -> 0.05434987279 | AW139: =INDEX(AW140:AW144,$G139) -> 0.05434987279 | AX139: =INDEX(AX140:AX144,$G139) -> 0.05434987279 | AY139: =INDEX(AY140:AY144,$G139) -> 0.05434987279
E140: Base | AU140: 0.05434987279 | AV140: 0.05434987279 | AW140: 0.05434987279 | AX140: 0.05434987279 | AY140: 0.05434987279
E141: High | AU141: 0.05915492739 | AV141: 0.05915492739 | AW141: 0.05915492739 | AX141: 0.05915492739 | AY141: 0.05915492739
E142: Low | AU142: 0.04954481818 | AV142: 0.04954481818 | AW142: 0.04954481818 | AX142: 0.04954481818 | AY142: 0.04954481818
E143: Slot 4
E144: Slot 5
D146: Finance
E147: Forecast near-term RPI debt inflation (calendar year) | F147: =F47 -> Jun'24 BPDT (calendar year) | G147: =MATCH(F147,E148:E153,0) -> 1 | AR147: =IF($G147=1,AR148,AR148+(INDEX(AR148:AR153,$G147)*0.25)+(INDEX(AS148:AS153,$G147)*0.75)) -> 3.135689363 | AS147: =IF($G147=1,AS148,AS148+(INDEX(AS148:AS153,$G147)*0.25)+(INDEX(AT148:AT153,$G147)*0.75)) -> 2.045726627 | AT147: =IF($G147=1,AT148,AT148+(INDEX(AT148:AT153,$G147)*0.25)+(INDEX(AU148:AU153,$G147)*0.75)) -> 2.496990833 | AU147: =IF($G147=1,AU148,AU148+(INDEX(AU148:AU153,$G147)*0.25)+(INDEX(AV148:AV153,$G147)*0.75)) -> 2.950316126 | AV147: =IF($G147=1,AV148,AV148+(INDEX(AV148:AV153,$G147)*0.25)+(INDEX(AW148:AW153,$G147)*0.75)) -> 2.893565777 | AW147: =IF($G147=1,AW148,AW148+(INDEX(AW148:AW153,$G147)*0.25)+(INDEX(AX148:AX153,$G147)*0.75)) -> 3 | AX147: =IF($G147=1,AX148,AX148+(INDEX(AX148:AX153,$G147)*0.25)+(INDEX(AY148:AY153,$G147)*0.75)) -> 3 | AY147: =IF($G147=1,AY148,AY148+(INDEX(AY148:AY153,$G147)*0.25)+(INDEX(AZ148:AZ153,$G147)*0.75)) -> 3
E148: Jun'24 BPDT (calendar year) | AR148: 3.135689363 | AS148: 2.045726627 | AT148: 2.496990833 | AU148: 2.950316126 | AV148: 2.893565777 | AW148: 3 | AX148: 3 | AY148: 3 | AZ148: 3
E149: High additional increment (FY) | AU149: 2 | AV149: 2 | AW149: 2 | AX149: 2 | AY149: 2 | AZ149: 2
E150: Low additional increment (FY) | AU150: -2 | AV150: -2 | AW150: -2 | AX150: -2 | AY150: -2 | AZ150: -2
E151: High diverg +0.5% additional increment (FY) | AU151: 0.5 | AV151: 0.5 | AW151: 0.5 | AX151: 0.5 | AY151: 0.5 | AZ151: 0.5
E152: Low diverg -0.5% additional increment (FY) | AU152: -0.5 | AV152: -0.5 | AW152: -0.5 | AX152: -0.5 | AY152: -0.5 | AZ152: -0.5
E153: User defined #1 (closed) additional increment (FY)
E155: Forecast near-term CPIH debt inflation (calendar year) | F155: =F48 -> Jun'24 BPDT (calendar year) | G155: =MATCH(F155,E156:E161,0) -> 1 | AR155: =IF($G155=1,AR156,AR156+(INDEX(AR156:AR161,$G155)*0.25)+(INDEX(AS156:AS161,$G155)*0.75)) -> 2.190213331 | AS155: =IF($G155=1,AS156,AS156+(INDEX(AS156:AS161,$G155)*0.25)+(INDEX(AT156:AT161,$G155)*0.75)) -> 1.475401955 | AT155: =IF($G155=1,AT156,AT156+(INDEX(AT156:AT161,$G155)*0.25)+(INDEX(AU156:AU161,$G155)*0.75)) -> 1.626621325 | AU155: =IF($G155=1,AU156,AU156+(INDEX(AU156:AU161,$G155)*0.25)+(INDEX(AV156:AV161,$G155)*0.75)) -> 1.918551662 | AV155: =IF($G155=1,AV156,AV156+(INDEX(AV156:AV161,$G155)*0.25)+(INDEX(AW156:AW161,$G155)*0.75)) -> 2.00015591 | AW155: =IF($G155=1,AW156,AW156+(INDEX(AW156:AW161,$G155)*0.25)+(INDEX(AX156:AX161,$G155)*0.75)) -> 2 | AX155: =IF($G155=1,AX156,AX156+(INDEX(AX156:AX161,$G155)*0.25)+(INDEX(AY156:AY161,$G155)*0.75)) -> 2 | AY155: =IF($G155=1,AY156,AY156+(INDEX(AY156:AY161,$G155)*0.25)+(INDEX(AZ156:AZ161,$G155)*0.75)) -> 2
E156: Jun'24 BPDT (calendar year) | AR156: 2.190213331 | AS156: 1.475401955 | AT156: 1.626621325 | AU156: 1.918551662 | AV156: 2.00015591 | AW156: 2 | AX156: 2 | AY156: 2 | AZ156: 2
E157: High additional increment (FY) | AU157: 2 | AV157: 2 | AW157: 2 | AX157: 2 | AY157: 2 | AZ157: 2
E158: Low additional increment (FY) | AU158: -2 | AV158: -2 | AW158: -2 | AX158: -2 | AY158: -2 | AZ158: -2
E159: High diverg -0.5% additional increment (FY) | AU159: -0.5 | AV159: -0.5 | AW159: -0.5 | AX159: -0.5 | AY159: -0.5 | AZ159: -0.5
E160: Low diverg +0.5% additional increment (FY) | AU160: 0.5 | AV160: 0.5 | AW160: 0.5 | AX160: 0.5 | AY160: 0.5 | AZ160: 0.5
E161: User defined #1 (closed) additional increment (FY)
E163: Minimum equity issuance threshold | F163: =F49 -> RIIO-2 thresholds | G163: =MATCH(F163,E164:E166,0) -> 2 | AU163: =INDEX(AU164:AU166,$G163) -> 0.05 | AV163: =INDEX(AV164:AV166,$G163) -> 0.05 | AW163: =INDEX(AW164:AW166,$G163) -> 0.05 | AX163: =INDEX(AX164:AX166,$G163) -> 0.05 | AY163: =INDEX(AY164:AY166,$G163) -> 0.05
E164: 0.05 | AU164: 0.05 | AV164: 0.05 | AW164: 0.05 | AX164: 0.05 | AY164: 0.05
E165: RIIO-2 thresholds | AU165: =CHOOSE(m_identity, Cadent!AP1188, East!AP1188, London!AP1188, 'North West'!AP1188, 'West Midlands'!AP1188, Northern!AP1188, Scotland!AP1188, Southern!AP1188, 'Wales & West'!AP1188) -> 0.05 | AV165: =CHOOSE(m_identity, Cadent!AQ1188, East!AQ1188, London!AQ1188, 'North West'!AQ1188, 'West Midlands'!AQ1188, Northern!AQ1188, Scotland!AQ1188, Southern!AQ1188, 'Wales & West'!AQ1188) -> 0.05 | AW165: =CHOOSE(m_identity, Cadent!AR1188, East!AR1188, London!AR1188, 'North West'!AR1188, 'West Midlands'!AR1188, Northern!AR1188, Scotland!AR1188, Southern!AR1188, 'Wales & West'!AR1188) -> 0.05 | AX165: =CHOOSE(m_identity, Cadent!AS1188, East!AS1188, London!AS1188, 'North West'!AS1188, 'West Midlands'!AS1188, Northern!AS1188, Scotland!AS1188, Southern!AS1188, 'Wales & West'!AS1188) -> 0.05 | AY165: =CHOOSE(m_identity, Cadent!AT1188, East!AT1188, London!AT1188, 'North West'!AT1188, 'West Midlands'!AT1188, Northern!AT1188, Scotland!AT1188, Southern!AT1188, 'Wales & West'!AT1188) -> 0.05
E166: User defined #1
E168: Assumed dividends as % of equity | F168: =F51 -> 0.03 | G168: =MATCH(F168,E169:E171,0) -> 1 | AU168: =INDEX(AU169:AU171,$G168) -> 0.03 | AV168: =INDEX(AV169:AV171,$G168) -> 0.03 | AW168: =INDEX(AW169:AW171,$G168) -> 0.03 | AX168: =INDEX(AX169:AX171,$G168) -> 0.03 | AY168: =INDEX(AY169:AY171,$G168) -> 0.03
E169: 0.03 | AU169: 0.03 | AV169: 0.03 | AW169: 0.03 | AX169: 0.03 | AY169: 0.03
E170: 0.015 | AU170: 0.015 | AV170: 0.015 | AW170: 0.015 | AX170: 0.015 | AY170: 0.015
E171: User defined #1
E173: Assumed return of capital as % of equity | F173: =F52 -> User defined #1 | G173: =MATCH(F173,E174:E175,0) -> 1 | AU173: =INDEX(AU174:AU175,$G173) -> 0.02310523098 | AV173: =INDEX(AV174:AV175,$G173) -> 0.02524223161 | AW173: =INDEX(AW174:AW175,$G173) -> 0.0315121684 | AX173: =INDEX(AX174:AX175,$G173) -> 0.03491801507 | AY173: =INDEX(AY174:AY175,$G173) -> 0.04109609941
E174: User defined #1 | AU174: 0.02310523098 | AV174: 0.02524223161 | AW174: 0.0315121684 | AX174: 0.03491801507 | AY174: 0.04109609941
E175: User defined #2
E177: Equity issuance costs | AU177: =$F50 -> 0.05 | AV177: =$F50 -> 0.05 | AW177: =$F50 -> 0.05 | AX177: =$F50 -> 0.05 | AY177: =$F50 -> 0.05
E179: Equity issuance gearing target | AU179: =$F53 -> 0.6 | AV179: 0.6 | AW179: 0.6 | AX179: 0.6 | AY179: 0.6
E180: CPIH index-linked debt as a percentage of net debt | AU180: 0.3 | AV180: 0.3 | AW180: 0.3 | AX180: 0.3 | AY180: 0.3
E182: Annual interest rate inputs for actual debt | F182: =F55 -> Base case | G182: =MATCH(F182,F183:F186,0) -> 1
E183: Nominal | F183: =E193 -> Base case | AP183: =CHOOSE($G$182,AP194,AP205,AP216,AP227) -> 0.02478780965 | AQ183: =CHOOSE($G$182,AQ194,AQ205,AQ216,AQ227) -> 0.05065582527 | AR183: 0.06043285476 | AS183: 0.06000504003 | AT183: 0.06004771124 | AU183: 0.06004771124 | AV183: 0.06004771124 | AW183: 0.06004771124 | AX183: 0.06004771124 | AY183: 0.06004771124
E184: RPI real | F184: =E204 -> High case (+2%) | AP184: =CHOOSE($G$182,AP195,AP206,AP217,AP228) -> -0.004328453369 | AQ184: 0.02337017361 | AR184: 0.03134378321 | AS184: 0.02940752655 | AT184: 0.02917253519 | AU184: 0.02917253519 | AV184: 0.02917253519 | AW184: 0.02917253519 | AX184: 0.02917253519 | AY184: 0.02917253519
E185: CPIH real | F185: =E215 -> Low case (-2%) | AP185: =CHOOSE($G$182,AP196,AP207,AP218,AP229) -> 0.00469393103 | AQ185: 0.0310177675 | AR185: 0.04269409355 | AS185: 0.03922021502 | AT185: 0.039262462 | AU185: 0.039262462 | AV185: 0.039262462 | AW185: 0.039262462 | AX185: 0.039262462 | AY185: 0.039262462
E186: LIBOR 1 Month | F186: =E226 -> User defined #1 | AP186: =CHOOSE($G$182,AP197,AP208,AP219,AP230) -> 0.001799204348 | AQ186: 0.01612483448 | AR186: 0 | AS186: 0 | AT186: 0 | AU186: 0 | AV186: 0 | AW186: 0 | AX186: 0 | AY186: 0
E187: LIBOR 3 Month | AP187: =CHOOSE($G$182,AP198,AP209,AP220,AP231) -> 0.002735023715 | AQ187: 0.02072822759 | AR187: 0 | AS187: 0 | AT187: 0 | AU187: 0 | AV187: 0 | AW187: 0 | AX187: 0 | AY187: 0
E188: LIBOR 6 Month | AP188: =CHOOSE($G$182,AP199,AP210,AP221,AP232) -> 0.004362487352 | AQ188: 0.02694964828 | AR188: 0 | AS188: 0 | AT188: 0 | AU188: 0 | AV188: 0 | AW188: 0 | AX188: 0 | AY188: 0
E189: LIBOR 12 Month | AP189: =CHOOSE($G$182,AP200,AP211,AP222,AP233) -> 0.006483759684 | AQ189: 0.03034964828 | AR189: 0 | AS189: 0 | AT189: 0 | AU189: 0 | AV189: 0 | AW189: 0 | AX189: 0 | AY189: 0
E190: SONIA | AP190: =CHOOSE($G$182,AP201,AP212,AP223,AP234) -> 0.001423098814 | AQ190: 0.02263104382 | AR190: 0.04971156 | AS190: 0.04984911381 | AT190: 0.04322599357 | AU190: 0.03879839388 | AV190: 0.03615800568 | AW190: 0.03537619149 | AX190: 0.0357588474 | AY190: 0.0367355506
E191: Credit Spread Assumption for Floating Rate Debt (LIBOR) | AP191: =CHOOSE($G$182,AP202,AP213,AP224,AP235) -> 0.015 | AQ191: 0.015 | AR191: 0.015 | AS191: 0.015 | AT191: 0.015 | AU191: 0.015 | AV191: 0.015 | AW191: 0.015 | AX191: 0.015 | AY191: 0.015
E192: Credit Spread Assumption for Floating Rate Debt (SONIA) | AP192: =CHOOSE($G$182,AP203,AP214,AP225,AP236) -> 0.017 | AQ192: 0.017 | AR192: 0.017 | AS192: 0.017 | AT192: 0.017 | AU192: 0.017 | AV192: 0.017 | AW192: 0.017 | AX192: 0.017 | AY192: 0.017
E193: Base case
E194: Nominal | AP194: 0.02478780965 | AQ194: 0.05065582527 | AR194: 0.06043285476 | AS194: 0.06000504003 | AT194: 0.06004771124 | AU194: 0.06004771124 | AV194: 0.06004771124 | AW194: 0.06004771124 | AX194: 0.06004771124 | AY194: 0.06004771124
E195: RPI real | AP195: -0.004328453369 | AQ195: 0.02337017361 | AR195: 0.03134378321 | AS195: 0.02940752655 | AT195: 0.02917253519 | AU195: 0.02917253519 | AV195: 0.02917253519 | AW195: 0.02917253519 | AX195: 0.02917253519 | AY195: 0.02917253519
E196: CPIH real | AP196: 0.00469393103 | AQ196: 0.0310177675 | AR196: 0.04269409355 | AS196: 0.03922021502 | AT196: 0.039262462 | AU196: 0.039262462 | AV196: 0.039262462 | AW196: 0.039262462 | AX196: 0.039262462 | AY196: 0.039262462
E197: LIBOR 1 Month | AP197: 0.001799204348 | AQ197: 0.01612483448 | AR197: 0 | AS197: 0 | AT197: 0 | AU197: 0 | AV197: 0 | AW197: 0 | AX197: 0 | AY197: 0
E198: LIBOR 3 Month | AP198: 0.002735023715 | AQ198: 0.02072822759 | AR198: 0 | AS198: 0 | AT198: 0 | AU198: 0 | AV198: 0 | AW198: 0 | AX198: 0 | AY198: 0
E199: LIBOR 6 Month | AP199: 0.004362487352 | AQ199: 0.02694964828 | AR199: 0 | AS199: 0 | AT199: 0 | AU199: 0 | AV199: 0 | AW199: 0 | AX199: 0 | AY199: 0
E200: LIBOR 12 Month | AP200: 0.006483759684 | AQ200: 0.03034964828 | AR200: 0 | AS200: 0 | AT200: 0 | AU200: 0 | AV200: 0 | AW200: 0 | AX200: 0 | AY200: 0
E201: SONIA | AP201: 0.001423098814 | AQ201: 0.02263104382 | AR201: 0.04971156 | AS201: 0.04984911381 | AT201: 0.04322599357 | AU201: 0.03879839388 | AV201: 0.03615800568 | AW201: 0.03537619149 | AX201: 0.0357588474 | AY201: 0.0367355506
E202: Credit Spread Assumption for Floating Rate Debt (LIBOR) | AP202: 0.015 | AQ202: 0.015 | AR202: 0.015 | AS202: 0.015 | AT202: 0.015 | AU202: 0.015 | AV202: 0.015 | AW202: 0.015 | AX202: 0.015 | AY202: 0.015
E203: Credit Spread Assumption for Floating Rate Debt (SONIA) | AP203: 0.017 | AQ203: 0.017 | AR203: 0.017 | AS203: 0.017 | AT203: 0.017 | AU203: 0.017 | AV203: 0.017 | AW203: 0.017 | AX203: 0.017 | AY203: 0.017
E204: High case (+2%)
E205: Nominal | AP205: 0.02478780965 | AQ205: 0.05065582527 | AR205: 0.06043285476 | AS205: 0.06000504003 | AT205: 0.06004771124 | AU205: 0.08004771124 | AV205: 0.08004771124 | AW205: 0.08004771124 | AX205: 0.08004771124 | AY205: 0.08004771124
E206: RPI real | AP206: -0.004328453369 | AQ206: 0.02337017361 | AR206: 0.03134378321 | AS206: 0.02940752655 | AT206: 0.02917253519 | AU206: 0.04859001092 | AV206: 0.04859001092 | AW206: 0.04859001092 | AX206: 0.04859001092 | AY206: 0.04859001092
E207: CPIH real | AP207: 0.00469393103 | AQ207: 0.0310177675 | AR207: 0.04269409355 | AS207: 0.03922021502 | AT207: 0.039262462 | AU207: 0.05887030514 | AV207: 0.05887030514 | AW207: 0.05887030514 | AX207: 0.05887030514 | AY207: 0.05887030514
E208: LIBOR 1 Month | AP208: 0.001799204348 | AQ208: 0.01612483448 | AR208: 0 | AS208: 0 | AT208: 0 | AU208: 0 | AV208: 0 | AW208: 0 | AX208: 0 | AY208: 0
E209: LIBOR 3 Month | AP209: 0.002735023715 | AQ209: 0.02072822759 | AR209: 0 | AS209: 0 | AT209: 0 | AU209: 0 | AV209: 0 | AW209: 0 | AX209: 0 | AY209: 0
E210: LIBOR 6 Month | AP210: 0.004362487352 | AQ210: 0.02694964828 | AR210: 0 | AS210: 0 | AT210: 0 | AU210: 0 | AV210: 0 | AW210: 0 | AX210: 0 | AY210: 0
E211: LIBOR 12 Month | AP211: 0.006483759684 | AQ211: 0.03034964828 | AR211: 0 | AS211: 0 | AT211: 0 | AU211: 0 | AV211: 0 | AW211: 0 | AX211: 0 | AY211: 0
E212: SONIA | AP212: 0.001423098814 | AQ212: 0.02263104382 | AR212: 0.04971156 | AS212: 0.04984911381 | AT212: 0.04322599357 | AU212: 0.05879839388 | AV212: 0.05615800568 | AW212: 0.05537619149 | AX212: 0.0557588474 | AY212: 0.0567355506
E213: Credit Spread Assumption for Floating Rate Debt (LIBOR) | AP213: 0.015 | AQ213: 0.015 | AR213: 0.015 | AS213: 0.015 | AT213: 0.015 | AU213: 0.015 | AV213: 0.015 | AW213: 0.015 | AX213: 0.015 | AY213: 0.015
E214: Credit Spread Assumption for Floating Rate Debt (SONIA) | AP214: 0.017 | AQ214: 0.017 | AR214: 0.017 | AS214: 0.017 | AT214: 0.017 | AU214: 0.017 | AV214: 0.017 | AW214: 0.017 | AX214: 0.017 | AY214: 0.017
E215: Low case (-2%)
E216: Nominal | AP216: 0.02478780965 | AQ216: 0.05065582527 | AR216: 0.06043285476 | AS216: 0.06000504003 | AT216: 0.06004771124 | AU216: 0.04004771124 | AV216: 0.04004771124 | AW216: 0.04004771124 | AX216: 0.04004771124 | AY216: 0.04004771124
E217: RPI real | AP217: -0.004328453369 | AQ217: 0.02337017361 | AR217: 0.03134378321 | AS217: 0.02940752655 | AT217: 0.02917253519 | AU217: 0.00975505946 | AV217: 0.00975505946 | AW217: 0.00975505946 | AX217: 0.00975505946 | AY217: 0.00975505946
E218: CPIH real | AP218: 0.00469393103 | AQ218: 0.0310177675 | AR218: 0.04269409355 | AS218: 0.03922021502 | AT218: 0.039262462 | AU218: 0.01965461887 | AV218: 0.01965461887 | AW218: 0.01965461887 | AX218: 0.01965461887 | AY218: 0.01965461887
E219: LIBOR 1 Month | AP219: 0.001799204348 | AQ219: 0.01612483448 | AR219: 0 | AS219: 0 | AT219: 0 | AU219: 0 | AV219: 0 | AW219: 0 | AX219: 0 | AY219: 0
E220: LIBOR 3 Month | AP220: 0.002735023715 | AQ220: 0.02072822759 | AR220: 0 | AS220: 0 | AT220: 0 | AU220: 0 | AV220: 0 | AW220: 0 | AX220: 0 | AY220: 0
E221: LIBOR 6 Month | AP221: 0.004362487352 | AQ221: 0.02694964828 | AR221: 0 | AS221: 0 | AT221: 0 | AU221: 0 | AV221: 0 | AW221: 0 | AX221: 0 | AY221: 0
E222: LIBOR 12 Month | AP222: 0.006483759684 | AQ222: 0.03034964828 | AR222: 0 | AS222: 0 | AT222: 0 | AU222: 0 | AV222: 0 | AW222: 0 | AX222: 0 | AY222: 0
E223: SONIA | AP223: 0.001423098814 | AQ223: 0.02263104382 | AR223: 0.04971156 | AS223: 0.04984911381 | AT223: 0.04322599357 | AU223: 0.01879839388 | AV223: 0.01615800568 | AW223: 0.01537619149 | AX223: 0.0157588474 | AY223: 0.0167355506
E224: Credit Spread Assumption for Floating Rate Debt (LIBOR) | AP224: 0.015 | AQ224: 0.015 | AR224: 0.015 | AS224: 0.015 | AT224: 0.015 | AU224: 0.015 | AV224: 0.015 | AW224: 0.015 | AX224: 0.015 | AY224: 0.015
E225: Credit Spread Assumption for Floating Rate Debt (SONIA) | AP225: 0.017 | AQ225: 0.017 | AR225: 0.017 | AS225: 0.017 | AT225: 0.017 | AU225: 0.017 | AV225: 0.017 | AW225: 0.017 | AX225: 0.017 | AY225: 0.017
E226: User defined #1
E227: Nominal
E228: RPI real
E229: CPIH real
E230: LIBOR 1 Month
E231: LIBOR 3 Month
E232: LIBOR 6 Month
E233: LIBOR 12 Month
E234: SONIA
E235: Credit Spread Assumption for Floating Rate Debt (LIBOR)
E236: Credit Spread Assumption for Floating Rate Debt (SONIA)
D238: Depreciation factors
AT239: 3 | AU239: 4 | AV239: 5 | AW239: 6 | AX239: 7
E240: Profile of depreciation factors | F240: =F27 -> Base case | G240: =MATCH(F240,E241:E243,0) -> 1 | AT240: =INDEX(AT241:AT243,$G240) -> 1 | AU240: =INDEX(AU241:AU243,$G240) -> 1 | AV240: =INDEX(AV241:AV243,$G240) -> 1 | AW240: =INDEX(AW241:AW243,$G240) -> 1 | AX240: =INDEX(AX241:AX243,$G240) -> 1
E241: Base case | AT241: 1 | AU241: 1 | AV241: 1 | AW241: 1 | AX241: 1
E242: Profile 1 | AT242: 1.2 | AU242: 1.2 | AV242: 1.1 | AW242: 1 | AX242: 1
... 63 more rows

Sheet InputSummary
A1: Input
B2: =UserInterface!G17 -> Wales & West
E3: Parameter | F3: Licence condition | G3: Units | H3: Term | I3: Constant | AP3: Annual values
E4: PCFM year ending | F4: =Cover!C4 -> Model Version | I4: =UserInterface!$G$10 -> 2026-03-31 | K4: 1991-03-31 | L4: 1992-03-31 | M4: 1993-03-31 | N4: 1994-03-31 | O4: 1995-03-31 | P4: 1996-03-31 | Q4: 1997-03-31 | R4: 1998-03-31 | S4: 1999-03-31 | T4: 2000-03-31 | U4: 2001-03-31 | V4: 2002-03-31 | W4: 2003-03-31 | X4: 2004-03-31 | Y4: 2005-03-31 | Z4: 2006-03-31 | AA4: 2007-03-31 | AB4: 2008-03-31 | AC4: 2009-03-31 | AD4: 2010-03-31 | AE4: 2011-03-31 | AF4: 2012-03-31 | AG4: 2013-03-31 | AH4: 2014-03-31 | AI4: 2015-03-31 | AJ4: 2016-03-31 | AK4: 2017-03-31 | AL4: 2018-03-31 | AM4: 2019-03-31 | AN4: 2020-03-31 | AO4: 2021-03-31 | AP4: 2022-03-31 | AQ4: 2023-03-31 | AR4: 2024-03-31 | AS4: 2025-03-31 | AT4: 2026-03-31 | AU4: 2027-03-31 | AV4: 2028-03-31 | AW4: 2029-03-31 | AX4: 2030-03-31 | AY4: =EOMONTH(AX4,12) -> 2031-03-31
AP5: 2 | AQ5: 2 | AR5: 2 | AS5: 2 | AT5: 2 | AU5: 3 | AV5: 3 | AW5: 3 | AX5: 3 | AY5: 3
A7: RIIO3 inputs: BPDT mirror table (£m23/24 price base)
B9: Totex allowance
C11: Non-variant allowances
E13: Non-variant allowed load related capex | G13: £m 23/24 prices | AU13: =CHOOSE(m_identity, Cadent!AU13, East!AU13, London!AU13, 'North West'!AU13, 'West Midlands'!AU13, Northern!AU13, Scotland!AU13, Southern!AU13, 'Wales & West'!AU13) -> 3.871999599 | AV13: =CHOOSE(m_identity, Cadent!AV13, East!AV13, London!AV13, 'North West'!AV13, 'West Midlands'!AV13, Northern!AV13, Scotland!AV13, Southern!AV13, 'Wales & West'!AV13) -> 3.848391543 | AW13: =CHOOSE(m_identity, Cadent!AW13, East!AW13, London!AW13, 'North West'!AW13, 'West Midlands'!AW13, Northern!AW13, Scotland!AW13, Southern!AW13, 'Wales & West'!AW13) -> 3.836078747 | AX13: =CHOOSE(m_identity, Cadent!AX13, East!AX13, London!AX13, 'North West'!AX13, 'West Midlands'!AX13, Northern!AX13, Scotland!AX13, Southern!AX13, 'Wales & West'!AX13) -> 3.827838274 | AY13: =CHOOSE(m_identity, Cadent!AY13, East!AY13, London!AY13, 'North West'!AY13, 'West Midlands'!AY13, Northern!AY13, Scotland!AY13, Southern!AY13, 'Wales & West'!AY13) -> 3.823196314
E14: Non-variant allowed non-load related capex - other | G14: £m 23/24 prices | AU14: =CHOOSE(m_identity, Cadent!AU14, East!AU14, London!AU14, 'North West'!AU14, 'West Midlands'!AU14, Northern!AU14, Scotland!AU14, Southern!AU14, 'Wales & West'!AU14) -> 65.31071565 | AV14: =CHOOSE(m_identity, Cadent!AV14, East!AV14, London!AV14, 'North West'!AV14, 'West Midlands'!AV14, Northern!AV14, Scotland!AV14, Southern!AV14, 'Wales & West'!AV14) -> 62.66369761 | AW14: =CHOOSE(m_identity, Cadent!AW14, East!AW14, London!AW14, 'North West'!AW14, 'West Midlands'!AW14, Northern!AW14, Scotland!AW14, Southern!AW14, 'Wales & West'!AW14) -> 59.97075317 | AX14: =CHOOSE(m_identity, Cadent!AX14, East!AX14, London!AX14, 'North West'!AX14, 'West Midlands'!AX14, Northern!AX14, Scotland!AX14, Southern!AX14, 'Wales & West'!AX14) -> 56.65601619 | AY14: =CHOOSE(m_identity, Cadent!AY14, East!AY14, London!AY14, 'North West'!AY14, 'West Midlands'!AY14, Northern!AY14, Scotland!AY14, Southern!AY14, 'Wales & West'!AY14) -> 56.74451963
E15: Non-variant allowed business support (opex) | G15: £m 23/24 prices | AU15: =CHOOSE(m_identity, Cadent!AU15, East!AU15, London!AU15, 'North West'!AU15, 'West Midlands'!AU15, Northern!AU15, Scotland!AU15, Southern!AU15, 'Wales & West'!AU15) -> 67.98966296 | AV15: =CHOOSE(m_identity, Cadent!AV15, East!AV15, London!AV15, 'North West'!AV15, 'West Midlands'!AV15, Northern!AV15, Scotland!AV15, Southern!AV15, 'Wales & West'!AV15) -> 70.20823671 | AW15: =CHOOSE(m_identity, Cadent!AW15, East!AW15, London!AW15, 'North West'!AW15, 'West Midlands'!AW15, Northern!AW15, Scotland!AW15, Southern!AW15, 'Wales & West'!AW15) -> 71.71915816 | AX15: =CHOOSE(m_identity, Cadent!AX15, East!AX15, London!AX15, 'North West'!AX15, 'West Midlands'!AX15, Northern!AX15, Scotland!AX15, Southern!AX15, 'Wales & West'!AX15) -> 69.67932576 | AY15: =CHOOSE(m_identity, Cadent!AY15, East!AY15, London!AY15, 'North West'!AY15, 'West Midlands'!AY15, Northern!AY15, Scotland!AY15, Southern!AY15, 'Wales & West'!AY15) -> 70.05370332
E16: Non-variant allowed directs opex | G16: £m 23/24 prices | AU16: =CHOOSE(m_identity, Cadent!AU16, East!AU16, London!AU16, 'North West'!AU16, 'West Midlands'!AU16, Northern!AU16, Scotland!AU16, Southern!AU16, 'Wales & West'!AU16) -> 84.04680935 | AV16: =CHOOSE(m_identity, Cadent!AV16, East!AV16, London!AV16, 'North West'!AV16, 'West Midlands'!AV16, Northern!AV16, Scotland!AV16, Southern!AV16, 'Wales & West'!AV16) -> 86.85593575 | AW16: =CHOOSE(m_identity, Cadent!AW16, East!AW16, London!AW16, 'North West'!AW16, 'West Midlands'!AW16, Northern!AW16, Scotland!AW16, Southern!AW16, 'Wales & West'!AW16) -> 85.20818598 | AX16: =CHOOSE(m_identity, Cadent!AX16, East!AX16, London!AX16, 'North West'!AX16, 'West Midlands'!AX16, Northern!AX16, Scotland!AX16, Southern!AX16, 'Wales & West'!AX16) -> 85.74182567 | AY16: =CHOOSE(m_identity, Cadent!AY16, East!AY16, London!AY16, 'North West'!AY16, 'West Midlands'!AY16, Northern!AY16, Scotland!AY16, Southern!AY16, 'Wales & West'!AY16) -> 83.60546751
E17: Non-variant allowed repex | G17: £m 23/24 prices | AU17: =CHOOSE(m_identity, Cadent!AU17, East!AU17, London!AU17, 'North West'!AU17, 'West Midlands'!AU17, Northern!AU17, Scotland!AU17, Southern!AU17, 'Wales & West'!AU17) -> 58.27679288 | AV17: =CHOOSE(m_identity, Cadent!AV17, East!AV17, London!AV17, 'North West'!AV17, 'West Midlands'!AV17, Northern!AV17, Scotland!AV17, Southern!AV17, 'Wales & West'!AV17) -> 59.49900722 | AW17: =CHOOSE(m_identity, Cadent!AW17, East!AW17, London!AW17, 'North West'!AW17, 'West Midlands'!AW17, Northern!AW17, Scotland!AW17, Southern!AW17, 'Wales & West'!AW17) -> 57.08510619 | AX17: =CHOOSE(m_identity, Cadent!AX17, East!AX17, London!AX17, 'North West'!AX17, 'West Midlands'!AX17, Northern!AX17, Scotland!AX17, Southern!AX17, 'Wales & West'!AX17) -> 58.10586568 | AY17: =CHOOSE(m_identity, Cadent!AY17, East!AY17, London!AY17, 'North West'!AY17, 'West Midlands'!AY17, Northern!AY17, Scotland!AY17, Southern!AY17, 'Wales & West'!AY17) -> 57.48094924
C19: Variant allowances (including Real Price Effects)
C20: Note: RPEs in the table below are calculated for information only. The calculation by totex category is detailed and then aggregated in the "Input" tab.
E22: Gas Holder demolitions Price Control Deliverable [WWU and NGN only] | F22: SpC 3.25 | G22: £m 23/24 prices | H22: GHRRt | AU22: =CHOOSE(m_identity, Cadent!AU22, East!AU22, London!AU22, 'North West'!AU22, 'West Midlands'!AU22, Northern!AU22, Scotland!AU22, Southern!AU22, 'Wales & West'!AU22) -> 0 | AV22: =CHOOSE(m_identity, Cadent!AV22, East!AV22, London!AV22, 'North West'!AV22, 'West Midlands'!AV22, Northern!AV22, Scotland!AV22, Southern!AV22, 'Wales & West'!AV22) -> 0 | AW22: =CHOOSE(m_identity, Cadent!AW22, East!AW22, London!AW22, 'North West'!AW22, 'West Midlands'!AW22, Northern!AW22, Scotland!AW22, Southern!AW22, 'Wales & West'!AW22) -> 0 | AX22: =CHOOSE(m_identity, Cadent!AX22, East!AX22, London!AX22, 'North West'!AX22, 'West Midlands'!AX22, Northern!AX22, Scotland!AX22, Southern!AX22, 'Wales & West'!AX22) -> 0 | AY22: =CHOOSE(m_identity, Cadent!AY22, East!AY22, London!AY22, 'North West'!AY22, 'West Midlands'!AY22, Northern!AY22, Scotland!AY22, Southern!AY22, 'Wales & West'!AY22) -> 0
E23: Baseline Network Risk Output | F23: SpC 3.1 | G23: £m 23/24 prices | H23: NARMt | AU23: =CHOOSE(m_identity, Cadent!AU23, East!AU23, London!AU23, 'North West'!AU23, 'West Midlands'!AU23, Northern!AU23, Scotland!AU23, Southern!AU23, 'Wales & West'!AU23) -> 0 | AV23: =CHOOSE(m_identity, Cadent!AV23, East!AV23, London!AV23, 'North West'!AV23, 'West Midlands'!AV23, Northern!AV23, Scotland!AV23, Southern!AV23, 'Wales & West'!AV23) -> 0 | AW23: =CHOOSE(m_identity, Cadent!AW23, East!AW23, London!AW23, 'North West'!AW23, 'West Midlands'!AW23, Northern!AW23, Scotland!AW23, Southern!AW23, 'Wales & West'!AW23) -> 0 | AX23: =CHOOSE(m_identity, Cadent!AX23, East!AX23, London!AX23, 'North West'!AX23, 'West Midlands'!AX23, Northern!AX23, Scotland!AX23, Southern!AX23, 'Wales & West'!AX23) -> 0 | AY23: =CHOOSE(m_identity, Cadent!AY23, East!AY23, London!AY23, 'North West'!AY23, 'West Midlands'!AY23, Northern!AY23, Scotland!AY23, Southern!AY23, 'Wales & West'!AY23) -> 0
E24: Tier 1 Mains decommissioned Price Control Deliverable | F24: SpC 3.10 | G24: £m 23/24 prices | H24: T1MDt | AU24: =CHOOSE(m_identity, Cadent!AU24, East!AU24, London!AU24, 'North West'!AU24, 'West Midlands'!AU24, Northern!AU24, Scotland!AU24, Southern!AU24, 'Wales & West'!AU24) -> 86.75038415 | AV24: =CHOOSE(m_identity, Cadent!AV24, East!AV24, London!AV24, 'North West'!AV24, 'West Midlands'!AV24, Northern!AV24, Scotland!AV24, Southern!AV24, 'Wales & West'!AV24) -> 84.5947636 | AW24: =CHOOSE(m_identity, Cadent!AW24, East!AW24, London!AW24, 'North West'!AW24, 'West Midlands'!AW24, Northern!AW24, Scotland!AW24, Southern!AW24, 'Wales & West'!AW24) -> 84.95262362 | AX24: =CHOOSE(m_identity, Cadent!AX24, East!AX24, London!AX24, 'North West'!AX24, 'West Midlands'!AX24, Northern!AX24, Scotland!AX24, Southern!AX24, 'Wales & West'!AX24) -> 85.71898498 | AY24: =CHOOSE(m_identity, Cadent!AY24, East!AY24, London!AY24, 'North West'!AY24, 'West Midlands'!AY24, Northern!AY24, Scotland!AY24, Southern!AY24, 'Wales & West'!AY24) -> 82.92969256
E25: Tier 1 Services Repex Price Control Deliverable | F25: SpC 3.11 | G25: £m 23/24 prices | H25: T1SRt | AU25: =CHOOSE(m_identity, Cadent!AU25, East!AU25, London!AU25, 'North West'!AU25, 'West Midlands'!AU25, Northern!AU25, Scotland!AU25, Southern!AU25, 'Wales & West'!AU25) -> 27.34958792 | AV25: =CHOOSE(m_identity, Cadent!AV25, East!AV25, London!AV25, 'North West'!AV25, 'West Midlands'!AV25, Northern!AV25, Scotland!AV25, Southern!AV25, 'Wales & West'!AV25) -> 30.29861808 | AW25: =CHOOSE(m_identity, Cadent!AW25, East!AW25, London!AW25, 'North West'!AW25, 'West Midlands'!AW25, Northern!AW25, Scotland!AW25, Southern!AW25, 'Wales & West'!AW25) -> 27.59845535 | AX25: =CHOOSE(m_identity, Cadent!AX25, East!AX25, London!AX25, 'North West'!AX25, 'West Midlands'!AX25, Northern!AX25, Scotland!AX25, Southern!AX25, 'Wales & West'!AX25) -> 27.88231245 | AY25: =CHOOSE(m_identity, Cadent!AY25, East!AY25, London!AY25, 'North West'!AY25, 'West Midlands'!AY25, Northern!AY25, Scotland!AY25, Southern!AY25, 'Wales & West'!AY25) -> 32.03791274
E26: Biomethane improved access rollout Price Control Deliverable [SGN only] | F26: SpC 3.30 | G26: £m 23/24 prices | H26: BMIt | AU26: =CHOOSE(m_identity, Cadent!AU26, East!AU26, London!AU26, 'North West'!AU26, 'West Midlands'!AU26, Northern!AU26, Scotland!AU26, Southern!AU26, 'Wales & West'!AU26) -> 0 | AV26: =CHOOSE(m_identity, Cadent!AV26, East!AV26, London!AV26, 'North West'!AV26, 'West Midlands'!AV26, Northern!AV26, Scotland!AV26, Southern!AV26, 'Wales & West'!AV26) -> 0 | AW26: =CHOOSE(m_identity, Cadent!AW26, East!AW26, London!AW26, 'North West'!AW26, 'West Midlands'!AW26, Northern!AW26, Scotland!AW26, Southern!AW26, 'Wales & West'!AW26) -> 0 | AX26: =CHOOSE(m_identity, Cadent!AX26, East!AX26, London!AX26, 'North West'!AX26, 'West Midlands'!AX26, Northern!AX26, Scotland!AX26, Southern!AX26, 'Wales & West'!AX26) -> 0 | AY26: =CHOOSE(m_identity, Cadent!AY26, East!AY26, London!AY26, 'North West'!AY26, 'West Midlands'!AY26, Northern!AY26, Scotland!AY26, Southern!AY26, 'Wales & West'!AY26) -> 0
E27: Remote pressure management Price Control Deliverable [SGN Southern only] | F27: SpC 3.29 | G27: £m 23/24 prices | H27: RPMt | AU27: =CHOOSE(m_identity, Cadent!AU27, East!AU27, London!AU27, 'North West'!AU27, 'West Midlands'!AU27, Northern!AU27, Scotland!AU27, Southern!AU27, 'Wales & West'!AU27) -> 0 | AV27: =CHOOSE(m_identity, Cadent!AV27, East!AV27, London!AV27, 'North West'!AV27, 'West Midlands'!AV27, Northern!AV27, Scotland!AV27, Southern!AV27, 'Wales & West'!AV27) -> 0 | AW27: =CHOOSE(m_identity, Cadent!AW27, East!AW27, London!AW27, 'North West'!AW27, 'West Midlands'!AW27, Northern!AW27, Scotland!AW27, Southern!AW27, 'Wales & West'!AW27) -> 0 | AX27: =CHOOSE(m_identity, Cadent!AX27, East!AX27, London!AX27, 'North West'!AX27, 'West Midlands'!AX27, Northern!AX27, Scotland!AX27, Southern!AX27, 'Wales & West'!AX27) -> 0 | AY27: =CHOOSE(m_identity, Cadent!AY27, East!AY27, London!AY27, 'North West'!AY27, 'West Midlands'!AY27, Northern!AY27, Scotland!AY27, Southern!AY27, 'Wales & West'!AY27) -> 0
E28: Intermediate pressure reconfigurations Price Control Deliverable [SGN Scotland only] | F28: SpC 3.28 | G28: £m 23/24 prices | H28: IPRt | AU28: =CHOOSE(m_identity, Cadent!AU28, East!AU28, London!AU28, 'North West'!AU28, 'West Midlands'!AU28, Northern!AU28, Scotland!AU28, Southern!AU28, 'Wales & West'!AU28) -> 0 | AV28: =CHOOSE(m_identity, Cadent!AV28, East!AV28, London!AV28, 'North West'!AV28, 'West Midlands'!AV28, Northern!AV28, Scotland!AV28, Southern!AV28, 'Wales & West'!AV28) -> 0 | AW28: =CHOOSE(m_identity, Cadent!AW28, East!AW28, London!AW28, 'North West'!AW28, 'West Midlands'!AW28, Northern!AW28, Scotland!AW28, Southern!AW28, 'Wales & West'!AW28) -> 0 | AX28: =CHOOSE(m_identity, Cadent!AX28, East!AX28, London!AX28, 'North West'!AX28, 'West Midlands'!AX28, Northern!AX28, Scotland!AX28, Southern!AX28, 'Wales & West'!AX28) -> 0 | AY28: =CHOOSE(m_identity, Cadent!AY28, East!AY28, London!AY28, 'North West'!AY28, 'West Midlands'!AY28, Northern!AY28, Scotland!AY28, Southern!AY28, 'Wales & West'!AY28) -> 0
E29: Capital projects Price Control Deliverable | F29: SpC 3.12 | G29: £m 23/24 prices | H29: CAPt | AU29: =CHOOSE(m_identity, Cadent!AU29, East!AU29, London!AU29, 'North West'!AU29, 'West Midlands'!AU29, Northern!AU29, Scotland!AU29, Southern!AU29, 'Wales & West'!AU29) -> 4.04877675 | AV29: =CHOOSE(m_identity, Cadent!AV29, East!AV29, London!AV29, 'North West'!AV29, 'West Midlands'!AV29, Northern!AV29, Scotland!AV29, Southern!AV29, 'Wales & West'!AV29) -> 25.10241585 | AW29: =CHOOSE(m_identity, Cadent!AW29, East!AW29, London!AW29, 'North West'!AW29, 'West Midlands'!AW29, Northern!AW29, Scotland!AW29, Southern!AW29, 'Wales & West'!AW29) -> 25.10241585 | AX29: =CHOOSE(m_identity, Cadent!AX29, East!AX29, London!AX29, 'North West'!AX29, 'West Midlands'!AX29, Northern!AX29, Scotland!AX29, Southern!AX29, 'Wales & West'!AX29) -> 25.10241585 | AY29: =CHOOSE(m_identity, Cadent!AY29, East!AY29, London!AY29, 'North West'!AY29, 'West Midlands'!AY29, Northern!AY29, Scotland!AY29, Southern!AY29, 'Wales & West'!AY29) -> 1.6195107
E30: Commercial fleet Price Control Deliverable | F30: SpC 3.13 | G30: £m 23/24 prices | H30: OTCt | AU30: =CHOOSE(m_identity, Cadent!AU30, East!AU30, London!AU30, 'North West'!AU30, 'West Midlands'!AU30, Northern!AU30, Scotland!AU30, Southern!AU30, 'Wales & West'!AU30) -> 0 | AV30: =CHOOSE(m_identity, Cadent!AV30, East!AV30, London!AV30, 'North West'!AV30, 'West Midlands'!AV30, Northern!AV30, Scotland!AV30, Southern!AV30, 'Wales & West'!AV30) -> 0 | AW30: =CHOOSE(m_identity, Cadent!AW30, East!AW30, London!AW30, 'North West'!AW30, 'West Midlands'!AW30, Northern!AW30, Scotland!AW30, Southern!AW30, 'Wales & West'!AW30) -> 0 | AX30: =CHOOSE(m_identity, Cadent!AX30, East!AX30, London!AX30, 'North West'!AX30, 'West Midlands'!AX30, Northern!AX30, Scotland!AX30, Southern!AX30, 'Wales & West'!AX30) -> 0 | AY30: =CHOOSE(m_identity, Cadent!AY30, East!AY30, London!AY30, 'North West'!AY30, 'West Midlands'!AY30, Northern!AY30, Scotland!AY30, Southern!AY30, 'Wales & West'!AY30) -> 0
E31: Gas escape reduction Price Control Deliverable [SGN only] | F31: SpC 3.31 | G31: £m 23/24 prices | H31: GERt | AU31: =CHOOSE(m_identity, Cadent!AU31, East!AU31, London!AU31, 'North West'!AU31, 'West Midlands'!AU31, Northern!AU31, Scotland!AU31, Southern!AU31, 'Wales & West'!AU31) -> 0 | AV31: =CHOOSE(m_identity, Cadent!AV31, East!AV31, London!AV31, 'North West'!AV31, 'West Midlands'!AV31, Northern!AV31, Scotland!AV31, Southern!AV31, 'Wales & West'!AV31) -> 0 | AW31: =CHOOSE(m_identity, Cadent!AW31, East!AW31, London!AW31, 'North West'!AW31, 'West Midlands'!AW31, Northern!AW31, Scotland!AW31, Southern!AW31, 'Wales & West'!AW31) -> 0 | AX31: =CHOOSE(m_identity, Cadent!AX31, East!AX31, London!AX31, 'North West'!AX31, 'West Midlands'!AX31, Northern!AX31, Scotland!AX31, Southern!AX31, 'Wales & West'!AX31) -> 0 | AY31: =CHOOSE(m_identity, Cadent!AY31, East!AY31, London!AY31, 'North West'!AY31, 'West Midlands'!AY31, Northern!AY31, Scotland!AY31, Southern!AY31, 'Wales & West'!AY31) -> 0
E32: Cyber Resilience OT Baseline | F32: SpC 3.2 | G32: £m 23/24 prices | H32: CROTt | AU32: =CHOOSE(m_identity, Cadent!AU32, East!AU32, London!AU32, 'North West'!AU32, 'West Midlands'!AU32, Northern!AU32, Scotland!AU32, Southern!AU32, 'Wales & West'!AU32) -> 15.04829236 | AV32: =CHOOSE(m_identity, Cadent!AV32, East!AV32, London!AV32, 'North West'!AV32, 'West Midlands'!AV32, Northern!AV32, Scotland!AV32, Southern!AV32, 'Wales & West'!AV32) -> 13.8273504 | AW32: =CHOOSE(m_identity, Cadent!AW32, East!AW32, London!AW32, 'North West'!AW32, 'West Midlands'!AW32, Northern!AW32, Scotland!AW32, Southern!AW32, 'Wales & West'!AW32) -> 13.20152215 | AX32: =CHOOSE(m_identity, Cadent!AX32, East!AX32, London!AX32, 'North West'!AX32, 'West Midlands'!AX32, Northern!AX32, Scotland!AX32, Southern!AX32, 'Wales & West'!AX32) -> 10.99652215 | AY32: =CHOOSE(m_identity, Cadent!AY32, East!AY32, London!AY32, 'North West'!AY32, 'West Midlands'!AY32, Northern!AY32, Scotland!AY32, Southern!AY32, 'Wales & West'!AY32) -> 11.27777215
E33: Cyber Resilience IT Baseline | F33: SpC 3.3 | G33: £m 23/24 prices | H33: CRITt | AU33: =CHOOSE(m_identity, Cadent!AU33, East!AU33, London!AU33, 'North West'!AU33, 'West Midlands'!AU33, Northern!AU33, Scotland!AU33, Southern!AU33, 'Wales & West'!AU33) -> 7.595904365 | AV33: =CHOOSE(m_identity, Cadent!AV33, East!AV33, London!AV33, 'North West'!AV33, 'West Midlands'!AV33, Northern!AV33, Scotland!AV33, Southern!AV33, 'Wales & West'!AV33) -> 7.370904365 | AW33: =CHOOSE(m_identity, Cadent!AW33, East!AW33, London!AW33, 'North West'!AW33, 'West Midlands'!AW33, Northern!AW33, Scotland!AW33, Southern!AW33, 'Wales & West'!AW33) -> 7.370904365 | AX33: =CHOOSE(m_identity, Cadent!AX33, East!AX33, London!AX33, 'North West'!AX33, 'West Midlands'!AX33, Northern!AX33, Scotland!AX33, Southern!AX33, 'Wales & West'!AX33) -> 7.595904365 | AY33: =CHOOSE(m_identity, Cadent!AY33, East!AY33, London!AY33, 'North West'!AY33, 'West Midlands'!AY33, Northern!AY33, Scotland!AY33, Southern!AY33, 'Wales & West'!AY33) -> 7.370904365
E34: Physical security Price Control Deliverable | F34: SpC 3.4 | G34: £m 23/24 prices | H34: PSUPt | AU34: =CHOOSE(m_identity, Cadent!AU34, East!AU34, London!AU34, 'North West'!AU34, 'West Midlands'!AU34, Northern!AU34, Scotland!AU34, Southern!AU34, 'Wales & West'!AU34) -> 8.946575787 | AV34: =CHOOSE(m_identity, Cadent!AV34, East!AV34, London!AV34, 'North West'!AV34, 'West Midlands'!AV34, Northern!AV34, Scotland!AV34, Southern!AV34, 'Wales & West'!AV34) -> 0.4729051839 | AW34: =CHOOSE(m_identity, Cadent!AW34, East!AW34, London!AW34, 'North West'!AW34, 'West Midlands'!AW34, Northern!AW34, Scotland!AW34, Southern!AW34, 'Wales & West'!AW34) -> 0.4729051839 | AX34: =CHOOSE(m_identity, Cadent!AX34, East!AX34, London!AX34, 'North West'!AX34, 'West Midlands'!AX34, Northern!AX34, Scotland!AX34, Southern!AX34, 'Wales & West'!AX34) -> 0.4729051839 | AY34: =CHOOSE(m_identity, Cadent!AY34, East!AY34, London!AY34, 'North West'!AY34, 'West Midlands'!AY34, Northern!AY34, Scotland!AY34, Southern!AY34, 'Wales & West'!AY34) -> 0.4729051839
E35: London Medium Pressure Price Control Deliverable [Cadent London only] | F35: SpC 3.27 | G35: £m 23/24 prices | H35: LMPt | AU35: =CHOOSE(m_identity, Cadent!AU35, East!AU35, London!AU35, 'North West'!AU35, 'West Midlands'!AU35, Northern!AU35, Scotland!AU35, Southern!AU35, 'Wales & West'!AU35) -> 0 | AV35: =CHOOSE(m_identity, Cadent!AV35, East!AV35, London!AV35, 'North West'!AV35, 'West Midlands'!AV35, Northern!AV35, Scotland!AV35, Southern!AV35, 'Wales & West'!AV35) -> 0 | AW35: =CHOOSE(m_identity, Cadent!AW35, East!AW35, London!AW35, 'North West'!AW35, 'West Midlands'!AW35, Northern!AW35, Scotland!AW35, Southern!AW35, 'Wales & West'!AW35) -> 0 | AX35: =CHOOSE(m_identity, Cadent!AX35, East!AX35, London!AX35, 'North West'!AX35, 'West Midlands'!AX35, Northern!AX35, Scotland!AX35, Southern!AX35, 'Wales & West'!AX35) -> 0 | AY35: =CHOOSE(m_identity, Cadent!AY35, East!AY35, London!AY35, 'North West'!AY35, 'West Midlands'!AY35, Northern!AY35, Scotland!AY35, Southern!AY35, 'Wales & West'!AY35) -> 0
E36: Personalising welfare facilities Price Control Deliverable [Cadent only] | F36: SpC 3.26 | G36: £m 23/24 prices | H36: PWFt | AU36: =CHOOSE(m_identity, Cadent!AU36, East!AU36, London!AU36, 'North West'!AU36, 'West Midlands'!AU36, Northern!AU36, Scotland!AU36, Southern!AU36, 'Wales & West'!AU36) -> 0 | AV36: =CHOOSE(m_identity, Cadent!AV36, East!AV36, London!AV36, 'North West'!AV36, 'West Midlands'!AV36, Northern!AV36, Scotland!AV36, Southern!AV36, 'Wales & West'!AV36) -> 0 | AW36: =CHOOSE(m_identity, Cadent!AW36, East!AW36, London!AW36, 'North West'!AW36, 'West Midlands'!AW36, Northern!AW36, Scotland!AW36, Southern!AW36, 'Wales & West'!AW36) -> 0 | AX36: =CHOOSE(m_identity, Cadent!AX36, East!AX36, London!AX36, 'North West'!AX36, 'West Midlands'!AX36, Northern!AX36, Scotland!AX36, Southern!AX36, 'Wales & West'!AX36) -> 0 | AY36: =CHOOSE(m_identity, Cadent!AY36, East!AY36, London!AY36, 'North West'!AY36, 'West Midlands'!AY36, Northern!AY36, Scotland!AY36, Southern!AY36, 'Wales & West'!AY36) -> 0
E37: Net zero and Re-opener development fund use it or lose it allowance | F37: SpC 3.5 | G37: £m 23/24 prices | H37: RDFt | AU37: =CHOOSE(m_identity, Cadent!AU37, East!AU37, London!AU37, 'North West'!AU37, 'West Midlands'!AU37, Northern!AU37, Scotland!AU37, Southern!AU37, 'Wales & West'!AU37) -> 10.28721809 | AV37: =CHOOSE(m_identity, Cadent!AV37, East!AV37, London!AV37, 'North West'!AV37, 'West Midlands'!AV37, Northern!AV37, Scotland!AV37, Southern!AV37, 'Wales & West'!AV37) -> 10.28721809 | AW37: =CHOOSE(m_identity, Cadent!AW37, East!AW37, London!AW37, 'North West'!AW37, 'West Midlands'!AW37, Northern!AW37, Scotland!AW37, Southern!AW37, 'Wales & West'!AW37) -> 6.71090367 | AX37: =CHOOSE(m_identity, Cadent!AX37, East!AX37, London!AX37, 'North West'!AX37, 'West Midlands'!AX37, Northern!AX37, Scotland!AX37, Southern!AX37, 'Wales & West'!AX37) -> 6.71090367 | AY37: =CHOOSE(m_identity, Cadent!AY37, East!AY37, London!AY37, 'North West'!AY37, 'West Midlands'!AY37, Northern!AY37, Scotland!AY37, Southern!AY37, 'Wales & West'!AY37) -> 6.648274825
E38: Spare PCD 1 | G38: £m 23/24 prices | AU38: =CHOOSE(m_identity, Cadent!AU38, East!AU38, London!AU38, 'North West'!AU38, 'West Midlands'!AU38, Northern!AU38, Scotland!AU38, Southern!AU38, 'Wales & West'!AU38) -> 0 | AV38: =CHOOSE(m_identity, Cadent!AV38, East!AV38, London!AV38, 'North West'!AV38, 'West Midlands'!AV38, Northern!AV38, Scotland!AV38, Southern!AV38, 'Wales & West'!AV38) -> 0 | AW38: =CHOOSE(m_identity, Cadent!AW38, East!AW38, London!AW38, 'North West'!AW38, 'West Midlands'!AW38, Northern!AW38, Scotland!AW38, Southern!AW38, 'Wales & West'!AW38) -> 0 | AX38: =CHOOSE(m_identity, Cadent!AX38, East!AX38, London!AX38, 'North West'!AX38, 'West Midlands'!AX38, Northern!AX38, Scotland!AX38, Southern!AX38, 'Wales & West'!AX38) -> 0 | AY38: =CHOOSE(m_identity, Cadent!AY38, East!AY38, London!AY38, 'North West'!AY38, 'West Midlands'!AY38, Northern!AY38, Scotland!AY38, Southern!AY38, 'Wales & West'!AY38) -> 0
E39: Spare PCD 2 | G39: £m 23/24 prices | AU39: =CHOOSE(m_identity, Cadent!AU39, East!AU39, London!AU39, 'North West'!AU39, 'West Midlands'!AU39, Northern!AU39, Scotland!AU39, Southern!AU39, 'Wales & West'!AU39) -> 0 | AV39: =CHOOSE(m_identity, Cadent!AV39, East!AV39, London!AV39, 'North West'!AV39, 'West Midlands'!AV39, Northern!AV39, Scotland!AV39, Southern!AV39, 'Wales & West'!AV39) -> 0 | AW39: =CHOOSE(m_identity, Cadent!AW39, East!AW39, London!AW39, 'North West'!AW39, 'West Midlands'!AW39, Northern!AW39, Scotland!AW39, Southern!AW39, 'Wales & West'!AW39) -> 0 | AX39: =CHOOSE(m_identity, Cadent!AX39, East!AX39, London!AX39, 'North West'!AX39, 'West Midlands'!AX39, Northern!AX39, Scotland!AX39, Southern!AX39, 'Wales & West'!AX39) -> 0 | AY39: =CHOOSE(m_identity, Cadent!AY39, East!AY39, London!AY39, 'North West'!AY39, 'West Midlands'!AY39, Northern!AY39, Scotland!AY39, Southern!AY39, 'Wales & West'!AY39) -> 0
E40: Spare PCD 3 | G40: £m 23/24 prices | AU40: =CHOOSE(m_identity, Cadent!AU40, East!AU40, London!AU40, 'North West'!AU40, 'West Midlands'!AU40, Northern!AU40, Scotland!AU40, Southern!AU40, 'Wales & West'!AU40) -> 0 | AV40: =CHOOSE(m_identity, Cadent!AV40, East!AV40, London!AV40, 'North West'!AV40, 'West Midlands'!AV40, Northern!AV40, Scotland!AV40, Southern!AV40, 'Wales & West'!AV40) -> 0 | AW40: =CHOOSE(m_identity, Cadent!AW40, East!AW40, London!AW40, 'North West'!AW40, 'West Midlands'!AW40, Northern!AW40, Scotland!AW40, Southern!AW40, 'Wales & West'!AW40) -> 0 | AX40: =CHOOSE(m_identity, Cadent!AX40, East!AX40, London!AX40, 'North West'!AX40, 'West Midlands'!AX40, Northern!AX40, Scotland!AX40, Southern!AX40, 'Wales & West'!AX40) -> 0 | AY40: =CHOOSE(m_identity, Cadent!AY40, East!AY40, London!AY40, 'North West'!AY40, 'West Midlands'!AY40, Northern!AY40, Scotland!AY40, Southern!AY40, 'Wales & West'!AY40) -> 0
E41: Tier 2A mains and services replacement volume driver | F41: SpC 3.16 | G41: £m 23/24 prices | H41: REt | AU41: =CHOOSE(m_identity, Cadent!AU41, East!AU41, London!AU41, 'North West'!AU41, 'West Midlands'!AU41, Northern!AU41, Scotland!AU41, Southern!AU41, 'Wales & West'!AU41) -> 0 | AV41: =CHOOSE(m_identity, Cadent!AV41, East!AV41, London!AV41, 'North West'!AV41, 'West Midlands'!AV41, Northern!AV41, Scotland!AV41, Southern!AV41, 'Wales & West'!AV41) -> 0 | AW41: =CHOOSE(m_identity, Cadent!AW41, East!AW41, London!AW41, 'North West'!AW41, 'West Midlands'!AW41, Northern!AW41, Scotland!AW41, Southern!AW41, 'Wales & West'!AW41) -> 0 | AX41: =CHOOSE(m_identity, Cadent!AX41, East!AX41, London!AX41, 'North West'!AX41, 'West Midlands'!AX41, Northern!AX41, Scotland!AX41, Southern!AX41, 'Wales & West'!AX41) -> 0 | AY41: =CHOOSE(m_identity, Cadent!AY41, East!AY41, London!AY41, 'North West'!AY41, 'West Midlands'!AY41, Northern!AY41, Scotland!AY41, Southern!AY41, 'Wales & West'!AY41) -> 0
E42: HSE policy Re-opener | F42: SpC 3.17 | G42: £m 23/24 prices | H42: REPt | AU42: =CHOOSE(m_identity, Cadent!AU42, East!AU42, London!AU42, 'North West'!AU42, 'West Midlands'!AU42, Northern!AU42, Scotland!AU42, Southern!AU42, 'Wales & West'!AU42) -> 0 | AV42: =CHOOSE(m_identity, Cadent!AV42, East!AV42, London!AV42, 'North West'!AV42, 'West Midlands'!AV42, Northern!AV42, Scotland!AV42, Southern!AV42, 'Wales & West'!AV42) -> 0 | AW42: =CHOOSE(m_identity, Cadent!AW42, East!AW42, London!AW42, 'North West'!AW42, 'West Midlands'!AW42, Northern!AW42, Scotland!AW42, Southern!AW42, 'Wales & West'!AW42) -> 0 | AX42: =CHOOSE(m_identity, Cadent!AX42, East!AX42, London!AX42, 'North West'!AX42, 'West Midlands'!AX42, Northern!AX42, Scotland!AX42, Southern!AX42, 'Wales & West'!AX42) -> 0 | AY42: =CHOOSE(m_identity, Cadent!AY42, East!AY42, London!AY42, 'North West'!AY42, 'West Midlands'!AY42, Northern!AY42, Scotland!AY42, Southern!AY42, 'Wales & West'!AY42) -> 0
E43: Coordinated adjustment mechanism Re-opener | F43: SpC 3.8 | G43: £m 23/24 prices | H43: CAMt | AU43: =CHOOSE(m_identity, Cadent!AU43, East!AU43, London!AU43, 'North West'!AU43, 'West Midlands'!AU43, Northern!AU43, Scotland!AU43, Southern!AU43, 'Wales & West'!AU43) -> 0 | AV43: =CHOOSE(m_identity, Cadent!AV43, East!AV43, London!AV43, 'North West'!AV43, 'West Midlands'!AV43, Northern!AV43, Scotland!AV43, Southern!AV43, 'Wales & West'!AV43) -> 0 | AW43: =CHOOSE(m_identity, Cadent!AW43, East!AW43, London!AW43, 'North West'!AW43, 'West Midlands'!AW43, Northern!AW43, Scotland!AW43, Southern!AW43, 'Wales & West'!AW43) -> 0 | AX43: =CHOOSE(m_identity, Cadent!AX43, East!AX43, London!AX43, 'North West'!AX43, 'West Midlands'!AX43, Northern!AX43, Scotland!AX43, Southern!AX43, 'Wales & West'!AX43) -> 0 | AY43: =CHOOSE(m_identity, Cadent!AY43, East!AY43, London!AY43, 'North West'!AY43, 'West Midlands'!AY43, Northern!AY43, Scotland!AY43, Southern!AY43, 'Wales & West'!AY43) -> 0
E44: Heat policy and energy efficiency Re-opener | F44: SpC 3.19 | G44: £m 23/24 prices | H44: HPRAt | AU44: =CHOOSE(m_identity, Cadent!AU44, East!AU44, London!AU44, 'North West'!AU44, 'West Midlands'!AU44, Northern!AU44, Scotland!AU44, Southern!AU44, 'Wales & West'!AU44) -> 0 | AV44: =CHOOSE(m_identity, Cadent!AV44, East!AV44, London!AV44, 'North West'!AV44, 'West Midlands'!AV44, Northern!AV44, Scotland!AV44, Southern!AV44, 'Wales & West'!AV44) -> 0 | AW44: =CHOOSE(m_identity, Cadent!AW44, East!AW44, London!AW44, 'North West'!AW44, 'West Midlands'!AW44, Northern!AW44, Scotland!AW44, Southern!AW44, 'Wales & West'!AW44) -> 0 | AX44: =CHOOSE(m_identity, Cadent!AX44, East!AX44, London!AX44, 'North West'!AX44, 'West Midlands'!AX44, Northern!AX44, Scotland!AX44, Southern!AX44, 'Wales & West'!AX44) -> 0 | AY44: =CHOOSE(m_identity, Cadent!AY44, East!AY44, London!AY44, 'North West'!AY44, 'West Midlands'!AY44, Northern!AY44, Scotland!AY44, Southern!AY44, 'Wales & West'!AY44) -> 0
E45: Fuel Poor Network Extension Scheme volume driver | F45: SpC 3.14 | G45: £m 23/24 prices | H45: FPAt | AU45: =CHOOSE(m_identity, Cadent!AU45, East!AU45, London!AU45, 'North West'!AU45, 'West Midlands'!AU45, Northern!AU45, Scotland!AU45, Southern!AU45, 'Wales & West'!AU45) -> 0 | AV45: =CHOOSE(m_identity, Cadent!AV45, East!AV45, London!AV45, 'North West'!AV45, 'West Midlands'!AV45, Northern!AV45, Scotland!AV45, Southern!AV45, 'Wales & West'!AV45) -> 0 | AW45: =CHOOSE(m_identity, Cadent!AW45, East!AW45, London!AW45, 'North West'!AW45, 'West Midlands'!AW45, Northern!AW45, Scotland!AW45, Southern!AW45, 'Wales & West'!AW45) -> 0 | AX45: =CHOOSE(m_identity, Cadent!AX45, East!AX45, London!AX45, 'North West'!AX45, 'West Midlands'!AX45, Northern!AX45, Scotland!AX45, Southern!AX45, 'Wales & West'!AX45) -> 0 | AY45: =CHOOSE(m_identity, Cadent!AY45, East!AY45, London!AY45, 'North West'!AY45, 'West Midlands'!AY45, Northern!AY45, Scotland!AY45, Southern!AY45, 'Wales & West'!AY45) -> 0
E46: Net zero Re-opener | F46: SpC 3.6 | G46: £m 23/24 prices | H46: NZt | AU46: =CHOOSE(m_identity, Cadent!AU46, East!AU46, London!AU46, 'North West'!AU46, 'West Midlands'!AU46, Northern!AU46, Scotland!AU46, Southern!AU46, 'Wales & West'!AU46) -> 0 | AV46: =CHOOSE(m_identity, Cadent!AV46, East!AV46, London!AV46, 'North West'!AV46, 'West Midlands'!AV46, Northern!AV46, Scotland!AV46, Southern!AV46, 'Wales & West'!AV46) -> 0 | AW46: =CHOOSE(m_identity, Cadent!AW46, East!AW46, London!AW46, 'North West'!AW46, 'West Midlands'!AW46, Northern!AW46, Scotland!AW46, Southern!AW46, 'Wales & West'!AW46) -> 0 | AX46: =CHOOSE(m_identity, Cadent!AX46, East!AX46, London!AX46, 'North West'!AX46, 'West Midlands'!AX46, Northern!AX46, Scotland!AX46, Southern!AX46, 'Wales & West'!AX46) -> 0 | AY46: =CHOOSE(m_identity, Cadent!AY46, East!AY46, London!AY46, 'North West'!AY46, 'West Midlands'!AY46, Northern!AY46, Scotland!AY46, Southern!AY46, 'Wales & West'!AY46) -> 0
E47: Smart Metering Roll-out Costs Re-opener | F47: SpC 3.23 | G47: £m 23/24 prices | H47: SMRt | AU47: =CHOOSE(m_identity, Cadent!AU47, East!AU47, London!AU47, 'North West'!AU47, 'West Midlands'!AU47, Northern!AU47, Scotland!AU47, Southern!AU47, 'Wales & West'!AU47) -> 0 | AV47: =CHOOSE(m_identity, Cadent!AV47, East!AV47, London!AV47, 'North West'!AV47, 'West Midlands'!AV47, Northern!AV47, Scotland!AV47, Southern!AV47, 'Wales & West'!AV47) -> 0 | AW47: =CHOOSE(m_identity, Cadent!AW47, East!AW47, London!AW47, 'North West'!AW47, 'West Midlands'!AW47, Northern!AW47, Scotland!AW47, Southern!AW47, 'Wales & West'!AW47) -> 0 | AX47: =CHOOSE(m_identity, Cadent!AX47, East!AX47, London!AX47, 'North West'!AX47, 'West Midlands'!AX47, Northern!AX47, Scotland!AX47, Southern!AX47, 'Wales & West'!AX47) -> 0 | AY47: =CHOOSE(m_identity, Cadent!AY47, East!AY47, London!AY47, 'North West'!AY47, 'West Midlands'!AY47, Northern!AY47, Scotland!AY47, Southern!AY47, 'Wales & West'!AY47) -> 0
E48: Specified Streetworks Costs Re-opener | F48: SpC 3.24 | G48: £m 23/24 prices | H48: STWt | AU48: =CHOOSE(m_identity, Cadent!AU48, East!AU48, London!AU48, 'North West'!AU48, 'West Midlands'!AU48, Northern!AU48, Scotland!AU48, Southern!AU48, 'Wales & West'!AU48) -> 0 | AV48: =CHOOSE(m_identity, Cadent!AV48, East!AV48, London!AV48, 'North West'!AV48, 'West Midlands'!AV48, Northern!AV48, Scotland!AV48, Southern!AV48, 'Wales & West'!AV48) -> 0 | AW48: =CHOOSE(m_identity, Cadent!AW48, East!AW48, London!AW48, 'North West'!AW48, 'West Midlands'!AW48, Northern!AW48, Scotland!AW48, Southern!AW48, 'Wales & West'!AW48) -> 0 | AX48: =CHOOSE(m_identity, Cadent!AX48, East!AX48, London!AX48, 'North West'!AX48, 'West Midlands'!AX48, Northern!AX48, Scotland!AX48, Southern!AX48, 'Wales & West'!AX48) -> 0 | AY48: =CHOOSE(m_identity, Cadent!AY48, East!AY48, London!AY48, 'North West'!AY48, 'West Midlands'!AY48, Northern!AY48, Scotland!AY48, Southern!AY48, 'Wales & West'!AY48) -> 0
E49: New Large Load Connections Re-opener | F49: SpC 3.22 | G49: £m 23/24 prices | H49: NLLRt | AU49: =CHOOSE(m_identity, Cadent!AU49, East!AU49, London!AU49, 'North West'!AU49, 'West Midlands'!AU49, Northern!AU49, Scotland!AU49, Southern!AU49, 'Wales & West'!AU49) -> 0 | AV49: =CHOOSE(m_identity, Cadent!AV49, East!AV49, London!AV49, 'North West'!AV49, 'West Midlands'!AV49, Northern!AV49, Scotland!AV49, Southern!AV49, 'Wales & West'!AV49) -> 0 | AW49: =CHOOSE(m_identity, Cadent!AW49, East!AW49, London!AW49, 'North West'!AW49, 'West Midlands'!AW49, Northern!AW49, Scotland!AW49, Southern!AW49, 'Wales & West'!AW49) -> 0 | AX49: =CHOOSE(m_identity, Cadent!AX49, East!AX49, London!AX49, 'North West'!AX49, 'West Midlands'!AX49, Northern!AX49, Scotland!AX49, Southern!AX49, 'Wales & West'!AX49) -> 0 | AY49: =CHOOSE(m_identity, Cadent!AY49, East!AY49, London!AY49, 'North West'!AY49, 'West Midlands'!AY49, Northern!AY49, Scotland!AY49, Southern!AY49, 'Wales & West'!AY49) -> 0
E50: Domestic Connections volume driver | F50: SpC 3.15 | G50: £m 23/24 prices | H50: CAt | AU50: =CHOOSE(m_identity, Cadent!AU50, East!AU50, London!AU50, 'North West'!AU50, 'West Midlands'!AU50, Northern!AU50, Scotland!AU50, Southern!AU50, 'Wales & West'!AU50) -> 0 | AV50: =CHOOSE(m_identity, Cadent!AV50, East!AV50, London!AV50, 'North West'!AV50, 'West Midlands'!AV50, Northern!AV50, Scotland!AV50, Southern!AV50, 'Wales & West'!AV50) -> 0 | AW50: =CHOOSE(m_identity, Cadent!AW50, East!AW50, London!AW50, 'North West'!AW50, 'West Midlands'!AW50, Northern!AW50, Scotland!AW50, Southern!AW50, 'Wales & West'!AW50) -> 0 | AX50: =CHOOSE(m_identity, Cadent!AX50, East!AX50, London!AX50, 'North West'!AX50, 'West Midlands'!AX50, Northern!AX50, Scotland!AX50, Southern!AX50, 'Wales & West'!AX50) -> 0 | AY50: =CHOOSE(m_identity, Cadent!AY50, East!AY50, London!AY50, 'North West'!AY50, 'West Midlands'!AY50, Northern!AY50, Scotland!AY50, Southern!AY50, 'Wales & West'!AY50) -> 0
E51: Tier 1 Stubs Repex policy Re-opener | F51: SpC 3.18 | G51: £m 23/24 prices | H51: STUBt | AU51: =CHOOSE(m_identity, Cadent!AU51, East!AU51, London!AU51, 'North West'!AU51, 'West Midlands'!AU51, Northern!AU51, Scotland!AU51, Southern!AU51, 'Wales & West'!AU51) -> 0 | AV51: =CHOOSE(m_identity, Cadent!AV51, East!AV51, London!AV51, 'North West'!AV51, 'West Midlands'!AV51, Northern!AV51, Scotland!AV51, Southern!AV51, 'Wales & West'!AV51) -> 0 | AW51: =CHOOSE(m_identity, Cadent!AW51, East!AW51, London!AW51, 'North West'!AW51, 'West Midlands'!AW51, Northern!AW51, Scotland!AW51, Southern!AW51, 'Wales & West'!AW51) -> 0 | AX51: =CHOOSE(m_identity, Cadent!AX51, East!AX51, London!AX51, 'North West'!AX51, 'West Midlands'!AX51, Northern!AX51, Scotland!AX51, Southern!AX51, 'Wales & West'!AX51) -> 0 | AY51: =CHOOSE(m_identity, Cadent!AY51, East!AY51, London!AY51, 'North West'!AY51, 'West Midlands'!AY51, Northern!AY51, Scotland!AY51, Southern!AY51, 'Wales & West'!AY51) -> 0
E52: Diversions and Loss of Development Claims policy Re-opener | F52: SpC 3.20 | G52: £m 23/24 prices | H52: DIVt | AU52: =CHOOSE(m_identity, Cadent!AU52, East!AU52, London!AU52, 'North West'!AU52, 'West Midlands'!AU52, Northern!AU52, Scotland!AU52, Southern!AU52, 'Wales & West'!AU52) -> 0 | AV52: =CHOOSE(m_identity, Cadent!AV52, East!AV52, London!AV52, 'North West'!AV52, 'West Midlands'!AV52, Northern!AV52, Scotland!AV52, Southern!AV52, 'Wales & West'!AV52) -> 0 | AW52: =CHOOSE(m_identity, Cadent!AW52, East!AW52, London!AW52, 'North West'!AW52, 'West Midlands'!AW52, Northern!AW52, Scotland!AW52, Southern!AW52, 'Wales & West'!AW52) -> 0 | AX52: =CHOOSE(m_identity, Cadent!AX52, East!AX52, London!AX52, 'North West'!AX52, 'West Midlands'!AX52, Northern!AX52, Scotland!AX52, Southern!AX52, 'Wales & West'!AX52) -> 0 | AY52: =CHOOSE(m_identity, Cadent!AY52, East!AY52, London!AY52, 'North West'!AY52, 'West Midlands'!AY52, Northern!AY52, Scotland!AY52, Southern!AY52, 'Wales & West'!AY52) -> 0
E53: Multiple Occupancy Buildings safety Re-opener | F53: SpC 3.21 | G53: £m 23/24 prices | H53: MOBSt | AU53: =CHOOSE(m_identity, Cadent!AU53, East!AU53, London!AU53, 'North West'!AU53, 'West Midlands'!AU53, Northern!AU53, Scotland!AU53, Southern!AU53, 'Wales & West'!AU53) -> 0 | AV53: =CHOOSE(m_identity, Cadent!AV53, East!AV53, London!AV53, 'North West'!AV53, 'West Midlands'!AV53, Northern!AV53, Scotland!AV53, Southern!AV53, 'Wales & West'!AV53) -> 0 | AW53: =CHOOSE(m_identity, Cadent!AW53, East!AW53, London!AW53, 'North West'!AW53, 'West Midlands'!AW53, Northern!AW53, Scotland!AW53, Southern!AW53, 'Wales & West'!AW53) -> 0 | AX53: =CHOOSE(m_identity, Cadent!AX53, East!AX53, London!AX53, 'North West'!AX53, 'West Midlands'!AX53, Northern!AX53, Scotland!AX53, Southern!AX53, 'Wales & West'!AX53) -> 0 | AY53: =CHOOSE(m_identity, Cadent!AY53, East!AY53, London!AY53, 'North West'!AY53, 'West Midlands'!AY53, Northern!AY53, Scotland!AY53, Southern!AY53, 'Wales & West'!AY53) -> 0
E54: Non-operational IT Capex Re-opener | F54: SpC 3.7 | G54: £m 23/24 prices | H54: NOITREt | AU54: =CHOOSE(m_identity, Cadent!AU54, East!AU54, London!AU54, 'North West'!AU54, 'West Midlands'!AU54, Northern!AU54, Scotland!AU54, Southern!AU54, 'Wales & West'!AU54) -> 0 | AV54: =CHOOSE(m_identity, Cadent!AV54, East!AV54, London!AV54, 'North West'!AV54, 'West Midlands'!AV54, Northern!AV54, Scotland!AV54, Southern!AV54, 'Wales & West'!AV54) -> 0 | AW54: =CHOOSE(m_identity, Cadent!AW54, East!AW54, London!AW54, 'North West'!AW54, 'West Midlands'!AW54, Northern!AW54, Scotland!AW54, Southern!AW54, 'Wales & West'!AW54) -> 0 | AX54: =CHOOSE(m_identity, Cadent!AX54, East!AX54, London!AX54, 'North West'!AX54, 'West Midlands'!AX54, Northern!AX54, Scotland!AX54, Southern!AX54, 'Wales & West'!AX54) -> 0 | AY54: =CHOOSE(m_identity, Cadent!AY54, East!AY54, London!AY54, 'North West'!AY54, 'West Midlands'!AY54, Northern!AY54, Scotland!AY54, Southern!AY54, 'Wales & West'!AY54) -> 0
E55: Net zero pre-construction works and small net zero projects re-opener | F55: SpC 3.9 | G55: £m 23/24 prices | H55: NZPt | AU55: =CHOOSE(m_identity, Cadent!AU55, East!AU55, London!AU55, 'North West'!AU55, 'West Midlands'!AU55, Northern!AU55, Scotland!AU55, Southern!AU55, 'Wales & West'!AU55) -> 0 | AV55: =CHOOSE(m_identity, Cadent!AV55, East!AV55, London!AV55, 'North West'!AV55, 'West Midlands'!AV55, Northern!AV55, Scotland!AV55, Southern!AV55, 'Wales & West'!AV55) -> 0 | AW55: =CHOOSE(m_identity, Cadent!AW55, East!AW55, London!AW55, 'North West'!AW55, 'West Midlands'!AW55, Northern!AW55, Scotland!AW55, Southern!AW55, 'Wales & West'!AW55) -> 0 | AX55: =CHOOSE(m_identity, Cadent!AX55, East!AX55, London!AX55, 'North West'!AX55, 'West Midlands'!AX55, Northern!AX55, Scotland!AX55, Southern!AX55, 'Wales & West'!AX55) -> 0 | AY55: =CHOOSE(m_identity, Cadent!AY55, East!AY55, London!AY55, 'North West'!AY55, 'West Midlands'!AY55, Northern!AY55, Scotland!AY55, Southern!AY55, 'Wales & West'!AY55) -> 0
E56: Cyber Resilience OT Non-Baseline | F56: SpC 3.2 | G56: £m 23/24 prices | H56: CROTREt | AU56: =CHOOSE(m_identity, Cadent!AU56, East!AU56, London!AU56, 'North West'!AU56, 'West Midlands'!AU56, Northern!AU56, Scotland!AU56, Southern!AU56, 'Wales & West'!AU56) -> 0 | AV56: =CHOOSE(m_identity, Cadent!AV56, East!AV56, London!AV56, 'North West'!AV56, 'West Midlands'!AV56, Northern!AV56, Scotland!AV56, Southern!AV56, 'Wales & West'!AV56) -> 0 | AW56: =CHOOSE(m_identity, Cadent!AW56, East!AW56, London!AW56, 'North West'!AW56, 'West Midlands'!AW56, Northern!AW56, Scotland!AW56, Southern!AW56, 'Wales & West'!AW56) -> 0 | AX56: =CHOOSE(m_identity, Cadent!AX56, East!AX56, London!AX56, 'North West'!AX56, 'West Midlands'!AX56, Northern!AX56, Scotland!AX56, Southern!AX56, 'Wales & West'!AX56) -> 0 | AY56: =CHOOSE(m_identity, Cadent!AY56, East!AY56, London!AY56, 'North West'!AY56, 'West Midlands'!AY56, Northern!AY56, Scotland!AY56, Southern!AY56, 'Wales & West'!AY56) -> 0
E57: Cyber Resilience IT Non-Baseline | F57: SpC 3.3 | G57: £m 23/24 prices | H57: CRITREt | AU57: =CHOOSE(m_identity, Cadent!AU57, East!AU57, London!AU57, 'North West'!AU57, 'West Midlands'!AU57, Northern!AU57, Scotland!AU57, Southern!AU57, 'Wales & West'!AU57) -> 0 | AV57: =CHOOSE(m_identity, Cadent!AV57, East!AV57, London!AV57, 'North West'!AV57, 'West Midlands'!AV57, Northern!AV57, Scotland!AV57, Southern!AV57, 'Wales & West'!AV57) -> 0 | AW57: =CHOOSE(m_identity, Cadent!AW57, East!AW57, London!AW57, 'North West'!AW57, 'West Midlands'!AW57, Northern!AW57, Scotland!AW57, Southern!AW57, 'Wales & West'!AW57) -> 0 | AX57: =CHOOSE(m_identity, Cadent!AX57, East!AX57, London!AX57, 'North West'!AX57, 'West Midlands'!AX57, Northern!AX57, Scotland!AX57, Southern!AX57, 'Wales & West'!AX57) -> 0 | AY57: =CHOOSE(m_identity, Cadent!AY57, East!AY57, London!AY57, 'North West'!AY57, 'West Midlands'!AY57, Northern!AY57, Scotland!AY57, Southern!AY57, 'Wales & West'!AY57) -> 0
E58: Physical Security Re-Opener | F58: SpC 3.4 | G58: £m 23/24 prices | H58: PSUPREt | AU58: =CHOOSE(m_identity, Cadent!AU58, East!AU58, London!AU58, 'North West'!AU58, 'West Midlands'!AU58, Northern!AU58, Scotland!AU58, Southern!AU58, 'Wales & West'!AU58) -> 0 | AV58: =CHOOSE(m_identity, Cadent!AV58, East!AV58, London!AV58, 'North West'!AV58, 'West Midlands'!AV58, Northern!AV58, Scotland!AV58, Southern!AV58, 'Wales & West'!AV58) -> 0 | AW58: =CHOOSE(m_identity, Cadent!AW58, East!AW58, London!AW58, 'North West'!AW58, 'West Midlands'!AW58, Northern!AW58, Scotland!AW58, Southern!AW58, 'Wales & West'!AW58) -> 0 | AX58: =CHOOSE(m_identity, Cadent!AX58, East!AX58, London!AX58, 'North West'!AX58, 'West Midlands'!AX58, Northern!AX58, Scotland!AX58, Southern!AX58, 'Wales & West'!AX58) -> 0 | AY58: =CHOOSE(m_identity, Cadent!AY58, East!AY58, London!AY58, 'North West'!AY58, 'West Midlands'!AY58, Northern!AY58, Scotland!AY58, Southern!AY58, 'Wales & West'!AY58) -> 0
E59: Spare UM TIM 1 | G59: £m 23/24 prices | AU59: =CHOOSE(m_identity, Cadent!AU59, East!AU59, London!AU59, 'North West'!AU59, 'West Midlands'!AU59, Northern!AU59, Scotland!AU59, Southern!AU59, 'Wales & West'!AU59) -> 0 | AV59: =CHOOSE(m_identity, Cadent!AV59, East!AV59, London!AV59, 'North West'!AV59, 'West Midlands'!AV59, Northern!AV59, Scotland!AV59, Southern!AV59, 'Wales & West'!AV59) -> 0 | AW59: =CHOOSE(m_identity, Cadent!AW59, East!AW59, London!AW59, 'North West'!AW59, 'West Midlands'!AW59, Northern!AW59, Scotland!AW59, Southern!AW59, 'Wales & West'!AW59) -> 0 | AX59: =CHOOSE(m_identity, Cadent!AX59, East!AX59, London!AX59, 'North West'!AX59, 'West Midlands'!AX59, Northern!AX59, Scotland!AX59, Southern!AX59, 'Wales & West'!AX59) -> 0 | AY59: =CHOOSE(m_identity, Cadent!AY59, East!AY59, London!AY59, 'North West'!AY59, 'West Midlands'!AY59, Northern!AY59, Scotland!AY59, Southern!AY59, 'Wales & West'!AY59) -> 0
E60: Spare UM TIM 2 | G60: £m 23/24 prices | AU60: =CHOOSE(m_identity, Cadent!AU60, East!AU60, London!AU60, 'North West'!AU60, 'West Midlands'!AU60, Northern!AU60, Scotland!AU60, Southern!AU60, 'Wales & West'!AU60) -> 0 | AV60: =CHOOSE(m_identity, Cadent!AV60, East!AV60, London!AV60, 'North West'!AV60, 'West Midlands'!AV60, Northern!AV60, Scotland!AV60, Southern!AV60, 'Wales & West'!AV60) -> 0 | AW60: =CHOOSE(m_identity, Cadent!AW60, East!AW60, London!AW60, 'North West'!AW60, 'West Midlands'!AW60, Northern!AW60, Scotland!AW60, Southern!AW60, 'Wales & West'!AW60) -> 0 | AX60: =CHOOSE(m_identity, Cadent!AX60, East!AX60, London!AX60, 'North West'!AX60, 'West Midlands'!AX60, Northern!AX60, Scotland!AX60, Southern!AX60, 'Wales & West'!AX60) -> 0 | AY60: =CHOOSE(m_identity, Cadent!AY60, East!AY60, London!AY60, 'North West'!AY60, 'West Midlands'!AY60, Northern!AY60, Scotland!AY60, Southern!AY60, 'Wales & West'!AY60) -> 0
E61: Spare UM TIM 3 | G61: £m 23/24 prices | AU61: =CHOOSE(m_identity, Cadent!AU61, East!AU61, London!AU61, 'North West'!AU61, 'West Midlands'!AU61, Northern!AU61, Scotland!AU61, Southern!AU61, 'Wales & West'!AU61) -> 0 | AV61: =CHOOSE(m_identity, Cadent!AV61, East!AV61, London!AV61, 'North West'!AV61, 'West Midlands'!AV61, Northern!AV61, Scotland!AV61, Southern!AV61, 'Wales & West'!AV61) -> 0 | AW61: =CHOOSE(m_identity, Cadent!AW61, East!AW61, London!AW61, 'North West'!AW61, 'West Midlands'!AW61, Northern!AW61, Scotland!AW61, Southern!AW61, 'Wales & West'!AW61) -> 0 | AX61: =CHOOSE(m_identity, Cadent!AX61, East!AX61, London!AX61, 'North West'!AX61, 'West Midlands'!AX61, Northern!AX61, Scotland!AX61, Southern!AX61, 'Wales & West'!AX61) -> 0 | AY61: =CHOOSE(m_identity, Cadent!AY61, East!AY61, London!AY61, 'North West'!AY61, 'West Midlands'!AY61, Northern!AY61, Scotland!AY61, Southern!AY61, 'Wales & West'!AY61) -> 0
E62: RIIO3 Variant Activity 1 | G62: £m 23/24 prices | AU62: =CHOOSE(m_identity, Cadent!AU62, East!AU62, London!AU62, 'North West'!AU62, 'West Midlands'!AU62, Northern!AU62, Scotland!AU62, Southern!AU62, 'Wales & West'!AU62) -> 0 | AV62: =CHOOSE(m_identity, Cadent!AV62, East!AV62, London!AV62, 'North West'!AV62, 'West Midlands'!AV62, Northern!AV62, Scotland!AV62, Southern!AV62, 'Wales & West'!AV62) -> 0 | AW62: =CHOOSE(m_identity, Cadent!AW62, East!AW62, London!AW62, 'North West'!AW62, 'West Midlands'!AW62, Northern!AW62, Scotland!AW62, Southern!AW62, 'Wales & West'!AW62) -> 0 | AX62: =CHOOSE(m_identity, Cadent!AX62, East!AX62, London!AX62, 'North West'!AX62, 'West Midlands'!AX62, Northern!AX62, Scotland!AX62, Southern!AX62, 'Wales & West'!AX62) -> 0 | AY62: =CHOOSE(m_identity, Cadent!AY62, East!AY62, London!AY62, 'North West'!AY62, 'West Midlands'!AY62, Northern!AY62, Scotland!AY62, Southern!AY62, 'Wales & West'!AY62) -> 0
E63: RIIO3 Variant Activity 2 | G63: £m 23/24 prices | AU63: =CHOOSE(m_identity, Cadent!AU63, East!AU63, London!AU63, 'North West'!AU63, 'West Midlands'!AU63, Northern!AU63, Scotland!AU63, Southern!AU63, 'Wales & West'!AU63) -> 0 | AV63: =CHOOSE(m_identity, Cadent!AV63, East!AV63, London!AV63, 'North West'!AV63, 'West Midlands'!AV63, Northern!AV63, Scotland!AV63, Southern!AV63, 'Wales & West'!AV63) -> 0 | AW63: =CHOOSE(m_identity, Cadent!AW63, East!AW63, London!AW63, 'North West'!AW63, 'West Midlands'!AW63, Northern!AW63, Scotland!AW63, Southern!AW63, 'Wales & West'!AW63) -> 0 | AX63: =CHOOSE(m_identity, Cadent!AX63, East!AX63, London!AX63, 'North West'!AX63, 'West Midlands'!AX63, Northern!AX63, Scotland!AX63, Southern!AX63, 'Wales & West'!AX63) -> 0 | AY63: =CHOOSE(m_identity, Cadent!AY63, East!AY63, London!AY63, 'North West'!AY63, 'West Midlands'!AY63, Northern!AY63, Scotland!AY63, Southern!AY63, 'Wales & West'!AY63) -> 0
E64: RIIO3 Variant Activity 3 | G64: £m 23/24 prices | AU64: =CHOOSE(m_identity, Cadent!AU64, East!AU64, London!AU64, 'North West'!AU64, 'West Midlands'!AU64, Northern!AU64, Scotland!AU64, Southern!AU64, 'Wales & West'!AU64) -> 0 | AV64: =CHOOSE(m_identity, Cadent!AV64, East!AV64, London!AV64, 'North West'!AV64, 'West Midlands'!AV64, Northern!AV64, Scotland!AV64, Southern!AV64, 'Wales & West'!AV64) -> 0 | AW64: =CHOOSE(m_identity, Cadent!AW64, East!AW64, London!AW64, 'North West'!AW64, 'West Midlands'!AW64, Northern!AW64, Scotland!AW64, Southern!AW64, 'Wales & West'!AW64) -> 0 | AX64: =CHOOSE(m_identity, Cadent!AX64, East!AX64, London!AX64, 'North West'!AX64, 'West Midlands'!AX64, Northern!AX64, Scotland!AX64, Southern!AX64, 'Wales & West'!AX64) -> 0 | AY64: =CHOOSE(m_identity, Cadent!AY64, East!AY64, London!AY64, 'North West'!AY64, 'West Midlands'!AY64, Northern!AY64, Scotland!AY64, Southern!AY64, 'Wales & West'!AY64) -> 0
E65: RIIO3 Variant Activity 4 | G65: £m 23/24 prices | AU65: =CHOOSE(m_identity, Cadent!AU65, East!AU65, London!AU65, 'North West'!AU65, 'West Midlands'!AU65, Northern!AU65, Scotland!AU65, Southern!AU65, 'Wales & West'!AU65) -> 0 | AV65: =CHOOSE(m_identity, Cadent!AV65, East!AV65, London!AV65, 'North West'!AV65, 'West Midlands'!AV65, Northern!AV65, Scotland!AV65, Southern!AV65, 'Wales & West'!AV65) -> 0 | AW65: =CHOOSE(m_identity, Cadent!AW65, East!AW65, London!AW65, 'North West'!AW65, 'West Midlands'!AW65, Northern!AW65, Scotland!AW65, Southern!AW65, 'Wales & West'!AW65) -> 0 | AX65: =CHOOSE(m_identity, Cadent!AX65, East!AX65, London!AX65, 'North West'!AX65, 'West Midlands'!AX65, Northern!AX65, Scotland!AX65, Southern!AX65, 'Wales & West'!AX65) -> 0 | AY65: =CHOOSE(m_identity, Cadent!AY65, East!AY65, London!AY65, 'North West'!AY65, 'West Midlands'!AY65, Northern!AY65, Scotland!AY65, Southern!AY65, 'Wales & West'!AY65) -> 0
E66: RIIO3 Variant Activity 5 | G66: £m 23/24 prices | AU66: =CHOOSE(m_identity, Cadent!AU66, East!AU66, London!AU66, 'North West'!AU66, 'West Midlands'!AU66, Northern!AU66, Scotland!AU66, Southern!AU66, 'Wales & West'!AU66) -> 0 | AV66: =CHOOSE(m_identity, Cadent!AV66, East!AV66, London!AV66, 'North West'!AV66, 'West Midlands'!AV66, Northern!AV66, Scotland!AV66, Southern!AV66, 'Wales & West'!AV66) -> 0 | AW66: =CHOOSE(m_identity, Cadent!AW66, East!AW66, London!AW66, 'North West'!AW66, 'West Midlands'!AW66, Northern!AW66, Scotland!AW66, Southern!AW66, 'Wales & West'!AW66) -> 0 | AX66: =CHOOSE(m_identity, Cadent!AX66, East!AX66, London!AX66, 'North West'!AX66, 'West Midlands'!AX66, Northern!AX66, Scotland!AX66, Southern!AX66, 'Wales & West'!AX66) -> 0 | AY66: =CHOOSE(m_identity, Cadent!AY66, East!AY66, London!AY66, 'North West'!AY66, 'West Midlands'!AY66, Northern!AY66, Scotland!AY66, Southern!AY66, 'Wales & West'!AY66) -> 0
E67: RIIO3 Variant Activity 6 | G67: £m 23/24 prices | AU67: =CHOOSE(m_identity, Cadent!AU67, East!AU67, London!AU67, 'North West'!AU67, 'West Midlands'!AU67, Northern!AU67, Scotland!AU67, Southern!AU67, 'Wales & West'!AU67) -> 0 | AV67: =CHOOSE(m_identity, Cadent!AV67, East!AV67, London!AV67, 'North West'!AV67, 'West Midlands'!AV67, Northern!AV67, Scotland!AV67, Southern!AV67, 'Wales & West'!AV67) -> 0 | AW67: =CHOOSE(m_identity, Cadent!AW67, East!AW67, London!AW67, 'North West'!AW67, 'West Midlands'!AW67, Northern!AW67, Scotland!AW67, Southern!AW67, 'Wales & West'!AW67) -> 0 | AX67: =CHOOSE(m_identity, Cadent!AX67, East!AX67, London!AX67, 'North West'!AX67, 'West Midlands'!AX67, Northern!AX67, Scotland!AX67, Southern!AX67, 'Wales & West'!AX67) -> 0 | AY67: =CHOOSE(m_identity, Cadent!AY67, East!AY67, London!AY67, 'North West'!AY67, 'West Midlands'!AY67, Northern!AY67, Scotland!AY67, Southern!AY67, 'Wales & West'!AY67) -> 0
E68: RIIO3 Variant Activity 7 | G68: £m 23/24 prices | AU68: =CHOOSE(m_identity, Cadent!AU68, East!AU68, London!AU68, 'North West'!AU68, 'West Midlands'!AU68, Northern!AU68, Scotland!AU68, Southern!AU68, 'Wales & West'!AU68) -> 0 | AV68: =CHOOSE(m_identity, Cadent!AV68, East!AV68, London!AV68, 'North West'!AV68, 'West Midlands'!AV68, Northern!AV68, Scotland!AV68, Southern!AV68, 'Wales & West'!AV68) -> 0 | AW68: =CHOOSE(m_identity, Cadent!AW68, East!AW68, London!AW68, 'North West'!AW68, 'West Midlands'!AW68, Northern!AW68, Scotland!AW68, Southern!AW68, 'Wales & West'!AW68) -> 0 | AX68: =CHOOSE(m_identity, Cadent!AX68, East!AX68, London!AX68, 'North West'!AX68, 'West Midlands'!AX68, Northern!AX68, Scotland!AX68, Southern!AX68, 'Wales & West'!AX68) -> 0 | AY68: =CHOOSE(m_identity, Cadent!AY68, East!AY68, London!AY68, 'North West'!AY68, 'West Midlands'!AY68, Northern!AY68, Scotland!AY68, Southern!AY68, 'Wales & West'!AY68) -> 0
E69: RIIO3 Variant Activity 8 | G69: £m 23/24 prices | AU69: =CHOOSE(m_identity, Cadent!AU69, East!AU69, London!AU69, 'North West'!AU69, 'West Midlands'!AU69, Northern!AU69, Scotland!AU69, Southern!AU69, 'Wales & West'!AU69) -> 0 | AV69: =CHOOSE(m_identity, Cadent!AV69, East!AV69, London!AV69, 'North West'!AV69, 'West Midlands'!AV69, Northern!AV69, Scotland!AV69, Southern!AV69, 'Wales & West'!AV69) -> 0 | AW69: =CHOOSE(m_identity, Cadent!AW69, East!AW69, London!AW69, 'North West'!AW69, 'West Midlands'!AW69, Northern!AW69, Scotland!AW69, Southern!AW69, 'Wales & West'!AW69) -> 0 | AX69: =CHOOSE(m_identity, Cadent!AX69, East!AX69, London!AX69, 'North West'!AX69, 'West Midlands'!AX69, Northern!AX69, Scotland!AX69, Southern!AX69, 'Wales & West'!AX69) -> 0 | AY69: =CHOOSE(m_identity, Cadent!AY69, East!AY69, London!AY69, 'North West'!AY69, 'West Midlands'!AY69, Northern!AY69, Scotland!AY69, Southern!AY69, 'Wales & West'!AY69) -> 0
E70: RIIO3 Variant Activity 9 | G70: £m 23/24 prices | AU70: =CHOOSE(m_identity, Cadent!AU70, East!AU70, London!AU70, 'North West'!AU70, 'West Midlands'!AU70, Northern!AU70, Scotland!AU70, Southern!AU70, 'Wales & West'!AU70) -> 0 | AV70: =CHOOSE(m_identity, Cadent!AV70, East!AV70, London!AV70, 'North West'!AV70, 'West Midlands'!AV70, Northern!AV70, Scotland!AV70, Southern!AV70, 'Wales & West'!AV70) -> 0 | AW70: =CHOOSE(m_identity, Cadent!AW70, East!AW70, London!AW70, 'North West'!AW70, 'West Midlands'!AW70, Northern!AW70, Scotland!AW70, Southern!AW70, 'Wales & West'!AW70) -> 0 | AX70: =CHOOSE(m_identity, Cadent!AX70, East!AX70, London!AX70, 'North West'!AX70, 'West Midlands'!AX70, Northern!AX70, Scotland!AX70, Southern!AX70, 'Wales & West'!AX70) -> 0 | AY70: =CHOOSE(m_identity, Cadent!AY70, East!AY70, London!AY70, 'North West'!AY70, 'West Midlands'!AY70, Northern!AY70, Scotland!AY70, Southern!AY70, 'Wales & West'!AY70) -> 0
E71: RIIO3 Variant Activity 10 | G71: £m 23/24 prices | AU71: =CHOOSE(m_identity, Cadent!AU71, East!AU71, London!AU71, 'North West'!AU71, 'West Midlands'!AU71, Northern!AU71, Scotland!AU71, Southern!AU71, 'Wales & West'!AU71) -> 0 | AV71: =CHOOSE(m_identity, Cadent!AV71, East!AV71, London!AV71, 'North West'!AV71, 'West Midlands'!AV71, Northern!AV71, Scotland!AV71, Southern!AV71, 'Wales & West'!AV71) -> 0 | AW71: =CHOOSE(m_identity, Cadent!AW71, East!AW71, London!AW71, 'North West'!AW71, 'West Midlands'!AW71, Northern!AW71, Scotland!AW71, Southern!AW71, 'Wales & West'!AW71) -> 0 | AX71: =CHOOSE(m_identity, Cadent!AX71, East!AX71, London!AX71, 'North West'!AX71, 'West Midlands'!AX71, Northern!AX71, Scotland!AX71, Southern!AX71, 'Wales & West'!AX71) -> 0 | AY71: =CHOOSE(m_identity, Cadent!AY71, East!AY71, London!AY71, 'North West'!AY71, 'West Midlands'!AY71, Northern!AY71, Scotland!AY71, Southern!AY71, 'Wales & West'!AY71) -> 0
E72: RIIO3 Variant Activity 11 | G72: £m 23/24 prices | AU72: =CHOOSE(m_identity, Cadent!AU72, East!AU72, London!AU72, 'North West'!AU72, 'West Midlands'!AU72, Northern!AU72, Scotland!AU72, Southern!AU72, 'Wales & West'!AU72) -> 0 | AV72: =CHOOSE(m_identity, Cadent!AV72, East!AV72, London!AV72, 'North West'!AV72, 'West Midlands'!AV72, Northern!AV72, Scotland!AV72, Southern!AV72, 'Wales & West'!AV72) -> 0 | AW72: =CHOOSE(m_identity, Cadent!AW72, East!AW72, London!AW72, 'North West'!AW72, 'West Midlands'!AW72, Northern!AW72, Scotland!AW72, Southern!AW72, 'Wales & West'!AW72) -> 0 | AX72: =CHOOSE(m_identity, Cadent!AX72, East!AX72, London!AX72, 'North West'!AX72, 'West Midlands'!AX72, Northern!AX72, Scotland!AX72, Southern!AX72, 'Wales & West'!AX72) -> 0 | AY72: =CHOOSE(m_identity, Cadent!AY72, East!AY72, London!AY72, 'North West'!AY72, 'West Midlands'!AY72, Northern!AY72, Scotland!AY72, Southern!AY72, 'Wales & West'!AY72) -> 0
E73: RIIO3 Variant Activity 12 | G73: £m 23/24 prices | AU73: =CHOOSE(m_identity, Cadent!AU73, East!AU73, London!AU73, 'North West'!AU73, 'West Midlands'!AU73, Northern!AU73, Scotland!AU73, Southern!AU73, 'Wales & West'!AU73) -> 0 | AV73: =CHOOSE(m_identity, Cadent!AV73, East!AV73, London!AV73, 'North West'!AV73, 'West Midlands'!AV73, Northern!AV73, Scotland!AV73, Southern!AV73, 'Wales & West'!AV73) -> 0 | AW73: =CHOOSE(m_identity, Cadent!AW73, East!AW73, London!AW73, 'North West'!AW73, 'West Midlands'!AW73, Northern!AW73, Scotland!AW73, Southern!AW73, 'Wales & West'!AW73) -> 0 | AX73: =CHOOSE(m_identity, Cadent!AX73, East!AX73, London!AX73, 'North West'!AX73, 'West Midlands'!AX73, Northern!AX73, Scotland!AX73, Southern!AX73, 'Wales & West'!AX73) -> 0 | AY73: =CHOOSE(m_identity, Cadent!AY73, East!AY73, London!AY73, 'North West'!AY73, 'West Midlands'!AY73, Northern!AY73, Scotland!AY73, Southern!AY73, 'Wales & West'!AY73) -> 0
E74: RIIO3 Variant Activity 13 | G74: £m 23/24 prices | AU74: =CHOOSE(m_identity, Cadent!AU74, East!AU74, London!AU74, 'North West'!AU74, 'West Midlands'!AU74, Northern!AU74, Scotland!AU74, Southern!AU74, 'Wales & West'!AU74) -> 0 | AV74: =CHOOSE(m_identity, Cadent!AV74, East!AV74, London!AV74, 'North West'!AV74, 'West Midlands'!AV74, Northern!AV74, Scotland!AV74, Southern!AV74, 'Wales & West'!AV74) -> 0 | AW74: =CHOOSE(m_identity, Cadent!AW74, East!AW74, London!AW74, 'North West'!AW74, 'West Midlands'!AW74, Northern!AW74, Scotland!AW74, Southern!AW74, 'Wales & West'!AW74) -> 0 | AX74: =CHOOSE(m_identity, Cadent!AX74, East!AX74, London!AX74, 'North West'!AX74, 'West Midlands'!AX74, Northern!AX74, Scotland!AX74, Southern!AX74, 'Wales & West'!AX74) -> 0 | AY74: =CHOOSE(m_identity, Cadent!AY74, East!AY74, London!AY74, 'North West'!AY74, 'West Midlands'!AY74, Northern!AY74, Scotland!AY74, Southern!AY74, 'Wales & West'!AY74) -> 0
E75: RIIO3 Variant Activity 14 | G75: £m 23/24 prices | AU75: =CHOOSE(m_identity, Cadent!AU75, East!AU75, London!AU75, 'North West'!AU75, 'West Midlands'!AU75, Northern!AU75, Scotland!AU75, Southern!AU75, 'Wales & West'!AU75) -> 0 | AV75: =CHOOSE(m_identity, Cadent!AV75, East!AV75, London!AV75, 'North West'!AV75, 'West Midlands'!AV75, Northern!AV75, Scotland!AV75, Southern!AV75, 'Wales & West'!AV75) -> 0 | AW75: =CHOOSE(m_identity, Cadent!AW75, East!AW75, London!AW75, 'North West'!AW75, 'West Midlands'!AW75, Northern!AW75, Scotland!AW75, Southern!AW75, 'Wales & West'!AW75) -> 0 | AX75: =CHOOSE(m_identity, Cadent!AX75, East!AX75, London!AX75, 'North West'!AX75, 'West Midlands'!AX75, Northern!AX75, Scotland!AX75, Southern!AX75, 'Wales & West'!AX75) -> 0 | AY75: =CHOOSE(m_identity, Cadent!AY75, East!AY75, London!AY75, 'North West'!AY75, 'West Midlands'!AY75, Northern!AY75, Scotland!AY75, Southern!AY75, 'Wales & West'!AY75) -> 0
E76: RIIO3 Variant Activity 15 | G76: £m 23/24 prices | AU76: =CHOOSE(m_identity, Cadent!AU76, East!AU76, London!AU76, 'North West'!AU76, 'West Midlands'!AU76, Northern!AU76, Scotland!AU76, Southern!AU76, 'Wales & West'!AU76) -> 0 | AV76: =CHOOSE(m_identity, Cadent!AV76, East!AV76, London!AV76, 'North West'!AV76, 'West Midlands'!AV76, Northern!AV76, Scotland!AV76, Southern!AV76, 'Wales & West'!AV76) -> 0 | AW76: =CHOOSE(m_identity, Cadent!AW76, East!AW76, London!AW76, 'North West'!AW76, 'West Midlands'!AW76, Northern!AW76, Scotland!AW76, Southern!AW76, 'Wales & West'!AW76) -> 0 | AX76: =CHOOSE(m_identity, Cadent!AX76, East!AX76, London!AX76, 'North West'!AX76, 'West Midlands'!AX76, Northern!AX76, Scotland!AX76, Southern!AX76, 'Wales & West'!AX76) -> 0 | AY76: =CHOOSE(m_identity, Cadent!AY76, East!AY76, London!AY76, 'North West'!AY76, 'West Midlands'!AY76, Northern!AY76, Scotland!AY76, Southern!AY76, 'Wales & West'!AY76) -> 0
E77: RIIO3 Variant Activity 16 | G77: £m 23/24 prices | AU77: =CHOOSE(m_identity, Cadent!AU77, East!AU77, London!AU77, 'North West'!AU77, 'West Midlands'!AU77, Northern!AU77, Scotland!AU77, Southern!AU77, 'Wales & West'!AU77) -> 0 | AV77: =CHOOSE(m_identity, Cadent!AV77, East!AV77, London!AV77, 'North West'!AV77, 'West Midlands'!AV77, Northern!AV77, Scotland!AV77, Southern!AV77, 'Wales & West'!AV77) -> 0 | AW77: =CHOOSE(m_identity, Cadent!AW77, East!AW77, London!AW77, 'North West'!AW77, 'West Midlands'!AW77, Northern!AW77, Scotland!AW77, Southern!AW77, 'Wales & West'!AW77) -> 0 | AX77: =CHOOSE(m_identity, Cadent!AX77, East!AX77, London!AX77, 'North West'!AX77, 'West Midlands'!AX77, Northern!AX77, Scotland!AX77, Southern!AX77, 'Wales & West'!AX77) -> 0 | AY77: =CHOOSE(m_identity, Cadent!AY77, East!AY77, London!AY77, 'North West'!AY77, 'West Midlands'!AY77, Northern!AY77, Scotland!AY77, Southern!AY77, 'Wales & West'!AY77) -> 0
E78: RIIO3 Variant Activity 17 | G78: £m 23/24 prices | AU78: =CHOOSE(m_identity, Cadent!AU78, East!AU78, London!AU78, 'North West'!AU78, 'West Midlands'!AU78, Northern!AU78, Scotland!AU78, Southern!AU78, 'Wales & West'!AU78) -> 0 | AV78: =CHOOSE(m_identity, Cadent!AV78, East!AV78, London!AV78, 'North West'!AV78, 'West Midlands'!AV78, Northern!AV78, Scotland!AV78, Southern!AV78, 'Wales & West'!AV78) -> 0 | AW78: =CHOOSE(m_identity, Cadent!AW78, East!AW78, London!AW78, 'North West'!AW78, 'West Midlands'!AW78, Northern!AW78, Scotland!AW78, Southern!AW78, 'Wales & West'!AW78) -> 0 | AX78: =CHOOSE(m_identity, Cadent!AX78, East!AX78, London!AX78, 'North West'!AX78, 'West Midlands'!AX78, Northern!AX78, Scotland!AX78, Southern!AX78, 'Wales & West'!AX78) -> 0 | AY78: =CHOOSE(m_identity, Cadent!AY78, East!AY78, London!AY78, 'North West'!AY78, 'West Midlands'!AY78, Northern!AY78, Scotland!AY78, Southern!AY78, 'Wales & West'!AY78) -> 0
E79: RIIO3 Variant Activity 18 | G79: £m 23/24 prices | AU79: =CHOOSE(m_identity, Cadent!AU79, East!AU79, London!AU79, 'North West'!AU79, 'West Midlands'!AU79, Northern!AU79, Scotland!AU79, Southern!AU79, 'Wales & West'!AU79) -> 0 | AV79: =CHOOSE(m_identity, Cadent!AV79, East!AV79, London!AV79, 'North West'!AV79, 'West Midlands'!AV79, Northern!AV79, Scotland!AV79, Southern!AV79, 'Wales & West'!AV79) -> 0 | AW79: =CHOOSE(m_identity, Cadent!AW79, East!AW79, London!AW79, 'North West'!AW79, 'West Midlands'!AW79, Northern!AW79, Scotland!AW79, Southern!AW79, 'Wales & West'!AW79) -> 0 | AX79: =CHOOSE(m_identity, Cadent!AX79, East!AX79, London!AX79, 'North West'!AX79, 'West Midlands'!AX79, Northern!AX79, Scotland!AX79, Southern!AX79, 'Wales & West'!AX79) -> 0 | AY79: =CHOOSE(m_identity, Cadent!AY79, East!AY79, London!AY79, 'North West'!AY79, 'West Midlands'!AY79, Northern!AY79, Scotland!AY79, Southern!AY79, 'Wales & West'!AY79) -> 0
E80: RIIO3 Variant Activity 19 | G80: £m 23/24 prices | AU80: =CHOOSE(m_identity, Cadent!AU80, East!AU80, London!AU80, 'North West'!AU80, 'West Midlands'!AU80, Northern!AU80, Scotland!AU80, Southern!AU80, 'Wales & West'!AU80) -> 0 | AV80: =CHOOSE(m_identity, Cadent!AV80, East!AV80, London!AV80, 'North West'!AV80, 'West Midlands'!AV80, Northern!AV80, Scotland!AV80, Southern!AV80, 'Wales & West'!AV80) -> 0 | AW80: =CHOOSE(m_identity, Cadent!AW80, East!AW80, London!AW80, 'North West'!AW80, 'West Midlands'!AW80, Northern!AW80, Scotland!AW80, Southern!AW80, 'Wales & West'!AW80) -> 0 | AX80: =CHOOSE(m_identity, Cadent!AX80, East!AX80, London!AX80, 'North West'!AX80, 'West Midlands'!AX80, Northern!AX80, Scotland!AX80, Southern!AX80, 'Wales & West'!AX80) -> 0 | AY80: =CHOOSE(m_identity, Cadent!AY80, East!AY80, London!AY80, 'North West'!AY80, 'West Midlands'!AY80, Northern!AY80, Scotland!AY80, Southern!AY80, 'Wales & West'!AY80) -> 0
E81: RIIO3 Variant Activity 20 | G81: £m 23/24 prices | AU81: =CHOOSE(m_identity, Cadent!AU81, East!AU81, London!AU81, 'North West'!AU81, 'West Midlands'!AU81, Northern!AU81, Scotland!AU81, Southern!AU81, 'Wales & West'!AU81) -> 0 | AV81: =CHOOSE(m_identity, Cadent!AV81, East!AV81, London!AV81, 'North West'!AV81, 'West Midlands'!AV81, Northern!AV81, Scotland!AV81, Southern!AV81, 'Wales & West'!AV81) -> 0 | AW81: =CHOOSE(m_identity, Cadent!AW81, East!AW81, London!AW81, 'North West'!AW81, 'West Midlands'!AW81, Northern!AW81, Scotland!AW81, Southern!AW81, 'Wales & West'!AW81) -> 0 | AX81: =CHOOSE(m_identity, Cadent!AX81, East!AX81, London!AX81, 'North West'!AX81, 'West Midlands'!AX81, Northern!AX81, Scotland!AX81, Southern!AX81, 'Wales & West'!AX81) -> 0 | AY81: =CHOOSE(m_identity, Cadent!AY81, East!AY81, London!AY81, 'North West'!AY81, 'West Midlands'!AY81, Northern!AY81, Scotland!AY81, Southern!AY81, 'Wales & West'!AY81) -> 0
E82: RIIO3 Variant Activity 21 | G82: £m 23/24 prices | AU82: =CHOOSE(m_identity, Cadent!AU82, East!AU82, London!AU82, 'North West'!AU82, 'West Midlands'!AU82, Northern!AU82, Scotland!AU82, Southern!AU82, 'Wales & West'!AU82) -> 0 | AV82: =CHOOSE(m_identity, Cadent!AV82, East!AV82, London!AV82, 'North West'!AV82, 'West Midlands'!AV82, Northern!AV82, Scotland!AV82, Southern!AV82, 'Wales & West'!AV82) -> 0 | AW82: =CHOOSE(m_identity, Cadent!AW82, East!AW82, London!AW82, 'North West'!AW82, 'West Midlands'!AW82, Northern!AW82, Scotland!AW82, Southern!AW82, 'Wales & West'!AW82) -> 0 | AX82: =CHOOSE(m_identity, Cadent!AX82, East!AX82, London!AX82, 'North West'!AX82, 'West Midlands'!AX82, Northern!AX82, Scotland!AX82, Southern!AX82, 'Wales & West'!AX82) -> 0 | AY82: =CHOOSE(m_identity, Cadent!AY82, East!AY82, London!AY82, 'North West'!AY82, 'West Midlands'!AY82, Northern!AY82, Scotland!AY82, Southern!AY82, 'Wales & West'!AY82) -> 0
E83: RIIO3 Variant Activity 22 | G83: £m 23/24 prices | AU83: =CHOOSE(m_identity, Cadent!AU83, East!AU83, London!AU83, 'North West'!AU83, 'West Midlands'!AU83, Northern!AU83, Scotland!AU83, Southern!AU83, 'Wales & West'!AU83) -> 0 | AV83: =CHOOSE(m_identity, Cadent!AV83, East!AV83, London!AV83, 'North West'!AV83, 'West Midlands'!AV83, Northern!AV83, Scotland!AV83, Southern!AV83, 'Wales & West'!AV83) -> 0 | AW83: =CHOOSE(m_identity, Cadent!AW83, East!AW83, London!AW83, 'North West'!AW83, 'West Midlands'!AW83, Northern!AW83, Scotland!AW83, Southern!AW83, 'Wales & West'!AW83) -> 0 | AX83: =CHOOSE(m_identity, Cadent!AX83, East!AX83, London!AX83, 'North West'!AX83, 'West Midlands'!AX83, Northern!AX83, Scotland!AX83, Southern!AX83, 'Wales & West'!AX83) -> 0 | AY83: =CHOOSE(m_identity, Cadent!AY83, East!AY83, London!AY83, 'North West'!AY83, 'West Midlands'!AY83, Northern!AY83, Scotland!AY83, Southern!AY83, 'Wales & West'!AY83) -> 0
E84: RIIO3 Variant Activity 23 | G84: £m 23/24 prices | AU84: =CHOOSE(m_identity, Cadent!AU84, East!AU84, London!AU84, 'North West'!AU84, 'West Midlands'!AU84, Northern!AU84, Scotland!AU84, Southern!AU84, 'Wales & West'!AU84) -> 0 | AV84: =CHOOSE(m_identity, Cadent!AV84, East!AV84, London!AV84, 'North West'!AV84, 'West Midlands'!AV84, Northern!AV84, Scotland!AV84, Southern!AV84, 'Wales & West'!AV84) -> 0 | AW84: =CHOOSE(m_identity, Cadent!AW84, East!AW84, London!AW84, 'North West'!AW84, 'West Midlands'!AW84, Northern!AW84, Scotland!AW84, Southern!AW84, 'Wales & West'!AW84) -> 0 | AX84: =CHOOSE(m_identity, Cadent!AX84, East!AX84, London!AX84, 'North West'!AX84, 'West Midlands'!AX84, Northern!AX84, Scotland!AX84, Southern!AX84, 'Wales & West'!AX84) -> 0 | AY84: =CHOOSE(m_identity, Cadent!AY84, East!AY84, London!AY84, 'North West'!AY84, 'West Midlands'!AY84, Northern!AY84, Scotland!AY84, Southern!AY84, 'Wales & West'!AY84) -> 0
E85: RIIO3 Variant Activity 24 | G85: £m 23/24 prices | AU85: =CHOOSE(m_identity, Cadent!AU85, East!AU85, London!AU85, 'North West'!AU85, 'West Midlands'!AU85, Northern!AU85, Scotland!AU85, Southern!AU85, 'Wales & West'!AU85) -> 0 | AV85: =CHOOSE(m_identity, Cadent!AV85, East!AV85, London!AV85, 'North West'!AV85, 'West Midlands'!AV85, Northern!AV85, Scotland!AV85, Southern!AV85, 'Wales & West'!AV85) -> 0 | AW85: =CHOOSE(m_identity, Cadent!AW85, East!AW85, London!AW85, 'North West'!AW85, 'West Midlands'!AW85, Northern!AW85, Scotland!AW85, Southern!AW85, 'Wales & West'!AW85) -> 0 | AX85: =CHOOSE(m_identity, Cadent!AX85, East!AX85, London!AX85, 'North West'!AX85, 'West Midlands'!AX85, Northern!AX85, Scotland!AX85, Southern!AX85, 'Wales & West'!AX85) -> 0 | AY85: =CHOOSE(m_identity, Cadent!AY85, East!AY85, London!AY85, 'North West'!AY85, 'West Midlands'!AY85, Northern!AY85, Scotland!AY85, Southern!AY85, 'Wales & West'!AY85) -> 0
E86: RIIO3 Variant Activity 25 | G86: £m 23/24 prices | AU86: =CHOOSE(m_identity, Cadent!AU86, East!AU86, London!AU86, 'North West'!AU86, 'West Midlands'!AU86, Northern!AU86, Scotland!AU86, Southern!AU86, 'Wales & West'!AU86) -> 0 | AV86: =CHOOSE(m_identity, Cadent!AV86, East!AV86, London!AV86, 'North West'!AV86, 'West Midlands'!AV86, Northern!AV86, Scotland!AV86, Southern!AV86, 'Wales & West'!AV86) -> 0 | AW86: =CHOOSE(m_identity, Cadent!AW86, East!AW86, London!AW86, 'North West'!AW86, 'West Midlands'!AW86, Northern!AW86, Scotland!AW86, Southern!AW86, 'Wales & West'!AW86) -> 0 | AX86: =CHOOSE(m_identity, Cadent!AX86, East!AX86, London!AX86, 'North West'!AX86, 'West Midlands'!AX86, Northern!AX86, Scotland!AX86, Southern!AX86, 'Wales & West'!AX86) -> 0 | AY86: =CHOOSE(m_identity, Cadent!AY86, East!AY86, London!AY86, 'North West'!AY86, 'West Midlands'!AY86, Northern!AY86, Scotland!AY86, Southern!AY86, 'Wales & West'!AY86) -> 0
E87: RIIO3 Variant Activity 26 | G87: £m 23/24 prices | AU87: =CHOOSE(m_identity, Cadent!AU87, East!AU87, London!AU87, 'North West'!AU87, 'West Midlands'!AU87, Northern!AU87, Scotland!AU87, Southern!AU87, 'Wales & West'!AU87) -> 0 | AV87: =CHOOSE(m_identity, Cadent!AV87, East!AV87, London!AV87, 'North West'!AV87, 'West Midlands'!AV87, Northern!AV87, Scotland!AV87, Southern!AV87, 'Wales & West'!AV87) -> 0 | AW87: =CHOOSE(m_identity, Cadent!AW87, East!AW87, London!AW87, 'North West'!AW87, 'West Midlands'!AW87, Northern!AW87, Scotland!AW87, Southern!AW87, 'Wales & West'!AW87) -> 0 | AX87: =CHOOSE(m_identity, Cadent!AX87, East!AX87, London!AX87, 'North West'!AX87, 'West Midlands'!AX87, Northern!AX87, Scotland!AX87, Southern!AX87, 'Wales & West'!AX87) -> 0 | AY87: =CHOOSE(m_identity, Cadent!AY87, East!AY87, London!AY87, 'North West'!AY87, 'West Midlands'!AY87, Northern!AY87, Scotland!AY87, Southern!AY87, 'Wales & West'!AY87) -> 0
E88: RIIO3 Variant Activity 27 | G88: £m 23/24 prices | AU88: =CHOOSE(m_identity, Cadent!AU88, East!AU88, London!AU88, 'North West'!AU88, 'West Midlands'!AU88, Northern!AU88, Scotland!AU88, Southern!AU88, 'Wales & West'!AU88) -> 0 | AV88: =CHOOSE(m_identity, Cadent!AV88, East!AV88, London!AV88, 'North West'!AV88, 'West Midlands'!AV88, Northern!AV88, Scotland!AV88, Southern!AV88, 'Wales & West'!AV88) -> 0 | AW88: =CHOOSE(m_identity, Cadent!AW88, East!AW88, London!AW88, 'North West'!AW88, 'West Midlands'!AW88, Northern!AW88, Scotland!AW88, Southern!AW88, 'Wales & West'!AW88) -> 0 | AX88: =CHOOSE(m_identity, Cadent!AX88, East!AX88, London!AX88, 'North West'!AX88, 'West Midlands'!AX88, Northern!AX88, Scotland!AX88, Southern!AX88, 'Wales & West'!AX88) -> 0 | AY88: =CHOOSE(m_identity, Cadent!AY88, East!AY88, London!AY88, 'North West'!AY88, 'West Midlands'!AY88, Northern!AY88, Scotland!AY88, Southern!AY88, 'Wales & West'!AY88) -> 0
E89: RIIO3 Variant Activity 28 | G89: £m 23/24 prices | AU89: =CHOOSE(m_identity, Cadent!AU89, East!AU89, London!AU89, 'North West'!AU89, 'West Midlands'!AU89, Northern!AU89, Scotland!AU89, Southern!AU89, 'Wales & West'!AU89) -> 0 | AV89: =CHOOSE(m_identity, Cadent!AV89, East!AV89, London!AV89, 'North West'!AV89, 'West Midlands'!AV89, Northern!AV89, Scotland!AV89, Southern!AV89, 'Wales & West'!AV89) -> 0 | AW89: =CHOOSE(m_identity, Cadent!AW89, East!AW89, London!AW89, 'North West'!AW89, 'West Midlands'!AW89, Northern!AW89, Scotland!AW89, Southern!AW89, 'Wales & West'!AW89) -> 0 | AX89: =CHOOSE(m_identity, Cadent!AX89, East!AX89, London!AX89, 'North West'!AX89, 'West Midlands'!AX89, Northern!AX89, Scotland!AX89, Southern!AX89, 'Wales & West'!AX89) -> 0 | AY89: =CHOOSE(m_identity, Cadent!AY89, East!AY89, London!AY89, 'North West'!AY89, 'West Midlands'!AY89, Northern!AY89, Scotland!AY89, Southern!AY89, 'Wales & West'!AY89) -> 0
E90: RIIO3 Variant Activity 29 | G90: £m 23/24 prices | AU90: =CHOOSE(m_identity, Cadent!AU90, East!AU90, London!AU90, 'North West'!AU90, 'West Midlands'!AU90, Northern!AU90, Scotland!AU90, Southern!AU90, 'Wales & West'!AU90) -> 0 | AV90: =CHOOSE(m_identity, Cadent!AV90, East!AV90, London!AV90, 'North West'!AV90, 'West Midlands'!AV90, Northern!AV90, Scotland!AV90, Southern!AV90, 'Wales & West'!AV90) -> 0 | AW90: =CHOOSE(m_identity, Cadent!AW90, East!AW90, London!AW90, 'North West'!AW90, 'West Midlands'!AW90, Northern!AW90, Scotland!AW90, Southern!AW90, 'Wales & West'!AW90) -> 0 | AX90: =CHOOSE(m_identity, Cadent!AX90, East!AX90, London!AX90, 'North West'!AX90, 'West Midlands'!AX90, Northern!AX90, Scotland!AX90, Southern!AX90, 'Wales & West'!AX90) -> 0 | AY90: =CHOOSE(m_identity, Cadent!AY90, East!AY90, London!AY90, 'North West'!AY90, 'West Midlands'!AY90, Northern!AY90, Scotland!AY90, Southern!AY90, 'Wales & West'!AY90) -> 0
E91: RIIO3 Variant Activity 30 | G91: £m 23/24 prices | AU91: =CHOOSE(m_identity, Cadent!AU91, East!AU91, London!AU91, 'North West'!AU91, 'West Midlands'!AU91, Northern!AU91, Scotland!AU91, Southern!AU91, 'Wales & West'!AU91) -> 0 | AV91: =CHOOSE(m_identity, Cadent!AV91, East!AV91, London!AV91, 'North West'!AV91, 'West Midlands'!AV91, Northern!AV91, Scotland!AV91, Southern!AV91, 'Wales & West'!AV91) -> 0 | AW91: =CHOOSE(m_identity, Cadent!AW91, East!AW91, London!AW91, 'North West'!AW91, 'West Midlands'!AW91, Northern!AW91, Scotland!AW91, Southern!AW91, 'Wales & West'!AW91) -> 0 | AX91: =CHOOSE(m_identity, Cadent!AX91, East!AX91, London!AX91, 'North West'!AX91, 'West Midlands'!AX91, Northern!AX91, Scotland!AX91, Southern!AX91, 'Wales & West'!AX91) -> 0 | AY91: =CHOOSE(m_identity, Cadent!AY91, East!AY91, London!AY91, 'North West'!AY91, 'West Midlands'!AY91, Northern!AY91, Scotland!AY91, Southern!AY91, 'Wales & West'!AY91) -> 0
E92: RIIO3 Variant Activity 31 | G92: £m 23/24 prices | AU92: =CHOOSE(m_identity, Cadent!AU92, East!AU92, London!AU92, 'North West'!AU92, 'West Midlands'!AU92, Northern!AU92, Scotland!AU92, Southern!AU92, 'Wales & West'!AU92) -> 0 | AV92: =CHOOSE(m_identity, Cadent!AV92, East!AV92, London!AV92, 'North West'!AV92, 'West Midlands'!AV92, Northern!AV92, Scotland!AV92, Southern!AV92, 'Wales & West'!AV92) -> 0 | AW92: =CHOOSE(m_identity, Cadent!AW92, East!AW92, London!AW92, 'North West'!AW92, 'West Midlands'!AW92, Northern!AW92, Scotland!AW92, Southern!AW92, 'Wales & West'!AW92) -> 0 | AX92: =CHOOSE(m_identity, Cadent!AX92, East!AX92, London!AX92, 'North West'!AX92, 'West Midlands'!AX92, Northern!AX92, Scotland!AX92, Southern!AX92, 'Wales & West'!AX92) -> 0 | AY92: =CHOOSE(m_identity, Cadent!AY92, East!AY92, London!AY92, 'North West'!AY92, 'West Midlands'!AY92, Northern!AY92, Scotland!AY92, Southern!AY92, 'Wales & West'!AY92) -> 0
E93: RIIO3 Variant Activity 32 | G93: £m 23/24 prices | AU93: =CHOOSE(m_identity, Cadent!AU93, East!AU93, London!AU93, 'North West'!AU93, 'West Midlands'!AU93, Northern!AU93, Scotland!AU93, Southern!AU93, 'Wales & West'!AU93) -> 0 | AV93: =CHOOSE(m_identity, Cadent!AV93, East!AV93, London!AV93, 'North West'!AV93, 'West Midlands'!AV93, Northern!AV93, Scotland!AV93, Southern!AV93, 'Wales & West'!AV93) -> 0 | AW93: =CHOOSE(m_identity, Cadent!AW93, East!AW93, London!AW93, 'North West'!AW93, 'West Midlands'!AW93, Northern!AW93, Scotland!AW93, Southern!AW93, 'Wales & West'!AW93) -> 0 | AX93: =CHOOSE(m_identity, Cadent!AX93, East!AX93, London!AX93, 'North West'!AX93, 'West Midlands'!AX93, Northern!AX93, Scotland!AX93, Southern!AX93, 'Wales & West'!AX93) -> 0 | AY93: =CHOOSE(m_identity, Cadent!AY93, East!AY93, London!AY93, 'North West'!AY93, 'West Midlands'!AY93, Northern!AY93, Scotland!AY93, Southern!AY93, 'Wales & West'!AY93) -> 0
E94: RIIO3 Variant Activity 33 | G94: £m 23/24 prices | AU94: =CHOOSE(m_identity, Cadent!AU94, East!AU94, London!AU94, 'North West'!AU94, 'West Midlands'!AU94, Northern!AU94, Scotland!AU94, Southern!AU94, 'Wales & West'!AU94) -> 0 | AV94: =CHOOSE(m_identity, Cadent!AV94, East!AV94, London!AV94, 'North West'!AV94, 'West Midlands'!AV94, Northern!AV94, Scotland!AV94, Southern!AV94, 'Wales & West'!AV94) -> 0 | AW94: =CHOOSE(m_identity, Cadent!AW94, East!AW94, London!AW94, 'North West'!AW94, 'West Midlands'!AW94, Northern!AW94, Scotland!AW94, Southern!AW94, 'Wales & West'!AW94) -> 0 | AX94: =CHOOSE(m_identity, Cadent!AX94, East!AX94, London!AX94, 'North West'!AX94, 'West Midlands'!AX94, Northern!AX94, Scotland!AX94, Southern!AX94, 'Wales & West'!AX94) -> 0 | AY94: =CHOOSE(m_identity, Cadent!AY94, East!AY94, London!AY94, 'North West'!AY94, 'West Midlands'!AY94, Northern!AY94, Scotland!AY94, Southern!AY94, 'Wales & West'!AY94) -> 0
E95: RIIO3 Variant Activity 34 | G95: £m 23/24 prices | AU95: =CHOOSE(m_identity, Cadent!AU95, East!AU95, London!AU95, 'North West'!AU95, 'West Midlands'!AU95, Northern!AU95, Scotland!AU95, Southern!AU95, 'Wales & West'!AU95) -> 0 | AV95: =CHOOSE(m_identity, Cadent!AV95, East!AV95, London!AV95, 'North West'!AV95, 'West Midlands'!AV95, Northern!AV95, Scotland!AV95, Southern!AV95, 'Wales & West'!AV95) -> 0 | AW95: =CHOOSE(m_identity, Cadent!AW95, East!AW95, London!AW95, 'North West'!AW95, 'West Midlands'!AW95, Northern!AW95, Scotland!AW95, Southern!AW95, 'Wales & West'!AW95) -> 0 | AX95: =CHOOSE(m_identity, Cadent!AX95, East!AX95, London!AX95, 'North West'!AX95, 'West Midlands'!AX95, Northern!AX95, Scotland!AX95, Southern!AX95, 'Wales & West'!AX95) -> 0 | AY95: =CHOOSE(m_identity, Cadent!AY95, East!AY95, London!AY95, 'North West'!AY95, 'West Midlands'!AY95, Northern!AY95, Scotland!AY95, Southern!AY95, 'Wales & West'!AY95) -> 0
E96: RIIO3 Variant Activity 35 | G96: £m 23/24 prices | AU96: =CHOOSE(m_identity, Cadent!AU96, East!AU96, London!AU96, 'North West'!AU96, 'West Midlands'!AU96, Northern!AU96, Scotland!AU96, Southern!AU96, 'Wales & West'!AU96) -> 0 | AV96: =CHOOSE(m_identity, Cadent!AV96, East!AV96, London!AV96, 'North West'!AV96, 'West Midlands'!AV96, Northern!AV96, Scotland!AV96, Southern!AV96, 'Wales & West'!AV96) -> 0 | AW96: =CHOOSE(m_identity, Cadent!AW96, East!AW96, London!AW96, 'North West'!AW96, 'West Midlands'!AW96, Northern!AW96, Scotland!AW96, Southern!AW96, 'Wales & West'!AW96) -> 0 | AX96: =CHOOSE(m_identity, Cadent!AX96, East!AX96, London!AX96, 'North West'!AX96, 'West Midlands'!AX96, Northern!AX96, Scotland!AX96, Southern!AX96, 'Wales & West'!AX96) -> 0 | AY96: =CHOOSE(m_identity, Cadent!AY96, East!AY96, London!AY96, 'North West'!AY96, 'West Midlands'!AY96, Northern!AY96, Scotland!AY96, Southern!AY96, 'Wales & West'!AY96) -> 0
E97: RIIO3 Variant Activity 36 | G97: £m 23/24 prices | AU97: =CHOOSE(m_identity, Cadent!AU97, East!AU97, London!AU97, 'North West'!AU97, 'West Midlands'!AU97, Northern!AU97, Scotland!AU97, Southern!AU97, 'Wales & West'!AU97) -> 0 | AV97: =CHOOSE(m_identity, Cadent!AV97, East!AV97, London!AV97, 'North West'!AV97, 'West Midlands'!AV97, Northern!AV97, Scotland!AV97, Southern!AV97, 'Wales & West'!AV97) -> 0 | AW97: =CHOOSE(m_identity, Cadent!AW97, East!AW97, London!AW97, 'North West'!AW97, 'West Midlands'!AW97, Northern!AW97, Scotland!AW97, Southern!AW97, 'Wales & West'!AW97) -> 0 | AX97: =CHOOSE(m_identity, Cadent!AX97, East!AX97, London!AX97, 'North West'!AX97, 'West Midlands'!AX97, Northern!AX97, Scotland!AX97, Southern!AX97, 'Wales & West'!AX97) -> 0 | AY97: =CHOOSE(m_identity, Cadent!AY97, East!AY97, London!AY97, 'North West'!AY97, 'West Midlands'!AY97, Northern!AY97, Scotland!AY97, Southern!AY97, 'Wales & West'!AY97) -> 0
E98: RIIO3 Variant Activity 37 | G98: £m 23/24 prices | AU98: =CHOOSE(m_identity, Cadent!AU98, East!AU98, London!AU98, 'North West'!AU98, 'West Midlands'!AU98, Northern!AU98, Scotland!AU98, Southern!AU98, 'Wales & West'!AU98) -> 0 | AV98: =CHOOSE(m_identity, Cadent!AV98, East!AV98, London!AV98, 'North West'!AV98, 'West Midlands'!AV98, Northern!AV98, Scotland!AV98, Southern!AV98, 'Wales & West'!AV98) -> 0 | AW98: =CHOOSE(m_identity, Cadent!AW98, East!AW98, London!AW98, 'North West'!AW98, 'West Midlands'!AW98, Northern!AW98, Scotland!AW98, Southern!AW98, 'Wales & West'!AW98) -> 0 | AX98: =CHOOSE(m_identity, Cadent!AX98, East!AX98, London!AX98, 'North West'!AX98, 'West Midlands'!AX98, Northern!AX98, Scotland!AX98, Southern!AX98, 'Wales & West'!AX98) -> 0 | AY98: =CHOOSE(m_identity, Cadent!AY98, East!AY98, London!AY98, 'North West'!AY98, 'West Midlands'!AY98, Northern!AY98, Scotland!AY98, Southern!AY98, 'Wales & West'!AY98) -> 0
E99: RIIO3 Variant Activity 38 | G99: £m 23/24 prices | AU99: =CHOOSE(m_identity, Cadent!AU99, East!AU99, London!AU99, 'North West'!AU99, 'West Midlands'!AU99, Northern!AU99, Scotland!AU99, Southern!AU99, 'Wales & West'!AU99) -> 0 | AV99: =CHOOSE(m_identity, Cadent!AV99, East!AV99, London!AV99, 'North West'!AV99, 'West Midlands'!AV99, Northern!AV99, Scotland!AV99, Southern!AV99, 'Wales & West'!AV99) -> 0 | AW99: =CHOOSE(m_identity, Cadent!AW99, East!AW99, London!AW99, 'North West'!AW99, 'West Midlands'!AW99, Northern!AW99, Scotland!AW99, Southern!AW99, 'Wales & West'!AW99) -> 0 | AX99: =CHOOSE(m_identity, Cadent!AX99, East!AX99, London!AX99, 'North West'!AX99, 'West Midlands'!AX99, Northern!AX99, Scotland!AX99, Southern!AX99, 'Wales & West'!AX99) -> 0 | AY99: =CHOOSE(m_identity, Cadent!AY99, East!AY99, London!AY99, 'North West'!AY99, 'West Midlands'!AY99, Northern!AY99, Scotland!AY99, Southern!AY99, 'Wales & West'!AY99) -> 0
E100: RIIO3 Variant Activity 39 | G100: £m 23/24 prices | AU100: =CHOOSE(m_identity, Cadent!AU100, East!AU100, London!AU100, 'North West'!AU100, 'West Midlands'!AU100, Northern!AU100, Scotland!AU100, Southern!AU100, 'Wales & West'!AU100) -> 0 | AV100: =CHOOSE(m_identity, Cadent!AV100, East!AV100, London!AV100, 'North West'!AV100, 'West Midlands'!AV100, Northern!AV100, Scotland!AV100, Southern!AV100, 'Wales & West'!AV100) -> 0 | AW100: =CHOOSE(m_identity, Cadent!AW100, East!AW100, London!AW100, 'North West'!AW100, 'West Midlands'!AW100, Northern!AW100, Scotland!AW100, Southern!AW100, 'Wales & West'!AW100) -> 0 | AX100: =CHOOSE(m_identity, Cadent!AX100, East!AX100, London!AX100, 'North West'!AX100, 'West Midlands'!AX100, Northern!AX100, Scotland!AX100, Southern!AX100, 'Wales & West'!AX100) -> 0 | AY100: =CHOOSE(m_identity, Cadent!AY100, East!AY100, London!AY100, 'North West'!AY100, 'West Midlands'!AY100, Northern!AY100, Scotland!AY100, Southern!AY100, 'Wales & West'!AY100) -> 0
E101: RIIO3 Variant Activity 40 | G101: £m 23/24 prices | AU101: =CHOOSE(m_identity, Cadent!AU101, East!AU101, London!AU101, 'North West'!AU101, 'West Midlands'!AU101, Northern!AU101, Scotland!AU101, Southern!AU101, 'Wales & West'!AU101) -> 0 | AV101: =CHOOSE(m_identity, Cadent!AV101, East!AV101, London!AV101, 'North West'!AV101, 'West Midlands'!AV101, Northern!AV101, Scotland!AV101, Southern!AV101, 'Wales & West'!AV101) -> 0 | AW101: =CHOOSE(m_identity, Cadent!AW101, East!AW101, London!AW101, 'North West'!AW101, 'West Midlands'!AW101, Northern!AW101, Scotland!AW101, Southern!AW101, 'Wales & West'!AW101) -> 0 | AX101: =CHOOSE(m_identity, Cadent!AX101, East!AX101, London!AX101, 'North West'!AX101, 'West Midlands'!AX101, Northern!AX101, Scotland!AX101, Southern!AX101, 'Wales & West'!AX101) -> 0 | AY101: =CHOOSE(m_identity, Cadent!AY101, East!AY101, London!AY101, 'North West'!AY101, 'West Midlands'!AY101, Northern!AY101, Scotland!AY101, Southern!AY101, 'Wales & West'!AY101) -> 0
E102: RIIO3 Variant Activity 41 | G102: £m 23/24 prices | AU102: =CHOOSE(m_identity, Cadent!AU102, East!AU102, London!AU102, 'North West'!AU102, 'West Midlands'!AU102, Northern!AU102, Scotland!AU102, Southern!AU102, 'Wales & West'!AU102) -> 0 | AV102: =CHOOSE(m_identity, Cadent!AV102, East!AV102, London!AV102, 'North West'!AV102, 'West Midlands'!AV102, Northern!AV102, Scotland!AV102, Southern!AV102, 'Wales & West'!AV102) -> 0 | AW102: =CHOOSE(m_identity, Cadent!AW102, East!AW102, London!AW102, 'North West'!AW102, 'West Midlands'!AW102, Northern!AW102, Scotland!AW102, Southern!AW102, 'Wales & West'!AW102) -> 0 | AX102: =CHOOSE(m_identity, Cadent!AX102, East!AX102, London!AX102, 'North West'!AX102, 'West Midlands'!AX102, Northern!AX102, Scotland!AX102, Southern!AX102, 'Wales & West'!AX102) -> 0 | AY102: =CHOOSE(m_identity, Cadent!AY102, East!AY102, London!AY102, 'North West'!AY102, 'West Midlands'!AY102, Northern!AY102, Scotland!AY102, Southern!AY102, 'Wales & West'!AY102) -> 0
E103: RIIO3 Variant Activity 42 | G103: £m 23/24 prices | AU103: =CHOOSE(m_identity, Cadent!AU103, East!AU103, London!AU103, 'North West'!AU103, 'West Midlands'!AU103, Northern!AU103, Scotland!AU103, Southern!AU103, 'Wales & West'!AU103) -> 0 | AV103: =CHOOSE(m_identity, Cadent!AV103, East!AV103, London!AV103, 'North West'!AV103, 'West Midlands'!AV103, Northern!AV103, Scotland!AV103, Southern!AV103, 'Wales & West'!AV103) -> 0 | AW103: =CHOOSE(m_identity, Cadent!AW103, East!AW103, London!AW103, 'North West'!AW103, 'West Midlands'!AW103, Northern!AW103, Scotland!AW103, Southern!AW103, 'Wales & West'!AW103) -> 0 | AX103: =CHOOSE(m_identity, Cadent!AX103, East!AX103, London!AX103, 'North West'!AX103, 'West Midlands'!AX103, Northern!AX103, Scotland!AX103, Southern!AX103, 'Wales & West'!AX103) -> 0 | AY103: =CHOOSE(m_identity, Cadent!AY103, East!AY103, London!AY103, 'North West'!AY103, 'West Midlands'!AY103, Northern!AY103, Scotland!AY103, Southern!AY103, 'Wales & West'!AY103) -> 0
E104: RIIO3 Variant Activity 43 | G104: £m 23/24 prices | AU104: =CHOOSE(m_identity, Cadent!AU104, East!AU104, London!AU104, 'North West'!AU104, 'West Midlands'!AU104, Northern!AU104, Scotland!AU104, Southern!AU104, 'Wales & West'!AU104) -> 0 | AV104: =CHOOSE(m_identity, Cadent!AV104, East!AV104, London!AV104, 'North West'!AV104, 'West Midlands'!AV104, Northern!AV104, Scotland!AV104, Southern!AV104, 'Wales & West'!AV104) -> 0 | AW104: =CHOOSE(m_identity, Cadent!AW104, East!AW104, London!AW104, 'North West'!AW104, 'West Midlands'!AW104, Northern!AW104, Scotland!AW104, Southern!AW104, 'Wales & West'!AW104) -> 0 | AX104: =CHOOSE(m_identity, Cadent!AX104, East!AX104, London!AX104, 'North West'!AX104, 'West Midlands'!AX104, Northern!AX104, Scotland!AX104, Southern!AX104, 'Wales & West'!AX104) -> 0 | AY104: =CHOOSE(m_identity, Cadent!AY104, East!AY104, London!AY104, 'North West'!AY104, 'West Midlands'!AY104, Northern!AY104, Scotland!AY104, Southern!AY104, 'Wales & West'!AY104) -> 0
E105: RIIO3 Variant Activity 44 | G105: £m 23/24 prices | AU105: =CHOOSE(m_identity, Cadent!AU105, East!AU105, London!AU105, 'North West'!AU105, 'West Midlands'!AU105, Northern!AU105, Scotland!AU105, Southern!AU105, 'Wales & West'!AU105) -> 0 | AV105: =CHOOSE(m_identity, Cadent!AV105, East!AV105, London!AV105, 'North West'!AV105, 'West Midlands'!AV105, Northern!AV105, Scotland!AV105, Southern!AV105, 'Wales & West'!AV105) -> 0 | AW105: =CHOOSE(m_identity, Cadent!AW105, East!AW105, London!AW105, 'North West'!AW105, 'West Midlands'!AW105, Northern!AW105, Scotland!AW105, Southern!AW105, 'Wales & West'!AW105) -> 0 | AX105: =CHOOSE(m_identity, Cadent!AX105, East!AX105, London!AX105, 'North West'!AX105, 'West Midlands'!AX105, Northern!AX105, Scotland!AX105, Southern!AX105, 'Wales & West'!AX105) -> 0 | AY105: =CHOOSE(m_identity, Cadent!AY105, East!AY105, London!AY105, 'North West'!AY105, 'West Midlands'!AY105, Northern!AY105, Scotland!AY105, Southern!AY105, 'Wales & West'!AY105) -> 0
E106: RIIO3 Variant Activity 45 | G106: £m 23/24 prices | AU106: =CHOOSE(m_identity, Cadent!AU106, East!AU106, London!AU106, 'North West'!AU106, 'West Midlands'!AU106, Northern!AU106, Scotland!AU106, Southern!AU106, 'Wales & West'!AU106) -> 0 | AV106: =CHOOSE(m_identity, Cadent!AV106, East!AV106, London!AV106, 'North West'!AV106, 'West Midlands'!AV106, Northern!AV106, Scotland!AV106, Southern!AV106, 'Wales & West'!AV106) -> 0 | AW106: =CHOOSE(m_identity, Cadent!AW106, East!AW106, London!AW106, 'North West'!AW106, 'West Midlands'!AW106, Northern!AW106, Scotland!AW106, Southern!AW106, 'Wales & West'!AW106) -> 0 | AX106: =CHOOSE(m_identity, Cadent!AX106, East!AX106, London!AX106, 'North West'!AX106, 'West Midlands'!AX106, Northern!AX106, Scotland!AX106, Southern!AX106, 'Wales & West'!AX106) -> 0 | AY106: =CHOOSE(m_identity, Cadent!AY106, East!AY106, London!AY106, 'North West'!AY106, 'West Midlands'!AY106, Northern!AY106, Scotland!AY106, Southern!AY106, 'Wales & West'!AY106) -> 0
E107: RIIO3 Variant Activity 46 | G107: £m 23/24 prices | AU107: =CHOOSE(m_identity, Cadent!AU107, East!AU107, London!AU107, 'North West'!AU107, 'West Midlands'!AU107, Northern!AU107, Scotland!AU107, Southern!AU107, 'Wales & West'!AU107) -> 0 | AV107: =CHOOSE(m_identity, Cadent!AV107, East!AV107, London!AV107, 'North West'!AV107, 'West Midlands'!AV107, Northern!AV107, Scotland!AV107, Southern!AV107, 'Wales & West'!AV107) -> 0 | AW107: =CHOOSE(m_identity, Cadent!AW107, East!AW107, London!AW107, 'North West'!AW107, 'West Midlands'!AW107, Northern!AW107, Scotland!AW107, Southern!AW107, 'Wales & West'!AW107) -> 0 | AX107: =CHOOSE(m_identity, Cadent!AX107, East!AX107, London!AX107, 'North West'!AX107, 'West Midlands'!AX107, Northern!AX107, Scotland!AX107, Southern!AX107, 'Wales & West'!AX107) -> 0 | AY107: =CHOOSE(m_identity, Cadent!AY107, East!AY107, London!AY107, 'North West'!AY107, 'West Midlands'!AY107, Northern!AY107, Scotland!AY107, Southern!AY107, 'Wales & West'!AY107) -> 0
E108: RIIO3 Variant Activity 47 | G108: £m 23/24 prices | AU108: =CHOOSE(m_identity, Cadent!AU108, East!AU108, London!AU108, 'North West'!AU108, 'West Midlands'!AU108, Northern!AU108, Scotland!AU108, Southern!AU108, 'Wales & West'!AU108) -> 0 | AV108: =CHOOSE(m_identity, Cadent!AV108, East!AV108, London!AV108, 'North West'!AV108, 'West Midlands'!AV108, Northern!AV108, Scotland!AV108, Southern!AV108, 'Wales & West'!AV108) -> 0 | AW108: =CHOOSE(m_identity, Cadent!AW108, East!AW108, London!AW108, 'North West'!AW108, 'West Midlands'!AW108, Northern!AW108, Scotland!AW108, Southern!AW108, 'Wales & West'!AW108) -> 0 | AX108: =CHOOSE(m_identity, Cadent!AX108, East!AX108, London!AX108, 'North West'!AX108, 'West Midlands'!AX108, Northern!AX108, Scotland!AX108, Southern!AX108, 'Wales & West'!AX108) -> 0 | AY108: =CHOOSE(m_identity, Cadent!AY108, East!AY108, London!AY108, 'North West'!AY108, 'West Midlands'!AY108, Northern!AY108, Scotland!AY108, Southern!AY108, 'Wales & West'!AY108) -> 0
E109: RIIO3 Variant Activity 48 | G109: £m 23/24 prices | AU109: =CHOOSE(m_identity, Cadent!AU109, East!AU109, London!AU109, 'North West'!AU109, 'West Midlands'!AU109, Northern!AU109, Scotland!AU109, Southern!AU109, 'Wales & West'!AU109) -> 0 | AV109: =CHOOSE(m_identity, Cadent!AV109, East!AV109, London!AV109, 'North West'!AV109, 'West Midlands'!AV109, Northern!AV109, Scotland!AV109, Southern!AV109, 'Wales & West'!AV109) -> 0 | AW109: =CHOOSE(m_identity, Cadent!AW109, East!AW109, London!AW109, 'North West'!AW109, 'West Midlands'!AW109, Northern!AW109, Scotland!AW109, Southern!AW109, 'Wales & West'!AW109) -> 0 | AX109: =CHOOSE(m_identity, Cadent!AX109, East!AX109, London!AX109, 'North West'!AX109, 'West Midlands'!AX109, Northern!AX109, Scotland!AX109, Southern!AX109, 'Wales & West'!AX109) -> 0 | AY109: =CHOOSE(m_identity, Cadent!AY109, East!AY109, London!AY109, 'North West'!AY109, 'West Midlands'!AY109, Northern!AY109, Scotland!AY109, Southern!AY109, 'Wales & West'!AY109) -> 0
E110: RIIO3 Variant Activity 49 | G110: £m 23/24 prices | AU110: =CHOOSE(m_identity, Cadent!AU110, East!AU110, London!AU110, 'North West'!AU110, 'West Midlands'!AU110, Northern!AU110, Scotland!AU110, Southern!AU110, 'Wales & West'!AU110) -> 0 | AV110: =CHOOSE(m_identity, Cadent!AV110, East!AV110, London!AV110, 'North West'!AV110, 'West Midlands'!AV110, Northern!AV110, Scotland!AV110, Southern!AV110, 'Wales & West'!AV110) -> 0 | AW110: =CHOOSE(m_identity, Cadent!AW110, East!AW110, London!AW110, 'North West'!AW110, 'West Midlands'!AW110, Northern!AW110, Scotland!AW110, Southern!AW110, 'Wales & West'!AW110) -> 0 | AX110: =CHOOSE(m_identity, Cadent!AX110, East!AX110, London!AX110, 'North West'!AX110, 'West Midlands'!AX110, Northern!AX110, Scotland!AX110, Southern!AX110, 'Wales & West'!AX110) -> 0 | AY110: =CHOOSE(m_identity, Cadent!AY110, East!AY110, London!AY110, 'North West'!AY110, 'West Midlands'!AY110, Northern!AY110, Scotland!AY110, Southern!AY110, 'Wales & West'!AY110) -> 0
E111: RIIO3 Variant Activity 50 | G111: £m 23/24 prices | AU111: =CHOOSE(m_identity, Cadent!AU111, East!AU111, London!AU111, 'North West'!AU111, 'West Midlands'!AU111, Northern!AU111, Scotland!AU111, Southern!AU111, 'Wales & West'!AU111) -> 0 | AV111: =CHOOSE(m_identity, Cadent!AV111, East!AV111, London!AV111, 'North West'!AV111, 'West Midlands'!AV111, Northern!AV111, Scotland!AV111, Southern!AV111, 'Wales & West'!AV111) -> 0 | AW111: =CHOOSE(m_identity, Cadent!AW111, East!AW111, London!AW111, 'North West'!AW111, 'West Midlands'!AW111, Northern!AW111, Scotland!AW111, Southern!AW111, 'Wales & West'!AW111) -> 0 | AX111: =CHOOSE(m_identity, Cadent!AX111, East!AX111, London!AX111, 'North West'!AX111, 'West Midlands'!AX111, Northern!AX111, Scotland!AX111, Southern!AX111, 'Wales & West'!AX111) -> 0 | AY111: =CHOOSE(m_identity, Cadent!AY111, East!AY111, London!AY111, 'North West'!AY111, 'West Midlands'!AY111, Northern!AY111, Scotland!AY111, Southern!AY111, 'Wales & West'!AY111) -> 0
E112: RPE non-variant allowances - FYI only | G112: £m 23/24 prices | H112: RPEAt (non-variant)
E113: RPE PCDs - FYI only | G113: £m 23/24 prices | H113: RPEAt (PCD)
E114: RPE UMs - FYI only | G114: £m 23/24 prices | H114: RPEAt (UM)
C116: Variant attributes
E119: Gas Holder demolitions Price Control Deliverable [WWU and NGN only] | AT119: Variant attributes from RIIO2 assumed to be same in RIIO3
E120: Baseline Network Risk Output
E121: Tier 1 Mains decommissioned Price Control Deliverable
E122: Tier 1 Services Repex Price Control Deliverable
E123: Biomethane improved access rollout Price Control Deliverable [SGN only]
E124: Remote pressure management Price Control Deliverable [SGN Southern only]
E125: Intermediate pressure reconfigurations Price Control Deliverable [SGN Scotland only]
E126: Capital projects Price Control Deliverable
E127: Commercial fleet Price Control Deliverable
E128: Gas escape reduction Price Control Deliverable [SGN only]
E129: Cyber Resilience OT Baseline
E130: Cyber Resilience IT Baseline
E131: Physical security Price Control Deliverable
E132: London Medium Pressure Price Control Deliverable [Cadent London only]
E133: Personalising welfare facilities Price Control Deliverable [Cadent only]
E134: Net zero and Re-opener development fund use it or lose it allowance
E135: Spare PCD 1
E136: Spare PCD 2
E137: Spare PCD 3
E138: Tier 2A mains and services replacement volume driver
E139: HSE policy Re-opener
E140: Coordinated adjustment mechanism Re-opener
E141: Heat policy and energy efficiency Re-opener
E142: Fuel Poor Network Extension Scheme volume driver
E143: Net zero Re-opener
E144: Smart Metering Roll-out Costs Re-opener
E145: Specified Streetworks Costs Re-opener
E146: New Large Load Connections Re-opener
E147: Domestic Connections volume driver
E148: Tier 1 Stubs Repex policy Re-opener
E149: Diversions and Loss of Development Claims policy Re-opener
E150: Multiple Occupancy Buildings safety Re-opener
E151: Non-operational IT Capex Re-opener
E152: Net zero pre-construction works and small net zero projects re-opener
E153: Cyber Resilience OT Non-Baseline
E154: Cyber Resilience IT Non-Baseline
E155: Physical Security Re-Opener
E156: Spare UM TIM 1
E157: Spare UM TIM 2
E158: Spare UM TIM 3
E159: RIIO3 Variant Activity 1 | AP159: =CHOOSE(m_identity, Cadent!AP159, East!AP159, London!AP159, 'North West'!AP159, 'West Midlands'!AP159, Northern!AP159, Scotland!AP159, Southern!AP159, 'Wales & West'!AP159) -> 0 | AQ159: =CHOOSE(m_identity, Cadent!AQ159, East!AQ159, London!AQ159, 'North West'!AQ159, 'West Midlands'!AQ159, Northern!AQ159, Scotland!AQ159, Southern!AQ159, 'Wales & West'!AQ159) -> 0 | AR159: =CHOOSE(m_identity, Cadent!AR159, East!AR159, London!AR159, 'North West'!AR159, 'West Midlands'!AR159, Northern!AR159, Scotland!AR159, Southern!AR159, 'Wales & West'!AR159) -> 0 | AS159: =CHOOSE(m_identity, Cadent!AS159, East!AS159, London!AS159, 'North West'!AS159, 'West Midlands'!AS159, Northern!AS159, Scotland!AS159, Southern!AS159, 'Wales & West'!AS159) -> 0
E160: RIIO3 Variant Activity 2 | AP160: =CHOOSE(m_identity, Cadent!AP160, East!AP160, London!AP160, 'North West'!AP160, 'West Midlands'!AP160, Northern!AP160, Scotland!AP160, Southern!AP160, 'Wales & West'!AP160) -> 0 | AQ160: =CHOOSE(m_identity, Cadent!AQ160, East!AQ160, London!AQ160, 'North West'!AQ160, 'West Midlands'!AQ160, Northern!AQ160, Scotland!AQ160, Southern!AQ160, 'Wales & West'!AQ160) -> 0 | AR160: =CHOOSE(m_identity, Cadent!AR160, East!AR160, London!AR160, 'North West'!AR160, 'West Midlands'!AR160, Northern!AR160, Scotland!AR160, Southern!AR160, 'Wales & West'!AR160) -> 0 | AS160: =CHOOSE(m_identity, Cadent!AS160, East!AS160, London!AS160, 'North West'!AS160, 'West Midlands'!AS160, Northern!AS160, Scotland!AS160, Southern!AS160, 'Wales & West'!AS160) -> 0
E161: RIIO3 Variant Activity 3 | AP161: =CHOOSE(m_identity, Cadent!AP161, East!AP161, London!AP161, 'North West'!AP161, 'West Midlands'!AP161, Northern!AP161, Scotland!AP161, Southern!AP161, 'Wales & West'!AP161) -> 0 | AQ161: =CHOOSE(m_identity, Cadent!AQ161, East!AQ161, London!AQ161, 'North West'!AQ161, 'West Midlands'!AQ161, Northern!AQ161, Scotland!AQ161, Southern!AQ161, 'Wales & West'!AQ161) -> 0 | AR161: =CHOOSE(m_identity, Cadent!AR161, East!AR161, London!AR161, 'North West'!AR161, 'West Midlands'!AR161, Northern!AR161, Scotland!AR161, Southern!AR161, 'Wales & West'!AR161) -> 0 | AS161: =CHOOSE(m_identity, Cadent!AS161, East!AS161, London!AS161, 'North West'!AS161, 'West Midlands'!AS161, Northern!AS161, Scotland!AS161, Southern!AS161, 'Wales & West'!AS161) -> 0
E162: RIIO3 Variant Activity 4 | AP162: =CHOOSE(m_identity, Cadent!AP162, East!AP162, London!AP162, 'North West'!AP162, 'West Midlands'!AP162, Northern!AP162, Scotland!AP162, Southern!AP162, 'Wales & West'!AP162) -> 0 | AQ162: =CHOOSE(m_identity, Cadent!AQ162, East!AQ162, London!AQ162, 'North West'!AQ162, 'West Midlands'!AQ162, Northern!AQ162, Scotland!AQ162, Southern!AQ162, 'Wales & West'!AQ162) -> 0 | AR162: =CHOOSE(m_identity, Cadent!AR162, East!AR162, London!AR162, 'North West'!AR162, 'West Midlands'!AR162, Northern!AR162, Scotland!AR162, Southern!AR162, 'Wales & West'!AR162) -> 0 | AS162: =CHOOSE(m_identity, Cadent!AS162, East!AS162, London!AS162, 'North West'!AS162, 'West Midlands'!AS162, Northern!AS162, Scotland!AS162, Southern!AS162, 'Wales & West'!AS162) -> 0
E163: RIIO3 Variant Activity 5 | AP163: =CHOOSE(m_identity, Cadent!AP163, East!AP163, London!AP163, 'North West'!AP163, 'West Midlands'!AP163, Northern!AP163, Scotland!AP163, Southern!AP163, 'Wales & West'!AP163) -> 0 | AQ163: =CHOOSE(m_identity, Cadent!AQ163, East!AQ163, London!AQ163, 'North West'!AQ163, 'West Midlands'!AQ163, Northern!AQ163, Scotland!AQ163, Southern!AQ163, 'Wales & West'!AQ163) -> 0 | AR163: =CHOOSE(m_identity, Cadent!AR163, East!AR163, London!AR163, 'North West'!AR163, 'West Midlands'!AR163, Northern!AR163, Scotland!AR163, Southern!AR163, 'Wales & West'!AR163) -> 0 | AS163: =CHOOSE(m_identity, Cadent!AS163, East!AS163, London!AS163, 'North West'!AS163, 'West Midlands'!AS163, Northern!AS163, Scotland!AS163, Southern!AS163, 'Wales & West'!AS163) -> 0
E164: RIIO3 Variant Activity 6 | AP164: =CHOOSE(m_identity, Cadent!AP164, East!AP164, London!AP164, 'North West'!AP164, 'West Midlands'!AP164, Northern!AP164, Scotland!AP164, Southern!AP164, 'Wales & West'!AP164) -> 0 | AQ164: =CHOOSE(m_identity, Cadent!AQ164, East!AQ164, London!AQ164, 'North West'!AQ164, 'West Midlands'!AQ164, Northern!AQ164, Scotland!AQ164, Southern!AQ164, 'Wales & West'!AQ164) -> 0 | AR164: =CHOOSE(m_identity, Cadent!AR164, East!AR164, London!AR164, 'North West'!AR164, 'West Midlands'!AR164, Northern!AR164, Scotland!AR164, Southern!AR164, 'Wales & West'!AR164) -> 0 | AS164: =CHOOSE(m_identity, Cadent!AS164, East!AS164, London!AS164, 'North West'!AS164, 'West Midlands'!AS164, Northern!AS164, Scotland!AS164, Southern!AS164, 'Wales & West'!AS164) -> 0
E165: RIIO3 Variant Activity 7 | AP165: =CHOOSE(m_identity, Cadent!AP165, East!AP165, London!AP165, 'North West'!AP165, 'West Midlands'!AP165, Northern!AP165, Scotland!AP165, Southern!AP165, 'Wales & West'!AP165) -> 0 | AQ165: =CHOOSE(m_identity, Cadent!AQ165, East!AQ165, London!AQ165, 'North West'!AQ165, 'West Midlands'!AQ165, Northern!AQ165, Scotland!AQ165, Southern!AQ165, 'Wales & West'!AQ165) -> 0 | AR165: =CHOOSE(m_identity, Cadent!AR165, East!AR165, London!AR165, 'North West'!AR165, 'West Midlands'!AR165, Northern!AR165, Scotland!AR165, Southern!AR165, 'Wales & West'!AR165) -> 0 | AS165: =CHOOSE(m_identity, Cadent!AS165, East!AS165, London!AS165, 'North West'!AS165, 'West Midlands'!AS165, Northern!AS165, Scotland!AS165, Southern!AS165, 'Wales & West'!AS165) -> 0
E166: RIIO3 Variant Activity 8 | AP166: =CHOOSE(m_identity, Cadent!AP166, East!AP166, London!AP166, 'North West'!AP166, 'West Midlands'!AP166, Northern!AP166, Scotland!AP166, Southern!AP166, 'Wales & West'!AP166) -> 0 | AQ166: =CHOOSE(m_identity, Cadent!AQ166, East!AQ166, London!AQ166, 'North West'!AQ166, 'West Midlands'!AQ166, Northern!AQ166, Scotland!AQ166, Southern!AQ166, 'Wales & West'!AQ166) -> 0 | AR166: =CHOOSE(m_identity, Cadent!AR166, East!AR166, London!AR166, 'North West'!AR166, 'West Midlands'!AR166, Northern!AR166, Scotland!AR166, Southern!AR166, 'Wales & West'!AR166) -> 0 | AS166: =CHOOSE(m_identity, Cadent!AS166, East!AS166, London!AS166, 'North West'!AS166, 'West Midlands'!AS166, Northern!AS166, Scotland!AS166, Southern!AS166, 'Wales & West'!AS166) -> 0
E167: RIIO3 Variant Activity 9 | AP167: =CHOOSE(m_identity, Cadent!AP167, East!AP167, London!AP167, 'North West'!AP167, 'West Midlands'!AP167, Northern!AP167, Scotland!AP167, Southern!AP167, 'Wales & West'!AP167) -> 0 | AQ167: =CHOOSE(m_identity, Cadent!AQ167, East!AQ167, London!AQ167, 'North West'!AQ167, 'West Midlands'!AQ167, Northern!AQ167, Scotland!AQ167, Southern!AQ167, 'Wales & West'!AQ167) -> 0 | AR167: =CHOOSE(m_identity, Cadent!AR167, East!AR167, London!AR167, 'North West'!AR167, 'West Midlands'!AR167, Northern!AR167, Scotland!AR167, Southern!AR167, 'Wales & West'!AR167) -> 0 | AS167: =CHOOSE(m_identity, Cadent!AS167, East!AS167, London!AS167, 'North West'!AS167, 'West Midlands'!AS167, Northern!AS167, Scotland!AS167, Southern!AS167, 'Wales & West'!AS167) -> 0
E168: RIIO3 Variant Activity 10 | AP168: =CHOOSE(m_identity, Cadent!AP168, East!AP168, London!AP168, 'North West'!AP168, 'West Midlands'!AP168, Northern!AP168, Scotland!AP168, Southern!AP168, 'Wales & West'!AP168) -> 0 | AQ168: =CHOOSE(m_identity, Cadent!AQ168, East!AQ168, London!AQ168, 'North West'!AQ168, 'West Midlands'!AQ168, Northern!AQ168, Scotland!AQ168, Southern!AQ168, 'Wales & West'!AQ168) -> 0 | AR168: =CHOOSE(m_identity, Cadent!AR168, East!AR168, London!AR168, 'North West'!AR168, 'West Midlands'!AR168, Northern!AR168, Scotland!AR168, Southern!AR168, 'Wales & West'!AR168) -> 0 | AS168: =CHOOSE(m_identity, Cadent!AS168, East!AS168, London!AS168, 'North West'!AS168, 'West Midlands'!AS168, Northern!AS168, Scotland!AS168, Southern!AS168, 'Wales & West'!AS168) -> 0
E169: RIIO3 Variant Activity 11 | AP169: =CHOOSE(m_identity, Cadent!AP169, East!AP169, London!AP169, 'North West'!AP169, 'West Midlands'!AP169, Northern!AP169, Scotland!AP169, Southern!AP169, 'Wales & West'!AP169) -> 0 | AQ169: =CHOOSE(m_identity, Cadent!AQ169, East!AQ169, London!AQ169, 'North West'!AQ169, 'West Midlands'!AQ169, Northern!AQ169, Scotland!AQ169, Southern!AQ169, 'Wales & West'!AQ169) -> 0 | AR169: =CHOOSE(m_identity, Cadent!AR169, East!AR169, London!AR169, 'North West'!AR169, 'West Midlands'!AR169, Northern!AR169, Scotland!AR169, Southern!AR169, 'Wales & West'!AR169) -> 0 | AS169: =CHOOSE(m_identity, Cadent!AS169, East!AS169, London!AS169, 'North West'!AS169, 'West Midlands'!AS169, Northern!AS169, Scotland!AS169, Southern!AS169, 'Wales & West'!AS169) -> 0
E170: RIIO3 Variant Activity 12 | AP170: =CHOOSE(m_identity, Cadent!AP170, East!AP170, London!AP170, 'North West'!AP170, 'West Midlands'!AP170, Northern!AP170, Scotland!AP170, Southern!AP170, 'Wales & West'!AP170) -> 0 | AQ170: =CHOOSE(m_identity, Cadent!AQ170, East!AQ170, London!AQ170, 'North West'!AQ170, 'West Midlands'!AQ170, Northern!AQ170, Scotland!AQ170, Southern!AQ170, 'Wales & West'!AQ170) -> 0 | AR170: =CHOOSE(m_identity, Cadent!AR170, East!AR170, London!AR170, 'North West'!AR170, 'West Midlands'!AR170, Northern!AR170, Scotland!AR170, Southern!AR170, 'Wales & West'!AR170) -> 0 | AS170: =CHOOSE(m_identity, Cadent!AS170, East!AS170, London!AS170, 'North West'!AS170, 'West Midlands'!AS170, Northern!AS170, Scotland!AS170, Southern!AS170, 'Wales & West'!AS170) -> 0
E171: RIIO3 Variant Activity 13 | AP171: =CHOOSE(m_identity, Cadent!AP171, East!AP171, London!AP171, 'North West'!AP171, 'West Midlands'!AP171, Northern!AP171, Scotland!AP171, Southern!AP171, 'Wales & West'!AP171) -> 0 | AQ171: =CHOOSE(m_identity, Cadent!AQ171, East!AQ171, London!AQ171, 'North West'!AQ171, 'West Midlands'!AQ171, Northern!AQ171, Scotland!AQ171, Southern!AQ171, 'Wales & West'!AQ171) -> 0 | AR171: =CHOOSE(m_identity, Cadent!AR171, East!AR171, London!AR171, 'North West'!AR171, 'West Midlands'!AR171, Northern!AR171, Scotland!AR171, Southern!AR171, 'Wales & West'!AR171) -> 0 | AS171: =CHOOSE(m_identity, Cadent!AS171, East!AS171, London!AS171, 'North West'!AS171, 'West Midlands'!AS171, Northern!AS171, Scotland!AS171, Southern!AS171, 'Wales & West'!AS171) -> 0
E172: RIIO3 Variant Activity 14 | AP172: =CHOOSE(m_identity, Cadent!AP172, East!AP172, London!AP172, 'North West'!AP172, 'West Midlands'!AP172, Northern!AP172, Scotland!AP172, Southern!AP172, 'Wales & West'!AP172) -> 0 | AQ172: =CHOOSE(m_identity, Cadent!AQ172, East!AQ172, London!AQ172, 'North West'!AQ172, 'West Midlands'!AQ172, Northern!AQ172, Scotland!AQ172, Southern!AQ172, 'Wales & West'!AQ172) -> 0 | AR172: =CHOOSE(m_identity, Cadent!AR172, East!AR172, London!AR172, 'North West'!AR172, 'West Midlands'!AR172, Northern!AR172, Scotland!AR172, Southern!AR172, 'Wales & West'!AR172) -> 0 | AS172: =CHOOSE(m_identity, Cadent!AS172, East!AS172, London!AS172, 'North West'!AS172, 'West Midlands'!AS172, Northern!AS172, Scotland!AS172, Southern!AS172, 'Wales & West'!AS172) -> 0
E173: RIIO3 Variant Activity 15 | AP173: =CHOOSE(m_identity, Cadent!AP173, East!AP173, London!AP173, 'North West'!AP173, 'West Midlands'!AP173, Northern!AP173, Scotland!AP173, Southern!AP173, 'Wales & West'!AP173) -> 0 | AQ173: =CHOOSE(m_identity, Cadent!AQ173, East!AQ173, London!AQ173, 'North West'!AQ173, 'West Midlands'!AQ173, Northern!AQ173, Scotland!AQ173, Southern!AQ173, 'Wales & West'!AQ173) -> 0 | AR173: =CHOOSE(m_identity, Cadent!AR173, East!AR173, London!AR173, 'North West'!AR173, 'West Midlands'!AR173, Northern!AR173, Scotland!AR173, Southern!AR173, 'Wales & West'!AR173) -> 0 | AS173: =CHOOSE(m_identity, Cadent!AS173, East!AS173, London!AS173, 'North West'!AS173, 'West Midlands'!AS173, Northern!AS173, Scotland!AS173, Southern!AS173, 'Wales & West'!AS173) -> 0
E174: RIIO3 Variant Activity 16 | AP174: =CHOOSE(m_identity, Cadent!AP174, East!AP174, London!AP174, 'North West'!AP174, 'West Midlands'!AP174, Northern!AP174, Scotland!AP174, Southern!AP174, 'Wales & West'!AP174) -> 0 | AQ174: =CHOOSE(m_identity, Cadent!AQ174, East!AQ174, London!AQ174, 'North West'!AQ174, 'West Midlands'!AQ174, Northern!AQ174, Scotland!AQ174, Southern!AQ174, 'Wales & West'!AQ174) -> 0 | AR174: =CHOOSE(m_identity, Cadent!AR174, East!AR174, London!AR174, 'North West'!AR174, 'West Midlands'!AR174, Northern!AR174, Scotland!AR174, Southern!AR174, 'Wales & West'!AR174) -> 0 | AS174: =CHOOSE(m_identity, Cadent!AS174, East!AS174, London!AS174, 'North West'!AS174, 'West Midlands'!AS174, Northern!AS174, Scotland!AS174, Southern!AS174, 'Wales & West'!AS174) -> 0
E175: RIIO3 Variant Activity 17 | AP175: =CHOOSE(m_identity, Cadent!AP175, East!AP175, London!AP175, 'North West'!AP175, 'West Midlands'!AP175, Northern!AP175, Scotland!AP175, Southern!AP175, 'Wales & West'!AP175) -> 0 | AQ175: =CHOOSE(m_identity, Cadent!AQ175, East!AQ175, London!AQ175, 'North West'!AQ175, 'West Midlands'!AQ175, Northern!AQ175, Scotland!AQ175, Southern!AQ175, 'Wales & West'!AQ175) -> 0 | AR175: =CHOOSE(m_identity, Cadent!AR175, East!AR175, London!AR175, 'North West'!AR175, 'West Midlands'!AR175, Northern!AR175, Scotland!AR175, Southern!AR175, 'Wales & West'!AR175) -> 0 | AS175: =CHOOSE(m_identity, Cadent!AS175, East!AS175, London!AS175, 'North West'!AS175, 'West Midlands'!AS175, Northern!AS175, Scotland!AS175, Southern!AS175, 'Wales & West'!AS175) -> 0
E176: RIIO3 Variant Activity 18 | AP176: =CHOOSE(m_identity, Cadent!AP176, East!AP176, London!AP176, 'North West'!AP176, 'West Midlands'!AP176, Northern!AP176, Scotland!AP176, Southern!AP176, 'Wales & West'!AP176) -> 0 | AQ176: =CHOOSE(m_identity, Cadent!AQ176, East!AQ176, London!AQ176, 'North West'!AQ176, 'West Midlands'!AQ176, Northern!AQ176, Scotland!AQ176, Southern!AQ176, 'Wales & West'!AQ176) -> 0 | AR176: =CHOOSE(m_identity, Cadent!AR176, East!AR176, London!AR176, 'North West'!AR176, 'West Midlands'!AR176, Northern!AR176, Scotland!AR176, Southern!AR176, 'Wales & West'!AR176) -> 0 | AS176: =CHOOSE(m_identity, Cadent!AS176, East!AS176, London!AS176, 'North West'!AS176, 'West Midlands'!AS176, Northern!AS176, Scotland!AS176, Southern!AS176, 'Wales & West'!AS176) -> 0
E177: RIIO3 Variant Activity 19 | AP177: =CHOOSE(m_identity, Cadent!AP177, East!AP177, London!AP177, 'North West'!AP177, 'West Midlands'!AP177, Northern!AP177, Scotland!AP177, Southern!AP177, 'Wales & West'!AP177) -> 0 | AQ177: =CHOOSE(m_identity, Cadent!AQ177, East!AQ177, London!AQ177, 'North West'!AQ177, 'West Midlands'!AQ177, Northern!AQ177, Scotland!AQ177, Southern!AQ177, 'Wales & West'!AQ177) -> 0 | AR177: =CHOOSE(m_identity, Cadent!AR177, East!AR177, London!AR177, 'North West'!AR177, 'West Midlands'!AR177, Northern!AR177, Scotland!AR177, Southern!AR177, 'Wales & West'!AR177) -> 0 | AS177: =CHOOSE(m_identity, Cadent!AS177, East!AS177, London!AS177, 'North West'!AS177, 'West Midlands'!AS177, Northern!AS177, Scotland!AS177, Southern!AS177, 'Wales & West'!AS177) -> 0
E178: RIIO3 Variant Activity 20 | AP178: =CHOOSE(m_identity, Cadent!AP178, East!AP178, London!AP178, 'North West'!AP178, 'West Midlands'!AP178, Northern!AP178, Scotland!AP178, Southern!AP178, 'Wales & West'!AP178) -> 0 | AQ178: =CHOOSE(m_identity, Cadent!AQ178, East!AQ178, London!AQ178, 'North West'!AQ178, 'West Midlands'!AQ178, Northern!AQ178, Scotland!AQ178, Southern!AQ178, 'Wales & West'!AQ178) -> 0 | AR178: =CHOOSE(m_identity, Cadent!AR178, East!AR178, London!AR178, 'North West'!AR178, 'West Midlands'!AR178, Northern!AR178, Scotland!AR178, Southern!AR178, 'Wales & West'!AR178) -> 0 | AS178: =CHOOSE(m_identity, Cadent!AS178, East!AS178, London!AS178, 'North West'!AS178, 'West Midlands'!AS178, Northern!AS178, Scotland!AS178, Southern!AS178, 'Wales & West'!AS178) -> 0
E179: RIIO3 Variant Activity 21 | AP179: =CHOOSE(m_identity, Cadent!AP179, East!AP179, London!AP179, 'North West'!AP179, 'West Midlands'!AP179, Northern!AP179, Scotland!AP179, Southern!AP179, 'Wales & West'!AP179) -> 0 | AQ179: =CHOOSE(m_identity, Cadent!AQ179, East!AQ179, London!AQ179, 'North West'!AQ179, 'West Midlands'!AQ179, Northern!AQ179, Scotland!AQ179, Southern!AQ179, 'Wales & West'!AQ179) -> 0 | AR179: =CHOOSE(m_identity, Cadent!AR179, East!AR179, London!AR179, 'North West'!AR179, 'West Midlands'!AR179, Northern!AR179, Scotland!AR179, Southern!AR179, 'Wales & West'!AR179) -> 0 | AS179: =CHOOSE(m_identity, Cadent!AS179, East!AS179, London!AS179, 'North West'!AS179, 'West Midlands'!AS179, Northern!AS179, Scotland!AS179, Southern!AS179, 'Wales & West'!AS179) -> 0
E180: RIIO3 Variant Activity 22 | AP180: =CHOOSE(m_identity, Cadent!AP180, East!AP180, London!AP180, 'North West'!AP180, 'West Midlands'!AP180, Northern!AP180, Scotland!AP180, Southern!AP180, 'Wales & West'!AP180) -> 0 | AQ180: =CHOOSE(m_identity, Cadent!AQ180, East!AQ180, London!AQ180, 'North West'!AQ180, 'West Midlands'!AQ180, Northern!AQ180, Scotland!AQ180, Southern!AQ180, 'Wales & West'!AQ180) -> 0 | AR180: =CHOOSE(m_identity, Cadent!AR180, East!AR180, London!AR180, 'North West'!AR180, 'West Midlands'!AR180, Northern!AR180, Scotland!AR180, Southern!AR180, 'Wales & West'!AR180) -> 0 | AS180: =CHOOSE(m_identity, Cadent!AS180, East!AS180, London!AS180, 'North West'!AS180, 'West Midlands'!AS180, Northern!AS180, Scotland!AS180, Southern!AS180, 'Wales & West'!AS180) -> 0
E181: RIIO3 Variant Activity 23 | AP181: =CHOOSE(m_identity, Cadent!AP181, East!AP181, London!AP181, 'North West'!AP181, 'West Midlands'!AP181, Northern!AP181, Scotland!AP181, Southern!AP181, 'Wales & West'!AP181) -> 0 | AQ181: =CHOOSE(m_identity, Cadent!AQ181, East!AQ181, London!AQ181, 'North West'!AQ181, 'West Midlands'!AQ181, Northern!AQ181, Scotland!AQ181, Southern!AQ181, 'Wales & West'!AQ181) -> 0 | AR181: =CHOOSE(m_identity, Cadent!AR181, East!AR181, London!AR181, 'North West'!AR181, 'West Midlands'!AR181, Northern!AR181, Scotland!AR181, Southern!AR181, 'Wales & West'!AR181) -> 0 | AS181: =CHOOSE(m_identity, Cadent!AS181, East!AS181, London!AS181, 'North West'!AS181, 'West Midlands'!AS181, Northern!AS181, Scotland!AS181, Southern!AS181, 'Wales & West'!AS181) -> 0
E182: RIIO3 Variant Activity 24 | AP182: =CHOOSE(m_identity, Cadent!AP182, East!AP182, London!AP182, 'North West'!AP182, 'West Midlands'!AP182, Northern!AP182, Scotland!AP182, Southern!AP182, 'Wales & West'!AP182) -> 0 | AQ182: =CHOOSE(m_identity, Cadent!AQ182, East!AQ182, London!AQ182, 'North West'!AQ182, 'West Midlands'!AQ182, Northern!AQ182, Scotland!AQ182, Southern!AQ182, 'Wales & West'!AQ182) -> 0 | AR182: =CHOOSE(m_identity, Cadent!AR182, East!AR182, London!AR182, 'North West'!AR182, 'West Midlands'!AR182, Northern!AR182, Scotland!AR182, Southern!AR182, 'Wales & West'!AR182) -> 0 | AS182: =CHOOSE(m_identity, Cadent!AS182, East!AS182, London!AS182, 'North West'!AS182, 'West Midlands'!AS182, Northern!AS182, Scotland!AS182, Southern!AS182, 'Wales & West'!AS182) -> 0
E183: RIIO3 Variant Activity 25 | AP183: =CHOOSE(m_identity, Cadent!AP183, East!AP183, London!AP183, 'North West'!AP183, 'West Midlands'!AP183, Northern!AP183, Scotland!AP183, Southern!AP183, 'Wales & West'!AP183) -> 0 | AQ183: =CHOOSE(m_identity, Cadent!AQ183, East!AQ183, London!AQ183, 'North West'!AQ183, 'West Midlands'!AQ183, Northern!AQ183, Scotland!AQ183, Southern!AQ183, 'Wales & West'!AQ183) -> 0 | AR183: =CHOOSE(m_identity, Cadent!AR183, East!AR183, London!AR183, 'North West'!AR183, 'West Midlands'!AR183, Northern!AR183, Scotland!AR183, Southern!AR183, 'Wales & West'!AR183) -> 0 | AS183: =CHOOSE(m_identity, Cadent!AS183, East!AS183, London!AS183, 'North West'!AS183, 'West Midlands'!AS183, Northern!AS183, Scotland!AS183, Southern!AS183, 'Wales & West'!AS183) -> 0
E184: RIIO3 Variant Activity 26 | AP184: =CHOOSE(m_identity, Cadent!AP184, East!AP184, London!AP184, 'North West'!AP184, 'West Midlands'!AP184, Northern!AP184, Scotland!AP184, Southern!AP184, 'Wales & West'!AP184) -> 0 | AQ184: =CHOOSE(m_identity, Cadent!AQ184, East!AQ184, London!AQ184, 'North West'!AQ184, 'West Midlands'!AQ184, Northern!AQ184, Scotland!AQ184, Southern!AQ184, 'Wales & West'!AQ184) -> 0 | AR184: =CHOOSE(m_identity, Cadent!AR184, East!AR184, London!AR184, 'North West'!AR184, 'West Midlands'!AR184, Northern!AR184, Scotland!AR184, Southern!AR184, 'Wales & West'!AR184) -> 0 | AS184: =CHOOSE(m_identity, Cadent!AS184, East!AS184, London!AS184, 'North West'!AS184, 'West Midlands'!AS184, Northern!AS184, Scotland!AS184, Southern!AS184, 'Wales & West'!AS184) -> 0
E185: RIIO3 Variant Activity 27 | AP185: =CHOOSE(m_identity, Cadent!AP185, East!AP185, London!AP185, 'North West'!AP185, 'West Midlands'!AP185, Northern!AP185, Scotland!AP185, Southern!AP185, 'Wales & West'!AP185) -> 0 | AQ185: =CHOOSE(m_identity, Cadent!AQ185, East!AQ185, London!AQ185, 'North West'!AQ185, 'West Midlands'!AQ185, Northern!AQ185, Scotland!AQ185, Southern!AQ185, 'Wales & West'!AQ185) -> 0 | AR185: =CHOOSE(m_identity, Cadent!AR185, East!AR185, London!AR185, 'North West'!AR185, 'West Midlands'!AR185, Northern!AR185, Scotland!AR185, Southern!AR185, 'Wales & West'!AR185) -> 0 | AS185: =CHOOSE(m_identity, Cadent!AS185, East!AS185, London!AS185, 'North West'!AS185, 'West Midlands'!AS185, Northern!AS185, Scotland!AS185, Southern!AS185, 'Wales & West'!AS185) -> 0
E186: RIIO3 Variant Activity 28 | AP186: =CHOOSE(m_identity, Cadent!AP186, East!AP186, London!AP186, 'North West'!AP186, 'West Midlands'!AP186, Northern!AP186, Scotland!AP186, Southern!AP186, 'Wales & West'!AP186) -> 0 | AQ186: =CHOOSE(m_identity, Cadent!AQ186, East!AQ186, London!AQ186, 'North West'!AQ186, 'West Midlands'!AQ186, Northern!AQ186, Scotland!AQ186, Southern!AQ186, 'Wales & West'!AQ186) -> 0 | AR186: =CHOOSE(m_identity, Cadent!AR186, East!AR186, London!AR186, 'North West'!AR186, 'West Midlands'!AR186, Northern!AR186, Scotland!AR186, Southern!AR186, 'Wales & West'!AR186) -> 0 | AS186: =CHOOSE(m_identity, Cadent!AS186, East!AS186, London!AS186, 'North West'!AS186, 'West Midlands'!AS186, Northern!AS186, Scotland!AS186, Southern!AS186, 'Wales & West'!AS186) -> 0
E187: RIIO3 Variant Activity 29 | AP187: =CHOOSE(m_identity, Cadent!AP187, East!AP187, London!AP187, 'North West'!AP187, 'West Midlands'!AP187, Northern!AP187, Scotland!AP187, Southern!AP187, 'Wales & West'!AP187) -> 0 | AQ187: =CHOOSE(m_identity, Cadent!AQ187, East!AQ187, London!AQ187, 'North West'!AQ187, 'West Midlands'!AQ187, Northern!AQ187, Scotland!AQ187, Southern!AQ187, 'Wales & West'!AQ187) -> 0 | AR187: =CHOOSE(m_identity, Cadent!AR187, East!AR187, London!AR187, 'North West'!AR187, 'West Midlands'!AR187, Northern!AR187, Scotland!AR187, Southern!AR187, 'Wales & West'!AR187) -> 0 | AS187: =CHOOSE(m_identity, Cadent!AS187, East!AS187, London!AS187, 'North West'!AS187, 'West Midlands'!AS187, Northern!AS187, Scotland!AS187, Southern!AS187, 'Wales & West'!AS187) -> 0
E188: RIIO3 Variant Activity 30 | AP188: =CHOOSE(m_identity, Cadent!AP188, East!AP188, London!AP188, 'North West'!AP188, 'West Midlands'!AP188, Northern!AP188, Scotland!AP188, Southern!AP188, 'Wales & West'!AP188) -> 0 | AQ188: =CHOOSE(m_identity, Cadent!AQ188, East!AQ188, London!AQ188, 'North West'!AQ188, 'West Midlands'!AQ188, Northern!AQ188, Scotland!AQ188, Southern!AQ188, 'Wales & West'!AQ188) -> 0 | AR188: =CHOOSE(m_identity, Cadent!AR188, East!AR188, London!AR188, 'North West'!AR188, 'West Midlands'!AR188, Northern!AR188, Scotland!AR188, Southern!AR188, 'Wales & West'!AR188) -> 0 | AS188: =CHOOSE(m_identity, Cadent!AS188, East!AS188, London!AS188, 'North West'!AS188, 'West Midlands'!AS188, Northern!AS188, Scotland!AS188, Southern!AS188, 'Wales & West'!AS188) -> 0
E189: RIIO3 Variant Activity 31 | AP189: =CHOOSE(m_identity, Cadent!AP189, East!AP189, London!AP189, 'North West'!AP189, 'West Midlands'!AP189, Northern!AP189, Scotland!AP189, Southern!AP189, 'Wales & West'!AP189) -> 0 | AQ189: =CHOOSE(m_identity, Cadent!AQ189, East!AQ189, London!AQ189, 'North West'!AQ189, 'West Midlands'!AQ189, Northern!AQ189, Scotland!AQ189, Southern!AQ189, 'Wales & West'!AQ189) -> 0 | AR189: =CHOOSE(m_identity, Cadent!AR189, East!AR189, London!AR189, 'North West'!AR189, 'West Midlands'!AR189, Northern!AR189, Scotland!AR189, Southern!AR189, 'Wales & West'!AR189) -> 0 | AS189: =CHOOSE(m_identity, Cadent!AS189, East!AS189, London!AS189, 'North West'!AS189, 'West Midlands'!AS189, Northern!AS189, Scotland!AS189, Southern!AS189, 'Wales & West'!AS189) -> 0
E190: RIIO3 Variant Activity 32 | AP190: =CHOOSE(m_identity, Cadent!AP190, East!AP190, London!AP190, 'North West'!AP190, 'West Midlands'!AP190, Northern!AP190, Scotland!AP190, Southern!AP190, 'Wales & West'!AP190) -> 0 | AQ190: =CHOOSE(m_identity, Cadent!AQ190, East!AQ190, London!AQ190, 'North West'!AQ190, 'West Midlands'!AQ190, Northern!AQ190, Scotland!AQ190, Southern!AQ190, 'Wales & West'!AQ190) -> 0 | AR190: =CHOOSE(m_identity, Cadent!AR190, East!AR190, London!AR190, 'North West'!AR190, 'West Midlands'!AR190, Northern!AR190, Scotland!AR190, Southern!AR190, 'Wales & West'!AR190) -> 0 | AS190: =CHOOSE(m_identity, Cadent!AS190, East!AS190, London!AS190, 'North West'!AS190, 'West Midlands'!AS190, Northern!AS190, Scotland!AS190, Southern!AS190, 'Wales & West'!AS190) -> 0
E191: RIIO3 Variant Activity 33 | AP191: =CHOOSE(m_identity, Cadent!AP191, East!AP191, London!AP191, 'North West'!AP191, 'West Midlands'!AP191, Northern!AP191, Scotland!AP191, Southern!AP191, 'Wales & West'!AP191) -> 0 | AQ191: =CHOOSE(m_identity, Cadent!AQ191, East!AQ191, London!AQ191, 'North West'!AQ191, 'West Midlands'!AQ191, Northern!AQ191, Scotland!AQ191, Southern!AQ191, 'Wales & West'!AQ191) -> 0 | AR191: =CHOOSE(m_identity, Cadent!AR191, East!AR191, London!AR191, 'North West'!AR191, 'West Midlands'!AR191, Northern!AR191, Scotland!AR191, Southern!AR191, 'Wales & West'!AR191) -> 0 | AS191: =CHOOSE(m_identity, Cadent!AS191, East!AS191, London!AS191, 'North West'!AS191, 'West Midlands'!AS191, Northern!AS191, Scotland!AS191, Southern!AS191, 'Wales & West'!AS191) -> 0
E192: RIIO3 Variant Activity 34 | AP192: =CHOOSE(m_identity, Cadent!AP192, East!AP192, London!AP192, 'North West'!AP192, 'West Midlands'!AP192, Northern!AP192, Scotland!AP192, Southern!AP192, 'Wales & West'!AP192) -> 0 | AQ192: =CHOOSE(m_identity, Cadent!AQ192, East!AQ192, London!AQ192, 'North West'!AQ192, 'West Midlands'!AQ192, Northern!AQ192, Scotland!AQ192, Southern!AQ192, 'Wales & West'!AQ192) -> 0 | AR192: =CHOOSE(m_identity, Cadent!AR192, East!AR192, London!AR192, 'North West'!AR192, 'West Midlands'!AR192, Northern!AR192, Scotland!AR192, Southern!AR192, 'Wales & West'!AR192) -> 0 | AS192: =CHOOSE(m_identity, Cadent!AS192, East!AS192, London!AS192, 'North West'!AS192, 'West Midlands'!AS192, Northern!AS192, Scotland!AS192, Southern!AS192, 'Wales & West'!AS192) -> 0
E193: RIIO3 Variant Activity 35 | AP193: =CHOOSE(m_identity, Cadent!AP193, East!AP193, London!AP193, 'North West'!AP193, 'West Midlands'!AP193, Northern!AP193, Scotland!AP193, Southern!AP193, 'Wales & West'!AP193) -> 0 | AQ193: =CHOOSE(m_identity, Cadent!AQ193, East!AQ193, London!AQ193, 'North West'!AQ193, 'West Midlands'!AQ193, Northern!AQ193, Scotland!AQ193, Southern!AQ193, 'Wales & West'!AQ193) -> 0 | AR193: =CHOOSE(m_identity, Cadent!AR193, East!AR193, London!AR193, 'North West'!AR193, 'West Midlands'!AR193, Northern!AR193, Scotland!AR193, Southern!AR193, 'Wales & West'!AR193) -> 0 | AS193: =CHOOSE(m_identity, Cadent!AS193, East!AS193, London!AS193, 'North West'!AS193, 'West Midlands'!AS193, Northern!AS193, Scotland!AS193, Southern!AS193, 'Wales & West'!AS193) -> 0
E194: RIIO3 Variant Activity 36 | AP194: =CHOOSE(m_identity, Cadent!AP194, East!AP194, London!AP194, 'North West'!AP194, 'West Midlands'!AP194, Northern!AP194, Scotland!AP194, Southern!AP194, 'Wales & West'!AP194) -> 0 | AQ194: =CHOOSE(m_identity, Cadent!AQ194, East!AQ194, London!AQ194, 'North West'!AQ194, 'West Midlands'!AQ194, Northern!AQ194, Scotland!AQ194, Southern!AQ194, 'Wales & West'!AQ194) -> 0 | AR194: =CHOOSE(m_identity, Cadent!AR194, East!AR194, London!AR194, 'North West'!AR194, 'West Midlands'!AR194, Northern!AR194, Scotland!AR194, Southern!AR194, 'Wales & West'!AR194) -> 0 | AS194: =CHOOSE(m_identity, Cadent!AS194, East!AS194, London!AS194, 'North West'!AS194, 'West Midlands'!AS194, Northern!AS194, Scotland!AS194, Southern!AS194, 'Wales & West'!AS194) -> 0
E195: RIIO3 Variant Activity 37 | AP195: =CHOOSE(m_identity, Cadent!AP195, East!AP195, London!AP195, 'North West'!AP195, 'West Midlands'!AP195, Northern!AP195, Scotland!AP195, Southern!AP195, 'Wales & West'!AP195) -> 0 | AQ195: =CHOOSE(m_identity, Cadent!AQ195, East!AQ195, London!AQ195, 'North West'!AQ195, 'West Midlands'!AQ195, Northern!AQ195, Scotland!AQ195, Southern!AQ195, 'Wales & West'!AQ195) -> 0 | AR195: =CHOOSE(m_identity, Cadent!AR195, East!AR195, London!AR195, 'North West'!AR195, 'West Midlands'!AR195, Northern!AR195, Scotland!AR195, Southern!AR195, 'Wales & West'!AR195) -> 0 | AS195: =CHOOSE(m_identity, Cadent!AS195, East!AS195, London!AS195, 'North West'!AS195, 'West Midlands'!AS195, Northern!AS195, Scotland!AS195, Southern!AS195, 'Wales & West'!AS195) -> 0
E196: RIIO3 Variant Activity 38 | AP196: =CHOOSE(m_identity, Cadent!AP196, East!AP196, London!AP196, 'North West'!AP196, 'West Midlands'!AP196, Northern!AP196, Scotland!AP196, Southern!AP196, 'Wales & West'!AP196) -> 0 | AQ196: =CHOOSE(m_identity, Cadent!AQ196, East!AQ196, London!AQ196, 'North West'!AQ196, 'West Midlands'!AQ196, Northern!AQ196, Scotland!AQ196, Southern!AQ196, 'Wales & West'!AQ196) -> 0 | AR196: =CHOOSE(m_identity, Cadent!AR196, East!AR196, London!AR196, 'North West'!AR196, 'West Midlands'!AR196, Northern!AR196, Scotland!AR196, Southern!AR196, 'Wales & West'!AR196) -> 0 | AS196: =CHOOSE(m_identity, Cadent!AS196, East!AS196, London!AS196, 'North West'!AS196, 'West Midlands'!AS196, Northern!AS196, Scotland!AS196, Southern!AS196, 'Wales & West'!AS196) -> 0
E197: RIIO3 Variant Activity 39 | AP197: =CHOOSE(m_identity, Cadent!AP197, East!AP197, London!AP197, 'North West'!AP197, 'West Midlands'!AP197, Northern!AP197, Scotland!AP197, Southern!AP197, 'Wales & West'!AP197) -> 0 | AQ197: =CHOOSE(m_identity, Cadent!AQ197, East!AQ197, London!AQ197, 'North West'!AQ197, 'West Midlands'!AQ197, Northern!AQ197, Scotland!AQ197, Southern!AQ197, 'Wales & West'!AQ197) -> 0 | AR197: =CHOOSE(m_identity, Cadent!AR197, East!AR197, London!AR197, 'North West'!AR197, 'West Midlands'!AR197, Northern!AR197, Scotland!AR197, Southern!AR197, 'Wales & West'!AR197) -> 0 | AS197: =CHOOSE(m_identity, Cadent!AS197, East!AS197, London!AS197, 'North West'!AS197, 'West Midlands'!AS197, Northern!AS197, Scotland!AS197, Southern!AS197, 'Wales & West'!AS197) -> 0
E198: RIIO3 Variant Activity 40 | AP198: =CHOOSE(m_identity, Cadent!AP198, East!AP198, London!AP198, 'North West'!AP198, 'West Midlands'!AP198, Northern!AP198, Scotland!AP198, Southern!AP198, 'Wales & West'!AP198) -> 0 | AQ198: =CHOOSE(m_identity, Cadent!AQ198, East!AQ198, London!AQ198, 'North West'!AQ198, 'West Midlands'!AQ198, Northern!AQ198, Scotland!AQ198, Southern!AQ198, 'Wales & West'!AQ198) -> 0 | AR198: =CHOOSE(m_identity, Cadent!AR198, East!AR198, London!AR198, 'North West'!AR198, 'West Midlands'!AR198, Northern!AR198, Scotland!AR198, Southern!AR198, 'Wales & West'!AR198) -> 0 | AS198: =CHOOSE(m_identity, Cadent!AS198, East!AS198, London!AS198, 'North West'!AS198, 'West Midlands'!AS198, Northern!AS198, Scotland!AS198, Southern!AS198, 'Wales & West'!AS198) -> 0
E199: RIIO3 Variant Activity 41 | AP199: =CHOOSE(m_identity, Cadent!AP199, East!AP199, London!AP199, 'North West'!AP199, 'West Midlands'!AP199, Northern!AP199, Scotland!AP199, Southern!AP199, 'Wales & West'!AP199) -> 0 | AQ199: =CHOOSE(m_identity, Cadent!AQ199, East!AQ199, London!AQ199, 'North West'!AQ199, 'West Midlands'!AQ199, Northern!AQ199, Scotland!AQ199, Southern!AQ199, 'Wales & West'!AQ199) -> 0 | AR199: =CHOOSE(m_identity, Cadent!AR199, East!AR199, London!AR199, 'North West'!AR199, 'West Midlands'!AR199, Northern!AR199, Scotland!AR199, Southern!AR199, 'Wales & West'!AR199) -> 0 | AS199: =CHOOSE(m_identity, Cadent!AS199, East!AS199, London!AS199, 'North West'!AS199, 'West Midlands'!AS199, Northern!AS199, Scotland!AS199, Southern!AS199, 'Wales & West'!AS199) -> 0
E200: RIIO3 Variant Activity 42 | AP200: =CHOOSE(m_identity, Cadent!AP200, East!AP200, London!AP200, 'North West'!AP200, 'West Midlands'!AP200, Northern!AP200, Scotland!AP200, Southern!AP200, 'Wales & West'!AP200) -> 0 | AQ200: =CHOOSE(m_identity, Cadent!AQ200, East!AQ200, London!AQ200, 'North West'!AQ200, 'West Midlands'!AQ200, Northern!AQ200, Scotland!AQ200, Southern!AQ200, 'Wales & West'!AQ200) -> 0 | AR200: =CHOOSE(m_identity, Cadent!AR200, East!AR200, London!AR200, 'North West'!AR200, 'West Midlands'!AR200, Northern!AR200, Scotland!AR200, Southern!AR200, 'Wales & West'!AR200) -> 0 | AS200: =CHOOSE(m_identity, Cadent!AS200, East!AS200, London!AS200, 'North West'!AS200, 'West Midlands'!AS200, Northern!AS200, Scotland!AS200, Southern!AS200, 'Wales & West'!AS200) -> 0
E201: RIIO3 Variant Activity 43 | AP201: =CHOOSE(m_identity, Cadent!AP201, East!AP201, London!AP201, 'North West'!AP201, 'West Midlands'!AP201, Northern!AP201, Scotland!AP201, Southern!AP201, 'Wales & West'!AP201) -> 0 | AQ201: =CHOOSE(m_identity, Cadent!AQ201, East!AQ201, London!AQ201, 'North West'!AQ201, 'West Midlands'!AQ201, Northern!AQ201, Scotland!AQ201, Southern!AQ201, 'Wales & West'!AQ201) -> 0 | AR201: =CHOOSE(m_identity, Cadent!AR201, East!AR201, London!AR201, 'North West'!AR201, 'West Midlands'!AR201, Northern!AR201, Scotland!AR201, Southern!AR201, 'Wales & West'!AR201) -> 0 | AS201: =CHOOSE(m_identity, Cadent!AS201, East!AS201, London!AS201, 'North West'!AS201, 'West Midlands'!AS201, Northern!AS201, Scotland!AS201, Southern!AS201, 'Wales & West'!AS201) -> 0
E202: RIIO3 Variant Activity 44 | AP202: =CHOOSE(m_identity, Cadent!AP202, East!AP202, London!AP202, 'North West'!AP202, 'West Midlands'!AP202, Northern!AP202, Scotland!AP202, Southern!AP202, 'Wales & West'!AP202) -> 0 | AQ202: =CHOOSE(m_identity, Cadent!AQ202, East!AQ202, London!AQ202, 'North West'!AQ202, 'West Midlands'!AQ202, Northern!AQ202, Scotland!AQ202, Southern!AQ202, 'Wales & West'!AQ202) -> 0 | AR202: =CHOOSE(m_identity, Cadent!AR202, East!AR202, London!AR202, 'North West'!AR202, 'West Midlands'!AR202, Northern!AR202, Scotland!AR202, Southern!AR202, 'Wales & West'!AR202) -> 0 | AS202: =CHOOSE(m_identity, Cadent!AS202, East!AS202, London!AS202, 'North West'!AS202, 'West Midlands'!AS202, Northern!AS202, Scotland!AS202, Southern!AS202, 'Wales & West'!AS202) -> 0
